Workbook

Sheet France
A1: X réel | B1: Y réel | C1: Adresse | E1: A battre : | F1: 4023 | G1: Ordre | H1: X réel | I1: Y réel | J1: Distance : | K1: 2703.328123 | L1: Niv: 8 | M1: Historique | N1: Temps | O1: =MIN(M:M) -> 2660.050991
A2: 357 | B2: 226 | C2: Auxerre | G2: 0 | H2: 357 | I2: 226 | J2: Détail : | K2: =SUM(J:J) ->  | M2: 2660.050991 | N2: 0.0749
A3: 314 | B3: 265 | C3: Bourges | G3: 1 | H3: 314 | I3: 265 | J3: =INDEX(Trajets_France!A:AT,MATCH(G3,Trajets_France!$1:$1,0),MATCH(G2,Trajets_France!$A:$A,0)) ->  | K3: =(+K1/F1)-1 -> -0.3280317865 | M3: 2660.050991 | N3: 0.2295
A4: 231 | B4: 240 | C4: Tours | G4: 33 | H4: 348 | I4: 353 | J4: =INDEX(Trajets_France!A:AT,MATCH(G4,Trajets_France!$1:$1,0),MATCH(G3,Trajets_France!$A:$A,0)) ->  | M4: 2660.050991 | N4: 0.34
A5: 219 | B5: 288 | C5: Poitiers | G5: 31 | H5: 413 | I5: 350 | J5: =INDEX(Trajets_France!A:AT,MATCH(G5,Trajets_France!$1:$1,0),MATCH(G4,Trajets_France!$A:$A,0)) ->  | M5: 2660.050991 | N5: 0.445
A6: 254 | B6: 337 | C6: Limoges | G6: 32 | H6: 417 | I6: 314 | J6: =INDEX(Trajets_France!A:AT,MATCH(G6,Trajets_France!$1:$1,0),MATCH(G5,Trajets_France!$A:$A,0)) ->  | M6: 2660.050991 | N6: 0.5588
A7: 308 | B7: 19 | C7: Calais | G7: 35 | H7: 472 | I7: 332 | J7: =INDEX(Trajets_France!A:AT,MATCH(G7,Trajets_France!$1:$1,0),MATCH(G6,Trajets_France!$A:$A,0)) ->  | M7: 2660.050991 | N7: 0.6534
A8: 326 | B8: 44 | C8: Lille | G8: 34 | H8: 471 | I8: 352 | J8: =INDEX(Trajets_France!A:AT,MATCH(G8,Trajets_France!$1:$1,0),MATCH(G7,Trajets_France!$A:$A,0)) ->  | M8: 2660.050991 | N8: 0.7525
A9: 313 | B9: 81 | C9: Amiens | G9: 30 | H9: 456 | I9: 390 | J9: =INDEX(Trajets_France!A:AT,MATCH(G9,Trajets_France!$1:$1,0),MATCH(G8,Trajets_France!$A:$A,0)) ->  | M9: 2660.050991 | N9: 0.8482
A10: 263 | B10: 110 | C10: Rouen | G10: 29 | H10: 531 | I10: 474 | J10: =INDEX(Trajets_France!A:AT,MATCH(G10,Trajets_France!$1:$1,0),MATCH(G9,Trajets_France!$A:$A,0)) ->  | M10: 2660.050991 | N10: 0.9433
A11: 293 | B11: 137 | C11: Paris | G11: 28 | H11: 453 | I11: 519 | J11: =INDEX(Trajets_France!A:AT,MATCH(G11,Trajets_France!$1:$1,0),MATCH(G10,Trajets_France!$A:$A,0)) ->  | M11: 2660.050991 | N11: 1.0435
A12: 203 | B12: 124 | C12: Caen | G12: 27 | H12: 435 | I12: 504 | J12: =INDEX(Trajets_France!A:AT,MATCH(G12,Trajets_France!$1:$1,0),MATCH(G11,Trajets_France!$A:$A,0)) ->  | M12: 2660.050991 | N12: 1.1379
A13: 156 | B13: 90 | C13: Cherbourg | G13: 26 | H13: 412 | I13: 467 | J13: =INDEX(Trajets_France!A:AT,MATCH(G13,Trajets_France!$1:$1,0),MATCH(G12,Trajets_France!$A:$A,0)) -> 
A14: 82 | B14: 135 | C14: Perros-Guirec | G14: 24 | H14: 387 | I14: 478 | J14: =INDEX(Trajets_France!A:AT,MATCH(G14,Trajets_France!$1:$1,0),MATCH(G13,Trajets_France!$A:$A,0)) -> 
A15: 41 | B15: 161 | C15: Brest | G15: 25 | H15: 361 | I15: 488 | J15: =INDEX(Trajets_France!A:AT,MATCH(G15,Trajets_France!$1:$1,0),MATCH(G14,Trajets_France!$A:$A,0)) -> 
A16: 138 | B16: 156 | C16: Saint-Malo | G16: 23 | H16: 319 | I16: 544 | J16: =INDEX(Trajets_France!A:AT,MATCH(G16,Trajets_France!$1:$1,0),MATCH(G15,Trajets_France!$A:$A,0)) -> 
A17: 138 | B17: 245 | C17: Nantes | G17: 22 | H17: 314 | I17: 510 | J17: =INDEX(Trajets_France!A:AT,MATCH(G17,Trajets_France!$1:$1,0),MATCH(G16,Trajets_France!$A:$A,0)) -> 
A18: 153 | B18: 310 | C18: La-Rochelle | G18: 21 | H18: 253 | I18: 483 | J18: =INDEX(Trajets_France!A:AT,MATCH(G18,Trajets_France!$1:$1,0),MATCH(G17,Trajets_France!$A:$A,0)) -> 
A19: 156 | B19: 343 | C19: Royan | G19: 20 | H19: 179 | I19: 499 | J19: =INDEX(Trajets_France!A:AT,MATCH(G19,Trajets_France!$1:$1,0),MATCH(G18,Trajets_France!$A:$A,0)) -> 
A20: 171 | B20: 396 | C20: Bordeaux | G20: 19 | H20: 120 | I20: 476 | J20: =INDEX(Trajets_France!A:AT,MATCH(G20,Trajets_France!$1:$1,0),MATCH(G19,Trajets_France!$A:$A,0)) -> 
A21: 120 | B21: 476 | C21: Biarritz | G21: 18 | H21: 171 | I21: 396 | J21: =INDEX(Trajets_France!A:AT,MATCH(G21,Trajets_France!$1:$1,0),MATCH(G20,Trajets_France!$A:$A,0)) -> 
A22: 179 | B22: 499 | C22: Pau | G22: 17 | H22: 156 | I22: 343 | J22: =INDEX(Trajets_France!A:AT,MATCH(G22,Trajets_France!$1:$1,0),MATCH(G21,Trajets_France!$A:$A,0)) -> 
A23: 253 | B23: 483 | C23: Toulouse | G23: 16 | H23: 153 | I23: 310 | J23: =INDEX(Trajets_France!A:AT,MATCH(G23,Trajets_France!$1:$1,0),MATCH(G22,Trajets_France!$A:$A,0)) -> 
A24: 314 | B24: 510 | C24: Carcassonne | G24: 4 | H24: 254 | I24: 337 | J24: =INDEX(Trajets_France!A:AT,MATCH(G24,Trajets_France!$1:$1,0),MATCH(G23,Trajets_France!$A:$A,0)) -> 
A25: 319 | B25: 544 | C25: Perpignan | G25: 3 | H25: 219 | I25: 288 | J25: =INDEX(Trajets_France!A:AT,MATCH(G25,Trajets_France!$1:$1,0),MATCH(G24,Trajets_France!$A:$A,0)) -> 
A26: 387 | B26: 478 | C26: Nimes | G26: 2 | H26: 231 | I26: 240 | J26: =INDEX(Trajets_France!A:AT,MATCH(G26,Trajets_France!$1:$1,0),MATCH(G25,Trajets_France!$A:$A,0)) -> 
A27: 361 | B27: 488 | C27: Montpellier | G27: 15 | H27: 138 | I27: 245 | J27: =INDEX(Trajets_France!A:AT,MATCH(G27,Trajets_France!$1:$1,0),MATCH(G26,Trajets_France!$A:$A,0)) -> 
A28: 412 | B28: 467 | C28: Avignon | G28: 43 | H28: 148 | I28: 182 | J28: =INDEX(Trajets_France!A:AT,MATCH(G28,Trajets_France!$1:$1,0),MATCH(G27,Trajets_France!$A:$A,0)) -> 
A29: 435 | B29: 504 | C29: Marseille | G29: 14 | H29: 138 | I29: 156 | J29: =INDEX(Trajets_France!A:AT,MATCH(G29,Trajets_France!$1:$1,0),MATCH(G28,Trajets_France!$A:$A,0)) -> 
A30: 453 | B30: 519 | C30: Toulon | G30: 13 | H30: 41 | I30: 161 | J30: =INDEX(Trajets_France!A:AT,MATCH(G30,Trajets_France!$1:$1,0),MATCH(G29,Trajets_France!$A:$A,0)) -> 
A31: 531 | B31: 474 | C31: Nice | G31: 12 | H31: 82 | I31: 135 | J31: =INDEX(Trajets_France!A:AT,MATCH(G31,Trajets_France!$1:$1,0),MATCH(G30,Trajets_France!$A:$A,0)) -> 
A32: 456 | B32: 390 | C32: Grenoble | G32: 11 | H32: 156 | I32: 90 | J32: =INDEX(Trajets_France!A:AT,MATCH(G32,Trajets_France!$1:$1,0),MATCH(G31,Trajets_France!$A:$A,0)) -> 
A33: 413 | B33: 350 | C33: Lyon | G33: 10 | H33: 203 | I33: 124 | J33: =INDEX(Trajets_France!A:AT,MATCH(G33,Trajets_France!$1:$1,0),MATCH(G32,Trajets_France!$A:$A,0)) -> 
A34: 417 | B34: 314 | C34: Macon | G34: 8 | H34: 263 | I34: 110 | J34: =INDEX(Trajets_France!A:AT,MATCH(G34,Trajets_France!$1:$1,0),MATCH(G33,Trajets_France!$A:$A,0)) -> 
A35: 348 | B35: 353 | C35: Clermont-ferrand | G35: 44 | H35: 277 | I35: 172 | J35: =INDEX(Trajets_France!A:AT,MATCH(G35,Trajets_France!$1:$1,0),MATCH(G34,Trajets_France!$A:$A,0)) -> 
A36: 471 | B36: 352 | C36: Chambery | G36: 9 | H36: 293 | I36: 137 | J36: =INDEX(Trajets_France!A:AT,MATCH(G36,Trajets_France!$1:$1,0),MATCH(G35,Trajets_France!$A:$A,0)) -> 
A37: 472 | B37: 332 | C37: Annecy | G37: 7 | H37: 313 | I37: 81 | J37: =INDEX(Trajets_France!A:AT,MATCH(G37,Trajets_France!$1:$1,0),MATCH(G36,Trajets_France!$A:$A,0)) -> 
A38: 463 | B38: 255 | C38: Besançon | G38: 5 | H38: 308 | I38: 19 | J38: =INDEX(Trajets_France!A:AT,MATCH(G38,Trajets_France!$1:$1,0),MATCH(G37,Trajets_France!$A:$A,0)) -> 
A39: 437 | B39: 225 | C39: Dijon | G39: 6 | H39: 326 | I39: 44 | J39: =INDEX(Trajets_France!A:AT,MATCH(G39,Trajets_France!$1:$1,0),MATCH(G38,Trajets_France!$A:$A,0)) -> 
A40: 512 | B40: 211 | C40: Colmar | G40: 42 | H40: 390 | I40: 132 | J40: =INDEX(Trajets_France!A:AT,MATCH(G40,Trajets_France!$1:$1,0),MATCH(G39,Trajets_France!$A:$A,0)) -> 
A41: 533 | B41: 169 | C41: Strasbourg | G41: 41 | H41: 468 | I41: 138 | J41: =INDEX(Trajets_France!A:AT,MATCH(G41,Trajets_France!$1:$1,0),MATCH(G40,Trajets_France!$A:$A,0)) -> 
A42: 475 | B42: 167 | C42: Nancy | G42: 40 | H42: 475 | I42: 167 | J42: =INDEX(Trajets_France!A:AT,MATCH(G42,Trajets_France!$1:$1,0),MATCH(G41,Trajets_France!$A:$A,0)) -> 
A43: 468 | B43: 138 | C43: Metz | G43: 39 | H43: 533 | I43: 169 | J43: =INDEX(Trajets_France!A:AT,MATCH(G43,Trajets_France!$1:$1,0),MATCH(G42,Trajets_France!$A:$A,0)) -> 
A44: 390 | B44: 132 | C44: Rems | G44: 38 | H44: 512 | I44: 211 | J44: =INDEX(Trajets_France!A:AT,MATCH(G44,Trajets_France!$1:$1,0),MATCH(G43,Trajets_France!$A:$A,0)) -> 
A45: 148 | B45: 182 | C45: Rennes | G45: 36 | H45: 463 | I45: 255 | J45: =INDEX(Trajets_France!A:AT,MATCH(G45,Trajets_France!$1:$1,0),MATCH(G44,Trajets_France!$A:$A,0)) -> 
A46: 277 | B46: 172 | C46: Chartres | G46: 37 | H46: 437 | I46: 225 | J46: =INDEX(Trajets_France!A:AT,MATCH(G46,Trajets_France!$1:$1,0),MATCH(G45,Trajets_France!$A:$A,0)) -> 
G47: Auxerre | H47: 357 | I47: 226 | J47: =INDEX(Trajets_France!A:AT,MATCH(G47,Trajets_France!$1:$1,0),MATCH(G46,Trajets_France!$A:$A,0)) -> 
G62: Ordre | H62: Distance :
G63: Auxerre | H63: Détail :
G64: Bourges | H64: 114
G65: Tours | H65: 94
G66: Poitiers | H66: 71
G67: Limoges | H67: 107
G68: Clermont-ferrand | H68: 133
G69: Lyon | H69: 101
G70: Macon | H70: 53
G71: Annecy | H71: 101
G72: Chambery | H72: 40
G73: Grenoble | H73: 41
G74: Nice | H74: 244
G75: Toulon | H75: 95
G76: Marseille | H76: 46
G77: Avignon | H77: 71
G78: Nimes | H78: 42
G79: Montpellier | H79: 54
G80: Perpignan | H80: 93
G81: Carcassonne | H81: 67
G82: Toulouse | H82: 62
G83: Pau | H83: 114
G84: Biarritz | H84: 78
G85: Bordeaux | H85: 120
G86: Royan | H86: 94
G87: La-Rochelle | H87: 65
G88: Nantes | H88: 99
G89: Rennes | H89: 80
G90: Saint-Malo | H90: 54
G91: Brest | H91: 143
G92: Perros-Guirec | H92: 84
G93: Cherbourg | H93: 209
G94: Caen | H94: 74
G95: Rouen | H95: 80
G96: Chartres | H96: 101
G97: Paris | H97: 73
G98: Amiens | H98: 100
G99: Calais | H99: 89
G100: Lille | H100: 67
G101: Rems | H101: 112
G102: Metz | H102: 102
G103: Nancy | H103: 46
G104: Strasbourg | H104: 100
G105: Colmar | H105: 50
G106: Besançon | H106: 106
G107: Dijon | H107: 64
G108: Auxerre | H108: 90
H109: =SUM(H64:H108) -> 4023
H110: =H109/60 -> 67.05
H111: =ROUND(H110,0) -> 67 | I111: heures
H112: =(H110-H111)*60 -> 3 | I112: minutes
H115: =9*60+56+6*60+30+9*60+17 -> 1543
H116: =9*60+41+2*60+55+12*60+6 -> 1482
H117: =H115-H116 -> 61

Sheet Trajets_France
A1: Départ / Arrivée | B1: Auxerre | C1: Bourges | D1: Tours | E1: Poitiers | F1: Limoges | G1: Calais | H1: Lille | I1: Amiens | J1: Rouen | K1: Paris | L1: Caen | M1: Cherbourg | N1: Perros-Guirec | O1: Brest | P1: Saint-Malo | Q1: Nantes | R1: La-Rochelle | S1: Royan | T1: Bordeaux | U1: Biarritz | V1: Pau | W1: Toulouse | X1: Carcassonne | Y1: Perpignan | Z1: Nimes | AA1: Montpellier | AB1: Avignon | AC1: Marseille | AD1: Toulon | AE1: Nice | AF1: Grenoble | AG1: Lyon | AH1: Macon | AI1: Clermont-ferrand | AJ1: Chambery | AK1: Annecy | AL1: Besançon | AM1: Dijon | AN1: Colmar | AO1: Strasbourg | AP1: Nancy | AQ1: Metz | AR1: Rems | AS1: Rennes | AT1: Chartres
A2: Auxerre | B2: 0 | C2: 114 | D2: 141 | E2: 201 | F2: 206 | G2: 245 | H2: 214 | I2: 190 | J2: 172 | K2: 101 | L2: 219 | M2: 285 | N2: 344 | O2: 377 | P2: 288 | Q2: 258 | R2: 263 | S2: 282 | T2: 318 | U2: 414 | V2: 414 | W2: 357 | X2: 380 | Y2: 382 | Z2: 285 | AA2: 314 | AB2: 274 | AC2: 313 | AD2: 344 | AE2: 395 | AF2: 208 | AG2: 156 | AH2: 121 | AI2: 195 | AJ2: 210 | AK2: 205 | AL2: 132 | AM2: 88 | AN2: 213 | AO2: 248 | AP2: 186 | AQ2: 192 | AR2: 132 | AS2: 247 | AT2: 124
A3: Bourges | B3: 114 | C3: 0 | D3: 94 | E3: 139 | F3: 122 | G3: 282 | H3: 251 | I3: 223 | J3: 206 | K3: 141 | L3: 225 | M3: 289 | N3: 317 | O3: 347 | P3: 262 | Q3: 194 | R3: 201 | S3: 219 | T3: 255 | U3: 351 | V3: 352 | W3: 272 | X3: 317 | Y3: 319 | Z3: 311 | AA3: 274 | AB3: 301 | AC3: 340 | AD3: 370 | AE3: 421 | AF3: 245 | AG3: 187 | AH3: 162 | AI3: 108 | AJ3: 246 | AK3: 249 | AL3: 229 | AM3: 184 | AN3: 309 | AO3: 345 | AP3: 276 | AQ3: 281 | AR3: 206 | AS3: 221 | AT3: 120
A4: Tours | B4: 140 | C4: 94 | D4: 0 | E4: 71 | F4: 154 | G4: 272 | H4: 244 | I4: 216 | J4: 164 | K4: 133 | L4: 142 | M4: 206 | N4: 235 | O4: 268 | P4: 179 | Q4: 124 | R4: 134 | S4: 152 | T4: 188 | U4: 284 | V4: 285 | W4: 300 | X4: 345 | Y4: 389 | Z4: 381 | AA4: 343 | AB4: 370 | AC4: 409 | AD4: 440 | AE4: 491 | AF4: 315 | AG4: 257 | AH4: 246 | AI4: 178 | AJ4: 316 | AK4: 333 | AL4: 259 | AM4: 215 | AN4: 340 | AO4: 354 | AP4: 277 | AQ4: 283 | AR4: 198 | AS4: 138 | AT4: 113
A5: Poitiers | B5: 199 | C5: 136 | D5: 71 | E5: 0 | F5: 107 | G5: 331 | H5: 303 | I5: 275 | J5: 223 | K5: 193 | L5: 201 | M5: 265 | N5: 282 | O5: 283 | P5: 231 | Q5: 120 | R5: 88 | S5: 106 | T5: 142 | U5: 238 | V5: 239 | W5: 254 | X5: 300 | Y5: 349 | Z5: 400 | AA5: 372 | AB5: 399 | AC5: 438 | AD5: 469 | AE5: 520 | AF5: 343 | AG5: 286 | AH5: 275 | AI5: 206 | AJ5: 345 | AK5: 362 | AL5: 318 | AM5: 274 | AN5: 399 | AO5: 413 | AP5: 337 | AQ5: 342 | AR5: 257 | AS5: 189 | AT5: 172
A6: Limoges | B6: 207 | C6: 120 | D6: 154 | E6: 105 | F6: 0 | G6: 349 | H6: 318 | I6: 290 | J6: 272 | K6: 208 | L6: 285 | M6: 348 | N6: 367 | O6: 368 | P6: 316 | Q6: 205 | R6: 164 | S6: 151 | T6: 148 | U6: 244 | V6: 244 | W6: 158 | X6: 204 | Y6: 253 | Z6: 304 | AA6: 271 | AB6: 325 | AC6: 361 | AD6: 392 | AE6: 443 | AF6: 274 | AG6: 217 | AH6: 216 | AI6: 133 | AJ6: 276 | AK6: 293 | AL6: 288 | AM6: 259 | AN6: 369 | AO6: 405 | AP6: 352 | AQ6: 357 | AR6: 273 | AS6: 274 | AT6: 187
A7: Calais | B7: 245 | C7: 281 | D7: 273 | E7: 333 | F7: 349 | G7: 0 | H7: 67 | I7: 91 | J7: 118 | K7: 160 | L7: 187 | M7: 252 | N7: 352 | O7: 385 | P7: 281 | Q7: 317 | R7: 375 | S7: 414 | T7: 450 | U7: 546 | V7: 547 | W7: 499 | X7: 545 | Y7: 576 | Z7: 502 | AA7: 531 | AB7: 492 | AC7: 531 | AD7: 561 | AE7: 612 | AF7: 426 | AG7: 374 | AH7: 339 | AI7: 365 | AJ7: 427 | AK7: 415 | AL7: 324 | AM7: 284 | AN7: 356 | AO7: 310 | AP7: 265 | AQ7: 232 | AR7: 142 | AS7: 277 | AT7: 209
A8: Lille | B8: 214 | C8: 250 | D8: 243 | E8: 303 | F8: 318 | G8: 67 | H8: 0 | I8: 85 | J8: 140 | K8: 129 | L8: 209 | M8: 275 | N8: 374 | O8: 408 | P8: 303 | Q8: 319 | R8: 365 | S8: 384 | T8: 420 | U8: 516 | V8: 517 | W8: 468 | X8: 514 | Y8: 545 | Z8: 472 | AA8: 500 | AB8: 461 | AC8: 500 | AD8: 531 | AE8: 582 | AF8: 395 | AG8: 343 | AH8: 308 | AI8: 334 | AJ8: 397 | AK8: 384 | AL8: 294 | AM8: 254 | AN8: 318 | AO8: 276 | AP8: 230 | AQ8: 196 | AR8: 112 | AS8: 299 | AT8: 179
A9: Amiens | B9: 184 | C9: 219 | D9: 212 | E9: 271 | F9: 286 | G9: 89 | H9: 85 | I9: 0 | J9: 73 | K9: 100 | L9: 142 | M9: 207 | N9: 306 | O9: 340 | P9: 235 | Q9: 271 | R9: 329 | S9: 353 | T9: 389 | U9: 485 | V9: 485 | W9: 437 | X9: 482 | Y9: 514 | Z9: 456 | AA9: 468 | AB9: 445 | AC9: 484 | AD9: 515 | AE9: 566 | AF9: 379 | AG9: 327 | AH9: 292 | AI9: 302 | AJ9: 381 | AK9: 371 | AL9: 280 | AM9: 240 | AN9: 309 | AO9: 266 | AP9: 221 | AQ9: 188 | AR9: 98 | AS9: 231 | AT9: 148
A10: Rouen | B10: 170 | C10: 202 | D10: 164 | E10: 225 | F10: 270 | G10: 118 | H10: 140 | I10: 74 | J10: 0 | K10: 94 | L10: 82 | M10: 148 | N10: 247 | O10: 280 | P10: 176 | Q10: 208 | R10: 266 | S10: 305 | T10: 341 | U10: 437 | V10: 438 | W10: 420 | X10: 465 | Y10: 497 | Z10: 443 | AA10: 451 | AB10: 432 | AC10: 471 | AD10: 502 | AE10: 552 | AF10: 366 | AG10: 314 | AH10: 279 | AI10: 286 | AJ10: 368 | AK10: 363 | AL10: 290 | AM10: 245 | AN10: 367 | AO10: 321 | AP10: 276 | AQ10: 243 | AR10: 153 | AS10: 172 | AT10: 101
A11: Paris | B11: 98 | C11: 138 | D11: 131 | E11: 191 | F11: 206 | G11: 159 | H11: 128 | I11: 100 | J11: 97 | K11: 0 | L11: 143 | M11: 209 | N11: 286 | O11: 319 | P11: 231 | Q11: 207 | R11: 253 | S11: 272 | T11: 308 | U11: 404 | V11: 405 | W11: 356 | X11: 402 | Y11: 433 | Z11: 370 | AA11: 388 | AB11: 360 | AC11: 399 | AD11: 429 | AE11: 480 | AF11: 294 | AG11: 242 | AH11: 207 | AI11: 222 | AJ11: 295 | AK11: 291 | AL11: 217 | AM11: 173 | AN11: 294 | AO11: 251 | AP11: 206 | AQ11: 173 | AR11: 84 | AS11: 189 | AT11: 67
A12: Caen | B12: 215 | C12: 222 | D12: 139 | E12: 200 | F12: 283 | G12: 186 | H12: 209 | I12: 143 | J12: 80 | K12: 139 | L12: 0 | M12: 78 | N12: 176 | O12: 210 | P12: 106 | Q12: 164 | R12: 241 | S12: 280 | T12: 316 | U12: 412 | V12: 413 | W12: 428 | X12: 474 | Y12: 517 | Z12: 488 | AA12: 472 | AB12: 477 | AC12: 516 | AD12: 547 | AE12: 597 | AF12: 411 | AG12: 359 | AH12: 324 | AI12: 306 | AJ12: 413 | AK12: 408 | AL12: 335 | AM12: 290 | AN12: 416 | AO12: 378 | AP12: 338 | AQ12: 300 | AR12: 211 | AS12: 101 | AT12: 151
A13: Cherbourg | B13: 279 | C13: 282 | D13: 200 | E13: 260 | F13: 343 | G13: 251 | H13: 273 | I13: 206 | J13: 144 | K13: 203 | L13: 74 | M13: 0 | N13: 204 | O13: 237 | P13: 133 | Q13: 191 | R13: 279 | S13: 327 | T13: 369 | U13: 465 | V13: 466 | W13: 481 | X13: 526 | Y13: 577 | Z13: 551 | AA13: 532 | AB13: 541 | AC13: 580 | AD13: 610 | AE13: 661 | AF13: 475 | AG13: 423 | AH13: 388 | AI13: 366 | AJ13: 476 | AK13: 472 | AL13: 398 | AM13: 354 | AN13: 479 | AO13: 442 | AP13: 403 | AQ13: 363 | AR13: 275 | AS13: 129 | AT13: 212
A14: Perros-Guirec | B14: 342 | C14: 316 | D14: 234 | E14: 285 | F14: 369 | G14: 351 | H14: 374 | I14: 308 | J14: 246 | K14: 288 | L14: 178 | M14: 209 | N14: 0 | O14: 84 | P14: 113 | Q14: 170 | R14: 258 | S14: 306 | T14: 348 | U14: 444 | V14: 445 | W14: 460 | X14: 505 | Y14: 555 | Z14: 604 | AA14: 566 | AB14: 593 | AC14: 632 | AD14: 663 | AE14: 713 | AF14: 537 | AG14: 480 | AH14: 450 | AI14: 400 | AJ14: 539 | AK14: 534 | AL14: 461 | AM14: 417 | AN14: 542 | AO14: 520 | AP14: 466 | AQ14: 442 | AR14: 353 | AS14: 110 | AT14: 246
A15: Brest | B15: 374 | C15: 345 | D15: 266 | E15: 285 | F15: 369 | G15: 384 | H15: 407 | I15: 341 | J15: 278 | K15: 320 | L15: 210 | M15: 241 | N15: 84 | O15: 0 | P15: 145 | Q15: 176 | R15: 259 | S15: 307 | T15: 348 | U15: 444 | V15: 445 | W15: 460 | X15: 506 | Y15: 555 | Z15: 606 | AA15: 581 | AB15: 622 | AC15: 661 | AD15: 691 | AE15: 742 | AF15: 566 | AG15: 508 | AH15: 483 | AI15: 429 | AJ15: 567 | AK15: 567 | AL15: 494 | AM15: 449 | AN15: 574 | AO15: 553 | AP15: 498 | AQ15: 474 | AR15: 385 | AS15: 149 | AT15: 278
A16: Saint-Malo | B16: 284 | C16: 259 | D16: 176 | E16: 231 | F16: 315 | G16: 278 | H16: 301 | I16: 235 | J16: 173 | K16: 231 | L16: 105 | M16: 136 | N16: 109 | O16: 143 | P16: 0 | Q16: 117 | R16: 205 | S16: 253 | T16: 294 | U16: 390 | V16: 391 | W16: 406 | X16: 452 | Y16: 501 | Z16: 546 | AA16: 509 | AB16: 536 | AC16: 575 | AD16: 605 | AE16: 656 | AF16: 480 | AG16: 422 | AH16: 393 | AI16: 343 | AJ16: 482 | AK16: 477 | AL16: 404 | AM16: 359 | AN16: 485 | AO16: 463 | AP16: 408 | AQ16: 384 | AR16: 295 | AS16: 52 | AT16: 189
A17: Nantes | B17: 255 | C17: 191 | D17: 122 | E17: 123 | F17: 206 | G17: 315 | H17: 317 | I17: 272 | J17: 206 | K17: 207 | L17: 166 | M17: 197 | N17: 172 | O17: 178 | P17: 121 | Q17: 0 | R17: 96 | S17: 150 | T17: 186 | U17: 282 | V17: 282 | W17: 297 | X17: 343 | Y17: 392 | Z17: 443 | AA17: 418 | AB17: 464 | AC17: 500 | AD17: 531 | AE17: 582 | AF17: 412 | AG17: 354 | AH17: 343 | AI17: 275 | AJ17: 413 | AK17: 430 | AL17: 374 | AM17: 330 | AN17: 455 | AO17: 439 | AP17: 385 | AQ17: 361 | AR17: 272 | AS17: 80 | AT17: 165
A18: La-Rochelle | B18: 262 | C18: 200 | D18: 134 | E18: 92 | F18: 169 | G18: 374 | H18: 366 | I18: 331 | J18: 266 | K18: 256 | L18: 244 | M18: 285 | N18: 261 | O18: 262 | P18: 209 | Q18: 99 | R18: 0 | S18: 64 | T18: 113 | U18: 209 | V18: 210 | W18: 225 | X18: 270 | Y18: 320 | Z18: 370 | AA18: 346 | AB18: 391 | AC18: 427 | AD18: 458 | AE18: 509 | AF18: 421 | AG18: 363 | AH18: 352 | AI18: 284 | AJ18: 422 | AK18: 439 | AL18: 382 | AM18: 337 | AN18: 462 | AO18: 477 | AP18: 400 | AQ18: 405 | AR18: 321 | AS18: 168 | AT18: 225
A19: Royan | B19: 281 | C19: 218 | D19: 153 | E19: 110 | F19: 151 | G19: 413 | H19: 385 | I19: 357 | J19: 305 | K19: 275 | L19: 283 | M19: 332 | N19: 308 | O19: 310 | P19: 257 | Q19: 147 | R19: 65 | S19: 0 | T19: 97 | U19: 193 | V19: 194 | W19: 209 | X19: 254 | Y19: 304 | Z19: 354 | AA19: 330 | AB19: 375 | AC19: 411 | AD19: 442 | AE19: 493 | AF19: 417 | AG19: 359 | AH19: 358 | AI19: 275 | AJ19: 418 | AK19: 435 | AL19: 400 | AM19: 356 | AN19: 481 | AO19: 495 | AP19: 419 | AQ19: 424 | AR19: 339 | AS19: 215 | AT19: 253
A20: Bordeaux | B20: 314 | C20: 251 | D20: 186 | E20: 144 | F20: 147 | G20: 447 | H20: 418 | I20: 390 | J20: 338 | K20: 308 | L20: 317 | M20: 372 | N20: 347 | O20: 349 | P20: 296 | Q20: 186 | R20: 112 | S20: 94 | T20: 0 | U20: 118 | V20: 120 | W20: 134 | X20: 180 | Y20: 230 | Z20: 280 | AA20: 256 | AB20: 301 | AC20: 337 | AD20: 368 | AE20: 419 | AF20: 353 | AG20: 295 | AH20: 322 | AI20: 211 | AJ20: 354 | AK20: 371 | AL20: 403 | AM20: 374 | AN20: 484 | AO20: 519 | AP20: 452 | AQ20: 457 | AR20: 373 | AS20: 255 | AT20: 289
A21: Biarritz | B21: 410 | C21: 348 | D21: 282 | E21: 240 | F21: 243 | G21: 543 | H21: 514 | I21: 486 | J21: 435 | K21: 404 | L21: 413 | M21: 468 | N21: 444 | O21: 445 | P21: 392 | Q21: 282 | R21: 208 | S21: 191 | T21: 120 | U21: 0 | V21: 77 | W21: 168 | X21: 209 | Y21: 258 | Z21: 309 | AA21: 284 | AB21: 330 | AC21: 366 | AD21: 397 | AE21: 448 | AF21: 421 | AG21: 391 | AH21: 418 | AI21: 307 | AJ21: 459 | AK21: 480 | AL21: 499 | AM21: 470 | AN21: 580 | AO21: 615 | AP21: 548 | AQ21: 553 | AR21: 469 | AS21: 351 | AT21: 383
A22: Pau | B22: 412 | C22: 349 | D22: 283 | E22: 241 | F22: 245 | G22: 544 | H22: 516 | I22: 488 | J22: 436 | K22: 406 | L22: 414 | M22: 469 | N22: 445 | O22: 446 | P22: 394 | Q22: 283 | R22: 210 | S22: 192 | T22: 122 | U22: 78 | V22: 0 | W22: 115 | X22: 156 | Y22: 205 | Z22: 256 | AA22: 231 | AB22: 276 | AC22: 313 | AD22: 343 | AE22: 394 | AF22: 368 | AG22: 373 | AH22: 418 | AI22: 307 | AJ22: 406 | AK22: 426 | AL22: 498 | AM22: 470 | AN22: 579 | AO22: 615 | AP22: 549 | AQ22: 555 | AR22: 470 | AS22: 352 | AT22: 385
A23: Toulouse | B23: 356 | C23: 270 | D23: 298 | E23: 256 | F23: 159 | G23: 498 | H23: 468 | I23: 440 | J23: 422 | K23: 358 | L23: 429 | M23: 484 | N23: 460 | O23: 461 | P23: 409 | Q23: 298 | R23: 224 | S23: 207 | T23: 137 | U23: 168 | V23: 114 | W23: 0 | X23: 63 | Y23: 113 | Z23: 163 | AA23: 139 | AB23: 184 | AC23: 220 | AD23: 251 | AE23: 302 | AF23: 275 | AG23: 281 | AH23: 324 | AI23: 213 | AJ23: 313 | AK23: 334 | AL23: 405 | AM23: 376 | AN23: 485 | AO23: 521 | AP23: 476 | AQ23: 500 | AR23: 423 | AS23: 367 | AT23: 337
A24: Carcassonne | B24: 380 | C24: 313 | D24: 342 | E24: 300 | F24: 202 | G24: 542 | H24: 511 | I24: 483 | J24: 466 | K24: 401 | L24: 473 | M24: 527 | N24: 503 | O24: 505 | P24: 452 | Q24: 342 | R24: 268 | S24: 250 | T24: 180 | U24: 209 | V24: 155 | W24: 62 | X24: 0 | Y24: 66 | Z24: 117 | AA24: 92 | AB24: 137 | AC24: 174 | AD24: 204 | AE24: 255 | AF24: 229 | AG24: 234 | AH24: 275 | AI24: 232 | AJ24: 267 | AK24: 287 | AL24: 360 | AM24: 334 | AN24: 441 | AO24: 477 | AP24: 434 | AQ24: 458 | AR24: 465 | AS24: 410 | AT24: 380
A25: Perpignan | B25: 382 | C25: 317 | D25: 388 | E25: 351 | F25: 254 | G25: 576 | H25: 545 | I25: 517 | J25: 500 | K25: 435 | L25: 519 | M25: 579 | N25: 555 | O25: 556 | P25: 504 | Q25: 393 | R25: 319 | S25: 302 | T25: 232 | U25: 261 | V25: 207 | W25: 113 | X25: 67 | Y25: 0 | Z25: 118 | AA25: 94 | AB25: 139 | AC25: 176 | AD25: 206 | AE25: 257 | AF25: 231 | AG25: 236 | AH25: 277 | AI25: 233 | AJ25: 268 | AK25: 289 | AL25: 362 | AM25: 336 | AN25: 443 | AO25: 479 | AP25: 436 | AQ25: 459 | AR25: 467 | AS25: 462 | AT25: 414
A26: Nimes | B26: 285 | C26: 309 | D26: 380 | E26: 403 | F26: 305 | G26: 499 | H26: 469 | I26: 458 | J26: 441 | K26: 370 | L26: 488 | M26: 553 | N26: 606 | O26: 608 | P26: 548 | Q26: 445 | R26: 371 | S26: 353 | T26: 283 | U26: 312 | V26: 258 | W26: 165 | X26: 118 | Y26: 120 | Z26: 0 | AA26: 54 | AB26: 43 | AC26: 82 | AD26: 113 | AE26: 164 | AF26: 134 | AG26: 139 | AH26: 180 | AI26: 229 | AJ26: 172 | AK26: 193 | AL26: 265 | AM26: 239 | AN26: 346 | AO26: 382 | AP26: 339 | AQ26: 363 | AR26: 370 | AS26: 506 | AT26: 394
A27: Montpellier | B27: 314 | C27: 272 | D27: 343 | E27: 375 | F27: 277 | G27: 527 | H27: 497 | I27: 472 | J27: 455 | K27: 398 | L27: 474 | M27: 538 | N27: 566 | O27: 580 | P27: 511 | Q27: 417 | R27: 343 | S27: 326 | T27: 255 | U27: 285 | V27: 231 | W27: 137 | X27: 91 | Y27: 93 | Z27: 50 | AA27: 0 | AB27: 71 | AC27: 108 | AD27: 138 | AE27: 189 | AF27: 163 | AG27: 168 | AH27: 209 | AI27: 188 | AJ27: 200 | AK27: 221 | AL27: 294 | AM27: 268 | AN27: 375 | AO27: 411 | AP27: 368 | AQ27: 391 | AR27: 399 | AS27: 470 | AT27: 369
A28: Avignon | B28: 272 | C28: 296 | D28: 366 | E28: 395 | F28: 323 | G28: 485 | H28: 455 | I28: 444 | J28: 428 | K28: 356 | L28: 474 | M28: 540 | N28: 590 | O28: 619 | P28: 534 | Q28: 463 | R28: 389 | S28: 372 | T28: 301 | U28: 331 | V28: 277 | W28: 183 | X28: 137 | Y28: 138 | Z28: 42 | AA28: 72 | AB28: 0 | AC28: 64 | AD28: 95 | AE28: 146 | AF28: 121 | AG28: 126 | AH28: 167 | AI28: 214 | AJ28: 158 | AK28: 179 | AL28: 252 | AM28: 226 | AN28: 333 | AO28: 369 | AP28: 326 | AQ28: 349 | AR28: 357 | AS28: 493 | AT28: 380
A29: Marseille | B29: 314 | C29: 337 | D29: 408 | E29: 437 | F29: 361 | G29: 527 | H29: 497 | I29: 486 | J29: 470 | K29: 398 | L29: 516 | M29: 582 | N29: 632 | O29: 661 | P29: 576 | Q29: 501 | R29: 427 | S29: 410 | T29: 339 | U29: 369 | V29: 315 | W29: 221 | X29: 178 | Y29: 180 | Z29: 82 | AA29: 109 | AB29: 71 | AC29: 0 | AD29: 45 | AE29: 121 | AF29: 163 | AG29: 168 | AH29: 209 | AI29: 256 | AJ29: 200 | AK29: 224 | AL29: 297 | AM29: 267 | AN29: 377 | AO29: 414 | AP29: 371 | AQ29: 391 | AR29: 399 | AS29: 538 | AT29: 425
A30: Toulon | B30: 344 | C30: 367 | D30: 438 | E30: 467 | F30: 391 | G30: 557 | H30: 527 | I30: 516 | J30: 500 | K30: 428 | L30: 546 | M30: 612 | N30: 661 | O30: 691 | P30: 606 | Q30: 531 | R30: 457 | S30: 440 | T30: 369 | U30: 399 | V30: 344 | W30: 251 | X30: 205 | Y30: 206 | Z30: 111 | AA30: 140 | AB30: 98 | AC30: 46 | AD30: 0 | AE30: 90 | AF30: 192 | AG30: 198 | AH30: 238 | AI30: 285 | AJ30: 230 | AK30: 251 | AL30: 324 | AM30: 297 | AN30: 405 | AO30: 440 | AP30: 398 | AQ30: 421 | AR30: 429 | AS30: 565 | AT30: 452
A31: Nice | B31: 397 | C31: 420 | D31: 491 | E31: 520 | F31: 444 | G31: 610 | H31: 580 | I31: 566 | J31: 552 | K31: 481 | L31: 599 | M31: 665 | N31: 714 | O31: 743 | P31: 659 | Q31: 584 | R31: 510 | S31: 492 | T31: 422 | U31: 451 | V31: 397 | W31: 304 | X31: 257 | Y31: 259 | Z31: 163 | AA31: 192 | AB31: 151 | AC31: 125 | AD31: 95 | AE31: 0 | AF31: 245 | AG31: 250 | AH31: 291 | AI31: 338 | AJ31: 283 | AK31: 304 | AL31: 377 | AM31: 350 | AN31: 424 | AO31: 459 | AP31: 450 | AQ31: 474 | AR31: 482 | AS31: 618 | AT31: 505
A32: Grenoble | B32: 209 | C32: 243 | D32: 314 | E32: 343 | F32: 274 | G32: 423 | H32: 392 | I32: 381 | J32: 365 | K32: 293 | L32: 411 | M32: 477 | N32: 537 | O32: 566 | P32: 481 | Q32: 413 | R32: 417 | S32: 414 | T32: 355 | U32: 424 | V32: 369 | W32: 276 | X32: 229 | Y32: 231 | Z32: 135 | AA32: 165 | AB32: 124 | AC32: 163 | AD32: 193 | AE32: 244 | AF32: 0 | AG32: 71 | AH32: 104 | AI32: 161 | AJ32: 42 | AK32: 68 | AL32: 177 | AM32: 163 | AN32: 258 | AO32: 294 | AP32: 263 | AQ32: 286 | AR32: 294 | AS32: 440 | AT32: 317
A33: Lyon | B33: 158 | C33: 185 | D33: 256 | E33: 285 | F33: 216 | G33: 372 | H33: 342 | I33: 330 | J33: 314 | K33: 243 | L33: 360 | M33: 426 | N33: 479 | O33: 508 | P33: 423 | Q33: 355 | R33: 359 | S33: 356 | T33: 297 | U33: 393 | V33: 376 | W33: 282 | X33: 236 | Y33: 238 | Z33: 141 | AA33: 171 | AB33: 130 | AC33: 169 | AD33: 200 | AE33: 251 | AF33: 68 | AG33: 0 | AH33: 53 | AI33: 103 | AJ33: 70 | AK33: 86 | AL33: 141 | AM33: 112 | AN33: 221 | AO33: 257 | AP33: 212 | AQ33: 236 | AR33: 243 | AS33: 382 | AT33: 267
A34: Macon | B34: 124 | C34: 163 | D34: 245 | E34: 274 | F34: 217 | G34: 337 | H34: 307 | I34: 296 | J34: 280 | K34: 208 | L34: 326 | M34: 392 | N34: 451 | O34: 485 | P34: 396 | Q34: 345 | R34: 349 | S34: 356 | T34: 319 | U34: 415 | V34: 413 | W34: 320 | X34: 273 | Y34: 275 | Z34: 179 | AA34: 209 | AB34: 168 | AC34: 207 | AD34: 238 | AE34: 288 | AF34: 102 | AG34: 50 | AH34: 0 | AI34: 125 | AJ34: 104 | AK34: 101 | AL34: 106 | AM34: 77 | AN34: 187 | AO34: 223 | AP34: 178 | AQ34: 201 | AR34: 209 | AS34: 355 | AT34: 232
A35: Clermont-ferrand | B35: 198 | C35: 105 | D35: 176 | E35: 205 | F35: 132 | G35: 364 | H35: 333 | I35: 305 | J35: 287 | K35: 223 | L35: 307 | M35: 371 | N35: 399 | O35: 428 | P35: 344 | Q35: 276 | R35: 280 | S35: 272 | T35: 213 | U35: 309 | V35: 308 | W35: 214 | X35: 230 | Y35: 232 | Z35: 225 | AA35: 186 | AB35: 215 | AC35: 254 | AD35: 284 | AE35: 335 | AF35: 159 | AG35: 101 | AH35: 128 | AI35: 0 | AJ35: 160 | AK35: 177 | AL35: 216 | AM35: 187 | AN35: 297 | AO35: 332 | AP35: 287 | AQ35: 311 | AR35: 288 | AS35: 303 | AT35: 202
A36: Chambery | B36: 211 | C36: 245 | D36: 316 | E36: 345 | F36: 277 | G36: 425 | H36: 395 | I36: 384 | J36: 367 | K36: 296 | L36: 414 | M36: 479 | N36: 539 | O36: 568 | P36: 484 | Q36: 416 | R36: 420 | S36: 417 | T36: 357 | U36: 453 | V36: 407 | W36: 313 | X36: 267 | Y36: 269 | Z36: 172 | AA36: 202 | AB36: 161 | AC36: 200 | AD36: 231 | AE36: 281 | AF36: 41 | AG36: 73 | AH36: 106 | AI36: 163 | AJ36: 0 | AK36: 39 | AL36: 177 | AM36: 165 | AN36: 238 | AO36: 273 | AP36: 265 | AQ36: 289 | AR36: 296 | AS36: 443 | AT36: 320
A37: Annecy | B37: 208 | C37: 251 | D37: 333 | E37: 362 | F37: 294 | G37: 413 | H37: 382 | I37: 371 | J37: 364 | K37: 292 | L37: 410 | M37: 476 | N37: 535 | O37: 569 | P37: 480 | Q37: 433 | R37: 437 | S37: 434 | T37: 375 | U37: 470 | V37: 429 | W37: 336 | X37: 289 | Y37: 291 | Z37: 195 | AA37: 222 | AB37: 184 | AC37: 223 | AD37: 253 | AE37: 304 | AF37: 70 | AG37: 90 | AH37: 102 | AI37: 180 | AJ37: 40 | AK37: 0 | AL37: 154 | AM37: 155 | AN37: 215 | AO37: 249 | AP37: 253 | AQ37: 276 | AR37: 284 | AS37: 439 | AT37: 316
A38: Besançon | B38: 134 | C38: 230 | D38: 258 | E38: 319 | F38: 292 | G38: 322 | H38: 292 | I38: 280 | J38: 290 | K38: 228 | L38: 337 | M38: 402 | N38: 462 | O38: 495 | P38: 406 | Q38: 376 | R38: 381 | S38: 399 | T38: 405 | U38: 500 | V38: 500 | W38: 405 | X38: 363 | Y38: 365 | Z38: 268 | AA38: 297 | AB38: 257 | AC38: 296 | AD38: 327 | AE38: 378 | AF38: 179 | AG38: 140 | AH38: 106 | AI38: 216 | AJ38: 175 | AK38: 152 | AL38: 0 | AM38: 64 | AN38: 110 | AO38: 146 | AP38: 149 | AQ38: 178 | AR38: 193 | AS38: 365 | AT38: 243
A39: Dijon | B39: 90 | C39: 185 | D39: 214 | E39: 275 | F39: 260 | G39: 282 | H39: 252 | I39: 241 | J39: 246 | K39: 174 | L39: 292 | M39: 358 | N39: 418 | O39: 451 | P39: 362 | Q39: 332 | R39: 337 | S39: 355 | T39: 373 | U39: 468 | V39: 468 | W39: 373 | X39: 333 | Y39: 335 | Z39: 238 | AA39: 267 | AB39: 228 | AC39: 267 | AD39: 297 | AE39: 348 | AF39: 162 | AG39: 110 | AH39: 75 | AI39: 184 | AJ39: 163 | AK39: 155 | AL39: 65 | AM39: 0 | AN39: 146 | AO39: 181 | AP39: 123 | AQ39: 146 | AR39: 154 | AS39: 321 | AT39: 199
A40: Colmar | B40: 215 | C40: 310 | D40: 339 | E40: 399 | F40: 372 | G40: 354 | H40: 321 | I40: 310 | J40: 365 | K40: 294 | L40: 417 | M40: 483 | N40: 542 | O40: 576 | P40: 487 | Q40: 456 | R40: 461 | S40: 480 | T40: 485 | U40: 580 | V40: 580 | W40: 485 | X40: 443 | Y40: 445 | Z40: 348 | AA40: 378 | AB40: 337 | AC40: 376 | AD40: 407 | AE40: 420 | AF40: 259 | AG40: 221 | AH40: 187 | AI40: 296 | AJ40: 237 | AK40: 214 | AL40: 106 | AM40: 144 | AN40: 0 | AO40: 52 | AP40: 111 | AQ40: 134 | AR40: 223 | AS40: 446 | AT40: 323
A41: Strasbourg | B41: 249 | C41: 344 | D41: 352 | E41: 412 | F41: 406 | G41: 306 | H41: 276 | I41: 265 | J41: 320 | K41: 249 | L41: 378 | M41: 444 | N41: 518 | O41: 551 | P41: 462 | Q41: 438 | R41: 475 | S41: 493 | T41: 519 | U41: 615 | V41: 614 | W41: 520 | X41: 477 | Y41: 479 | Z41: 382 | AA41: 413 | AB41: 372 | AC41: 411 | AD41: 441 | AE41: 454 | AF41: 294 | AG41: 255 | AH41: 221 | AI41: 331 | AJ41: 270 | AK41: 247 | AL41: 140 | AM41: 179 | AN41: 50 | AO41: 0 | AP41: 99 | AQ41: 89 | AR41: 178 | AS41: 421 | AT41: 298
A42: Nancy | B42: 186 | C42: 275 | D42: 277 | E42: 337 | F42: 352 | G42: 266 | H42: 235 | I42: 225 | J42: 280 | K42: 210 | L42: 341 | M42: 407 | N42: 466 | O42: 500 | P42: 411 | Q42: 387 | R42: 399 | S42: 418 | T42: 454 | U42: 550 | V42: 550 | W42: 477 | X42: 437 | Y42: 439 | Z42: 342 | AA42: 371 | AB42: 331 | AC42: 370 | AD42: 401 | AE42: 452 | AF42: 265 | AG42: 213 | AH42: 178 | AI42: 288 | AJ42: 267 | AK42: 254 | AL42: 145 | AM42: 124 | AN42: 107 | AO42: 100 | AP42: 0 | AQ42: 45 | AR42: 138 | AS42: 370 | AT42: 247
A43: Metz | B43: 192 | C43: 281 | D43: 282 | E43: 343 | F43: 357 | G43: 230 | H43: 200 | I43: 189 | J43: 244 | K43: 174 | L43: 302 | M43: 368 | N43: 442 | O43: 475 | P43: 386 | Q43: 362 | R43: 405 | S43: 423 | T43: 459 | U43: 555 | V43: 556 | W43: 503 | X43: 463 | Y43: 465 | Z43: 368 | AA43: 398 | AB43: 357 | AC43: 396 | AD43: 427 | AE43: 478 | AF43: 291 | AG43: 239 | AH43: 204 | AI43: 314 | AJ43: 293 | AK43: 280 | AL43: 179 | AM43: 150 | AN43: 136 | AO43: 93 | AP43: 46 | AQ43: 0 | AR43: 102 | AS43: 345 | AT43: 223
A44: Rems | B44: 132 | C44: 204 | D44: 197 | E44: 258 | F44: 272 | G44: 140 | H44: 110 | I44: 98 | J44: 153 | K44: 84 | L44: 213 | M44: 279 | N44: 352 | O44: 386 | P44: 297 | Q44: 273 | R44: 320 | S44: 338 | T44: 374 | U44: 470 | V44: 471 | W44: 422 | X44: 468 | Y44: 470 | Z44: 373 | AA44: 403 | AB44: 362 | AC44: 401 | AD44: 432 | AE44: 483 | AF44: 297 | AG44: 244 | AH44: 209 | AI44: 288 | AJ44: 298 | AK44: 285 | AL44: 195 | AM44: 155 | AN44: 224 | AO44: 181 | AP44: 136 | AQ44: 102 | AR44: 0 | AS44: 256 | AT44: 133
A45: Rennes | B45: 245 | C45: 220 | D45: 137 | E45: 193 | F45: 277 | G45: 276 | H45: 299 | I45: 233 | J45: 171 | K45: 192 | L45: 103 | M45: 134 | N45: 111 | O45: 145 | P45: 54 | Q45: 79 | R45: 166 | S45: 214 | T45: 256 | U45: 352 | V45: 353 | W45: 368 | X45: 413 | Y45: 463 | Z45: 507 | AA45: 470 | AB45: 497 | AC45: 536 | AD45: 566 | AE45: 617 | AF45: 441 | AG45: 383 | AH45: 354 | AI45: 304 | AJ45: 442 | AK45: 438 | AL45: 365 | AM45: 320 | AN45: 446 | AO45: 424 | AP45: 369 | AQ45: 345 | AR45: 256 | AS45: 0 | AT45: 150
A46: Chartres | B46: 122 | C46: 116 | D46: 109 | E46: 169 | F46: 183 | G46: 209 | H46: 178 | I46: 150 | J46: 105 | K46: 73 | L46: 151 | M46: 215 | N46: 244 | O46: 277 | P46: 188 | Q46: 164 | R46: 222 | S46: 250 | T46: 286 | U46: 382 | V46: 382 | W46: 334 | X46: 379 | Y46: 411 | Z46: 394 | AA46: 365 | AB46: 384 | AC46: 423 | AD46: 453 | AE46: 504 | AF46: 318 | AG46: 266 | AH46: 231 | AI46: 200 | AJ46: 319 | AK46: 315 | AL46: 241 | AM46: 197 | AN46: 322 | AO46: 301 | AP46: 246 | AQ46: 222 | AR46: 133 | AS46: 147 | AT46: 0

Sheet defi250
A1: X réel | B1: Y réel | C1: X graphique | D1: Y graphique | E1: Bistance à battre : | F1: =11.8092 -> 11.8092 | G1: Ordre | H1: X réel | I1: Y réel | J1: Distance : | K1: 11.82901666 | L1: Niv: 8 | M1: Historique | N1: Temps | O1: Ecart | P1: =MIN(M:M) -> 11.85780003 | Q1: =((P1/$F$1)-1) -> 0.004115438237
A2: 0.4475592426 | B2: 0.4926165878 | G2: 0 | H2: 0.4475592426 | I2: 0.4926165878 | J2: Détail : | K2: =SUM(J:J) -> 11.82901666 | L2: Durée : 1715,52734375 | M2: 12.2293751 | N2: 1.7968 | O2: =((M2/$F$1)-1) -> 0.03558031903 | P2: =N2 -> 1.7968
A3: 0.08402152825 | B3: 0.5898443307 | G3: 2 | H3: 0.4397162027 | I3: 0.5045841727 | J3: =SQRT(((H2-H3)*(H2-H3))+((I2-I3)*(I2-I3))) -> 0.01430861157 | K3: =(+K1/F1)-1 -> 0.001678069253 | L3: PasAnalyse = 2 | M3: 12.09344112 | N3: 20.9528 | O3: =((M3/$F$1)-1) -> 0.02406946478 | P3: =+N3-N2 -> 19.156
A4: 0.4397162027 | B4: 0.5045841727 | G4: 126 | H4: 0.5211494691 | I4: 0.577744992 | J4: 0.1094709201 | L4: PourcentagePointsFixes = 0.2 | M4: 12.09344112 | N4: 31.3334 | O4: =((M4/$F$1)-1) -> 0.02406946478 | P4: =+N4-N3 -> 10.3806
A5: 0.06421244936 | B5: 0.7168878028 | G5: 11 | H5: 0.473720171 | I5: 0.580604143 | J5: 0.04751539811 | L5: PourcentageDistanceVoisin = 0.5 | M5: 12.00830593 | N5: 43.2016 | O5: 0.01686023883 | P5: 11.8682
A6: 0.2425510059 | B6: 0.6629264224 | G6: 25 | H6: 0.409805744 | I6: 0.6050317483 | J6: 0.06842340162 | L6: AvanceAléatoire = True | M6: 12.00830593 | N6: 52.8681 | O6: 0.01686023883 | P6: 9.6665
A7: 0.1692461064 | B7: 0.7415713421 | G7: 16 | H7: 0.3924014168 | I7: 0.63822188 | J7: 0.03747659861 | L7: Version 10 | M7: 12.00830593 | N7: 62.2917 | O7: 0.01686023883 | P7: 9.4236
A8: 0.03784906631 | B8: 0.9060324556 | G8: 245 | H8: 0.5072260629 | I8: 0.6836539349 | J8: 0.1234859141 | M8: 12.00830593 | N8: 72.2833 | O8: 0.01686023883 | P8: 9.9916
A9: 0.4777046768 | B9: 0.9312552148 | G9: 84 | H9: 0.4949974595 | I9: 0.7080308469 | J9: 0.02727219433 | L9: Version 10 / 10 traitements | M9: 12.00830593 | N9: 81.621 | O9: 0.01686023883 | P9: 9.3377
A10: 0.2458974179 | B10: 0.5419171262 | G10: 35 | H10: 0.4576056087 | I10: 0.7504201396 | J10: 0.05652435439 | M10: 12.00830593 | N10: 90.421 | O10: 0.01686023883 | P10: 8.8
A11: 0.04060538858 | B11: 0.5328465258 | G11: 13 | H11: 0.4683409086 | I11: 0.8154253084 | J11: 0.06588564815 | L11: Niv: 7 / Tracé Num: 6 | M11: 12.00830593 | N11: 99.7515 | O11: 0.01686023883 | P11: 9.3305
A12: 0.4121956727 | B12: 0.4800001807 | G12: 102 | H12: 0.5348252929 | I12: 0.8282282883 | J12: 0.06770590552 | L12: Distance : 12,254 | M12: 12.00511491 | N12: 109.2995 | O12: 0.01659002418 | P12: 9.548
A13: 0.473720171 | B13: 0.580604143 | G13: 214 | H13: 0.5397683429 | I13: 0.8526081829 | J13: 0.02487595232 | L13: PasAnalyse = 2 | M13: 12.00511491 | N13: 117.0809 | O13: 0.01659002418 | P13: 7.7814
A14: 0.4298424432 | B14: 0.4877158548 | G14: 239 | H14: 0.576985782 | I14: 0.8083323129 | J14: 0.0578402148 | L14: PourcentagePointsFixes = 0.2 | M14: 11.9139983 | N14: 126.5715 | O14: 0.008874293173 | P14: 9.4906
A15: 0.4683409086 | B15: 0.8154253084 | G15: 183 | H15: 0.5237986161 | I15: 0.785803603 | J15: 0.05776172938 | L15: PourcentageDistanceVoisin = 0.05 | M15: 11.9139983 | N15: 134.4777 | O15: 0.008874293173 | P15: 7.9062
A16: 0.2119448143 | B16: 0.9458491867 | G16: 105 | H16: 0.540067289 | I16: 0.7635660907 | J16: 0.0275531608 | L16: AvanceAléatoire = False | M16: 11.9139983 | N16: 142.2189 | O16: 0.008874293173 | P16: 7.7412
A17: 0.01553384727 | B17: 0.6934507545 | G17: 133 | H17: 0.5712063448 | I17: 0.7297054613 | J17: 0.04600198927 | M17: 11.9139983 | N17: 151.012 | O17: 0.008874293173 | P17: 8.7931
A18: 0.3924014168 | B18: 0.63822188 | G18: 164 | H18: 0.605625473 | I18: 0.7043761592 | J18: 0.04273464554 | L18: Niv: 7 / Tracé Num: 10 | M18: 11.9139983 | N18: 158.6689 | O18: 0.008874293173 | P18: 7.6569
A19: 0.05645346502 | B19: 0.7481989064 | G19: 139 | H19: 0.5924686966 | I19: 0.6563884728 | J19: 0.04975860544 | L19: Distance : 12,206 | M19: 11.9139983 | N19: 167.4236 | O19: 0.008874293173 | P19: 8.7547
A20: 0.2402351317 | B20: 0.6354448646 | G20: 68 | H20: 0.5789048942 | I20: 0.6005510669 | J20: 0.05746122718 | L20: PasAnalyse = 2 | M20: 11.9139983 | N20: 176.0511 | O20: 0.008874293173 | P20: 8.6275
A21: 0.3288956191 | B21: 0.8370555909 | G21: 208 | H21: 0.5997885009 | I21: 0.5772973341 | J21: 0.03125477757 | L21: PourcentagePointsFixes = 0.30 | M21: 11.9139983 | N21: 183.879 | O21: 0.008874293173 | P21: 7.8279
A22: 0.3236554493 | B22: 0.7152722599 | G22: 148 | H22: 0.5663857707 | I22: 0.5257752128 | J22: 0.06140253554 | L22: PourcentageDistanceVoisin = 0.10 | M22: 11.9139983 | N22: 192.0942 | O22: 0.008874293173 | P22: 8.2152
A23: 0.008159634192 | B23: 0.8619832071 | G23: 51 | H23: 0.5693650153 | I23: 0.4737874218 | J23: 0.05207308622 | L23: AvanceAléatoire = False | M23: 11.9139983 | N23: 200.344 | O23: 0.008874293173 | P23: 8.2498
A24: 0.2063647006 | B24: 0.9915126297 | G24: 130 | H24: 0.6101821135 | I24: 0.4874771587 | J24: 0.04305164808 | M24: 11.9139983 | N24: 208.7188 | O24: 0.008874293173 | P24: 8.3748
A25: 0.2774290256 | B25: 0.6915745172 | G25: 218 | H25: 0.614200098 | I25: 0.5206503528 | J25: 0.0334156402 | M25: 11.89495302 | N25: 234.1288 | O25: 0.007261543253 | P25: 25.41
A26: 0.08388227876 | B26: 0.4923309106 | G26: 142 | H26: 0.6829708181 | I26: 0.5080079087 | J26: 0.06992312453 | L26: Niv: 8 / Tracé Num: 8 | M26: 11.93523323 | N26: 260.6028 | O26: 0.01067246109 | P26: 26.474
A27: 0.409805744 | B27: 0.6050317483 | G27: 179 | H27: 0.6919544437 | I27: 0.4782109368 | J27: 0.03112177799 | L27: Distance : 12,257 | M27: 11.90615225 | N27: 282.4613 | O27: 0.008209891715 | P27: 21.8585
A28: 0.4091464458 | B28: 0.8893461707 | G28: 127 | H28: 0.7561085327 | I28: 0.4782194654 | J28: 0.06415408953 | L28: PasAnalyse = 2 | M28: 11.90615225 | N28: 297.0287 | O28: 0.008209891715 | P28: 14.5674
A29: 0.1438656319 | B29: 0.6540172347 | G29: 58 | H29: 0.7781268237 | I29: 0.4968235847 | J29: 0.02882565518 | L29: PourcentagePointsFixes = 0.20 | M29: 12.04634727 | N29: 307.8696 | O29: 0.0200815698 | P29: 10.8409
A30: 0.3032602691 | B30: 0.7769495645 | G30: 222 | H30: 0.7982267933 | I30: 0.4609946334 | J30: 0.04108190024 | L30: PourcentageDistanceVoisin = 0.05 | M30: 11.99264781 | N30: 322.9876 | O30: 0.01553431334 | P30: 15.118
A31: 0.08446667623 | B31: 0.6102476045 | G31: 134 | H31: 0.7760749278 | I31: 0.4139247499 | J31: 0.05202190955 | L31: AvanceAléatoire = False | M31: 11.91355926 | N31: 341.3341 | O31: 0.008837115229 | P31: 18.3465
A32: 0.1025785157 | B32: 0.4786743997 | G32: 209 | H32: 0.7815119289 | I32: 0.3888684455 | J32: 0.02563941052 | M32: 11.96823098 | N32: 364.9128 | O32: 0.01346670259 | P32: 23.5787
A33: 0.3822369138 | B33: 0.7757863211 | G33: 90 | H33: 0.7861165544 | I33: 0.383716526 | J33: 0.006909764919 | L33: Niv: 8 / Tracé Num: 10 | M33: 11.93654557 | N33: 377.9379 | O33: 0.0107835902 | P33: 13.0251
A34: 0.1035164902 | B34: 0.7570741582 | G34: 227 | H34: 0.8070951463 | I34: 0.3439977588 | J34: 0.04491861287 | L34: Distance : 12,206 | M34: 12.06237313 | N34: 387.9698 | O34: 0.02143863478 | P34: 10.0319
A35: 0.3221392455 | B35: 0.9579837113 | G35: 96 | H35: 0.8701637434 | I35: 0.329219799 | J35: 0.06477681713 | L35: PasAnalyse = 2 | M35: 11.98144981 | N35: 409.3749 | O35: 0.01458606892 | P35: 21.4051
A36: 0.3347920696 | B36: 0.8504610248 | G36: 199 | H36: 0.9461452812 | I36: 0.4096961725 | J36: 0.1106780953 | L36: PourcentagePointsFixes = 0.30 | M36: 11.89495302 | N36: 417.308 | O36: 0.007261543253 | P36: 7.9331
A37: 0.4576056087 | B37: 0.7504201396 | G37: 74 | H37: 0.8659368777 | I37: 0.4471514812 | J37: 0.08852281145 | L37: PourcentageDistanceVoisin = 0.10 | M37: 11.89495302 | N37: 424.5481 | O37: 0.007261543253 | P37: 7.2401
A38: 0.1425617831 | B38: 0.9920331878 | G38: 226 | H38: 0.858202727 | I38: 0.5034138295 | J38: 0.05679145115 | L38: AvanceAléatoire = False | M38: 11.89495302 | N38: 431.9122 | O38: 0.007261543253 | P38: 7.3641
A39: 0.1806716439 | B39: 0.7606093492 | G39: 182 | H39: 0.9569428102 | I39: 0.5056999126 | J39: 0.09876654393 | M39: 11.89495302 | N39: 440.0162 | O39: 0.007261543253 | P39: 8.104
A40: 0.2524916506 | B40: 0.9155052612 | G40: 158 | H40: 0.9254231136 | I40: 0.6114906161 | J40: 0.1103864314 | L40: VERSION 13 | M40: 11.89495302 | N40: 446.6817 | O40: 0.007261543253 | P40: 6.6655
A41: 0.2306783907 | B41: 0.7343617631 | G41: 99 | H41: 0.8629635591 | I41: 0.6076780488 | J41: 0.06257580699 | M41: 11.89495302 | N41: 454.514 | O41: 0.007261543253 | P41: 7.8323
A42: 0.3422942958 | B42: 0.9746876583 | G42: 109 | H42: 0.848515498 | I42: 0.583250694 | J42: 0.02838031241 | L42: Niv: 8 / Tracé Num: 6 + | M42: 11.89495302 | N42: 461.1827 | O42: 0.007261543253 | P42: 6.6687
A43: 0.1633261144 | B43: 0.9689895329 | G43: 92 | H43: 0.8337893058 | I43: 0.5942181023 | J43: 0.01836150273 | L43: Distance : 12,1713 | M43: 11.89495302 | N43: 469.1717 | O43: 0.007261543253 | P43: 7.989
A44: 0.25950302 | B44: 0.8174024494 | G44: 207 | H44: 0.8073648619 | I44: 0.6048595752 | J44: 0.02848670174 | L44: PasAnalyse = 2 | M44: 11.89495302 | N44: 477.0832 | O44: 0.007261543253 | P44: 7.9115
A45: 0.1510766814 | B45: 0.8737031184 | G45: 98 | H45: 0.8092199797 | I45: 0.6553536048 | J45: 0.05052809607 | L45: PourcentagePointsFixes = 0.20 | M45: 11.89495302 | N45: 484.7122 | O45: 0.007261543253 | P45: 7.629
A46: 0.4197983248 | B46: 0.9472862203 | G46: 184 | H46: 0.7862443537 | I46: 0.6298637027 | J46: 0.03431638818 | L46: PourcentageDistanceVoisin = 0.10 | M46: 11.89495302 | N46: 491.4925 | O46: 0.007261543253 | P46: 6.7803
A47: 0.2515411703 | B47: 0.7668543877 | G47: 77 | H47: 0.7600466385 | I47: 0.6261141784 | J47: 0.0264646786 | L47: AvanceAléatoire = False | M47: 11.89299421 | N47: 523.9193 | O47: 0.007095672197 | P47: 32.4268
A48: 0.1369501608 | B48: 0.836488802 | G48: 165 | H48: 0.7337700329 | I48: 0.628723362 | J48: 0.02640582974 | M48: 11.89367005 | N48: 543.0737 | O48: 0.007152902034 | P48: 19.1544
A49: 0.2655430227 | B49: 0.66839121 | G49: 71 | H49: 0.7006773539 | I49: 0.6646619337 | J49: 0.04885392857 | L49: Niv: 8 / Tracé Num: 13 + | M49: 11.89367005 | N49: 555.0643 | O49: 0.007152902034 | P49: 11.9906
A50: 0.02359900018 | B50: 0.6208526972 | G50: 159 | H50: 0.6510595456 | I50: 0.6988038174 | J50: 0.06022952038 | L50: Distance : 12,1006 | M50: 11.91228518 | N50: 568.285 | O50: 0.008729225964 | P50: 13.2207
A51: 0.2280843914 | B51: 0.9689087598 | G51: 153 | H51: 0.6628980911 | I51: 0.7060687076 | J51: 0.01388991689 | L51: PasAnalyse = 2 | M51: 11.92613127 | N51: 592.7238 | O51: 0.009901709963 | P51: 24.4388
A52: 0.2231180733 | B52: 0.2167962207 | G52: 112 | H52: 0.6855025366 | I52: 0.7285736697 | J52: 0.03189724552 | L52: PourcentagePointsFixes = 0.20 | M52: 11.92613127 | N52: 608.8134 | O52: 0.009901709963 | P52: 16.0896
A53: 0.5693650153 | B53: 0.4737874218 | G53: 131 | H53: 0.7000579643 | I53: 0.7341507538 | J53: 0.01558731354 | L53: PourcentageDistanceVoisin = 0.20 | M53: 11.92613127 | N53: 622.2565 | O53: 0.009901709963 | P53: 13.4431
A54: 0.4749185196 | B54: 0.0336592542 | G54: 108 | H54: 0.7130869506 | I54: 0.7306903438 | J54: 0.01348068698 | L54: AvanceAléatoire = False | M54: 11.92704659 | N54: 646.0717 | O54: 0.009979218954 | P54: 23.8152
A55: 0.9540410582 | B55: 0.9585023173 | G55: 173 | H55: 0.7302920176 | I55: 0.7334085442 | J55: 0.01741846559 | M55: 11.92704659 | N55: 668.4381 | O55: 0.009979218954 | P55: 22.3664
A56: 0.1539170626 | B56: 0.2610833575 | G56: 188 | H56: 0.8062485503 | I56: 0.7428004295 | J56: 0.07653497484 | L56: VERSION 14 | M56: 11.90442942 | N56: 695.0539 | O56: 0.008064002829 | P56: 26.6158
A57: 0.1897406606 | B57: 0.3607753818 | G57: 204 | H57: 0.8389982339 | I57: 0.6986948368 | J57: 0.05493491675 | M57: 11.93390757 | N57: 716.685 | O57: 0.01056020495 | P57: 21.6311
A58: 0.6225799061 | B58: 0.1668684981 | G58: 192 | H58: 0.856072708 | I58: 0.6681763558 | J58: 0.03497020663 | L58: Niv: 8 / Tracé Num: 11 + | M58: 11.89299421 | N58: 723.492 | O58: 0.007095672197 | P58: 6.807
A59: 0.9613027629 | B59: 0.2093184278 | G59: 138 | H59: 0.8811865365 | I59: 0.7304854896 | J59: 0.06717985218 | L59: 12.0626 | M59: 11.89299421 | N59: 730.2194 | O59: 0.007095672197 | P59: 6.7274
A60: 0.7781268237 | B60: 0.4968235847 | G60: 115 | H60: 0.9570699958 | I60: 0.7459104573 | J60: 0.07743532156 | L60: PasAnalyse = 2 | M60: 11.89299421 | N60: 737.2462 | O60: 0.007095672197 | P60: 7.0268
A61: 0.7924170829 | B61: 0.9449289595 | G61: 73 | H61: 0.9859633013 | I61: 0.879349147 | J61: 0.1365309745 | L61: PourcentagePointsFixes = 0.25 | M61: 11.89299421 | N61: 745.3862 | O61: 0.007095672197 | P61: 8.14
A62: 0.8281201608 | B62: 0.8974555098 | G62: 53 | H62: 0.9540410582 | I62: 0.9585023173 | J62: 0.08534784109 | L62: PourcentageDistanceVoisin = 0.10 | M62: 11.89299421 | N62: 752.8398 | O62: 0.007095672197 | P62: 7.4536
A63: 0.7367863487 | B63: 0.2443919592 | G63: 141 | H63: 0.9368015639 | I63: 0.88711177 | J63: 0.07344256538 | L63: AvanceAléatoire = False | M63: 11.89299421 | N63: 759.9574 | O63: 0.007095672197 | P63: 7.1176
A64: 0.8415000802 | B64: 0.9599044221 | G64: 123 | H64: 0.9154995894 | I64: 0.8930625855 | J64: 0.02211755693 | L64: NombreDeTraitments = 11 | M64: 11.89299421 | N64: 767.3112 | O64: 0.007095672197 | P64: 7.3538
A65: 0.4611881799 | B65: 0.2890593228 | G65: 111 | H65: 0.8656101106 | I65: 0.8691301229 | J65: 0.05533283711 | M65: 11.89299421 | N65: 774.9691 | O65: 0.007095672197 | P65: 7.6579
A66: 0.4525210103 | B66: 0.03055319516 | G66: 60 | H66: 0.8281201608 | I66: 0.8974555098 | J66: 0.0469874863 | L66: VERSION 16 | M66: 11.89299421 | N66: 781.8649 | O66: 0.007095672197 | P66: 6.8958
A67: 0.7628467446 | B67: 0.9274395299 | G67: 246 | H67: 0.8667993234 | I67: 0.9317861549 | J67: =SQRT(((H66-H67)*(H66-H67))+((I66-I67)*(I66-I67))) -> 0.05171721963 | M67: 11.89299421 | N67: 790.0356 | O67: 0.007095672197 | P67: 8.1707
A68: 0.8859418472 | B68: 0.2181295124 | G68: 70 | H68: 0.8722448507 | I68: 0.9685222218 | J68: 0.03713747947 | L68: Niv: 8 / Tracé Num: | M68: 11.89299421 | N68: 797.6584 | O68: =((M68/$F$1)-1) -> 0.007095672197 | P68: =+N68-N67 -> 7.6228
A69: 0.9779711608 | B69: 0.07568250783 | G69: 210 | H69: 0.8456540466 | I69: 0.9849107969 | J69: 0.03123549673 | L69: 12.0876 | M69: 11.89299421 | N69: 818.761 | O69: 0.007095672197 | P69: 21.1026
A70: 0.5789048942 | B70: 0.6005510669 | G70: 62 | H70: 0.8415000802 | I70: 0.9599044221 | J70: 0.02534904768 | L70: PasAnalyse = 2 | M70: 11.89299421 | N70: 832.3213 | O70: 0.007095672197 | P70: 13.5603
A71: 0.1903953976 | B71: 0.2038537692 | G71: 86 | H71: 0.7984580686 | I71: 0.9514248478 | J71: 0.04386932799 | L71: PourcentagePointsFixes = 0.25 | M71: 11.92406337 | N71: 859.5386 | O71: 0.009726600523 | P71: 27.2173
A72: 0.8722448507 | B72: 0.9685222218 | G72: 59 | H72: 0.7924170829 | I72: 0.9449289595 | J72: 0.00887074256 | L72: PourcentageDistanceVoisin = 0.25 | M72: 11.93197583 | N72: 871.9982 | O72: 0.01039662515 | P72: 12.4596
A73: 0.7006773539 | B73: 0.6646619337 | G73: 65 | H73: 0.7628467446 | I73: 0.9274395299 | J73: 0.03435527695 | L73: NombreDePreTraitments = 11 | M73: 11.92406337 | N73: 896.389 | O73: 0.009726600523 | P73: 24.3908
A74: 0.9134511813 | B74: 0.1403935566 | G74: 241 | H74: 0.7101919204 | I74: 0.9637875645 | J74: 0.06398210793 | L74: NombreDeTraitments = 31 | M74: 11.92406337 | N74: 921.9074 | O74: 0.009726600523 | P74: 25.5184
A75: 0.9859633013 | B75: 0.879349147 | G75: 167 | H75: 0.6763834469 | I75: 0.9301962964 | J75: 0.04765906183 | M75: 11.89299421 | N75: 929.7791 | O75: 0.007095672197 | P75: 7.8717
A76: 0.8659368777 | B76: 0.4471514812 | G76: 156 | H76: 0.6726074815 | I76: 0.8986644959 | J76: 0.0317570836 | L76: Niv: 8 / Tracé Num: 16+ | M76: 11.89299421 | N76: 937.3663 | O76: 0.007095672197 | P76: 7.5872
A77: 0.1684084698 | B77: 0.318457888 | G77: 189 | H77: 0.6773716738 | I77: 0.8901879 | J77: 0.009723692991 | L77: 12.0646 | M77: 11.89299421 | N77: 944.4807 | O77: 0.007095672197 | P77: 7.1144
A78: 0.6481430177 | B78: 0.1318392656 | G78: 248 | H78: 0.6986405426 | I78: 0.8482900937 | J78: 0.04698713608 | L78: PasAnalyse = 2 | M78: 11.88993688 | N78: 952.6349 | O78: 0.006836778183 | P78: 8.1542
A79: 0.7600466385 | B79: 0.6261141784 | G79: 81 | H79: 0.653926549 | I79: 0.8741228064 | J79: 0.05163981277 | L79: PourcentagePointsFixes = 0.20 | M79: 11.88993688 | N79: 959.8367 | O79: 0.006836778183 | P79: 7.2018
A80: 0.2075217734 | B80: 0.3389515332 | G80: 147 | H80: 0.6445886763 | I80: 0.8566319174 | J80: 0.01982743209 | L80: PourcentageDistanceVoisin = 0.25 | M80: 11.88993688 | N80: 966.9135 | O80: 0.006836778183 | P80: 7.0768
A81: 0.2266652454 | B81: 0.4500727798 | G81: 143 | H81: 0.6168172313 | I81: 0.8893355192 | J81: 0.04290429728 | L81: NombreDePreTraitments = 11 | M81: 11.88993688 | N81: 974.3447 | O81: 0.006836778183 | P81: 7.4312
A82: 0.001877955627 | B82: 0.4170606434 | G82: 202 | H82: 0.6498225438 | I82: 0.9488103334 | J82: 0.06801914571 | L82: NombreDeTraitments = 31 | M82: 11.88993688 | N82: 981.0251 | O82: 0.006836778183 | P82: 6.6804
A83: 0.653926549 | B83: 0.8741228064 | G83: 198 | H83: 0.6234518187 | I83: 0.9669630164 | J83: 0.03201460675 | M83: 11.88993688 | N83: 988.2719 | O83: 0.006836778183 | P83: 7.2468
A84: 0.3855828652 | B84: 0.3546039029 | G84: 149 | H84: 0.587117407 | I84: 0.9755322165 | J84: 0.03733122907 | L84: Niv: 7 / Tracé Num: 25+ | M84: 11.88993688 | N84: 995.4783 | O84: 0.006836778183 | P84: 7.2064
A85: 0.5387847405 | B85: 0.2990340465 | G85: 7 | H85: 0.4777046768 | I85: 0.9312552148 | J85: 0.1180321922 | L85: 12.0377 | M85: 11.88993688 | N85: 1001.9094 | O85: 0.006836778183 | P85: 6.4311
A86: 0.4949974595 | B86: 0.7080308469 | G86: 26 | H86: 0.4091464458 | I86: 0.8893461707 | J86: 0.08035296521 | L86: PasAnalyse = 2 | M86: 11.88993688 | N86: 1009.5069 | O86: 0.006836778183 | P86: 7.5975
A87: 0.6140633025 | B87: 0.02656868985 | G87: 44 | H87: 0.4197983248 | I87: 0.9472862203 | J87: 0.05891105049 | L87: PourcentagePointsFixes = 0.30 | M87: 11.88993688 | N87: 1016.0526 | O87: 0.006836778183 | P87: 6.5457
A88: 0.7984580686 | B88: 0.9514248478 | G88: 40 | H88: 0.3422942958 | I88: 0.9746876583 | J88: 0.08220531199 | L88: PourcentageDistanceVoisin = 0.10 | M88: 11.88993688 | N88: 1022.5677 | O88: 0.006836778183 | P88: 6.5151
A89: 0.5118593578 | B89: 0.04435548699 | G89: 33 | H89: 0.3221392455 | I89: 0.9579837113 | J89: 0.02617724008 | L89: NombreDePreTraitments = 11 | M89: 11.87847594 | N89: 1046.7633 | O89: 0.005866268273 | P89: 24.1956
A90: 0.4933419744 | B90: 0.1600023755 | G90: 38 | H90: 0.2524916506 | I90: 0.9155052612 | J90: 0.08157944709 | L90: NombreDeTraitments = 31 | M90: 11.87919009 | N90: 1063.3923 | O90: 0.005926742665 | P90: 16.629
A91: 0.1761947526 | B91: 0.253388613 | G91: 14 | H91: 0.2119448143 | I91: 0.9458491867 | J91: 0.05064385211 | L91: idem pour le niveau 8 | M91: 11.87919009 | N91: 1075.3036 | O91: 0.005926742665 | P91: 11.9113
A92: 0.7861165544 | B92: 0.383716526 | G92: 49 | H92: 0.2280843914 | I92: 0.9689087598 | J92: 0.02814657809 | M92: 11.91967352 | N92: 1095.2495 | O92: 0.009354869417 | P92: 19.9459
A93: 0.5923401462 | B93: 0.01278179977 | G93: 22 | H93: 0.2063647006 | I93: 0.9915126297 | J93: 0.0313477257 | M93: 11.95799583 | N93: 1110.7115 | O93: 0.01259999253 | P93: 15.462
A94: 0.8337893058 | B94: 0.5942181023 | G94: 41 | H94: 0.1633261144 | I94: 0.9689895329 | J94: 0.04857581483 | M94: 11.96207487 | N94: 1137.1937 | O94: 0.01294540422 | P94: 26.4822
A95: 0.8423197577 | B95: 0.007125649136 | G95: 36 | H95: 0.1425617831 | I95: 0.9920331878 | J95: 0.03101882469 | M95: 11.88923531 | N95: 1154.0258 | O95: 0.006777369068 | P95: 16.8321
A96: 0.1144593549 | B96: 0.3373172171 | G96: 6 | H96: 0.03784906631 | I96: 0.9060324556 | J96: 0.135502321 | M96: 11.93190513 | N96: 1168.7163 | O96: 0.0103906386 | P96: 14.6905
A97: 0.7151564965 | B97: 0.1550647435 | G97: 21 | H97: 0.008159634192 | I97: 0.8619832071 | J97: 0.05312060503 | M97: 11.92943959 | N97: 1179.0061 | O97: 0.01018185733 | P97: 10.2898
A98: 0.8701637434 | B98: 0.329219799 | G98: 43 | H98: 0.1510766814 | I98: 0.8737031184 | J98: 0.1433967877 | M98: 11.95009955 | N98: 1200.4784 | O98: 0.01193133731 | P98: 21.4723
A99: 0.1816334333 | B99: 0.2823594161 | G99: 46 | H99: 0.1369501608 | I99: 0.836488802 | J99: 0.03980532542 | M99: 11.92689663 | N99: 1223.7979 | O99: 0.009966519768 | P99: 23.3195
A100: 0.8092199797 | B100: 0.6553536048 | G100: 32 | H100: 0.1035164902 | I100: 0.7570741582 | J100: 0.08616551505 | M100: 11.87847594 | N100: 1231.7042 | O100: 0.005866268273 | P100: 7.9063
A101: 0.8629635591 | B101: 0.6076780488 | G101: 17 | H101: 0.05645346502 | I101: 0.7481989064 | J101: 0.04789257179 | M101: 11.87847594 | N101: 1239.3052 | O101: 0.005866268273 | P101: 7.601
A102: 0.6067784526 | B102: 0.3748229169 | G102: 3 | H102: 0.06421244936 | I102: 0.7168878028 | J102: 0.03225813149 | M102: 11.87847594 | N102: 1246.3562 | O102: 0.005866268273 | P102: 7.051
A103: 0.6520335358 | B103: 0.1001204271 | G103: 15 | H103: 0.01553384727 | I103: 0.6934507545 | J103: 0.05402685939 | M103: 11.87847594 | N103: 1252.9894 | O103: 0.005866268273 | P103: 6.6332
A104: 0.5348252929 | B104: 0.8282282883 | G104: 48 | H104: 0.02359900018 | I104: 0.6208526972 | J104: 0.07304467551 | M104: 11.87847594 | N104: 1259.7496 | O104: 0.005866268273 | P104: 6.7602
A105: 0.3535090405 | B105: 0.3209418473 | G105: 9 | H105: 0.04060538858 | I105: 0.5328465258 | J105: 0.08963427609 | M105: 11.87847594 | N105: 1266.2375 | O105: 0.005866268273 | P105: 6.4879
A106: 0.3337236471 | B106: 0.04573412053 | G106: 24 | H106: 0.08388227876 | I106: 0.4923309106 | J106: 0.05928241134 | M106: 11.87847594 | N106: 1272.7951 | O106: 0.005866268273 | P106: 6.5576
A107: 0.540067289 | B107: 0.7635660907 | G107: 30 | H107: 0.1025785157 | I107: 0.4786743997 | J107: 0.02315274424 | M107: 11.87847594 | N107: 1279.236 | O107: 0.005866268273 | P107: 6.4409
A108: 0.5334499753 | B108: 0.008408198133 | G108: 1 | H108: 0.08402152825 | I108: 0.5898443307 | J108: 0.1127080979 | M108: 11.87847594 | N108: 1285.8097 | O108: 0.005866268273 | P108: 6.5737
A109: 0.5789913991 | B109: 0.3757697335 | G109: 29 | H109: 0.08446667623 | I109: 0.6102476045 | J109: 0.02040812929 | M109: 11.87847594 | N109: 1293.567 | O109: 0.005866268273 | P109: 7.7573
A110: 0.7130869506 | B110: 0.7306903438 | G110: 27 | H110: 0.1438656319 | I110: 0.6540172347 | J110: 0.0737835785 | M110: 11.87847594 | N110: 1301.5554 | O110: 0.005866268273 | P110: 7.9884
A111: 0.848515498 | B111: 0.583250694 | G111: 5 | H111: 0.1692461064 | I111: 0.7415713421 | J111: 0.09115859923 | M111: 11.87847594 | N111: 1322.3966 | O111: 0.005866268273 | P111: 20.8412
A112: 0.05991014326 | B112: 0.03014893178 | G112: 37 | H112: 0.1806716439 | I112: 0.7606093492 | J112: 0.02220334712 | M112: 11.911613 | N112: 1331.7782 | O112: 0.008672306039 | P112: 9.3816
A113: 0.8656101106 | B113: 0.8691301229 | G113: 39 | H113: 0.2306783907 | I113: 0.7343617631 | J113: 0.05647663677 | M113: 11.9124593 | N113: 1340.6425 | O113: 0.0087439706 | P113: 8.8643
A114: 0.6855025366 | B114: 0.7285736697 | G114: 45 | H114: 0.2515411703 | I114: 0.7668543877 | J114: 0.03861380873 | M114: 11.87847594 | N114: 1362.7805 | O114: 0.005866268273 | P114: 22.138
A115: 0.4768081717 | B115: 0.2922809892 | G115: 42 | H115: 0.25950302 | I115: 0.8174024494 | J115: 0.05117125751 | M115: 11.87847594 | N115: 1375.6112 | O115: 0.005866268273 | P115: 12.8307
A116: 0.1033965871 | B116: 0.1288417075 | G116: 28 | H116: 0.3032602691 | I116: 0.7769495645 | J116: 0.05959138155 | M116: 11.87847594 | N116: 1394.8222 | O116: 0.005866268273 | P116: 19.211
A117: 0.9570699958 | B117: 0.7459104573 | G117: 19 | H117: 0.3288956191 | I117: 0.8370555909 | J117: 0.06534451461 | M117: 11.87847594 | N117: 1402.3569 | O117: 0.005866268273 | P117: 7.5347
A118: 0.9591637272 | B118: 0.1690148106 | G118: 34 | H118: 0.3347920696 | I118: 0.8504610248 | J118: 0.01464492353 | M118: 11.87847594 | N118: 1409.8236 | O118: 0.005866268273 | P118: 7.4667
A119: 0.6917596441 | B119: 0.2928873743 | G119: 31 | H119: 0.3822369138 | I119: 0.7757863211 | J119: 0.08847216851 | M119: 11.87847594 | N119: 1417.3234 | O119: 0.005866268273 | P119: 7.4998
A120: 0.2147489311 | B120: 0.2318269336 | G120: 20 | H120: 0.3236554493 | I120: 0.7152722599 | J120: 0.08422434082 | M120: 11.87847594 | N120: 1424.5433 | O120: 0.005866268273 | P120: 7.2199
A121: 0.1239686399 | B121: 0.255768979 | G121: 23 | H121: 0.2774290256 | I121: 0.6915745172 | J121: 0.05194675407 | M121: 11.87847594 | N121: 1430.8623 | O121: 0.005866268273 | P121: 6.319
A122: 0.9864593232 | B122: 0.1774111171 | G122: 47 | H122: 0.2655430227 | I122: 0.66839121 | J122: 0.02605269269 | M122: 11.87847594 | N122: 1437.9871 | O122: 0.005866268273 | P122: 7.1248
A123: 0.4203062849 | B123: 0.04636946646 | G123: 4 | H123: 0.2425510059 | I123: 0.6629264224 | J123: 0.02363253557 | M123: 11.87847594 | N123: 1444.9774 | O123: 0.005866268273 | P123: 6.9903
A124: 0.2075600489 | B124: 0.2859163955 | G124: 18 | H124: 0.2402351317 | I124: 0.6354448646 | J124: 0.02757896468 | M124: 11.87847594 | N124: 1451.4632 | O124: 0.005866268273 | P124: 6.4858
A125: 0.9154995894 | B125: 0.8930625855 | G125: 8 | H125: 0.2458974179 | I125: 0.5419171262 | J125: 0.09369898264 | M125: 11.87847594 | N125: 1458.8431 | O125: 0.005866268273 | P125: 7.3799
A126: 0.01449006563 | B126: 0.3923077616 | G126: 79 | H126: 0.2266652454 | I126: 0.4500727798 | J126: 0.09383634914 | M126: 11.85780003 | N126: 1466.7909 | O126: 0.004115438237 | P126: 7.9478
A127: 0.1853435752 | B127: 0.1178866527 | G127: 191 | H127: 0.3001902723 | I127: 0.4214668283 | J127: 0.07889378962 | M127: 11.85780003 | N127: 1473.9243 | O127: 0.004115438237 | P127: 7.1334
A128: 0.5211494691 | B128: 0.577744992 | G128: 220 | H128: 0.3392213383 | I128: 0.4093583478 | J128: 0.04086611573 | M128: 11.85780003 | N128: 1480.7941 | O128: 0.004115438237 | P128: 6.8698
A129: 0.7561085327 | B129: 0.4782194654 | G129: 187 | H129: 0.343163074 | I129: 0.3916439209 | J129: 0.01814767752 | M129: 11.85780003 | N129: 1488.1283 | O129: 0.004115438237 | P129: 7.3342
A130: 0.6472342759 | B130: 0.0154150934 | G130: 229 | H130: 0.3380528023 | I130: 0.3817550722 | J130: 0.01113122666 | M130: 11.85780003 | N130: 1495.0889 | O130: 0.004115438237 | P130: 6.9606
A131: 0.247242027 | B131: 0.06461309968 | G131: 82 | H131: 0.3855828652 | I131: 0.3546039029 | J131: =SQRT(((H130-H131)*(H130-H131))+((I130-I131)*(I130-I131))) -> 0.05473840404 | M131: 11.85780003 | N131: 1501.7171 | O131: 0.004115438237 | P131: 6.6282
A132: 0.6101821135 | B132: 0.4874771587 | G132: 174 | H132: 0.399637355 | I132: 0.2857277524 | J132: 0.07029546781 | M132: 11.85780003 | N132: 1507.9758 | O132: =((M132/$F$1)-1) -> 0.004115438237 | P132: =+N132-N131 -> 6.2587
A133: 0.7000579643 | B133: 0.7341507538 | G133: 103 | H133: 0.3535090405 | I133: 0.3209418473 | J133: 0.05803321355 | M133: 11.85780003 | N133: 1514.9396 | O133: 0.004115438237 | P133: 6.9638
A134: 0.7432461381 | B134: 0.02895358345 | G134: 135 | H134: 0.3069873354 | I134: 0.2919190913 | J134: 0.0548323756 | M134: 11.85780003 | N134: 1521.6521 | O134: 0.004115438237 | P134: 6.7125
A135: 0.5712063448 | B135: 0.7297054613 | G135: 163 | H135: 0.326063022 | I135: 0.2365448186 | J135: 0.05856784005 | M135: 11.85780003 | N135: 1529.3732 | O135: 0.004115438237 | P135: 7.7211
A136: 0.7760749278 | B136: 0.4139247499 | G136: 181 | H136: 0.3286719616 | I136: 0.1748076873 | J136: 0.06179223212 | M136: 11.85780003 | N136: 1536.3032 | O136: 0.004115438237 | P136: 6.93
A137: 0.3069873354 | B137: 0.2919190913 | G137: 237 | H137: 0.2702682172 | I137: 0.2329880232 | J137: 0.0824375451 | M137: 11.85780003 | N137: 1567.0585 | O137: 0.004115438237 | P137: 30.7553
A138: 0.07007590262 | B138: 0.1659142766 | G138: 50 | H138: 0.2231180733 | I138: 0.2167962207 | J138: 0.04985288894 | M138: 11.86687308 | N138: 1575.8281 | O138: 0.004883741626 | P138: 8.7696
A139: 0.08325121365 | B139: 0.3937313519 | G139: 118 | H139: 0.2147489311 | I139: 0.2318269336 | J139: 0.01720362953 | M139: 11.8685594 | N139: 1586.3652 | O139: 0.005026539032 | P139: 10.5371
A140: 0.8811865365 | B140: 0.7304854896 | G140: 69 | H140: 0.1903953976 | I140: 0.2038537692 | J140: 0.03708898108 | M140: 11.88908567 | N140: 1600.2988 | O140: 0.00676469788 | P140: 13.9336
A141: 0.5924686966 | B141: 0.6563884728 | G141: 215 | H141: 0.1611195337 | I141: 0.1886384562 | J141: 0.03299366543 | M141: 11.88786776 | N141: 1613.0876 | O141: 0.00666156574 | P141: 12.7888
A142: 0.9539592704 | B142: 0.2026508101 | G142: 89 | H142: 0.1761947526 | I142: 0.253388613 | J142: 0.06648191509 | M142: 11.89093709 | N142: 1625.1893 | O142: 0.006921476003 | P142: 12.1017
A143: 0.9368015639 | B143: 0.88711177 | G143: 54 | H143: 0.1539170626 | I143: 0.2610833575 | J143: 0.02356914434 | M143: 11.85780003 | N143: 1631.3601 | O143: 0.004115438237 | P143: 6.1708
A144: 0.6829708181 | B144: 0.5080079087 | G144: 97 | H144: 0.1816334333 | I144: 0.2823594161 | J144: 0.03494091984 | M144: 11.85780003 | N144: 1638.7085 | O144: 0.004115438237 | P144: 7.3484
A145: 0.6168172313 | B145: 0.8893355192 | G145: 122 | H145: 0.2075600489 | I145: 0.2859163955 | J145: 0.02616947645 | M145: 11.85780003 | N145: 1646.0004 | O145: 0.004115438237 | P145: 7.2919
A146: 0.4995205388 | B146: 0.3928921591 | G146: 78 | H146: 0.2075217734 | I146: 0.3389515332 | J146: 0.05303515152 | M146: 11.85780003 | N146: 1652.9129 | O146: 0.004115438237 | P146: 6.9125
A147: 0.06886865571 | B147: 0.1683489555 | G147: 55 | H147: 0.1897406606 | I147: 0.3607753818 | J147: 0.02815045897 | M147: 11.85780003 | N147: 1660.2378 | O147: 0.004115438237 | P147: 7.3249
A148: 0.7733807038 | B148: 0.1726544183 | G148: 168 | H148: 0.1770279505 | I148: 0.3489909284 | J148: 0.0173345418 | M148: 11.85780003 | N148: 1667.1322 | O148: 0.004115438237 | P148: 6.8944
A149: 0.6445886763 | B149: 0.8566319174 | G149: 75 | H149: 0.1684084698 | I149: 0.318457888 | J149: 0.03172636136 | M149: 11.85780003 | N149: 1674.2046 | O149: 0.004115438237 | P149: 7.0724
A150: 0.5663857707 | B150: 0.5257752128 | G150: 244 | H150: 0.1247191518 | I150: 0.3335625106 | J150: 0.04622668202 | M150: 11.85780003 | N150: 1682.5183 | O150: 0.004115438237 | P150: 8.3137
A151: 0.587117407 | B151: 0.9755322165 | G151: 94 | H151: 0.1144593549 | I151: 0.3373172171 | J151: 0.01092525758 | M151: 11.85780003 | N151: 1689.9745 | O151: 0.004115438237 | P151: 7.4562
A152: 0.4151213835 | B152: 0.1795861037 | G152: 170 | H152: 0.1060650866 | I152: 0.3377728933 | J152: 0.008406627249 | M152: 11.85780003 | N152: 1697.221 | O152: 0.004115438237 | P152: 7.2465
A153: 0.6319206893 | B153: 0.3690806543 | G153: 232 | H153: 0.0680194879 | I153: 0.3552077897 | J153: 0.0418502472 | M153: 11.85780003 | N153: 1704.8267 | O153: 0.004115438237 | P153: 7.6057
A154: 0.02309788903 | B154: 0.3190384782 | G154: 137 | H154: 0.08325121365 | I154: 0.3937313519 | J154: 0.04142547909 | M154: 11.86129782 | N154: 1736.9806 | O154: 0.004411629814 | P154: 32.1539
A155: 0.6628980911 | B155: 0.7060687076 | G155: 166 | H155: 0.02341463743 | I155: 0.396668124 | J155: 0.05990860109 | M155: 11.86129782 | N155: 1747.4133 | O155: 0.004411629814 | P155: 10.4327
A156: 0.8270463869 | B156: 0.2797153224 | G156: 80 | H156: 0.001877955627 | I156: 0.4170606434 | J156: 0.02965945905 | M156: 11.86129782 | N156: 1760.6556 | O156: 0.004411629814 | P156: 13.2423
A157: 0.5954042268 | B157: 0.3265669257 | G157: 124 | H157: 0.01449006563 | I157: 0.3923077616 | J157: 0.02778075734 | M157: 11.86129782 | N157: 1773.4249 | O157: 0.004411629814 | P157: 12.7693
A158: 0.6726074815 | B158: 0.8986644959 | G158: 152 | H158: 0.02309788903 | I158: 0.3190384782 | J158: 0.07377318289 | M158: 11.86129782 | N158: 1783.7805 | O158: 0.004411629814 | P158: 10.3556
A159: 0.5089121005 | B159: 0.1723851459 | G159: 249 | H159: 0.08127811691 | I159: 0.3068178222 | J159: 0.05944983894 | M159: 11.86129782 | N159: 1803.4123 | O159: 0.004411629814 | P159: 19.6318
A160: 0.9254231136 | B160: 0.6114906161 | G160: 223 | H160: 0.1056440645 | I160: 0.304847145 | J160: 0.02444551022 | M160: 11.85780003 | N160: 1810.623 | O160: 0.004115438237 | P160: 7.2107
A161: 0.6510595456 | B161: 0.6988038174 | G161: 216 | H161: 0.1107868054 | I161: 0.3036813168 | J161: 0.005273228557 | M161: 11.85780003 | N161: 1817.4858 | O161: 0.004115438237 | P161: 6.8628
A162: 0.7841450348 | B162: 0.2956482219 | G162: 206 | H162: 0.1201616651 | I162: 0.2889194936 | J162: 0.01748712155 | M162: 11.85780003 | N162: 1824.5049 | O162: 0.004115438237 | P162: 7.0191
A163: 0.5554357348 | B163: 0.3505308055 | G163: 119 | H163: 0.1239686399 | I163: 0.255768979 | J163: 0.03336839334 | M163: 11.85780003 | N163: 1831.0926 | O163: 0.004115438237 | P163: 6.5877
A164: 0.8214234347 | B164: 0.1425531418 | G164: 185 | H164: 0.1235764963 | I164: 0.2391739408 | J164: 0.01659967068 | M164: 11.85780003 | N164: 1838.9775 | O164: 0.004115438237 | P164: 7.8849
A165: 0.326063022 | B165: 0.2365448186 | G165: 175 | H165: 0.08393934974 | I165: 0.2210607901 | J165: 0.04357969267 | M165: 11.85780003 | N165: 1847.0788 | O165: 0.004115438237 | P165: 8.1013
A166: 0.605625473 | B166: 0.7043761592 | G166: 145 | H166: 0.06886865571 | I166: 0.1683489555 | J166: 0.05482393029 | M166: 11.85780003 | N166: 1853.6594 | O166: 0.004115438237 | P166: 6.5806
A167: 0.7337700329 | B167: 0.628723362 | G167: 136 | H167: 0.07007590262 | I167: 0.1659142766 | J167: 0.002717555181 | M167: 11.85780003 | N167: 1861.1576 | O167: 0.004115438237 | P167: 7.4982
A168: 0.02341463743 | B168: 0.396668124 | G168: 236 | H168: 0.06966190832 | I168: 0.1097438978 | J168: 0.05617190443 | M168: 11.85780003 | N168: 1868.0431 | O168: 0.004115438237 | P168: 6.8855
A169: 0.6763834469 | B169: 0.9301962964 | G169: 110 | H169: 0.05991014326 | I169: 0.03014893178 | J169: 0.0801901212 | M169: 11.85780003 | N169: 1875.1906 | O169: 0.004115438237 | P169: 7.1475
A170: 0.1770279505 | B170: 0.3489909284 | G170: 238 | H170: 0.07873343071 | I170: 0.07736336347 | J170: 0.05082832586 | M170: 11.85780003 | N170: 1883.1657 | O170: 0.004115438237 | P170: 7.9751
A171: 0.8288607923 | B171: 0.2805444412 | G171: 217 | H171: 0.08780356683 | I171: 0.09148988454 | J171: 0.01678767306 | M171: 11.85780003 | N171: 1910.6062 | O171: 0.004115438237 | P171: 27.4405
A172: 0.1060650866 | B172: 0.3377728933 | G172: 243 | H172: 0.1114102136 | I172: 0.08958023973 | J172: 0.02368376061 | M172: 11.86772914 | N172: 1919.499 | O172: 0.004956232755 | P172: 8.8928
A173: 0.4529295871 | B173: 0.03148820018 | G173: 114 | H173: 0.1033965871 | I173: 0.1288417075 | J173: 0.04007095034 | M173: 11.86772914 | N173: 1943.0691 | O173: 0.004956232755 | P173: 23.5701
A174: 0.9492635094 | B174: 0.1039891331 | G174: 212 | H174: 0.145252475 | I174: 0.1300721704 | J174: 0.0418739704 | M174: 11.86772914 | N174: 1962.0629 | O174: 0.004956232755 | P174: 18.9938
A175: 0.7302920176 | B175: 0.7334085442 | G175: 125 | H175: 0.1853435752 | I175: 0.1178866527 | J175: 0.04190206621 | M175: 11.87847594 | N175: 1982.3357 | O175: 0.005866268273 | P175: 20.2728
A176: 0.399637355 | B176: 0.2857277524 | G176: 196 | H176: 0.2033988675 | I176: 0.1177519062 | J176: 0.01805579511 | M176: 11.87037087 | N176: 2002.6491 | O176: 0.005179933202 | P176: 20.3134
A177: 0.08393934974 | B177: 0.2210607901 | G177: 213 | H177: 0.2557814633 | I177: 0.09139775624 | J177: 0.0586385331 | M177: 11.85780003 | N177: 2010.0958 | O177: 0.004115438237 | P177: 7.4467
A178: 0.4282808942 | B178: 0.4100023718 | G178: 129 | H178: 0.247242027 | I178: 0.06461309968 | J178: 0.02811298279 | M178: 11.85780003 | N178: 2018.0928 | O178: 0.004115438237 | P178: 7.997
A179: 0.3679860835 | B179: 0.0632310817 | G179: 104 | H179: 0.3337236471 | I179: 0.04573412053 | J179: 0.08851828324 | M179: 11.85780003 | N179: 2024.227 | O179: 0.004115438237 | P179: 6.1342
A180: 0.4547962993 | B180: 0.1017561164 | G180: 177 | H180: 0.3679860835 | I180: 0.0632310817 | J180: 0.03847152455 | M180: 11.85780003 | N180: 2030.8393 | O180: 0.004115438237 | P180: 6.6123
A181: 0.6919544437 | B181: 0.4782109368 | G181: 235 | H181: 0.4245600919 | I181: 0.09497425007 | J181: 0.06487100406 | M181: 11.85780003 | N181: 2037.9743 | O181: 0.004115438237 | P181: 7.135
A182: 0.4984242404 | B182: 0.02674651379 | G182: 205 | H182: 0.4328467855 | I182: 0.1391885062 | J182: 0.04498410535 | M182: 11.85780003 | N182: 2044.4361 | O182: 0.004115438237 | P182: 6.4618
A183: 0.3286719616 | B183: 0.1748076873 | G183: 150 | H183: 0.4151213835 | I183: 0.1795861037 | J183: 0.0441152554 | M183: 11.85780003 | N183: 2050.9965 | O183: 0.004115438237 | P183: 6.5604
A184: 0.9569428102 | B184: 0.5056999126 | G184: 197 | H184: 0.4431644003 | I184: 0.1603416782 | J184: 0.03401115556 | M184: 11.85780003 | N184: 2057.7409 | O184: 0.004115438237 | P184: 6.7444
A185: 0.5237986161 | B185: 0.785803603 | G185: 233 | H185: 0.4961335454 | I185: 0.1736635524 | J185: 0.05461870254 | M185: 11.85780003 | N185: 2063.8369 | O185: 0.004115438237 | P185: 6.096
A186: 0.7862443537 | B186: 0.6298637027 | G186: 157 | H186: 0.5089121005 | I186: 0.1723851459 | J186: 0.01284234372 | M186: 11.85780003 | N186: 2071.0353 | O186: 0.004115438237 | P186: 7.1984
A187: 0.1235764963 | B187: 0.2391739408 | G187: 88 | H187: 0.4933419744 | I187: 0.1600023755 | J187: 0.01989376353 | M187: 11.85780003 | N187: 2077.8314 | O187: 0.004115438237 | P187: 6.7961
A188: 0.6613519033 | B188: 0.07284000563 | G188: 178 | H188: 0.4547962993 | I188: 0.1017561164 | J188: 0.0698455136 | M188: 11.8685594 | N188: 2096.3332 | O188: 0.005026539032 | P188: 18.5018
A189: 0.343163074 | B189: 0.3916439209 | G189: 121 | H189: 0.4203062849 | I189: 0.04636946646 | J189: 0.06524754465 | M189: 11.8685594 | N189: 2105.4817 | O189: 0.005026539032 | P189: 9.1485
A190: 0.8062485503 | B190: 0.7428004295 | G190: 225 | H190: 0.4349193154 | I190: 0.005594544113 | J190: 0.04331437351 | M190: 11.85780003 | N190: 2114.9242 | O190: 0.004115438237 | P190: 9.4425
A191: 0.6773716738 | B191: 0.8901879 | G191: 64 | H191: 0.4525210103 | I191: 0.03055319516 | J191: 0.03054102038 | M191: 11.85780003 | N191: 2140.9513 | O191: 0.004115438237 | P191: 26.0271
A192: 0.9638612196 | B192: 0.1056525679 | G192: 171 | H192: 0.4529295871 | I192: 0.03148820018 | J192: 0.001020377086 | M192: 11.87847594 | N192: 2154.82 | O192: 0.005866268273 | P192: 13.8687
A193: 0.3001902723 | B193: 0.4214668283 | G193: 52 | H193: 0.4749185196 | I193: 0.0336592542 | J193: 0.02209585093 | M193: 11.89984504 | N193: 2168.4415 | O193: 0.007675798675 | P193: 13.6215
A194: 0.856072708 | B194: 0.6681763558 | G194: 180 | H194: 0.4984242404 | I194: 0.02674651379 | J194: 0.02450112016 | M194: 11.85780003 | N194: 2176.3697 | O194: 0.004115438237 | P194: 7.9282
A195: 0.48469791 | B195: 0.3108690074 | G195: 87 | H195: 0.5118593578 | I195: 0.04435548699 | J195: =SQRT(((H194-H195)*(H194-H195))+((I194-I195)*(I194-I195))) -> 0.02214900263 | M195: 11.85780003 | N195: 2183.0709 | O195: 0.004115438237 | P195: 6.7012
A196: 0.7699324721 | B196: 0.1766523537 | G196: 106 | H196: 0.5334499753 | I196: 0.008408198133 | J196: 0.04193283128 | M196: 11.85780003 | N196: 2189.4925 | O196: =((M196/$F$1)-1) -> 0.004115438237 | P196: =+N196-N195 -> 6.4216
A197: 0.7890799441 | B197: 0.2683567125 | G197: 231 | H197: 0.5569809964 | I197: 0.03513891157 | J197: 0.03561235732 | M197: 11.85780003 | N197: 2195.9978 | O197: 0.004115438237 | P197: 6.5053
A198: 0.2033988675 | B198: 0.1177519062 | G198: 200 | H198: 0.5968267191 | I198: 0.06972177746 | J198: 0.05276036612 | M198: 11.85780003 | N198: 2203.2914 | O198: 0.004115438237 | P198: 7.2936
A199: 0.4431644003 | B199: 0.1603416782 | G199: 91 | H199: 0.5923401462 | I199: 0.01278179977 | J199: 0.05711646344 | M199: 11.85780003 | N199: 2210.8842 | O199: 0.004115438237 | P199: 7.5928
A200: 0.6234518187 | B200: 0.9669630164 | G200: 85 | H200: 0.6140633025 | I200: 0.02656868985 | J200: 0.02572885265 | M200: 11.85780003 | N200: 2218.1414 | O200: 0.004115438237 | P200: 7.2572
... 52 more rows

Sheet defi1080
A1: X réel | B1: Y réel | C1: X graphique | D1: Y graphique | E1: Bistance à battre : | F1: 3617.2623 | G1: Ordre | H1: X réel | I1: Y réel | J1: Distance : | K1: 3632.966584 | M1: Historique | N1: Temps | O1: Ecart | P1: =MIN(M:M) -> 0 | Q1: =((P1/$F$1)-1) -> -1 | S1: http://www.math.uwaterloo.ca/tsp/vlsi/xit1083.tsp
A2: 0 | B2: 105 | G2: 0 | H2: 0 | I2: 105 | J2: Détail : | K2: =SUM(J:J) -> 3632.966584 | O2: =((M2/$F$1)-1) -> -1 | P2: =N2 -> 0
A3: 0 | B3: 111 | G3: 21 | H3: 2 | I3: 104 | J3: =SQRT(((H2-H3)*(H2-H3))+((I2-I3)*(I2-I3))) -> 2.236067977 | K3: =(+K1/F1)-1 -> 0.004341483214 | O3: =((M3/$F$1)-1) -> -1 | P3: =+N3-N2 -> 0
A4: 0 | B4: 15 | G4: 20 | H4: 0 | I4: 99 | J4: 5.385164807 | O4: -1 | P4: =+N4-N3 -> 0
A5: 0 | B5: 21 | G5: 48 | H5: 2 | I5: 97 | J5: 2.828427125 | O5: -1 | P5: 0
A6: 0 | B6: 27 | G6: 47 | H6: 2 | I6: 94 | J6: 3 | O6: -1 | P6: 0
A7: 0 | B7: 3 | G7: 19 | H7: 0 | I7: 93 | J7: 2.236067977 | O7: -1 | P7: 0
A8: 0 | B8: 33 | G8: 46 | H8: 2 | I8: 88 | J8: 5.385164807 | O8: -1 | P8: 0
A9: 0 | B9: 39 | G9: 17 | H9: 0 | I9: 87 | J9: 2.236067977 | O9: -1 | P9: 0
A10: 0 | B10: 45 | G10: 45 | H10: 2 | I10: 85 | J10: 2.828427125 | O10: -1 | P10: 0
A11: 0 | B11: 51 | G11: 44 | H11: 2 | I11: 83 | J11: 2 | O11: -1 | P11: 0
A12: 0 | B12: 56 | G12: 16 | H12: 0 | I12: 81 | J12: 2.828427125 | O12: -1 | P12: 0
A13: 0 | B13: 57 | G13: 53 | H13: 3 | I13: 81 | J13: 3 | O13: -1 | P13: 0
A14: 0 | B14: 63 | G14: 43 | H14: 2 | I14: 80 | J14: 1.414213562 | O14: -1 | P14: 0
A15: 0 | B15: 67 | G15: 42 | H15: 2 | I15: 78 | J15: 2 | O15: -1 | P15: 0
A16: 0 | B16: 69 | G16: 41 | H16: 2 | I16: 77 | J16: 1 | O16: -1 | P16: 0
A17: 0 | B17: 75 | G17: 15 | H17: 0 | I17: 75 | J17: 2.828427125 | O17: -1 | P17: 0
A18: 0 | B18: 81 | G18: 40 | H18: 2 | I18: 74 | J18: 2.236067977 | O18: -1 | P18: 0
A19: 0 | B19: 87 | G19: 39 | H19: 2 | I19: 71 | J19: 3 | O19: -1 | P19: 0
A20: 0 | B20: 9 | G20: 38 | H20: 2 | I20: 69 | J20: 2 | O20: -1 | P20: 0
A21: 0 | B21: 93 | G21: 37 | H21: 2 | I21: 68 | J21: 1 | O21: -1 | P21: 0
A22: 0 | B22: 99 | G22: 14 | H22: 0 | I22: 69 | J22: 2.236067977 | O22: -1 | P22: 0
A23: 2 | B23: 104 | G23: 13 | H23: 0 | I23: 67 | J23: 2 | O23: -1 | P23: 0
A24: 2 | B24: 106 | G24: 36 | H24: 2 | I24: 65 | J24: 2.828427125 | O24: -1 | P24: 0
A25: 2 | B25: 109 | G25: 56 | H25: 5 | I25: 66 | J25: 3.16227766 | O25: -1 | P25: 0
A26: 2 | B26: 11 | G26: 52 | H26: 3 | I26: 63 | J26: 3.605551275 | O26: -1 | P26: 0
A27: 2 | B27: 12 | G27: 35 | H27: 2 | I27: 62 | J27: 1.414213562 | O27: -1 | P27: 0
A28: 2 | B28: 18 | G28: 12 | H28: 0 | I28: 63 | J28: 2.236067977 | O28: -1 | P28: 0
A29: 2 | B29: 20 | G29: 11 | H29: 0 | I29: 57 | J29: 6 | O29: -1 | P29: 0
A30: 2 | B30: 22 | G30: 10 | H30: 0 | I30: 56 | J30: 1 | O30: -1 | P30: 0
A31: 2 | B31: 29 | G31: 34 | H31: 2 | I31: 52 | J31: 4.472135955 | O31: -1 | P31: 0
A32: 2 | B32: 32 | G32: 9 | H32: 0 | I32: 51 | J32: 2.236067977 | O32: -1 | P32: 0
A33: 2 | B33: 35 | G33: 33 | H33: 2 | I33: 49 | J33: 2.828427125 | O33: -1 | P33: 0
A34: 2 | B34: 46 | G34: 51 | H34: 3 | I34: 47 | J34: 2.236067977 | O34: -1 | P34: 0
A35: 2 | B35: 49 | G35: 32 | H35: 2 | I35: 46 | J35: 1.414213562 | O35: -1 | P35: 0
A36: 2 | B36: 52 | G36: 8 | H36: 0 | I36: 45 | J36: 2.236067977 | O36: -1 | P36: 0
A37: 2 | B37: 62 | G37: 7 | H37: 0 | I37: 39 | J37: 6 | O37: -1 | P37: 0
A38: 2 | B38: 65 | G38: 31 | H38: 2 | I38: 35 | J38: 4.472135955 | O38: -1 | P38: 0
A39: 2 | B39: 68 | G39: 6 | H39: 0 | I39: 33 | J39: 2.828427125 | O39: -1 | P39: 0
A40: 2 | B40: 69 | G40: 30 | H40: 2 | I40: 32 | J40: 2.236067977 | O40: -1 | P40: 0
A41: 2 | B41: 71 | G41: 50 | H41: 3 | I41: 30 | J41: 2.236067977 | O41: -1 | P41: 0
A42: 2 | B42: 74 | G42: 29 | H42: 2 | I42: 29 | J42: 1.414213562 | O42: -1 | P42: 0
A43: 2 | B43: 77 | G43: 4 | H43: 0 | I43: 27 | J43: 2.828427125 | O43: -1 | P43: 0
A44: 2 | B44: 78 | G44: 28 | H44: 2 | I44: 22 | J44: 5.385164807 | O44: -1 | P44: 0
A45: 2 | B45: 80 | G45: 3 | H45: 0 | I45: 21 | J45: 2.236067977 | O45: -1 | P45: 0
A46: 2 | B46: 83 | G46: 27 | H46: 2 | I46: 20 | J46: 2.236067977 | O46: -1 | P46: 0
A47: 2 | B47: 85 | G47: 49 | H47: 3 | I47: 19 | J47: 1.414213562 | O47: -1 | P47: 0
A48: 2 | B48: 88 | G48: 26 | H48: 2 | I48: 18 | J48: 1.414213562 | O48: -1 | P48: 0
A49: 2 | B49: 94 | G49: 2 | H49: 0 | I49: 15 | J49: 3.605551275 | O49: -1 | P49: 0
A50: 2 | B50: 97 | G50: 25 | H50: 2 | I50: 12 | J50: 3.605551275 | O50: -1 | P50: 0
A51: 3 | B51: 19 | G51: 24 | H51: 2 | I51: 11 | J51: 1 | O51: -1 | P51: 0
A52: 3 | B52: 30 | G52: 18 | H52: 0 | I52: 9 | J52: 2.828427125 | O52: -1 | P52: 0
A53: 3 | B53: 47 | G53: 5 | H53: 0 | I53: 3 | J53: 6 | O53: -1 | P53: 0
A54: 3 | B54: 63 | G54: 57 | H54: 5 | I54: 8 | J54: 7.071067812 | O54: -1 | P54: 0
A55: 3 | B55: 81 | G55: 58 | H55: 9 | I55: 10 | J55: 4.472135955 | O55: -1 | P55: 0
A56: 5 | B56: 107 | G56: 66 | H56: 12 | I56: 5 | J56: 5.830951895 | O56: -1 | P56: 0
A57: 5 | B57: 113 | G57: 75 | H57: 15 | I57: 8 | J57: 4.242640687 | O57: -1 | P57: 0
A58: 5 | B58: 66 | G58: 69 | H58: 15 | I58: 11 | J58: 3 | O58: -1 | P58: 0
A59: 5 | B59: 8 | G59: 79 | H59: 17 | I59: 20 | J59: 9.219544457 | O59: -1 | P59: 0
A60: 9 | B60: 10 | G60: 70 | H60: 15 | I60: 30 | J60: 10.19803903 | O60: -1 | P60: 0
A61: 9 | B61: 103 | G61: 80 | H61: 17 | I61: 32 | J61: 2.828427125 | O61: -1 | P61: 0
A62: 10 | B62: 106 | G62: 85 | H62: 18 | I62: 38 | J62: 6.08276253 | O62: -1 | P62: 0
A63: 10 | B63: 65 | G63: 71 | H63: 15 | I63: 47 | J63: 9.486832981 | O63: -1 | P63: 0
A64: 11 | B64: 106 | G64: 81 | H64: 17 | I64: 49 | J64: 2.828427125 | O64: -1 | P64: 0
A65: 11 | B65: 111 | G65: 101 | H65: 25 | I65: 44 | J65: 9.433981132 | O65: -1 | P65: 0
A66: 11 | B66: 65 | G66: 100 | H66: 25 | I66: 41 | J66: 3 | O66: -1 | P66: 0
A67: 11 | B67: 67 | G67: 99 | H67: 25 | I67: 39 | J67: =SQRT(((H66-H67)*(H66-H67))+((I66-I67)*(I66-I67))) -> 2 | O67: =((M67/$F$1)-1) -> -1 | P67: 0
A68: 12 | B68: 5 | G68: 98 | H68: 25 | I68: 32 | J68: 7 | O68: -1 | P68: =+N68-N67 -> 0
A69: 15 | B69: 105 | G69: 97 | H69: 25 | I69: 29 | J69: 3 | O69: -1 | P69: 0
A70: 15 | B70: 107 | G70: 96 | H70: 25 | I70: 25 | J70: 4 | O70: -1 | P70: 0
A71: 15 | B71: 11 | G71: 95 | H71: 25 | I71: 21 | J71: 4 | O71: -1 | P71: 0
A72: 15 | B72: 30 | G72: 94 | H72: 25 | I72: 18 | J72: 3 | O72: -1 | P72: 0
A73: 15 | B73: 47 | G73: 93 | H73: 25 | I73: 16 | J73: 2 | O73: -1 | P73: 0
A74: 15 | B74: 64 | G74: 92 | H74: 25 | I74: 15 | J74: 1 | O74: -1 | P74: 0
A75: 15 | B75: 66 | G75: 129 | H75: 32 | I75: 14 | J75: 7.071067812 | O75: -1 | P75: 0
A76: 15 | B76: 68 | G76: 120 | H76: 28 | I76: 11 | J76: 5 | O76: -1 | P76: 0
A77: 15 | B77: 8 | G77: 125 | H77: 28 | I77: 9 | J77: 2 | O77: -1 | P77: 0
A78: 15 | B78: 82 | G78: 122 | H78: 28 | I78: 6 | J78: 3 | O78: -1 | P78: 0
A79: 15 | B79: 89 | G79: 143 | H79: 34 | I79: 8 | J79: 6.32455532 | O79: -1 | P79: 0
A80: 17 | B80: 109 | G80: 139 | H80: 34 | I80: 5 | J80: 3 | O80: -1 | P80: 0
A81: 17 | B81: 20 | G81: 157 | H81: 38 | I81: 6 | J81: 4.123105626 | O81: -1 | P81: 0
A82: 17 | B82: 32 | G82: 162 | H82: 38 | I82: 9 | J82: 3 | O82: -1 | P82: 0
A83: 17 | B83: 49 | G83: 150 | H83: 38 | I83: 11 | J83: 2 | O83: -1 | P83: 0
A84: 17 | B84: 71 | G84: 153 | H84: 38 | I84: 15 | J84: 4 | O84: -1 | P84: 0
A85: 17 | B85: 77 | G85: 164 | H85: 40 | I85: 18 | J85: 3.605551275 | O85: -1 | P85: 0
A86: 17 | B86: 94 | G86: 154 | H86: 38 | I86: 28 | J86: 10.19803903 | O86: -1 | P86: 0
A87: 18 | B87: 38 | G87: 165 | H87: 40 | I87: 29 | J87: 2.236067977 | O87: -1 | P87: 0
A88: 18 | B88: 55 | G88: 155 | H88: 38 | I88: 40 | J88: 11.18033989 | O88: -1 | P88: 0
A89: 18 | B89: 86 | G89: 166 | H89: 40 | I89: 41 | J89: 2.236067977 | O89: -1 | P89: 0
A90: 18 | B90: 98 | G90: 171 | H90: 41 | I90: 47 | J90: 6.08276253 | O90: -1 | P90: 0
A91: 25 | B91: 101 | G91: 188 | H91: 48 | I91: 46 | J91: 7.071067812 | O91: -1 | P91: 0
A92: 25 | B92: 104 | G92: 189 | H92: 48 | I92: 52 | J92: 6 | O92: -1 | P92: 0
A93: 25 | B93: 106 | G93: 215 | H93: 51 | I93: 53 | J93: 3.16227766 | O93: -1 | P93: 0
A94: 25 | B94: 15 | G94: 216 | H94: 51 | I94: 56 | J94: 3 | O94: -1 | P94: 0
A95: 25 | B95: 16 | G95: 217 | H95: 51 | I95: 58 | J95: 2 | O95: -1 | P95: 0
A96: 25 | B96: 18 | G96: 190 | H96: 48 | I96: 57 | J96: 3.16227766 | O96: -1 | P96: 0
A97: 25 | B97: 21 | G97: 191 | H97: 48 | I97: 59 | J97: 2 | O97: -1 | P97: 0
A98: 25 | B98: 25 | G98: 167 | H98: 40 | I98: 58 | J98: 8.062257748 | O98: -1 | P98: 0
A99: 25 | B99: 29 | G99: 156 | H99: 38 | I99: 57 | J99: 2.236067977 | O99: -1 | P99: 0
A100: 25 | B100: 32 | G100: 140 | H100: 34 | I100: 56 | J100: 4.123105626 | O100: -1 | P100: 0
A101: 25 | B101: 39 | G101: 141 | H101: 34 | I101: 62 | J101: 6 | O101: -1 | P101: 0
A102: 25 | B102: 41 | G102: 133 | H102: 33 | I102: 62 | J102: 1 | O102: -1 | P102: 0
A103: 25 | B103: 44 | G103: 134 | H103: 33 | I103: 64 | J103: 2 | O103: -1 | P103: 0
A104: 25 | B104: 56 | G104: 135 | H104: 33 | I104: 66 | J104: 2 | O104: -1 | P104: 0
A105: 25 | B105: 58 | G105: 142 | H105: 34 | I105: 64 | J105: 2.236067977
A106: 25 | B106: 62 | G106: 158 | H106: 38 | I106: 63 | J106: 4.123105626
A107: 25 | B107: 64 | G107: 159 | H107: 38 | I107: 65 | J107: 2
A108: 25 | B108: 67 | G108: 172 | H108: 41 | I108: 67 | J108: 3.605551275
A109: 25 | B109: 69 | G109: 168 | H109: 40 | I109: 69 | J109: 2.236067977
A110: 25 | B110: 70 | G110: 160 | H110: 38 | I110: 74 | J110: 5.385164807
A111: 25 | B111: 73 | G111: 161 | H111: 38 | I111: 81 | J111: 7
A112: 25 | B112: 76 | G112: 169 | H112: 40 | I112: 86 | J112: 5.385164807
A113: 25 | B113: 77 | G113: 163 | H113: 38 | I113: 93 | J113: 7.280109889
A114: 25 | B114: 80 | G114: 203 | H114: 48 | I114: 91 | J114: 10.19803903
A115: 25 | B115: 86 | G115: 202 | H115: 48 | I115: 88 | J115: 3
A116: 25 | B116: 87 | G116: 201 | H116: 48 | I116: 82 | J116: 6
A117: 25 | B117: 89 | G117: 200 | H117: 48 | I117: 79 | J117: 3
A118: 25 | B118: 92 | G118: 199 | H118: 48 | I118: 77 | J118: 2
A119: 26 | B119: 57 | G119: 205 | H119: 49 | I119: 75 | J119: 2.236067977
A120: 28 | B120: 105 | G120: 198 | H120: 48 | I120: 74 | J120: 1.414213562
A121: 28 | B121: 107 | G121: 197 | H121: 48 | I121: 72 | J121: 2
A122: 28 | B122: 11 | G122: 196 | H122: 48 | I122: 71 | J122: 1
A123: 28 | B123: 111 | G123: 195 | H123: 48 | I123: 68 | J123: 3
A124: 28 | B124: 6 | G124: 194 | H124: 48 | I124: 65 | J124: 3
A125: 28 | B125: 63 | G125: 193 | H125: 48 | I125: 63 | J125: 2
A126: 28 | B126: 65 | G126: 192 | H126: 48 | I126: 62 | J126: 1
A127: 28 | B127: 9 | G127: 218 | H127: 51 | I127: 60 | J127: 3.605551275
A128: 31 | B128: 118 | G128: 234 | H128: 56 | I128: 59 | J128: 5.099019514
A129: 32 | B129: 101 | G129: 248 | H129: 57 | I129: 59 | J129: 1
A130: 32 | B130: 118 | G130: 249 | H130: 57 | I130: 61 | J130: 2
A131: 32 | B131: 14 | G131: 260 | H131: 61 | I131: 62 | J131: =SQRT(((H130-H131)*(H130-H131))+((I130-I131)*(I130-I131))) -> 4.123105626
A132: 33 | B132: 104 | G132: 259 | H132: 61 | I132: 60 | J132: 2
A133: 33 | B133: 106 | G133: 258 | H133: 61 | I133: 58 | J133: 2
A134: 33 | B134: 118 | G134: 247 | H134: 57 | I134: 57 | J134: 4.123105626
A135: 33 | B135: 62 | G135: 233 | H135: 56 | I135: 57 | J135: 1
A136: 33 | B136: 64 | G136: 246 | H136: 57 | I136: 54 | J136: 3.16227766
A137: 33 | B137: 66 | G137: 232 | H137: 56 | I137: 52 | J137: 2.236067977
A138: 34 | B138: 104 | G138: 245 | H138: 57 | I138: 52 | J138: 1
A139: 34 | B139: 106 | G139: 257 | H139: 61 | I139: 53 | J139: 4.123105626
A140: 34 | B140: 118 | G140: 264 | H140: 62 | I140: 46 | J140: 7.071067812
A141: 34 | B141: 5 | G141: 243 | H141: 57 | I141: 45 | J141: 5.099019514
A142: 34 | B142: 56 | G142: 231 | H142: 56 | I142: 45 | J142: 1
A143: 34 | B143: 62 | G143: 242 | H143: 57 | I143: 40 | J143: 5.099019514
A144: 34 | B144: 64 | G144: 223 | H144: 55 | I144: 36 | J144: 4.472135955
A145: 34 | B145: 8 | G145: 214 | H145: 51 | I145: 35 | J145: 4.123105626
A146: 35 | B146: 108 | G146: 187 | H146: 48 | I146: 39 | J146: 5
A147: 35 | B147: 118 | G147: 186 | H147: 48 | I147: 38 | J147: 1
A148: 36 | B148: 118 | G148: 185 | H148: 48 | I148: 37 | J148: 1
A149: 37 | B149: 118 | G149: 184 | H149: 48 | I149: 35 | J149: 2
A150: 38 | B150: 105 | G150: 183 | H150: 48 | I150: 32 | J150: 3
A151: 38 | B151: 107 | G151: 182 | H151: 48 | I151: 30 | J151: 2
A152: 38 | B152: 11 | G152: 213 | H152: 51 | I152: 31 | J152: 3.16227766
A153: 38 | B153: 111 | G153: 222 | H153: 55 | I153: 29 | J153: 4.472135955
A154: 38 | B154: 118 | G154: 230 | H154: 56 | I154: 29 | J154: 1
A155: 38 | B155: 15 | G155: 241 | H155: 57 | I155: 29 | J155: 1
A156: 38 | B156: 28 | G156: 212 | H156: 51 | I156: 27 | J156: 6.32455532
A157: 38 | B157: 40 | G157: 211 | H157: 51 | I157: 25 | J157: 2
A158: 38 | B158: 57 | G158: 181 | H158: 48 | I158: 25 | J158: 3
A159: 38 | B159: 6 | G159: 180 | H159: 48 | I159: 22 | J159: 3
A160: 38 | B160: 63 | G160: 210 | H160: 51 | I160: 21 | J160: 3.16227766
A161: 38 | B161: 65 | G161: 179 | H161: 48 | I161: 20 | J161: 3.16227766
A162: 38 | B162: 74 | G162: 178 | H162: 48 | I162: 13 | J162: 7
A163: 38 | B163: 81 | G163: 177 | H163: 48 | I163: 12 | J163: 1
A164: 38 | B164: 9 | G164: 176 | H164: 48 | I164: 11 | J164: 1
A165: 38 | B165: 93 | G165: 219 | H165: 51 | I165: 7 | J165: 5
A166: 40 | B166: 18 | G166: 244 | H166: 57 | I166: 5 | J166: 6.32455532
A167: 40 | B167: 29 | G167: 220 | H167: 55 | I167: 10 | J167: 5.385164807
A168: 40 | B168: 41 | G168: 238 | H168: 57 | I168: 14 | J168: 4.472135955
A169: 40 | B169: 58 | G169: 239 | H169: 57 | I169: 19 | J169: 5
A170: 40 | B170: 69 | G170: 228 | H170: 56 | I170: 19 | J170: 1
A171: 40 | B171: 86 | G171: 221 | H171: 55 | I171: 19 | J171: 1
A172: 41 | B172: 101 | G172: 229 | H172: 56 | I172: 24 | J172: 5.099019514
A173: 41 | B173: 47 | G173: 240 | H173: 57 | I173: 24 | J173: 1
A174: 41 | B174: 67 | G174: 255 | H174: 61 | I174: 25 | J174: 4.123105626
A175: 48 | B175: 100 | G175: 256 | H175: 61 | I175: 27 | J175: 2
A176: 48 | B176: 104 | G176: 281 | H176: 71 | I176: 29 | J176: 10.19803903
A177: 48 | B177: 107 | G177: 307 | H177: 74 | I177: 30 | J177: 3.16227766
A178: 48 | B178: 11 | G178: 308 | H178: 74 | I178: 34 | J178: 4
A179: 48 | B179: 12 | G179: 282 | H179: 71 | I179: 37 | J179: 4.242640687
A180: 48 | B180: 13 | G180: 283 | H180: 71 | I180: 45 | J180: 8
A181: 48 | B181: 20 | G181: 284 | H181: 71 | I181: 52 | J181: 7
A182: 48 | B182: 22 | G182: 321 | H182: 79 | I182: 51 | J182: 8.062257748
A183: 48 | B183: 25 | G183: 331 | H183: 80 | I183: 51 | J183: 1
A184: 48 | B184: 30 | G184: 347 | H184: 85 | I184: 52 | J184: 5.099019514
A185: 48 | B185: 32 | G185: 346 | H185: 85 | I185: 45 | J185: 7
A186: 48 | B186: 35 | G186: 330 | H186: 80 | I186: 44 | J186: 5.099019514
A187: 48 | B187: 37 | G187: 320 | H187: 79 | I187: 44 | J187: 1
A188: 48 | B188: 38 | G188: 319 | H188: 79 | I188: 36 | J188: 8
A189: 48 | B189: 39 | G189: 329 | H189: 80 | I189: 36 | J189: 1
A190: 48 | B190: 46 | G190: 345 | H190: 85 | I190: 37 | J190: 5.099019514
A191: 48 | B191: 52 | G191: 341 | H191: 84 | I191: 34 | J191: 3.16227766
A192: 48 | B192: 57 | G192: 335 | H192: 81 | I192: 31 | J192: 4.242640687
A193: 48 | B193: 59 | G193: 318 | H193: 79 | I193: 29 | J193: 2.828427125
A194: 48 | B194: 62 | G194: 328 | H194: 80 | I194: 29 | J194: 1
A195: 48 | B195: 63 | G195: 340 | H195: 84 | I195: 30 | J195: =SQRT(((H194-H195)*(H194-H195))+((I194-I195)*(I194-I195))) -> 4.123105626
A196: 48 | B196: 65 | G196: 339 | H196: 84 | I196: 27 | J196: 3
A197: 48 | B197: 68 | G197: 338 | H197: 84 | I197: 25 | J197: 2
A198: 48 | B198: 71 | G198: 327 | H198: 80 | I198: 24 | J198: 4.123105626
A199: 48 | B199: 72 | G199: 317 | H199: 79 | I199: 24 | J199: 1
A200: 48 | B200: 74 | G200: 305 | H200: 74 | I200: 25 | J200: 5.099019514
... 885 more rows

Sheet Mini

Sheet defi250 (0%)
A1: X réel | B1: Y réel | C1: X graphique | D1: Y graphique | E1: Bistance à battre : | F1: =11.8092 -> 11.8092 | G1: Ordre | H1: X réel | I1: Y réel | J1: Distance : | K1: 11.80932143 | L1: Niv: 8 | M1: Historique | N1: Temps | O1: Ecart | P1: =MIN(M:M) -> 11.80932143 | Q1: =((P1/$F$1)-1) -> 1.028241232e-05 | R1: =AVERAGE(M:M) -> 11.85400158 | S1: =COUNT(M:M) -> 3747
A2: 0.4475592426 | B2: 0.4926165878 | G2: 0 | H2: 0.4475592426 | I2: 0.4926165878 | J2: Détail : | K2: =SUM(J:J) -> 11.80932143 | L2: Durée : 1715,52734375 | M2: 11.82901666 | N2: 1.3826 | O2: =((M2/$F$1)-1) -> 0.001678069253 | P2: =N2 -> 1.3826
A3: 0.08402152825 | B3: 0.5898443307 | G3: 2 | H3: 0.4397162027 | I3: 0.5045841727 | J3: =SQRT(((H2-H3)*(H2-H3))+((I2-I3)*(I2-I3))) -> 0.01430861157 | K3: =(+K1/F1)-1 -> 1.028241232e-05 | L3: PasAnalyse = 2 | M3: 11.82901666 | N3: 18.1965 | O3: =((M3/$F$1)-1) -> 0.001678069253 | P3: =+N3-N2 -> 16.8139
A4: 0.4397162027 | B4: 0.5045841727 | G4: 126 | H4: 0.5211494691 | I4: 0.577744992 | J4: 0.1094709201 | L4: PourcentagePointsFixes = 0.2 | M4: 11.82901666 | N4: 27.5393 | O4: 0.001678069253 | P4: =+N4-N3 -> 9.3428
A5: 0.06421244936 | B5: 0.7168878028 | G5: 11 | H5: 0.473720171 | I5: 0.580604143 | J5: 0.04751539811 | L5: PourcentageDistanceVoisin = 0.5 | M5: 11.85200617 | N5: 39.5878 | O5: 0.003624815183 | P5: 12.0485
A6: 0.2425510059 | B6: 0.6629264224 | G6: 25 | H6: 0.409805744 | I6: 0.6050317483 | J6: 0.06842340162 | L6: AvanceAléatoire = True | M6: 11.88807664 | N6: 51.6188 | O6: 0.006679253625 | P6: 12.031
A7: 0.1692461064 | B7: 0.7415713421 | G7: 16 | H7: 0.3924014168 | I7: 0.63822188 | J7: 0.03747659861 | L7: Version 10 | M7: 11.88807664 | N7: 62.7254 | O7: 0.006679253625 | P7: 11.1066
A8: 0.03784906631 | B8: 0.9060324556 | G8: 245 | H8: 0.5072260629 | I8: 0.6836539349 | J8: 0.1234859141 | M8: 11.88807664 | N8: 73.8197 | O8: 0.006679253625 | P8: 11.0943
A9: 0.4777046768 | B9: 0.9312552148 | G9: 84 | H9: 0.4949974595 | I9: 0.7080308469 | J9: 0.02727219433 | L9: Version 10 / 10 traitements | M9: 11.94297247 | N9: 87.433 | O9: 0.01132781814 | P9: 13.6133
A10: 0.2458974179 | B10: 0.5419171262 | G10: 35 | H10: 0.4576056087 | I10: 0.7504201396 | J10: 0.05652435439 | M10: 11.98642537 | N10: 96.8243 | O10: 0.01500739879 | P10: 9.3913
A11: 0.04060538858 | B11: 0.5328465258 | G11: 13 | H11: 0.4683409086 | I11: 0.8154253084 | J11: 0.06588564815 | L11: Niv: 7 / Tracé Num: 6 | M11: 11.91679562 | N11: 106.095 | O11: 0.009111169351 | P11: 9.2707
A12: 0.4121956727 | B12: 0.4800001807 | G12: 102 | H12: 0.5348252929 | I12: 0.8282282883 | J12: 0.06770590552 | L12: Distance : 12,254 | M12: 11.82901666 | N12: 122.4531 | O12: 0.001678069253 | P12: 16.3581
A13: 0.473720171 | B13: 0.580604143 | G13: 214 | H13: 0.5397683429 | I13: 0.8526081829 | J13: 0.02487595232 | L13: PasAnalyse = 2 | M13: 11.82901666 | N13: 132.2504 | O13: 0.001678069253 | P13: 9.7973
A14: 0.4298424432 | B14: 0.4877158548 | G14: 239 | H14: 0.576985782 | I14: 0.8083323129 | J14: 0.0578402148 | L14: PourcentagePointsFixes = 0.2 | M14: 11.82901666 | N14: 144.0418 | O14: 0.001678069253 | P14: 11.7914
A15: 0.4683409086 | B15: 0.8154253084 | G15: 183 | H15: 0.5237986161 | I15: 0.785803603 | J15: 0.05776172938 | L15: PourcentageDistanceVoisin = 0.05 | M15: 11.84144638 | N15: 151.8326 | O15: 0.002730615094 | P15: 7.7908
A16: 0.2119448143 | B16: 0.9458491867 | G16: 105 | H16: 0.540067289 | I16: 0.7635660907 | J16: 0.0275531608 | L16: AvanceAléatoire = False | M16: 11.89031194 | N16: 160.7757 | O16: 0.006868538296 | P16: 8.9431
A17: 0.01553384727 | B17: 0.6934507545 | G17: 133 | H17: 0.5712063448 | I17: 0.7297054613 | J17: 0.04600198927 | M17: 11.89031194 | N17: 175.3649 | O17: 0.006868538296 | P17: 14.5892
A18: 0.3924014168 | B18: 0.63822188 | G18: 164 | H18: 0.605625473 | I18: 0.7043761592 | J18: 0.04273464554 | L18: Niv: 7 / Tracé Num: 10 | M18: 11.89031194 | N18: 184.9164 | O18: 0.006868538296 | P18: 9.5515
A19: 0.05645346502 | B19: 0.7481989064 | G19: 139 | H19: 0.5924686966 | I19: 0.6563884728 | J19: 0.04975860544 | L19: Distance : 12,206 | M19: 11.89031194 | N19: 198.5007 | O19: 0.006868538296 | P19: 13.5843
A20: 0.2402351317 | B20: 0.6354448646 | G20: 68 | H20: 0.5789048942 | I20: 0.6005510669 | J20: 0.05746122718 | L20: PasAnalyse = 2 | M20: 11.89031194 | N20: 208.2382 | O20: 0.006868538296 | P20: 9.7375
A21: 0.3288956191 | B21: 0.8370555909 | G21: 208 | H21: 0.5997885009 | I21: 0.5772973341 | J21: 0.03125477757 | L21: PourcentagePointsFixes = 0.30 | M21: 11.89031194 | N21: 218.6244 | O21: 0.006868538296 | P21: 10.3862
A22: 0.3236554493 | B22: 0.7152722599 | G22: 148 | H22: 0.5663857707 | I22: 0.5257752128 | J22: 0.06140253554 | L22: PourcentageDistanceVoisin = 0.10 | M22: 11.82901666 | N22: 234.558 | O22: 0.001678069253 | P22: 15.9336
A23: 0.008159634192 | B23: 0.8619832071 | G23: 51 | H23: 0.5693650153 | I23: 0.4737874218 | J23: 0.05207308622 | L23: AvanceAléatoire = False | M23: 11.82901666 | N23: 244.4813 | O23: 0.001678069253 | P23: 9.9233
A24: 0.2063647006 | B24: 0.9915126297 | G24: 130 | H24: 0.6101821135 | I24: 0.4874771587 | J24: 0.04305164808 | M24: 11.83892507 | N24: 253.9752 | O24: 0.002517111113 | P24: 9.4939
A25: 0.2774290256 | B25: 0.6915745172 | G25: 218 | H25: 0.614200098 | I25: 0.5206503528 | J25: 0.0334156402 | M25: 11.86191458 | N25: 262.9361 | O25: 0.004463857044 | P25: 8.9609
A26: 0.08388227876 | B26: 0.4923309106 | G26: 142 | H26: 0.6829708181 | I26: 0.5080079087 | J26: 0.06992312453 | L26: Niv: 8 / Tracé Num: 8 | M26: 11.86215372 | N26: 277.5483 | O26: 0.004484107019 | P26: 14.6122
A27: 0.409805744 | B27: 0.6050317483 | G27: 179 | H27: 0.6919544437 | I27: 0.4782109368 | J27: 0.03112177799 | L27: Distance : 12,257 | M27: 11.85915757 | N27: 286.8996 | O27: 0.004230393991 | P27: 9.3513
A28: 0.4091464458 | B28: 0.8893461707 | G28: 127 | H28: 0.7561085327 | I28: 0.4782194654 | J28: 0.06415408953 | L28: PasAnalyse = 2 | M28: 11.8716703 | N28: 302.556 | O28: 0.005289968902 | P28: 15.6564
A29: 0.1438656319 | B29: 0.6540172347 | G29: 58 | H29: 0.7781268237 | I29: 0.4968235847 | J29: 0.02882565518 | L29: PourcentagePointsFixes = 0.20 | M29: 11.86695294 | N29: 318.6019 | O29: 0.004890504088 | P29: 16.0459
A30: 0.3032602691 | B30: 0.7769495645 | G30: 222 | H30: 0.7982267933 | I30: 0.4609946334 | J30: 0.04108190024 | L30: PourcentageDistanceVoisin = 0.05 | M30: 11.8716703 | N30: 328.1113 | O30: 0.005289968902 | P30: 9.5094
A31: 0.08446667623 | B31: 0.6102476045 | G31: 134 | H31: 0.7760749278 | I31: 0.4139247499 | J31: 0.05202190955 | L31: AvanceAléatoire = False | M31: 11.8716703 | N31: 344.1722 | O31: 0.005289968902 | P31: 16.0609
A32: 0.1025785157 | B32: 0.4786743997 | G32: 209 | H32: 0.7815119289 | I32: 0.3888684455 | J32: 0.02563941052 | M32: 11.82901666 | N32: 359.6744 | O32: 0.001678069253 | P32: 15.5022
A33: 0.3822369138 | B33: 0.7757863211 | G33: 90 | H33: 0.7861165544 | I33: 0.383716526 | J33: 0.006909764919 | L33: Niv: 8 / Tracé Num: 10 | M33: 11.82901666 | N33: 370.2595 | O33: 0.001678069253 | P33: 10.5851
A34: 0.1035164902 | B34: 0.7570741582 | G34: 227 | H34: 0.8070951463 | I34: 0.3439977588 | J34: 0.04491861287 | L34: Distance : 12,206 | M34: 11.82901666 | N34: 382.6048 | O34: 0.001678069253 | P34: 12.3453
A35: 0.3221392455 | B35: 0.9579837113 | G35: 96 | H35: 0.8701637434 | I35: 0.329219799 | J35: 0.06477681713 | L35: PasAnalyse = 2 | M35: 11.86732243 | N35: 391.3399 | O35: 0.004921792366 | P35: 8.7351
A36: 0.3347920696 | B36: 0.8504610248 | G36: 199 | H36: 0.9461452812 | I36: 0.4096961725 | J36: 0.1106780953 | L36: PourcentagePointsFixes = 0.30 | M36: 11.88242967 | N36: 400.5651 | O36: 0.006201069697 | P36: 9.2252
A37: 0.4576056087 | B37: 0.7504201396 | G37: 74 | H37: 0.8659368777 | I37: 0.4471514812 | J37: 0.08852281145 | L37: PourcentageDistanceVoisin = 0.10 | M37: 11.8716703 | N37: 414.8033 | O37: 0.005289968902 | P37: 14.2382
A38: 0.1425617831 | B38: 0.9920331878 | G38: 226 | H38: 0.858202727 | I38: 0.5034138295 | J38: 0.05679145115 | L38: AvanceAléatoire = False | M38: 11.86312854 | N38: 425.4922 | O38: 0.00456665503 | P38: 10.6889
A39: 0.1806716439 | B39: 0.7606093492 | G39: 182 | H39: 0.9569428102 | I39: 0.5056999126 | J39: 0.09876654393 | M39: 11.8716703 | N39: 437.5118 | O39: 0.005289968902 | P39: 12.0196
A40: 0.2524916506 | B40: 0.9155052612 | G40: 158 | H40: 0.9254231136 | I40: 0.6114906161 | J40: 0.1103864314 | L40: VERSION 13 | M40: 11.88242967 | N40: 451.2648 | O40: 0.006201069697 | P40: 13.753
A41: 0.2306783907 | B41: 0.7343617631 | G41: 99 | H41: 0.8629635591 | I41: 0.6076780488 | J41: 0.06257580699 | M41: 11.88242967 | N41: 460.3723 | O41: 0.006201069697 | P41: 9.1075
A42: 0.3422942958 | B42: 0.9746876583 | G42: 109 | H42: 0.848515498 | I42: 0.583250694 | J42: 0.02838031241 | L42: Niv: 8 / Tracé Num: 6 + | M42: 11.82901666 | N42: 476.9415 | O42: 0.001678069253 | P42: 16.5692
A43: 0.1633261144 | B43: 0.9689895329 | G43: 92 | H43: 0.8337893058 | I43: 0.5942181023 | J43: 0.01836150273 | L43: Distance : 12,1713 | M43: 11.82901666 | N43: 488.9317 | O43: 0.001678069253 | P43: 11.9902
A44: 0.25950302 | B44: 0.8174024494 | G44: 207 | H44: 0.8073648619 | I44: 0.6048595752 | J44: 0.02848670174 | L44: PasAnalyse = 2 | M44: 11.82901666 | N44: 498.1963 | O44: 0.001678069253 | P44: 9.2646
A45: 0.1510766814 | B45: 0.8737031184 | G45: 98 | H45: 0.8092199797 | I45: 0.6553536048 | J45: 0.05052809607 | L45: PourcentagePointsFixes = 0.20 | M45: 11.86215372 | N45: 511.7407 | O45: 0.004484107019 | P45: 13.5444
A46: 0.4197983248 | B46: 0.9472862203 | G46: 184 | H46: 0.7862443537 | I46: 0.6298637027 | J46: 0.03431638818 | L46: PourcentageDistanceVoisin = 0.10 | M46: 11.82901666 | N46: 523.889 | O46: 0.001678069253 | P46: 12.1483
A47: 0.2515411703 | B47: 0.7668543877 | G47: 77 | H47: 0.7600466385 | I47: 0.6261141784 | J47: 0.0264646786 | L47: AvanceAléatoire = False | M47: 11.86646337 | N47: 535.691 | O47: 0.004849047022 | P47: 11.802
A48: 0.1369501608 | B48: 0.836488802 | G48: 165 | H48: 0.7337700329 | I48: 0.628723362 | J48: 0.02640582974 | M48: 11.86215372 | N48: 548.9078 | O48: 0.004484107019 | P48: 13.2168
A49: 0.2655430227 | B49: 0.66839121 | G49: 71 | H49: 0.7006773539 | I49: 0.6646619337 | J49: 0.04885392857 | L49: Niv: 8 / Tracé Num: 13 + | M49: 11.8716703 | N49: 560.3466 | O49: 0.005289968902 | P49: 11.4388
A50: 0.02359900018 | B50: 0.6208526972 | G50: 159 | H50: 0.6510595456 | I50: 0.6988038174 | J50: 0.06022952038 | L50: Distance : 12,1006 | M50: 11.8716703 | N50: 570.5638 | O50: 0.005289968902 | P50: 10.2172
A51: 0.2280843914 | B51: 0.9689087598 | G51: 153 | H51: 0.6628980911 | I51: 0.7060687076 | J51: 0.01388991689 | L51: PasAnalyse = 2 | M51: 11.8716703 | N51: 581.9881 | O51: 0.005289968902 | P51: 11.4243
A52: 0.2231180733 | B52: 0.2167962207 | G52: 112 | H52: 0.6855025366 | I52: 0.7285736697 | J52: 0.03189724552 | L52: PourcentagePointsFixes = 0.20 | M52: 11.82901666 | N52: 595.5395 | O52: 0.001678069253 | P52: 13.5514
A53: 0.5693650153 | B53: 0.4737874218 | G53: 131 | H53: 0.7000579643 | I53: 0.7341507538 | J53: 0.01558731354 | L53: PourcentageDistanceVoisin = 0.20 | M53: 11.8716703 | N53: 603.8034 | O53: 0.005289968902 | P53: 8.2639
A54: 0.4749185196 | B54: 0.0336592542 | G54: 108 | H54: 0.7130869506 | I54: 0.7306903438 | J54: 0.01348068698 | L54: AvanceAléatoire = False | M54: 11.82901666 | N54: 616.0301 | O54: 0.001678069253 | P54: 12.2267
A55: 0.9540410582 | B55: 0.9585023173 | G55: 173 | H55: 0.7302920176 | I55: 0.7334085442 | J55: 0.01741846559 | M55: 11.82901666 | N55: 627.7593 | O55: 0.001678069253 | P55: 11.7292
A56: 0.1539170626 | B56: 0.2610833575 | G56: 188 | H56: 0.8062485503 | I56: 0.7428004295 | J56: 0.07653497484 | L56: VERSION 14 | M56: 11.82901666 | N56: 639.6229 | O56: 0.001678069253 | P56: 11.8636
A57: 0.1897406606 | B57: 0.3607753818 | G57: 204 | H57: 0.8389982339 | I57: 0.6986948368 | J57: 0.05493491675 | M57: 11.82901666 | N57: 649.3573 | O57: 0.001678069253 | P57: 9.7344
A58: 0.6225799061 | B58: 0.1668684981 | G58: 192 | H58: 0.856072708 | I58: 0.6681763558 | J58: 0.03497020663 | L58: Niv: 8 / Tracé Num: 11 + | M58: 11.82901666 | N58: 664.7053 | O58: 0.001678069253 | P58: 15.348
A59: 0.9613027629 | B59: 0.2093184278 | G59: 138 | H59: 0.8811865365 | I59: 0.7304854896 | J59: 0.06717985218 | L59: 12.0626 | M59: 11.82901666 | N59: 674.4118 | O59: 0.001678069253 | P59: 9.7065
A60: 0.7781268237 | B60: 0.4968235847 | G60: 115 | H60: 0.9570699958 | I60: 0.7459104573 | J60: 0.07743532156 | L60: PasAnalyse = 2 | M60: 11.82901666 | N60: 686.6303 | O60: 0.001678069253 | P60: 12.2185
A61: 0.7924170829 | B61: 0.9449289595 | G61: 73 | H61: 0.9859633013 | I61: 0.879349147 | J61: 0.1365309745 | L61: PourcentagePointsFixes = 0.25 | M61: 11.82901666 | N61: 706.4785 | O61: 0.001678069253 | P61: 19.8482
A62: 0.8281201608 | B62: 0.8974555098 | G62: 53 | H62: 0.9540410582 | I62: 0.9585023173 | J62: 0.08534784109 | L62: PourcentageDistanceVoisin = 0.10 | M62: 11.82901666 | N62: 720.4447 | O62: 0.001678069253 | P62: 13.9662
A63: 0.7367863487 | B63: 0.2443919592 | G63: 141 | H63: 0.9368015639 | I63: 0.88711177 | J63: 0.07344256538 | L63: AvanceAléatoire = False | M63: 11.82901666 | N63: 728.8389 | O63: 0.001678069253 | P63: 8.3942
A64: 0.8415000802 | B64: 0.9599044221 | G64: 123 | H64: 0.9154995894 | I64: 0.8930625855 | J64: 0.02211755693 | L64: NombreDeTraitments = 11 | M64: 11.83892507 | N64: 737.7483 | O64: 0.002517111113 | P64: 8.9094
A65: 0.4611881799 | B65: 0.2890593228 | G65: 111 | H65: 0.8656101106 | I65: 0.8691301229 | J65: 0.05533283711 | M65: 11.83892507 | N65: 747.5638 | O65: 0.002517111113 | P65: 9.8155
A66: 0.4525210103 | B66: 0.03055319516 | G66: 60 | H66: 0.8281201608 | I66: 0.8974555098 | J66: 0.0469874863 | L66: VERSION 16 | M66: 11.90991424 | N66: 759.3341 | O66: 0.008528456054 | P66: 11.7703
A67: 0.7628467446 | B67: 0.9274395299 | G67: 246 | H67: 0.8667993234 | I67: 0.9317861549 | J67: =SQRT(((H66-H67)*(H66-H67))+((I66-I67)*(I66-I67))) -> 0.05171721963 | M67: 11.88296796 | N67: 773.3088 | O67: =((M67/$F$1)-1) -> 0.006246651975 | P67: 13.9747
A68: 0.8859418472 | B68: 0.2181295124 | G68: 70 | H68: 0.8722448507 | I68: 0.9685222218 | J68: 0.03713747947 | L68: Niv: 8 / Tracé Num: | M68: 11.89661468 | N68: 783.8967 | O68: 0.007402252137 | P68: =+N68-N67 -> 10.5879
A69: 0.9779711608 | B69: 0.07568250783 | G69: 210 | H69: 0.8456540466 | I69: 0.9849107969 | J69: 0.03123549673 | L69: 12.0876 | M69: 11.90636677 | N69: 792.6935 | O69: 0.008228056515 | P69: 8.7968
A70: 0.5789048942 | B70: 0.6005510669 | G70: 62 | H70: 0.8415000802 | I70: 0.9599044221 | J70: 0.02534904768 | L70: PasAnalyse = 2 | M70: 11.8981899 | N70: 805.9558 | O70: 0.007535641846 | P70: 13.2623
A71: 0.1903953976 | B71: 0.2038537692 | G71: 86 | H71: 0.7984580686 | I71: 0.9514248478 | J71: 0.04386932799 | L71: PourcentagePointsFixes = 0.25 | M71: 11.90997608 | N71: 817.3464 | O71: 0.008533692015 | P71: 11.3906
A72: 0.8722448507 | B72: 0.9685222218 | G72: 59 | H72: 0.7924170829 | I72: 0.9449289595 | J72: 0.00887074256 | L72: PourcentageDistanceVoisin = 0.25 | M72: 11.82901666 | N72: 830.9959 | O72: 0.001678069253 | P72: 13.6495
A73: 0.7006773539 | B73: 0.6646619337 | G73: 65 | H73: 0.7628467446 | I73: 0.9274395299 | J73: 0.03435527695 | L73: NombreDePreTraitments = 11 | M73: 11.82901666 | N73: 840.5536 | O73: 0.001678069253 | P73: 9.5577
A74: 0.9134511813 | B74: 0.1403935566 | G74: 241 | H74: 0.7101919204 | I74: 0.9637875645 | J74: 0.06398210793 | L74: NombreDeTraitments = 31 | M74: 11.82901666 | N74: 850.5813 | O74: 0.001678069253 | P74: 10.0277
A75: 0.9859633013 | B75: 0.879349147 | G75: 167 | H75: 0.6763834469 | I75: 0.9301962964 | J75: 0.04765906183 | M75: 11.82901666 | N75: 860.8665 | O75: 0.001678069253 | P75: 10.2852
A76: 0.8659368777 | B76: 0.4471514812 | G76: 156 | H76: 0.6726074815 | I76: 0.8986644959 | J76: 0.0317570836 | L76: Niv: 8 / Tracé Num: 16+ | M76: 11.82901666 | N76: 869.8632 | O76: 0.001678069253 | P76: 8.9967
A77: 0.1684084698 | B77: 0.318457888 | G77: 189 | H77: 0.6773716738 | I77: 0.8901879 | J77: 0.009723692991 | L77: 12.0646 | M77: 11.82901666 | N77: 879.1638 | O77: 0.001678069253 | P77: 9.3006
A78: 0.6481430177 | B78: 0.1318392656 | G78: 248 | H78: 0.6986405426 | I78: 0.8482900937 | J78: 0.04698713608 | L78: PasAnalyse = 2 | M78: 11.82901666 | N78: 892.8014 | O78: 0.001678069253 | P78: 13.6376
A79: 0.7600466385 | B79: 0.6261141784 | G79: 81 | H79: 0.653926549 | I79: 0.8741228064 | J79: 0.05163981277 | L79: PourcentagePointsFixes = 0.20 | M79: 11.82901666 | N79: 902.961 | O79: 0.001678069253 | P79: 10.1596
A80: 0.2075217734 | B80: 0.3389515332 | G80: 147 | H80: 0.6445886763 | I80: 0.8566319174 | J80: 0.01982743209 | L80: PourcentageDistanceVoisin = 0.25 | M80: 11.82901666 | N80: 912.1152 | O80: 0.001678069253 | P80: 9.1542
A81: 0.2266652454 | B81: 0.4500727798 | G81: 143 | H81: 0.6168172313 | I81: 0.8893355192 | J81: 0.04290429728 | L81: NombreDePreTraitments = 11 | M81: 11.82901666 | N81: 928.1507 | O81: 0.001678069253 | P81: 16.0355
A82: 0.001877955627 | B82: 0.4170606434 | G82: 202 | H82: 0.6498225438 | I82: 0.9488103334 | J82: 0.06801914571 | L82: NombreDeTraitments = 31 | M82: 11.82901666 | N82: 944.3517 | O82: 0.001678069253 | P82: 16.201
A83: 0.653926549 | B83: 0.8741228064 | G83: 198 | H83: 0.6234518187 | I83: 0.9669630164 | J83: 0.03201460675 | M83: 11.82901666 | N83: 953.6858 | O83: 0.001678069253 | P83: 9.3341
A84: 0.3855828652 | B84: 0.3546039029 | G84: 149 | H84: 0.587117407 | I84: 0.9755322165 | J84: 0.03733122907 | L84: Niv: 7 / Tracé Num: 25+ | M84: 11.85200617 | N84: 965.1961 | O84: 0.003624815183 | P84: 11.5103
A85: 0.5387847405 | B85: 0.2990340465 | G85: 7 | H85: 0.4777046768 | I85: 0.9312552148 | J85: 0.1180321922 | L85: 12.0377 | M85: 11.83977603 | N85: 975.4521 | O85: 0.002589170048 | P85: 10.256
A86: 0.4949974595 | B86: 0.7080308469 | G86: 26 | H86: 0.4091464458 | I86: 0.8893461707 | J86: 0.08035296521 | L86: PasAnalyse = 2 | M86: 11.91679562 | N86: 988.7845 | O86: 0.009111169351 | P86: 13.3324
A87: 0.6140633025 | B87: 0.02656868985 | G87: 44 | H87: 0.4197983248 | I87: 0.9472862203 | J87: 0.05891105049 | L87: PourcentagePointsFixes = 0.30 | M87: 11.86013547 | N87: 1001.4015 | O87: 0.004313202538 | P87: 12.617
A88: 0.7984580686 | B88: 0.9514248478 | G88: 40 | H88: 0.3422942958 | I88: 0.9746876583 | J88: 0.08220531199 | L88: PourcentageDistanceVoisin = 0.10 | M88: 11.86215372 | N88: 1011.4656 | O88: 0.004484107019 | P88: 10.0641
A89: 0.5118593578 | B89: 0.04435548699 | G89: 33 | H89: 0.3221392455 | I89: 0.9579837113 | J89: 0.02617724008 | L89: NombreDePreTraitments = 11 | M89: 11.90848288 | N89: 1024.8577 | O89: 0.008407248723 | P89: 13.3921
A90: 0.4933419744 | B90: 0.1600023755 | G90: 38 | H90: 0.2524916506 | I90: 0.9155052612 | J90: 0.08157944709 | L90: NombreDeTraitments = 31 | M90: 11.91679562 | N90: 1035.3347 | O90: 0.009111169351 | P90: 10.477
A91: 0.1761947526 | B91: 0.253388613 | G91: 14 | H91: 0.2119448143 | I91: 0.9458491867 | J91: 0.05064385211 | L91: idem pour le niveau 8 | M91: 11.91679562 | N91: 1052.5993 | O91: 0.009111169351 | P91: 17.2646
A92: 0.7861165544 | B92: 0.383716526 | G92: 49 | H92: 0.2280843914 | I92: 0.9689087598 | J92: 0.02814657809 | M92: 11.82901666 | N92: 1068.566 | O92: 0.001678069253 | P92: 15.9667
A93: 0.5923401462 | B93: 0.01278179977 | G93: 22 | H93: 0.2063647006 | I93: 0.9915126297 | J93: 0.0313477257 | M93: 11.82901666 | N93: 1080.3378 | O93: 0.001678069253 | P93: 11.7718
A94: 0.8337893058 | B94: 0.5942181023 | G94: 41 | H94: 0.1633261144 | I94: 0.9689895329 | J94: 0.04857581483 | M94: 11.85200617 | N94: 1092.0142 | O94: 0.003624815183 | P94: 11.6764
A95: 0.8423197577 | B95: 0.007125649136 | G95: 36 | H95: 0.1425617831 | I95: 0.9920331878 | J95: 0.03101882469 | M95: 11.8716703 | N95: 1105.0099 | O95: 0.005289968902 | P95: 12.9957
A96: 0.1144593549 | B96: 0.3373172171 | G96: 6 | H96: 0.03784906631 | I96: 0.9060324556 | J96: 0.135502321 | M96: 11.86013547 | N96: 1116.3907 | O96: 0.004313202538 | P96: 11.3808
A97: 0.7151564965 | B97: 0.1550647435 | G97: 21 | H97: 0.008159634192 | I97: 0.8619832071 | J97: 0.05312060503 | M97: 11.86013547 | N97: 1126.9594 | O97: 0.004313202538 | P97: 10.5687
A98: 0.8701637434 | B98: 0.329219799 | G98: 43 | H98: 0.1510766814 | I98: 0.8737031184 | J98: 0.1433967877 | M98: 11.89807176 | N98: 1135.7594 | O98: 0.007525637372 | P98: 8.8
A99: 0.1816334333 | B99: 0.2823594161 | G99: 46 | H99: 0.1369501608 | I99: 0.836488802 | J99: 0.03980532542 | M99: 11.89807176 | N99: 1148.0379 | O99: 0.007525637372 | P99: 12.2785
A100: 0.8092199797 | B100: 0.6553536048 | G100: 32 | H100: 0.1035164902 | I100: 0.7570741582 | J100: 0.08616551505 | M100: 11.89807176 | N100: 1157.8465 | O100: 0.007525637372 | P100: 9.8086
A101: 0.8629635591 | B101: 0.6076780488 | G101: 17 | H101: 0.05645346502 | I101: 0.7481989064 | J101: 0.04789257179 | M101: 11.89807176 | N101: 1167.8575 | O101: 0.007525637372 | P101: 10.011
A102: 0.6067784526 | B102: 0.3748229169 | G102: 3 | H102: 0.06421244936 | I102: 0.7168878028 | J102: 0.03225813149 | M102: 11.82901666 | N102: 1182.3292 | O102: 0.001678069253 | P102: 14.4717
A103: 0.6520335358 | B103: 0.1001204271 | G103: 15 | H103: 0.01553384727 | I103: 0.6934507545 | J103: 0.05402685939 | M103: 11.82901666 | N103: 1191.0587 | O103: 0.001678069253 | P103: 8.7295
A104: 0.5348252929 | B104: 0.8282282883 | G104: 48 | H104: 0.02359900018 | I104: 0.6208526972 | J104: 0.07304467551 | M104: 11.82901666 | N104: 1202.1711 | O104: 0.001678069253 | P104: 11.1124
A105: 0.3535090405 | B105: 0.3209418473 | G105: 1 | H105: 0.08402152825 | I105: 0.5898443307 | J105: 0.06791465741 | M105: 11.82901666 | N105: 1212.5217 | O105: 0.001678069253 | P105: 10.3506
A106: 0.3337236471 | B106: 0.04573412053 | G106: 29 | H106: 0.08446667623 | I106: 0.6102476045 | J106: 0.02040812929 | M106: 11.83977603 | N106: 1221.3633 | O106: 0.002589170048 | P106: 8.8416
A107: 0.540067289 | B107: 0.7635660907 | G107: 27 | H107: 0.1438656319 | I107: 0.6540172347 | J107: 0.0737835785 | M107: 11.83977603 | N107: 1230.0384 | O107: 0.002589170048 | P107: 8.6751
A108: 0.5334499753 | B108: 0.008408198133 | G108: 5 | H108: 0.1692461064 | I108: 0.7415713421 | J108: 0.09115859923 | M108: 11.8812096 | N108: 1239.8031 | O108: 0.006097753897 | P108: 9.7647
A109: 0.5789913991 | B109: 0.3757697335 | G109: 37 | H109: 0.1806716439 | I109: 0.7606093492 | J109: 0.02220334712 | M109: 11.95815808 | N109: 1249.7172 | O109: 0.01261373179 | P109: 9.9141
A110: 0.7130869506 | B110: 0.7306903438 | G110: 39 | H110: 0.2306783907 | I110: 0.7343617631 | J110: 0.05647663677 | M110: 11.94946571 | N110: 1258.9876 | O110: 0.01187766416 | P110: 9.2704
A111: 0.848515498 | B111: 0.583250694 | G111: 45 | H111: 0.2515411703 | I111: 0.7668543877 | J111: 0.03861380873 | M111: 11.82901666 | N111: 1270.0307 | O111: 0.001678069253 | P111: 11.0431
A112: 0.05991014326 | B112: 0.03014893178 | G112: 42 | H112: 0.25950302 | I112: 0.8174024494 | J112: 0.05117125751 | M112: 11.82901666 | N112: 1283.0575 | O112: 0.001678069253 | P112: 13.0268
A113: 0.8656101106 | B113: 0.8691301229 | G113: 28 | H113: 0.3032602691 | I113: 0.7769495645 | J113: 0.05959138155 | M113: 11.82901666 | N113: 1295.3678 | O113: 0.001678069253 | P113: 12.3103
A114: 0.6855025366 | B114: 0.7285736697 | G114: 19 | H114: 0.3288956191 | I114: 0.8370555909 | J114: 0.06534451461 | M114: 11.82901666 | N114: 1304.58 | O114: 0.001678069253 | P114: 9.2122
A115: 0.4768081717 | B115: 0.2922809892 | G115: 34 | H115: 0.3347920696 | I115: 0.8504610248 | J115: 0.01464492353 | M115: 11.82901666 | N115: 1315.3 | O115: 0.001678069253 | P115: 10.72
A116: 0.1033965871 | B116: 0.1288417075 | G116: 31 | H116: 0.3822369138 | I116: 0.7757863211 | J116: 0.08847216851 | M116: 11.82901666 | N116: 1324.1577 | O116: 0.001678069253 | P116: 8.8577
A117: 0.9570699958 | B117: 0.7459104573 | G117: 20 | H117: 0.3236554493 | I117: 0.7152722599 | J117: 0.08422434082 | M117: 11.84699666 | N117: 1337.9071 | O117: 0.003200611082 | P117: 13.7494
A118: 0.9591637272 | B118: 0.1690148106 | G118: 23 | H118: 0.2774290256 | I118: 0.6915745172 | J118: 0.05194675407 | M118: 11.84699666 | N118: 1350.094 | O118: 0.003200611082 | P118: 12.1869
A119: 0.6917596441 | B119: 0.2928873743 | G119: 47 | H119: 0.2655430227 | I119: 0.66839121 | J119: 0.02605269269 | M119: 11.85200617 | N119: 1362.538 | O119: 0.003624815183 | P119: 12.444
A120: 0.2147489311 | B120: 0.2318269336 | G120: 4 | H120: 0.2425510059 | I120: 0.6629264224 | J120: 0.02363253557 | M120: 11.85200617 | N120: 1372.2009 | O120: 0.003624815183 | P120: 9.6629
A121: 0.1239686399 | B121: 0.255768979 | G121: 18 | H121: 0.2402351317 | I121: 0.6354448646 | J121: 0.02757896468 | M121: 11.85200617 | N121: 1388.9304 | O121: 0.003624815183 | P121: 16.7295
A122: 0.9864593232 | B122: 0.1774111171 | G122: 8 | H122: 0.2458974179 | I122: 0.5419171262 | J122: 0.09369898264 | M122: 11.82901666 | N122: 1403.387 | O122: 0.001678069253 | P122: 14.4566
A123: 0.4203062849 | B123: 0.04636946646 | G123: 79 | H123: 0.2266652454 | I123: 0.4500727798 | J123: 0.09383634914 | M123: 11.82901666 | N123: 1415.6377 | O123: 0.001678069253 | P123: 12.2507
A124: 0.2075600489 | B124: 0.2859163955 | G124: 191 | H124: 0.3001902723 | I124: 0.4214668283 | J124: 0.07889378962 | M124: 11.82901666 | N124: 1426.6827 | O124: 0.001678069253 | P124: 11.045
A125: 0.9154995894 | B125: 0.8930625855 | G125: 220 | H125: 0.3392213383 | I125: 0.4093583478 | J125: 0.04086611573 | M125: 11.82901666 | N125: 1436.3986 | O125: 0.001678069253 | P125: 9.7159
A126: 0.01449006563 | B126: 0.3923077616 | G126: 187 | H126: 0.343163074 | I126: 0.3916439209 | J126: 0.01814767752 | M126: 11.82901666 | N126: 1452.2767 | O126: 0.001678069253 | P126: 15.8781
A127: 0.1853435752 | B127: 0.1178866527 | G127: 229 | H127: 0.3380528023 | I127: 0.3817550722 | J127: 0.01113122666 | M127: 11.87771231 | N127: 1464.0642 | O127: 0.005801604883 | P127: 11.7875
A128: 0.5211494691 | B128: 0.577744992 | G128: 82 | H128: 0.3855828652 | I128: 0.3546039029 | J128: 0.05473840404 | M128: 11.87771231 | N128: 1475.7018 | O128: 0.005801604883 | P128: 11.6376
A129: 0.7561085327 | B129: 0.4782194654 | G129: 103 | H129: 0.3535090405 | I129: 0.3209418473 | J129: 0.04649585161 | M129: 11.87771231 | N129: 1488.393 | O129: 0.005801604883 | P129: 12.6912
A130: 0.6472342759 | B130: 0.0154150934 | G130: 174 | H130: 0.399637355 | I130: 0.2857277524 | J130: 0.05803321355 | M130: 11.87771231 | N130: 1498.4534 | O130: 0.005801604883 | P130: 10.0604
A131: 0.247242027 | B131: 0.06461309968 | G131: 63 | H131: 0.4611881799 | I131: 0.2890593228 | J131: =SQRT(((H130-H131)*(H130-H131))+((I130-I131)*(I130-I131))) -> 0.06164092316 | M131: 11.87771231 | N131: 1512.0495 | O131: =((M131/$F$1)-1) -> 0.005801604883 | P131: 13.5961
A132: 0.6101821135 | B132: 0.4874771587 | G132: 113 | H132: 0.4768081717 | I132: 0.2922809892 | J132: 0.01594877045 | M132: 11.82901666 | N132: 1528.019 | O132: 0.001678069253 | P132: =+N132-N131 -> 15.9695
A133: 0.7000579643 | B133: 0.7341507538 | G133: 193 | H133: 0.48469791 | I133: 0.3108690074 | J133: 0.02019312727 | M133: 11.82901666 | N133: 1536.1538 | O133: 0.001678069253 | P133: 8.1348
A134: 0.7432461381 | B134: 0.02895358345 | G134: 211 | H134: 0.5066203517 | I134: 0.2888184469 | J134: 0.03109373996 | M134: 11.82901666 | N134: 1548.0237 | O134: 0.001678069253 | P134: 11.8699
A135: 0.5712063448 | B135: 0.7297054613 | G135: 83 | H135: 0.5387847405 | I135: 0.2990340465 | J135: 0.03374768705 | M135: 11.82901666 | N135: 1558.4217 | O135: 0.001678069253 | P135: 10.398
A136: 0.7760749278 | B136: 0.4139247499 | G136: 157 | H136: 0.5089121005 | I136: 0.1723851459 | J136: 0.1301242431 | M136: 11.82901666 | N136: 1568.0646 | O136: 0.001678069253 | P136: 9.6429
A137: 0.3069873354 | B137: 0.2919190913 | G137: 233 | H137: 0.4961335454 | I137: 0.1736635524 | J137: 0.01284234372 | M137: 11.82901666 | N137: 1578.6983 | O137: 0.001678069253 | P137: 10.6337
A138: 0.07007590262 | B138: 0.1659142766 | G138: 88 | H138: 0.4933419744 | I138: 0.1600023755 | J138: 0.01394347958 | M138: 11.82901666 | N138: 1593.5399 | O138: 0.001678069253 | P138: 14.8416
A139: 0.08325121365 | B139: 0.3937313519 | G139: 178 | H139: 0.4547962993 | I139: 0.1017561164 | J139: 0.0698455136 | M139: 11.82901666 | N139: 1604.18 | O139: 0.001678069253 | P139: 10.6401
A140: 0.8811865365 | B140: 0.7304854896 | G140: 235 | H140: 0.4245600919 | I140: 0.09497425007 | J140: 0.03098744826 | M140: 11.82901666 | N140: 1613.7191 | O140: 0.001678069253 | P140: 9.5391
A141: 0.5924686966 | B141: 0.6563884728 | G141: 205 | H141: 0.4328467855 | I141: 0.1391885062 | J141: 0.04498410535 | M141: 11.82901666 | N141: 1625.7454 | O141: 0.001678069253 | P141: 12.0263
A142: 0.9539592704 | B142: 0.2026508101 | G142: 197 | H142: 0.4431644003 | I142: 0.1603416782 | J142: 0.02353528969 | M142: 11.82901666 | N142: 1642.7352 | O142: 0.001678069253 | P142: 16.9898
A143: 0.9368015639 | B143: 0.88711177 | G143: 150 | H143: 0.4151213835 | I143: 0.1795861037 | J143: 0.03401115556 | M143: 11.82901666 | N143: 1651.157 | O143: 0.001678069253 | P143: 8.4218
A144: 0.6829708181 | B144: 0.5080079087 | G144: 181 | H144: 0.3286719616 | I144: 0.1748076873 | J144: 0.08658138262 | M144: 11.82901666 | N144: 1660.471 | O144: 0.001678069253 | P144: 9.314
A145: 0.6168172313 | B145: 0.8893355192 | G145: 163 | H145: 0.326063022 | I145: 0.2365448186 | J145: 0.06179223212 | M145: 11.88278517 | N145: 1670.0044 | O145: 0.00623117302 | P145: 9.5334
A146: 0.4995205388 | B146: 0.3928921591 | G146: 135 | H146: 0.3069873354 | I146: 0.2919190913 | J146: 0.05856784005 | M146: 11.87291309 | N146: 1681.7491 | O146: 0.005395207814 | P146: 11.7447
A147: 0.06886865571 | B147: 0.1683489555 | G147: 237 | H147: 0.2702682172 | I147: 0.2329880232 | J147: 0.0694346054 | M147: 11.88242967 | N147: 1694.1237 | O147: 0.006201069697 | P147: 12.3746
A148: 0.7733807038 | B148: 0.1726544183 | G148: 50 | H148: 0.2231180733 | I148: 0.2167962207 | J148: 0.04985288894 | M148: 11.87084519 | N148: 1705.5794 | O148: 0.005220098374 | P148: 11.4557
A149: 0.6445886763 | B149: 0.8566319174 | G149: 118 | H149: 0.2147489311 | I149: 0.2318269336 | J149: 0.01720362953 | M149: 11.88278517 | N149: 1716.4143 | O149: 0.00623117302 | P149: 10.8349
A150: 0.5663857707 | B150: 0.5257752128 | G150: 69 | H150: 0.1903953976 | I150: 0.2038537692 | J150: 0.03708898108 | M150: 11.88278517 | N150: 1731.6264 | O150: 0.00623117302 | P150: 15.2121
A151: 0.587117407 | B151: 0.9755322165 | G151: 215 | H151: 0.1611195337 | I151: 0.1886384562 | J151: 0.03299366543 | M151: 11.88278517 | N151: 1741.6799 | O151: 0.00623117302 | P151: 10.0535
A152: 0.4151213835 | B152: 0.1795861037 | G152: 89 | H152: 0.1761947526 | I152: 0.253388613 | J152: 0.06648191509 | M152: 11.82901666 | N152: 1755.3149 | O152: 0.001678069253 | P152: 13.635
A153: 0.6319206893 | B153: 0.3690806543 | G153: 54 | H153: 0.1539170626 | I153: 0.2610833575 | J153: 0.02356914434 | M153: 11.82901666 | N153: 1763.7469 | O153: 0.001678069253 | P153: 8.432
A154: 0.02309788903 | B154: 0.3190384782 | G154: 97 | H154: 0.1816334333 | I154: 0.2823594161 | J154: 0.03494091984 | M154: 11.82901666 | N154: 1772.9392 | O154: 0.001678069253 | P154: 9.1923
A155: 0.6628980911 | B155: 0.7060687076 | G155: 122 | H155: 0.2075600489 | I155: 0.2859163955 | J155: 0.02616947645 | M155: 11.82901666 | N155: 1785.4161 | O155: 0.001678069253 | P155: 12.4769
A156: 0.8270463869 | B156: 0.2797153224 | G156: 78 | H156: 0.2075217734 | I156: 0.3389515332 | J156: 0.05303515152 | M156: 11.82901666 | N156: 1799.8254 | O156: 0.001678069253 | P156: 14.4093
A157: 0.5954042268 | B157: 0.3265669257 | G157: 55 | H157: 0.1897406606 | I157: 0.3607753818 | J157: 0.02815045897 | M157: 11.85200617 | N157: 1810.045 | O157: 0.003624815183 | P157: 10.2196
A158: 0.6726074815 | B158: 0.8986644959 | G158: 168 | H158: 0.1770279505 | I158: 0.3489909284 | J158: 0.0173345418 | M158: 11.85200617 | N158: 1822.4159 | O158: 0.003624815183 | P158: 12.3709
A159: 0.5089121005 | B159: 0.1723851459 | G159: 75 | H159: 0.1684084698 | I159: 0.318457888 | J159: 0.03172636136 | M159: 11.85200617 | N159: 1835.1007 | O159: 0.003624815183 | P159: 12.6848
A160: 0.9254231136 | B160: 0.6114906161 | G160: 244 | H160: 0.1247191518 | I160: 0.3335625106 | J160: 0.04622668202 | M160: 11.85200617 | N160: 1844.4271 | O160: 0.003624815183 | P160: 9.3264
A161: 0.6510595456 | B161: 0.6988038174 | G161: 94 | H161: 0.1144593549 | I161: 0.3373172171 | J161: 0.01092525758 | M161: 11.82901666 | N161: 1854.5527 | O161: 0.001678069253 | P161: 10.1256
A162: 0.7841450348 | B162: 0.2956482219 | G162: 170 | H162: 0.1060650866 | I162: 0.3377728933 | J162: 0.008406627249 | M162: 11.82901666 | N162: 1869.7004 | O162: 0.001678069253 | P162: 15.1477
A163: 0.5554357348 | B163: 0.3505308055 | G163: 232 | H163: 0.0680194879 | I163: 0.3552077897 | J163: 0.0418502472 | M163: 11.82901666 | N163: 1880.846 | O163: 0.001678069253 | P163: 11.1456
A164: 0.8214234347 | B164: 0.1425531418 | G164: 137 | H164: 0.08325121365 | I164: 0.3937313519 | J164: 0.04142547909 | M164: 11.82901666 | N164: 1892.6659 | O164: 0.001678069253 | P164: 11.8199
A165: 0.326063022 | B165: 0.2365448186 | G165: 30 | H165: 0.1025785157 | I165: 0.4786743997 | J165: 0.08711409736 | M165: 11.82901666 | N165: 1902.2025 | O165: 0.001678069253 | P165: 9.5366
A166: 0.605625473 | B166: 0.7043761592 | G166: 24 | H166: 0.08388227876 | I166: 0.4923309106 | J166: 0.02315274424 | M166: 11.82901666 | N166: 1914.6738 | O166: 0.001678069253 | P166: 12.4713
A167: 0.7337700329 | B167: 0.628723362 | G167: 9 | H167: 0.04060538858 | I167: 0.5328465258 | J167: 0.05928241134 | M167: 11.82901666 | N167: 1929.9663 | O167: 0.001678069253 | P167: 15.2925
A168: 0.02341463743 | B168: 0.396668124 | G168: 80 | H168: 0.001877955627 | I168: 0.4170606434 | J168: 0.1220908867 | M168: 11.86013547 | N168: 1942.4735 | O168: 0.004313202538 | P168: 12.5072
A169: 0.6763834469 | B169: 0.9301962964 | G169: 166 | H169: 0.02341463743 | I169: 0.396668124 | J169: 0.02965945905 | M169: 11.86013547 | N169: 1955.1707 | O169: 0.004313202538 | P169: 12.6972
A170: 0.1770279505 | B170: 0.3489909284 | G170: 124 | H170: 0.01449006563 | I170: 0.3923077616 | J170: 0.009932811395 | M170: 11.85020669 | N170: 1966.4332 | O170: 0.003472436021 | P170: 11.2625
A171: 0.8288607923 | B171: 0.2805444412 | G171: 152 | H171: 0.02309788903 | I171: 0.3190384782 | J171: 0.07377318289 | M171: 11.86013547 | N171: 1978.7386 | O171: 0.004313202538 | P171: 12.3054
A172: 0.1060650866 | B172: 0.3377728933 | G172: 249 | H172: 0.08127811691 | I172: 0.3068178222 | J172: 0.05944983894 | M172: 11.82901666 | N172: 1992.6501 | O172: 0.001678069253 | P172: 13.9115
A173: 0.4529295871 | B173: 0.03148820018 | G173: 223 | H173: 0.1056440645 | I173: 0.304847145 | J173: 0.02444551022 | M173: 11.82901666 | N173: 2001.0058 | O173: 0.001678069253 | P173: 8.3557
A174: 0.9492635094 | B174: 0.1039891331 | G174: 216 | H174: 0.1107868054 | I174: 0.3036813168 | J174: 0.005273228557 | M174: 11.82901666 | N174: 2011.4192 | O174: 0.001678069253 | P174: 10.4134
A175: 0.7302920176 | B175: 0.7334085442 | G175: 206 | H175: 0.1201616651 | I175: 0.2889194936 | J175: 0.01748712155 | M175: 11.85200617 | N175: 2020.448 | O175: 0.003624815183 | P175: 9.0288
A176: 0.399637355 | B176: 0.2857277524 | G176: 119 | H176: 0.1239686399 | I176: 0.255768979 | J176: 0.03336839334 | M176: 11.86191458 | N176: 2029.2602 | O176: 0.004463857044 | P176: 8.8122
A177: 0.08393934974 | B177: 0.2210607901 | G177: 185 | H177: 0.1235764963 | I177: 0.2391739408 | J177: 0.01659967068 | M177: 11.86191458 | N177: 2042.9099 | O177: 0.004463857044 | P177: 13.6497
A178: 0.4282808942 | B178: 0.4100023718 | G178: 175 | H178: 0.08393934974 | I178: 0.2210607901 | J178: 0.04357969267 | M178: 11.86191458 | N178: 2053.2526 | O178: 0.004463857044 | P178: 10.3427
A179: 0.3679860835 | B179: 0.0632310817 | G179: 145 | H179: 0.06886865571 | I179: 0.1683489555 | J179: 0.05482393029 | M179: 11.86191458 | N179: 2063.2295 | O179: 0.004463857044 | P179: 9.9769
A180: 0.4547962993 | B180: 0.1017561164 | G180: 136 | H180: 0.07007590262 | I180: 0.1659142766 | J180: 0.002717555181 | M180: 11.86191458 | N180: 2076.2128 | O180: 0.004463857044 | P180: 12.9833
A181: 0.6919544437 | B181: 0.4782109368 | G181: 236 | H181: 0.06966190832 | I181: 0.1097438978 | J181: 0.05617190443 | M181: 11.86191458 | N181: 2085.5384 | O181: 0.004463857044 | P181: 9.3256
A182: 0.4984242404 | B182: 0.02674651379 | G182: 110 | H182: 0.05991014326 | I182: 0.03014893178 | J182: 0.0801901212 | M182: 11.82901666 | N182: 2099.238 | O182: 0.001678069253 | P182: 13.6996
A183: 0.3286719616 | B183: 0.1748076873 | G183: 238 | H183: 0.07873343071 | I183: 0.07736336347 | J183: 0.05082832586 | M183: 11.82901666 | N183: 2110.1079 | O183: 0.001678069253 | P183: 10.8699
A184: 0.9569428102 | B184: 0.5056999126 | G184: 217 | H184: 0.08780356683 | I184: 0.09148988454 | J184: 0.01678767306 | M184: 11.82901666 | N184: 2119.6072 | O184: 0.001678069253 | P184: 9.4993
A185: 0.5237986161 | B185: 0.785803603 | G185: 243 | H185: 0.1114102136 | I185: 0.08958023973 | J185: 0.02368376061 | M185: 11.82901666 | N185: 2131.6541 | O185: 0.001678069253 | P185: 12.0469
A186: 0.7862443537 | B186: 0.6298637027 | G186: 114 | H186: 0.1033965871 | I186: 0.1288417075 | J186: 0.04007095034 | M186: 11.82901666 | N186: 2143.1552 | O186: 0.001678069253 | P186: 11.5011
A187: 0.1235764963 | B187: 0.2391739408 | G187: 212 | H187: 0.145252475 | I187: 0.1300721704 | J187: 0.0418739704 | M187: 11.82901666 | N187: 2152.2034 | O187: 0.001678069253 | P187: 9.0482
A188: 0.6613519033 | B188: 0.07284000563 | G188: 125 | H188: 0.1853435752 | I188: 0.1178866527 | J188: 0.04190206621 | M188: 11.82901666 | N188: 2165.8334 | O188: 0.001678069253 | P188: 13.63
A189: 0.343163074 | B189: 0.3916439209 | G189: 196 | H189: 0.2033988675 | I189: 0.1177519062 | J189: 0.01805579511 | M189: 11.86215372 | N189: 2179.5722 | O189: 0.004484107019 | P189: 13.7388
A190: 0.8062485503 | B190: 0.7428004295 | G190: 213 | H190: 0.2557814633 | I190: 0.09139775624 | J190: 0.0586385331 | M190: 11.90855052 | N190: 2195.0475 | O190: 0.008412976643 | P190: 15.4753
A191: 0.6773716738 | B191: 0.8901879 | G191: 129 | H191: 0.247242027 | I191: 0.06461309968 | J191: 0.02811298279 | M191: 11.90855052 | N191: 2205.8759 | O191: 0.008412976643 | P191: 10.8284
A192: 0.9638612196 | B192: 0.1056525679 | G192: 104 | H192: 0.3337236471 | I192: 0.04573412053 | J192: 0.08851828324 | M192: 11.82901666 | N192: 2220.5661 | O192: 0.001678069253 | P192: 14.6902
A193: 0.3001902723 | B193: 0.4214668283 | G193: 177 | H193: 0.3679860835 | I193: 0.0632310817 | J193: 0.03847152455 | M193: 11.82901666 | N193: 2229.903 | O193: 0.001678069253 | P193: 9.3369
A194: 0.856072708 | B194: 0.6681763558 | G194: 121 | H194: 0.4203062849 | I194: 0.04636946646 | J194: 0.0549701514 | M194: 11.82901666 | N194: 2238.6339 | O194: 0.001678069253 | P194: 8.7309
A195: 0.48469791 | B195: 0.3108690074 | G195: 225 | H195: 0.4349193154 | I195: 0.005594544113 | J195: =SQRT(((H194-H195)*(H194-H195))+((I194-I195)*(I194-I195))) -> 0.04331437351 | M195: 11.82901666 | N195: 2249.6841 | O195: =((M195/$F$1)-1) -> 0.001678069253 | P195: 11.0502
A196: 0.7699324721 | B196: 0.1766523537 | G196: 64 | H196: 0.4525210103 | I196: 0.03055319516 | J196: 0.03054102038 | M196: 11.85200617 | N196: 2260.5758 | O196: 0.003624815183 | P196: =+N196-N195 -> 10.8917
A197: 0.7890799441 | B197: 0.2683567125 | G197: 171 | H197: 0.4529295871 | I197: 0.03148820018 | J197: 0.001020377086 | M197: 11.83977603 | N197: 2275.0373 | O197: 0.002589170048 | P197: 14.4615
A198: 0.2033988675 | B198: 0.1177519062 | G198: 52 | H198: 0.4749185196 | I198: 0.0336592542 | J198: 0.02209585093 | M198: 11.83977603 | N198: 2285.4749 | O198: 0.002589170048 | P198: 10.4376
A199: 0.4431644003 | B199: 0.1603416782 | G199: 180 | H199: 0.4984242404 | I199: 0.02674651379 | J199: 0.02450112016 | M199: 12.04552455 | N199: 2294.2527 | O199: 0.02001190214 | P199: 8.7778
A200: 0.6234518187 | B200: 0.9669630164 | G200: 87 | H200: 0.5118593578 | I200: 0.04435548699 | J200: 0.02214900263 | M200: 11.98572932 | N200: 2303.5683 | O200: 0.01494845753 | P200: 9.3156
... 3548 more rows

Sheet defi380 (-0,004%)
A1: X réel | B1: Y réel | C1: X graphique | D1: Y graphique | E1: Bistance à battre : | F1: 1653.191022 | G1: Ordre | H1: X réel | I1: Y réel | J1: Distance : | K1: 1653.129644 | L1: Niv: 8 | M1: Historique | N1: Temps | O1: Ecart | P1: =MIN(M:M) -> 1653.129644 | Q1: =((P1/$F$1)-1) -> -3.712712544e-05 | S1: http://www.math.uwaterloo.ca/tsp/vlsi/bcl380.tsp
A2: 0 | B2: 108 | G2: 0 | H2: 0 | I2: 108 | J2: Détail : | K2: =SUM(J:J) -> 1653.129644 | L2: Durée : 1715,52734375 | M2: 1653.129644 | N2: 2.0412 | O2: =((M2/$F$1)-1) -> -3.712712544e-05 | P2: =N2 -> 2.0412
A3: 0 | B3: 20 | G3: 39 | H3: 5 | I3: 108 | J3: =SQRT(((H2-H3)*(H2-H3))+((I2-I3)*(I2-I3))) -> 5 | K3: =(+K1/F1)-1 -> -3.712712544e-05 | L3: PasAnalyse = 2 | M3: 1653.129644 | N3: 37.4686 | O3: =((M3/$F$1)-1) -> -3.712712544e-05 | P3: =+N3-N2 -> 35.4274
A4: 0 | B4: 21 | G4: 40 | H4: 5 | I4: 112 | J4: 4 | L4: PourcentagePointsFixes = 0.2 | M4: 1689.278764 | N4: 68.8851 | O4: 0.02182914238 | P4: =+N4-N3 -> 31.4165
A5: 0 | B5: 22 | G5: 52 | H5: 8 | I5: 113 | J5: 3.16227766 | L5: PourcentageDistanceVoisin = 0.5 | M5: 1689.278764 | N5: 94.012 | O5: 0.02182914238 | P5: 25.1269
A6: 0 | B6: 23 | G6: 41 | H6: 5 | I6: 116 | J6: 4.242640687 | L6: AvanceAléatoire = True | M6: 1689.278764 | N6: 122.8357 | O6: 0.02182914238 | P6: 28.8237
A7: 0 | B7: 24 | G7: 42 | H7: 5 | I7: 121 | J7: 5 | L7: Version 10 | M7: 1689.278764 | N7: 148.7904 | O7: 0.02182914238 | P7: 25.9547
A8: 0 | B8: 28 | G8: 54 | H8: 9 | I8: 124 | J8: 5 | M8: 1689.278764 | N8: 172.4786 | O8: 0.02182914238 | P8: 23.6882
A9: 0 | B9: 33 | G9: 57 | H9: 10 | I9: 125 | J9: 1.414213562 | L9: Version 10 / 10 traitements | M9: 1689.278764 | N9: 197.0114 | O9: 0.02182914238 | P9: 24.5328
A10: 0 | B10: 49 | G10: 55 | H10: 9 | I10: 127 | J10: 2.236067977 | M10: 1689.278764 | N10: 220.0932 | O10: 0.02182914238 | P10: 23.0818
A11: 0 | B11: 60 | G11: 43 | H11: 5 | I11: 127 | J11: 4 | L11: Niv: 7 / Tracé Num: 6 | M11: 1689.278764 | N11: 248.8307 | O11: 0.02182914238 | P11: 28.7375
A12: 0 | B12: 71 | G12: 44 | H12: 5 | I12: 131 | J12: 4 | L12: Distance : 12,254 | M12: 1689.278764 | N12: 272.2609 | O12: 0.02182914238 | P12: 23.4302
A13: 0 | B13: 97 | G13: 16 | H13: 2 | I13: 137 | J13: 6.708203932 | L13: PasAnalyse = 2 | M13: 1689.278764 | N13: 295.7013 | O13: 0.02182914238 | P13: 23.4404
A14: 2 | B14: 103 | G14: 17 | H14: 2 | I14: 139 | J14: 2 | L14: PourcentagePointsFixes = 0.2 | M14: 1689.278764 | N14: 316.5367 | O14: 0.02182914238 | P14: 20.8354
A15: 2 | B15: 104 | G15: 45 | H15: 5 | I15: 142 | J15: 4.242640687 | L15: PourcentageDistanceVoisin = 0.05 | M15: 1678.020438 | N15: 386.4335 | O15: 0.01501908487 | P15: 69.8968
A16: 2 | B16: 11 | G16: 46 | H16: 5 | I16: 145 | J16: 3 | L16: AvanceAléatoire = False | M16: 1682.165444 | N16: 426.6793 | O16: 0.0175263604 | P16: 40.2458
A17: 2 | B17: 12 | G17: 47 | H17: 5 | I17: 147 | J17: 2 | M17: 1677.081743 | N17: 469.0781 | O17: 0.01445127672 | P17: 42.3988
A18: 2 | B18: 137 | G18: 18 | H18: 2 | I18: 150 | J18: 4.242640687 | L18: Niv: 7 / Tracé Num: 10 | M18: 1683.005487 | N18: 525.5312 | O18: 0.01803449493 | P18: 56.4531
A19: 2 | B19: 139 | G19: 64 | H19: 11 | I19: 156 | J19: 10.81665383 | L19: Distance : 12,206 | M19: 1680.133481 | N19: 615.81 | O19: 0.01629724487 | P19: 90.2788
A20: 2 | B20: 150 | G20: 70 | H20: 14 | I20: 167 | J20: 11.40175425 | L20: PasAnalyse = 2 | M20: 1670.605229 | N20: 686.9142 | O20: 0.01053369314 | P20: 71.1042
A21: 2 | B21: 18 | G21: 85 | H21: 17 | I21: 150 | J21: 17.2626765 | L21: PourcentagePointsFixes = 0.30 | M21: 1675.450959 | N21: 739.3228 | O21: 0.01346483053 | P21: 52.4086
A22: 2 | B22: 20 | G22: 79 | H22: 15 | I22: 147 | J22: 3.605551275 | L22: PourcentageDistanceVoisin = 0.10 | M22: 1679.160654 | N22: 813.3614 | O22: 0.01570879078 | P22: 74.0386
A23: 2 | B23: 22 | G23: 78 | H23: 15 | I23: 145 | J23: 2 | L23: AvanceAléatoire = False | M23: 1674.624578 | N23: 864.6138 | O23: 0.01296496049 | P23: 51.2524
A24: 2 | B24: 29 | G24: 77 | H24: 15 | I24: 142 | J24: 3 | M24: 1674.624578 | N24: 896.6619 | O24: 0.01296496049 | P24: 32.0481
A25: 2 | B25: 32 | G25: 63 | H25: 11 | I25: 144 | J25: 4.472135955 | M25: 1679.160654 | N25: 941.7141 | O25: 0.01570879078 | P25: 45.0522
A26: 2 | B26: 35 | G26: 62 | H26: 11 | I26: 141 | J26: 3 | L26: Niv: 8 / Tracé Num: 8 | M26: 1679.160654 | N26: 988.9687 | O26: 0.01570879078 | P26: 47.2546
A27: 2 | B27: 46 | G27: 61 | H27: 11 | I27: 133 | J27: 8 | L27: Distance : 12,257 | M27: 1675.389165 | N27: 1059.2076 | O27: 0.01342745173 | P27: 70.2389
A28: 2 | B28: 49 | G28: 56 | H28: 9 | I28: 131 | J28: 2.828427125 | L28: PasAnalyse = 2 | M28: 1683.1077 | N28: 1094.8676 | O28: 0.01809632254 | P28: 35.66
A29: 2 | B29: 52 | G29: 58 | H29: 10 | I29: 129 | J29: 2.236067977 | L29: PourcentagePointsFixes = 0.20 | M29: 1677.587045 | N29: 1134.6718 | O29: 0.01475692947 | P29: 39.8042
A30: 2 | B30: 62 | G30: 76 | H30: 15 | I30: 130 | J30: 5.099019514 | L30: PourcentageDistanceVoisin = 0.05 | M30: 1673.174631 | N30: 1182.9635 | O30: 0.01208790072 | P30: 48.2917
A31: 2 | B31: 70 | G31: 75 | H31: 15 | I31: 126 | J31: 4 | L31: AvanceAléatoire = False | M31: 1670.605229 | N31: 1203.0694 | O31: 0.01053369314 | P31: 20.1059
A32: 2 | B32: 85 | G32: 74 | H32: 15 | I32: 121 | J32: 5 | M32: 1670.605229 | N32: 1222.7982 | O32: 0.01053369314 | P32: 19.7288
A33: 2 | B33: 87 | G33: 73 | H33: 15 | I33: 116 | J33: 5 | L33: Niv: 8 / Tracé Num: 10 | M33: 1670.605229 | N33: 1246.5234 | O33: 0.01053369314 | P33: 23.7252
A34: 2 | B34: 89 | G34: 72 | H34: 15 | I34: 112 | J34: 4 | L34: Distance : 12,206 | M34: 1670.605229 | N34: 1268.7173 | O34: 0.01053369314 | P34: 22.1939
A35: 2 | B35: 90 | G35: 68 | H35: 12 | I35: 109 | J35: 4.242640687 | L35: PasAnalyse = 2 | M35: 1670.605229 | N35: 1291.2849 | O35: 0.01053369314 | P35: 22.5676
A36: 2 | B36: 93 | G36: 60 | H36: 11 | I36: 106 | J36: 3.16227766 | L36: PourcentagePointsFixes = 0.30 | M36: 1670.605229 | N36: 1315.2004 | O36: 0.01053369314 | P36: 23.9155
A37: 3 | B37: 19 | G37: 84 | H37: 17 | I37: 104 | J37: 6.32455532 | L37: PourcentageDistanceVoisin = 0.10 | M37: 1670.605229 | N37: 1336.6794 | O37: 0.01053369314 | P37: 21.479
A38: 3 | B38: 30 | G38: 59 | H38: 10 | I38: 92 | J38: 13.89244399 | L38: AvanceAléatoire = False | M38: 1670.605229 | N38: 1357.069 | O38: 0.01053369314 | P38: 20.3896
A39: 3 | B39: 47 | G39: 67 | H39: 11 | I39: 92 | J39: 1 | M39: 1670.605229 | N39: 1378.8445 | O39: 0.01053369314 | P39: 21.7755
A40: 3 | B40: 63 | G40: 91 | H40: 17 | I40: 90 | J40: 6.32455532 | L40: VERSION 13 | M40: 1670.605229 | N40: 1400.5394 | O40: 0.01053369314 | P40: 21.6949
A41: 5 | B41: 108 | G41: 90 | H41: 17 | I41: 87 | J41: 3 | M41: 1670.605229 | N41: 1421.6538 | O41: 0.01053369314 | P41: 21.1144
A42: 5 | B42: 112 | G42: 89 | H42: 17 | I42: 85 | J42: 2 | L42: Niv: 8 / Tracé Num: 6 + | M42: 1671.588017 | N42: 1512.5739 | O42: 0.01112817267 | P42: 90.9201
A43: 5 | B43: 116 | G43: 66 | H43: 11 | I43: 76 | J43: 10.81665383 | L43: Distance : 12,1713 | M43: 1671.588017 | N43: 1549.1244 | O43: 0.01112817267 | P43: 36.5505
A44: 5 | B44: 121 | G44: 65 | H44: 11 | I44: 73 | J44: 3 | L44: PasAnalyse = 2 | M44: 1671.117202 | N44: 1582.1326 | O44: 0.01084338072 | P44: 33.0082
A45: 5 | B45: 127 | G45: 94 | H45: 18 | I45: 70 | J45: 7.615773106 | L45: PourcentagePointsFixes = 0.20 | M45: 1671.117202 | N45: 1662.7779 | O45: 0.01084338072 | P45: 80.6453
A46: 5 | B46: 131 | G46: 82 | H46: 15 | I46: 64 | J46: 6.708203932 | L46: PourcentageDistanceVoisin = 0.10 | M46: 1671.117202 | N46: 1702.7657 | O46: 0.01084338072 | P46: 39.9878
A47: 5 | B47: 142 | G47: 93 | H47: 18 | I47: 55 | J47: 9.486832981 | L47: AvanceAléatoire = False | M47: 1671.117202 | N47: 1762.1101 | O47: 0.01084338072 | P47: 59.3444
A48: 5 | B48: 145 | G48: 81 | H48: 15 | I48: 47 | J48: 8.544003745 | M48: 1670.605229 | N48: 1785.4012 | O48: 0.01053369314 | P48: 23.2911
A49: 5 | B49: 147 | G49: 88 | H49: 17 | I49: 49 | J49: 2.828427125 | L49: Niv: 8 / Tracé Num: 13 + | M49: 1670.605229 | N49: 1807.2265 | O49: 0.01053369314 | P49: 21.8253
A50: 5 | B50: 75 | G50: 112 | H50: 25 | I50: 52 | J50: 8.544003745 | L50: Distance : 12,1006 | M50: 1670.605229 | N50: 1828.4258 | O50: 0.01053369314 | P50: 21.1993
A51: 5 | B51: 78 | G51: 130 | H51: 26 | I51: 53 | J51: 1.414213562 | L51: PasAnalyse = 2 | M51: 1670.605229 | N51: 1852.829 | O51: 0.01053369314 | P51: 24.4032
A52: 5 | B52: 8 | G52: 113 | H52: 25 | I52: 54 | J52: 1.414213562 | L52: PourcentagePointsFixes = 0.20 | M52: 1670.605229 | N52: 1874.3906 | O52: 0.01053369314 | P52: 21.5616
A53: 5 | B53: 82 | G53: 115 | H53: 25 | I53: 60 | J53: 6 | L53: PourcentageDistanceVoisin = 0.20 | M53: 1670.605229 | N53: 1895.0363 | O53: 0.01053369314 | P53: 20.6457
A54: 8 | B54: 113 | G54: 116 | H54: 25 | I54: 62 | J54: 2 | L54: AvanceAléatoire = False | M54: 1670.605229 | N54: 1916.4292 | O54: 0.01053369314 | P54: 21.3929
A55: 9 | B55: 10 | G55: 141 | H55: 28 | I55: 65 | J55: 4.242640687 | M55: 1670.605229 | N55: 1938.958 | O55: 0.01053369314 | P55: 22.5288
A56: 9 | B56: 124 | G56: 142 | H56: 28 | I56: 68 | J56: 3 | L56: VERSION 14 | M56: 1670.605229 | N56: 1959.5894 | O56: 0.01053369314 | P56: 20.6314
A57: 9 | B57: 127 | G57: 143 | H57: 28 | I57: 70 | J57: 2 | M57: 1670.605229 | N57: 1979.8204 | O57: 0.01053369314 | P57: 20.231
A58: 9 | B58: 131 | G58: 117 | H58: 25 | I58: 74 | J58: 5 | L58: Niv: 8 / Tracé Num: 11 + | M58: 1670.605229 | N58: 1998.3079 | O58: 0.01053369314 | P58: 18.4875
A59: 10 | B59: 125 | G59: 118 | H59: 25 | I59: 75 | J59: 1 | L59: 12.0626 | M59: 1670.925253 | N59: 2070.1863 | O59: 0.01072727285 | P59: 71.8784
A60: 10 | B60: 129 | G60: 119 | H60: 25 | I60: 78 | J60: 3 | L60: PasAnalyse = 2 | M60: 1670.925253 | N60: 2111.9118 | O60: 0.01072727285 | P60: 41.7255
A61: 10 | B61: 92 | G61: 120 | H61: 25 | I61: 79 | J61: 1 | L61: PourcentagePointsFixes = 0.25 | M61: 1670.925253 | N61: 2157.0384 | O61: 0.01072727285 | P61: 45.1266
A62: 11 | B62: 106 | G62: 131 | H62: 26 | I62: 81 | J62: 2.236067977 | L62: PourcentageDistanceVoisin = 0.10 | M62: 1670.925253 | N62: 2190.5367 | O62: 0.01072727285 | P62: 33.4983
A63: 11 | B63: 133 | G63: 121 | H63: 25 | I63: 83 | J63: 2.236067977 | L63: AvanceAléatoire = False | M63: 1670.925253 | N63: 2254.8156 | O63: 0.01072727285 | P63: 64.2789
A64: 11 | B64: 141 | G64: 122 | H64: 25 | I64: 84 | J64: 1 | L64: NombreDeTraitments = 11 | M64: 1676.350846 | N64: 2319.942 | O64: 0.01400916386 | P64: 65.1264
A65: 11 | B65: 144 | G65: 123 | H65: 25 | I65: 87 | J65: 3 | M65: 1670.605229 | N65: 2337.6409 | O65: 0.01053369314 | P65: 17.6989
A66: 11 | B66: 156 | G66: 124 | H66: 25 | I66: 88 | J66: 1 | L66: VERSION 16 | M66: 1670.605229 | N66: 2357.647 | O66: 0.01053369314 | P66: 20.0061
A67: 11 | B67: 73 | G67: 125 | H67: 25 | I67: 89 | J67: =SQRT(((H66-H67)*(H66-H67))+((I66-I67)*(I66-I67))) -> 1 | M67: 1670.605229 | N67: 2376.2838 | O67: =((M67/$F$1)-1) -> 0.01053369314 | P67: 18.6368
A68: 11 | B68: 76 | G68: 126 | H68: 25 | I68: 94 | J68: 5 | L68: Niv: 8 / Tracé Num: | M68: 1670.605229 | N68: 2397.3983 | O68: 0.01053369314 | P68: =+N68-N67 -> 21.1145
A69: 11 | B69: 92 | G69: 127 | H69: 25 | I69: 96 | J69: 2 | L69: 12.0876 | M69: 1670.605229 | N69: 2419.9931 | O69: 0.01053369314 | P69: 22.5948
A70: 12 | B70: 109 | G70: 128 | H70: 25 | I70: 99 | J70: 3 | L70: PasAnalyse = 2 | M70: 1670.605229 | N70: 2440.0171 | O70: 0.01053369314 | P70: 20.024
A71: 12 | B71: 5 | G71: 95 | H71: 25 | I71: 100 | J71: 1 | L71: PourcentagePointsFixes = 0.25 | M71: 1670.605229 | N71: 2460.5162 | O71: 0.01053369314 | P71: 20.4991
A72: 14 | B72: 167 | G72: 129 | H72: 26 | I72: 102 | J72: 2.236067977 | L72: PourcentageDistanceVoisin = 0.25 | M72: 1670.605229 | N72: 2482.7996 | O72: 0.01053369314 | P72: 22.2834
A73: 15 | B73: 11 | G73: 96 | H73: 25 | I73: 104 | J73: 2.236067977 | L73: NombreDePreTraitments = 11 | M73: 1670.605229 | N73: 2505.62 | O73: 0.01053369314 | P73: 22.8204
A74: 15 | B74: 112 | G74: 97 | H74: 25 | I74: 105 | J74: 1 | L74: NombreDeTraitments = 31 | M74: 1670.605229 | N74: 2527.5757 | O74: 0.01053369314 | P74: 21.9557
A75: 15 | B75: 116 | G75: 98 | H75: 25 | I75: 108 | J75: 3 | M75: 1670.605229 | N75: 2547.5807 | O75: 0.01053369314 | P75: 20.005
A76: 15 | B76: 121 | G76: 99 | H76: 25 | I76: 109 | J76: 1 | L76: Niv: 8 / Tracé Num: 16+ | M76: 1672.668927 | N76: 2603.5274 | O76: 0.01178200477 | P76: 55.9467
A77: 15 | B77: 126 | G77: 101 | H77: 25 | I77: 110 | J77: 1 | L77: 12.0646 | M77: 1672.668927 | N77: 2635.0525 | O77: 0.01178200477 | P77: 31.5251
A78: 15 | B78: 130 | G78: 102 | H78: 25 | I78: 115 | J78: 5 | L78: PasAnalyse = 2 | M78: 1673.927859 | N78: 2679.9647 | O78: 0.01254352113 | P78: 44.9122
A79: 15 | B79: 142 | G79: 132 | H79: 28 | I79: 123 | J79: 8.544003745 | L79: PourcentagePointsFixes = 0.20 | M79: 1673.927859 | N79: 2729.8948 | O79: 0.01254352113 | P79: 49.9301
A80: 15 | B80: 145 | G80: 133 | H80: 28 | I80: 127 | J80: 4 | L80: PourcentageDistanceVoisin = 0.25 | M80: 1668.668801 | N80: 2765.6391 | O80: 0.009362365605 | P80: 35.7443
A81: 15 | B81: 147 | G81: 134 | H81: 28 | I81: 131 | J81: 4 | L81: NombreDePreTraitments = 11 | M81: 1676.553535 | N81: 2800.6035 | O81: 0.01413176848 | P81: 34.9644
A82: 15 | B82: 30 | G82: 135 | H82: 28 | I82: 135 | J82: 4 | L82: NombreDeTraitments = 31 | M82: 1676.517671 | N82: 2863.9526 | O82: 0.0141100748 | P82: 63.3491
A83: 15 | B83: 47 | G83: 136 | H83: 28 | I83: 141 | J83: 6 | M83: 1679.219782 | N83: 2934.8111 | O83: 0.01574455707 | P83: 70.8585
A84: 15 | B84: 64 | G84: 144 | H84: 31 | I84: 142 | J84: 3.16227766 | L84: Niv: 7 / Tracé Num: 25+ | M84: 1672.252116 | N84: 2976.3011 | O84: 0.01152987971 | P84: 41.49
A85: 15 | B85: 8 | G85: 137 | H85: 28 | I85: 145 | J85: 4.242640687 | L85: 12.0377 | M85: 1676.151553 | N85: 3029.3707 | O85: 0.01388861353 | P85: 53.0696
A86: 17 | B86: 104 | G86: 138 | H86: 28 | I86: 150 | J86: 5 | L86: PasAnalyse = 2 | M86: 1678.747174 | N86: 3080.338 | O86: 0.01545868055 | P86: 50.9673
A87: 17 | B87: 150 | G87: 139 | H87: 28 | I87: 156 | J87: 6 | L87: PourcentagePointsFixes = 0.30 | M87: 1678.747174 | N87: 3133.4614 | O87: 0.01545868055 | P87: 53.1234
A88: 17 | B88: 20 | G88: 140 | H88: 28 | I88: 160 | J88: 4 | L88: PourcentageDistanceVoisin = 0.10 | M88: 1677.452675 | N88: 3166.7311 | O88: 0.01467565002 | P88: 33.2697
A89: 17 | B89: 32 | G89: 148 | H89: 32 | I89: 160 | J89: 4 | L89: NombreDePreTraitments = 11 | M89: 1679.20108 | N89: 3205.1208 | O89: 0.01573324413 | P89: 38.3897
A90: 17 | B90: 49 | G90: 150 | H90: 33 | I90: 158 | J90: 2.236067977 | L90: NombreDeTraitments = 31 | M90: 1679.322917 | N90: 3272.8474 | O90: 0.01580694252 | P90: 67.7266
A91: 17 | B91: 85 | G91: 147 | H91: 32 | I91: 156 | J91: 2.236067977 | L91: idem pour le niveau 8 | M91: 1668.668801 | N91: 3295.5065 | O91: 0.009362365605 | P91: 22.6591
A92: 17 | B92: 87 | G92: 146 | H92: 32 | I92: 153 | J92: 3 | M92: 1668.4672 | N92: 3317.6861 | O92: 0.009240419067 | P92: 22.1796
A93: 17 | B93: 90 | G93: 149 | H93: 33 | I93: 154 | J93: 1.414213562 | M93: 1668.4672 | N93: 3339.4916 | O93: 0.009240419067 | P93: 21.8055
A94: 18 | B94: 38 | G94: 165 | H94: 38 | I94: 155 | J94: 5.099019514 | M94: 1668.4672 | N94: 3360.2364 | O94: 0.009240419067 | P94: 20.7448
A95: 18 | B95: 55 | G95: 166 | H95: 38 | I95: 159 | J95: 4 | M95: 1668.4672 | N95: 3383.0857 | O95: 0.009240419067 | P95: 22.8493
A96: 18 | B96: 70 | G96: 193 | H96: 42 | I96: 167 | J96: 8.94427191 | M96: 1668.4672 | N96: 3402.0485 | O96: 0.009240419067 | P96: 18.9628
A97: 25 | B97: 100 | G97: 238 | H97: 54 | I97: 167 | J97: 12 | M97: 1668.4672 | N97: 3423.061 | O97: 0.009240419067 | P97: 21.0125
A98: 25 | B98: 104 | G98: 240 | H98: 56 | I98: 152 | J98: 15.13274595 | M98: 1668.4672 | N98: 3444.1975 | O98: 0.009240419067 | P98: 21.1365
A99: 25 | B99: 105 | G99: 243 | H99: 57 | I99: 152 | J99: 1 | M99: 1668.4672 | N99: 3468.0243 | O99: 0.009240419067 | P99: 23.8268
A100: 25 | B100: 108 | G100: 253 | H100: 63 | I100: 148 | J100: 7.211102551 | M100: 1668.4672 | N100: 3488.372 | O100: 0.009240419067 | P100: 20.3477
A101: 25 | B101: 109 | G101: 254 | H101: 63 | I101: 150 | J101: 2 | M101: 1668.4672 | N101: 3511.9103 | O101: 0.009240419067 | P101: 23.5383
A102: 25 | B102: 11 | G102: 282 | H102: 71 | I102: 157 | J102: 10.63014581 | M102: 1668.4672 | N102: 3532.2083 | O102: 0.009240419067 | P102: 20.298
A103: 25 | B103: 110 | G103: 276 | H103: 70 | I103: 167 | J103: 10.04987562 | M103: 1663.429936 | N103: 3592.4148 | O103: 0.006193424526 | P103: 60.2065
A104: 25 | B104: 115 | G104: 318 | H104: 74 | I104: 162 | J104: 6.403124237 | M104: 1663.429936 | N104: 3652.7925 | O104: 0.006193424526 | P104: 60.3777
A105: 25 | B105: 12 | G105: 336 | H105: 80 | I105: 160 | J105: 6.32455532 | M105: 1663.228335 | N105: 3695.728 | O105: 0.006071477989 | P105: 42.9355
A106: 25 | B106: 14 | G106: 367 | H106: 87 | I106: 157 | J106: 7.615773106 | M106: 1659.755526 | N106: 3744.5666 | O106: 0.003970808175 | P106: 48.8386
A107: 25 | B107: 17 | G107: 334 | H107: 80 | I107: 147 | J107: 12.20655562 | M107: 1659.755526 | N107: 3777.9344 | O107: 0.003970808175 | P107: 33.3678
A108: 25 | B108: 21 | G108: 355 | H108: 86 | I108: 141 | J108: 8.485281374 | M108: 1659.755526 | N108: 3808.2645 | O108: 0.003970808175 | P108: 30.3301
A109: 25 | B109: 25 | G109: 346 | H109: 84 | I109: 138 | J109: 3.605551275 | M109: 1661.233114 | N109: 3876.5137 | O109: 0.004864587241 | P109: 68.2492
A110: 25 | B110: 28 | G110: 345 | H110: 84 | I110: 136 | J110: 2 | M110: 1671.301783 | N110: 3907.2149 | O110: 0.01095503205 | P110: 30.7012
A111: 25 | B111: 35 | G111: 344 | H111: 84 | I111: 133 | J111: 3 | M111: 1672.701452 | N111: 3976.628 | O111: 0.01180167888 | P111: 69.4131
A112: 25 | B112: 37 | G112: 333 | H112: 80 | I112: 135 | J112: 4.472135955 | M112: 1673.356938 | N112: 4007.9195 | O112: 0.01219817631 | P112: 31.2915
A113: 25 | B113: 40 | G113: 332 | H113: 80 | I113: 132 | J113: 3 | M113: 1667.413192 | N113: 4082.0541 | O113: 0.008602859237 | P113: 74.1346
A114: 25 | B114: 52 | G114: 331 | H114: 80 | I114: 129 | J114: 3 | M114: 1677.709609 | N114: 4115.7885 | O114: 0.01483106684 | P114: 33.7344
A115: 25 | B115: 54 | G115: 354 | H115: 86 | I115: 127 | J115: 6.32455532 | M115: 1664.511259 | N115: 4169.4113 | O115: 0.006847507149 | P115: 53.6228
A116: 25 | B116: 6 | G116: 343 | H116: 84 | I116: 125 | J116: 2.828427125 | M116: 1674.196605 | N116: 4259.0311 | O116: 0.01270608342 | P116: 89.6198
A117: 25 | B117: 60 | G117: 342 | H117: 84 | I117: 119 | J117: 6 | M117: 1659.755526 | N117: 4279.2149 | O117: 0.003970808175 | P117: 20.1838
A118: 25 | B118: 62 | G118: 341 | H118: 84 | I118: 115 | J118: 4 | M118: 1659.755526 | N118: 4299.6761 | O118: 0.003970808175 | P118: 20.4612
A119: 25 | B119: 74 | G119: 340 | H119: 81 | I119: 116 | J119: 3.16227766 | M119: 1659.755526 | N119: 4319.0537 | O119: 0.003970808175 | P119: 19.3776
A120: 25 | B120: 75 | G120: 339 | H120: 81 | I120: 112 | J120: 4 | M120: 1659.755526 | N120: 4338.2141 | O120: 0.003970808175 | P120: 19.1604
A121: 25 | B121: 78 | G121: 330 | H121: 80 | I121: 105 | J121: 7.071067812 | M121: 1659.755526 | N121: 4359.8954 | O121: 0.003970808175 | P121: 21.6813
A122: 25 | B122: 79 | G122: 353 | H122: 86 | I122: 103 | J122: 6.32455532 | M122: 1659.755526 | N122: 4381.739 | O122: 0.003970808175 | P122: 21.8436
A123: 25 | B123: 83 | G123: 352 | H123: 86 | I123: 101 | J123: 2 | M123: 1659.755526 | N123: 4405.3288 | O123: 0.003970808175 | P123: 23.5898
A124: 25 | B124: 84 | G124: 374 | H124: 99 | I124: 104 | J124: 13.34166406 | M124: 1659.755526 | N124: 4425.7645 | O124: 0.003970808175 | P124: 20.4357
A125: 25 | B125: 87 | G125: 373 | H125: 99 | I125: 102 | J125: 2 | M125: 1659.755526 | N125: 4444.4694 | O125: 0.003970808175 | P125: 18.7049
A126: 25 | B126: 88 | G126: 372 | H126: 87 | I126: 95 | J126: 13.89244399 | M126: 1659.755526 | N126: 4463.4714 | O126: 0.003970808175 | P126: 19.002
A127: 25 | B127: 89 | G127: 366 | H127: 86 | I127: 94 | J127: 1.414213562 | M127: 1659.755526 | N127: 4485.5357 | O127: 0.003970808175 | P127: 22.0643
A128: 25 | B128: 94 | G128: 365 | H128: 86 | I128: 91 | J128: 3 | M128: 1659.553926 | N128: 4550.3121 | O128: 0.003848861637 | P128: 64.7764
A129: 25 | B129: 96 | G129: 371 | H129: 87 | I129: 89 | J129: 2.236067977 | M129: 1662.308366 | N129: 4590.1858 | O129: 0.005514997552 | P129: 39.8737
A130: 25 | B130: 99 | G130: 363 | H130: 86 | I130: 85 | J130: 4.123105626 | M130: 1659.511544 | N130: 4644.3428 | O130: 0.003823225182 | P130: 54.157
A131: 26 | B131: 102 | G131: 362 | H131: 86 | I131: 82 | J131: =SQRT(((H130-H131)*(H130-H131))+((I130-I131)*(I130-I131))) -> 3 | M131: 1657.81114 | N131: 4694.6571 | O131: =((M131/$F$1)-1) -> 0.002794666635 | P131: 50.3143
A132: 26 | B132: 53 | G132: 361 | H132: 86 | I132: 80 | J132: 2 | M132: 1660.336318 | N132: 4746.0054 | O132: 0.004322123727 | P132: =+N132-N131 -> 51.3483
A133: 26 | B133: 81 | G133: 379 | H133: 99 | I133: 85 | J133: 13.92838828 | M133: 1660.336318 | N133: 4790.0802 | O133: 0.004322123727 | P133: 44.0748
A134: 28 | B134: 123 | G134: 378 | H134: 99 | I134: 68 | J134: 17 | M134: 1662.474162 | N134: 4820.7467 | O134: 0.005615285549 | P134: 30.6665
A135: 28 | B135: 127 | G135: 370 | H135: 87 | I135: 74 | J135: 13.41640786 | M135: 1664.883164 | N135: 4857.0665 | O135: 0.007072468551 | P135: 36.3198
A136: 28 | B136: 131 | G136: 360 | H136: 86 | I136: 73 | J136: 1.414213562 | M136: 1664.883164 | N136: 4922.3722 | O136: 0.007072468551 | P136: 65.3057
A137: 28 | B137: 135 | G137: 359 | H137: 86 | I137: 70 | J137: 3 | M137: 1663.256496 | N137: 4954.7482 | O137: 0.006088512281 | P137: 32.376
A138: 28 | B138: 141 | G138: 369 | H138: 87 | I138: 68 | J138: 2.236067977 | M138: 1667.451168 | N138: 5024.6138 | O138: 0.008625830884 | P138: 69.8656
A139: 28 | B139: 145 | G139: 358 | H139: 86 | I139: 64 | J139: 4.123105626 | M139: 1683.713432 | N139: 5054.4689 | O139: 0.01846272454 | P139: 29.8551
A140: 28 | B140: 150 | G140: 350 | H140: 84 | I140: 59 | J140: 5.385164807 | M140: 1664.647811 | N140: 5088.6915 | O140: 0.006930105912 | P140: 34.2226
A141: 28 | B141: 156 | G141: 349 | H141: 84 | I141: 55 | J141: 4 | M141: 1670.657788 | N141: 5139.1083 | O141: 0.0105654856 | P141: 50.4168
A142: 28 | B142: 160 | G142: 348 | H142: 84 | I142: 50 | J142: 5 | M142: 1657.81114 | N142: 5159.8877 | O142: 0.002794666635 | P142: 20.7794
A143: 28 | B143: 65 | G143: 347 | H143: 84 | I143: 45 | J143: 5 | M143: 1657.81114 | N143: 5180.8299 | O143: 0.002794666635 | P143: 20.9422
A144: 28 | B144: 68 | G144: 357 | H144: 86 | I144: 40 | J144: 5.385164807 | M144: 1657.81114 | N144: 5201.3135 | O144: 0.002794666635 | P144: 20.4836
A145: 28 | B145: 70 | G145: 377 | H145: 99 | I145: 51 | J145: 17.02938637 | M145: 1657.81114 | N145: 5221.3452 | O145: 0.002794666635 | P145: 20.0317
A146: 31 | B146: 142 | G146: 376 | H146: 99 | I146: 34 | J146: 17 | M146: 1657.81114 | N146: 5241.429 | O146: 0.002794666635 | P146: 20.0838
A147: 32 | B147: 10 | G147: 375 | H147: 99 | I147: 17 | J147: 17 | M147: 1657.81114 | N147: 5261.2019 | O147: 0.002794666635 | P147: 19.7729
A148: 32 | B148: 153 | G148: 368 | H148: 87 | I148: 25 | J148: 14.4222051 | M148: 1657.81114 | N148: 5282.5929 | O148: 0.002794666635 | P148: 21.391
A149: 32 | B149: 156 | G149: 356 | H149: 86 | I149: 29 | J149: 4.123105626 | M149: 1657.81114 | N149: 5303.871 | O149: 0.002794666635 | P149: 21.2781
A150: 32 | B150: 160 | G150: 337 | H150: 80 | I150: 31 | J150: 6.32455532 | M150: 1657.81114 | N150: 5322.9101 | O150: 0.002794666635 | P150: 19.0391
A151: 33 | B151: 154 | G151: 335 | H151: 80 | I151: 15 | J151: 16 | M151: 1657.81114 | N151: 5341.5581 | O151: 0.002794666635 | P151: 18.648
A152: 33 | B152: 158 | G152: 364 | H152: 86 | I152: 9 | J152: 8.485281374 | M152: 1657.81114 | N152: 5361.3891 | O152: 0.002794666635 | P152: 19.831
A153: 34 | B153: 117 | G153: 351 | H153: 84 | I153: 6 | J153: 3.605551275 | M153: 1657.567157 | N153: 5436.8623 | O153: 0.002647083643 | P153: 75.4732
A154: 34 | B154: 121 | G154: 338 | H154: 80 | I154: 5 | J154: 4.123105626 | M154: 1659.511544 | N154: 5470.4196 | O154: 0.003823225182 | P154: 33.5573
A155: 34 | B155: 52 | G155: 322 | H155: 74 | I155: 6 | J155: 6.08276253 | M155: 1660.580301 | N155: 5508.449 | O155: 0.004469706719 | P155: 38.0294
A156: 34 | B156: 56 | G156: 301 | H156: 71 | I156: 9 | J156: 4.242640687 | M156: 1662.020563 | N156: 5570.9956 | O156: 0.00534090781 | P156: 62.5466
A157: 34 | B157: 64 | G157: 247 | H157: 62 | I157: 10 | J157: 9.055385138 | M157: 1662.020563 | N157: 5618.2549 | O157: 0.00534090781 | P157: 47.2593
A158: 34 | B158: 67 | G158: 246 | H158: 57 | I158: 9 | J158: 5.099019514 | M158: 1666.303894 | N158: 5659.1214 | O158: 0.007931855603 | P158: 40.8665
A159: 35 | B159: 128 | G159: 241 | H159: 56 | I159: 9 | J159: 1 | M159: 1666.303894 | N159: 5706.1098 | O159: 0.007931855603 | P159: 46.9884
A160: 35 | B160: 132 | G160: 244 | H160: 57 | I160: 5 | J160: 4.123105626 | M160: 1661.77658 | N160: 5757.4622 | O160: 0.005193324817 | P160: 51.3524
A161: 38 | B161: 11 | G161: 237 | H161: 54 | I161: 0 | J161: 5.830951895 | M161: 1679.746768 | N161: 5791.9013 | O161: 0.01606332595 | P161: 34.4391
A162: 38 | B162: 131 | G162: 236 | H162: 51 | I162: 7 | J162: 7.615773106 | M162: 1678.538559 | N162: 5888.5755 | O162: 0.01533249112 | P162: 96.6742
A163: 38 | B163: 135 | G163: 194 | H163: 48 | I163: 10 | J163: 4.242640687 | M163: 1668.056285 | N163: 5938.8601 | O163: 0.008991860553 | P163: 50.2846
A164: 38 | B164: 141 | G164: 209 | H164: 48 | I164: 17 | J164: 7 | M164: 1657.567157 | N164: 5959.8782 | O164: 0.002647083643 | P164: 21.0181
A165: 38 | B165: 145 | G165: 210 | H165: 48 | I165: 18 | J165: 1 | M165: 1657.567157 | N165: 5979.1098 | O165: 0.002647083643 | P165: 19.2316
A166: 38 | B166: 150 | G166: 233 | H166: 49 | I166: 20 | J166: 2.236067977 | M166: 1657.567157 | N166: 6001.7371 | O166: 0.002647083643 | P166: 22.6273
A167: 38 | B167: 155 | G167: 211 | H167: 48 | I167: 22 | J167: 2.236067977 | M167: 1657.567157 | N167: 6021.3476 | O167: 0.002647083643 | P167: 19.6105
A168: 38 | B168: 159 | G168: 212 | H168: 48 | I168: 23 | J168: 1 | M168: 1657.567157 | N168: 6040.763 | O168: 0.002647083643 | P168: 19.4154
A169: 38 | B169: 24 | G169: 213 | H169: 48 | I169: 26 | J169: 3 | M169: 1657.567157 | N169: 6062.6055 | O169: 0.002647083643 | P169: 21.8425
A170: 38 | B170: 36 | G170: 214 | H170: 48 | I170: 27 | J170: 1 | M170: 1657.567157 | N170: 6082.6155 | O170: 0.002647083643 | P170: 20.01
A171: 38 | B171: 53 | G171: 215 | H171: 48 | I171: 28 | J171: 1 | M171: 1657.567157 | N171: 6104.3156 | O171: 0.002647083643 | P171: 21.7001
A172: 38 | B172: 65 | G172: 216 | H172: 48 | I172: 33 | J172: 5 | M172: 1657.567157 | N172: 6122.265 | O172: 0.002647083643 | P172: 17.9494
A173: 38 | B173: 68 | G173: 217 | H173: 48 | I173: 35 | J173: 2 | M173: 1657.567157 | N173: 6141.5086 | O173: 0.002647083643 | P173: 19.2436
A174: 38 | B174: 70 | G174: 218 | H174: 48 | I174: 38 | J174: 3 | M174: 1657.567157 | N174: 6161.3906 | O174: 0.002647083643 | P174: 19.882
A175: 40 | B175: 105 | G175: 219 | H175: 48 | I175: 39 | J175: 1 | M175: 1656.982183 | N175: 6239.9352 | O175: 0.002293238228 | P175: 78.5446
A176: 40 | B176: 108 | G176: 234 | H176: 49 | I176: 41 | J176: 2.236067977 | M176: 1659.783188 | N176: 6300.4762 | O176: 0.00398754046 | P176: 60.541
A177: 40 | B177: 115 | G177: 220 | H177: 48 | I177: 43 | J177: 2.236067977 | M177: 1656.536599 | N177: 6331.8373 | O177: 0.002023708698 | P177: 31.3611
A178: 40 | B178: 14 | G178: 221 | H178: 48 | I178: 44 | J178: 1 | M178: 1656.536599 | N178: 6381.0672 | O178: 0.002023708698 | P178: 49.2299
A179: 40 | B179: 25 | G179: 222 | H179: 48 | I179: 47 | J179: 3 | M179: 1659.755526 | N179: 6408.3986 | O179: 0.003970808175 | P179: 27.3314
A180: 40 | B180: 37 | G180: 223 | H180: 48 | I180: 48 | J180: 1 | M180: 1662.518068 | N180: 6474.1195 | O180: 0.005641844232 | P180: 65.7209
A181: 40 | B181: 54 | G181: 224 | H181: 48 | I181: 49 | J181: 1 | M181: 1660.898618 | N181: 6506.1765 | O181: 0.004662253593 | P181: 32.057
A182: 40 | B182: 6 | G182: 225 | H182: 48 | I182: 54 | J182: 5 | M182: 1664.357456 | N182: 6571.2995 | O182: 0.006754472927 | P182: 65.123
A183: 40 | B183: 75 | G183: 226 | H183: 48 | I183: 56 | J183: 2 | M183: 1673.346449 | N183: 6628.4646 | O183: 0.01219183187 | P183: 57.1651
A184: 40 | B184: 78 | G184: 245 | H184: 57 | I184: 58 | J184: 9.219544457 | M184: 1673.346449 | N184: 6702.3921 | O184: 0.01219183187 | P184: 73.9275
A185: 40 | B185: 84 | G185: 264 | H185: 63 | I185: 56 | J185: 6.32455532 | M185: 1673.346449 | N185: 6738.6783 | O185: 0.01219183187 | P185: 36.2862
A186: 40 | B186: 87 | G186: 263 | H186: 63 | I186: 54 | J186: 2 | M186: 1661.059175 | N186: 6785.0388 | O186: 0.004759372989 | P186: 46.3605
A187: 40 | B187: 94 | G187: 272 | H187: 64 | I187: 48 | J187: 6.08276253 | M187: 1679.699249 | N187: 6829.3964 | O187: 0.01603458215 | P187: 44.3576
A188: 40 | B188: 96 | G188: 262 | H188: 63 | I188: 47 | J188: 1.414213562 | M188: 1656.536599 | N188: 6849.775 | O188: 0.002023708698 | P188: 20.3786
A189: 40 | B189: 99 | G189: 261 | H189: 63 | I189: 44 | J189: 3 | M189: 1656.536599 | N189: 6870.0096 | O189: 0.002023708698 | P189: 20.2346
A190: 41 | B190: 103 | G190: 271 | H190: 64 | I190: 42 | J190: 2.236067977 | M190: 1656.536599 | N190: 6889.8883 | O190: 0.002023708698 | P190: 19.8787
A191: 41 | B191: 109 | G191: 260 | H191: 63 | I191: 38 | J191: 4.123105626 | M191: 1656.536599 | N191: 6914.3542 | O191: 0.002023708698 | P191: 24.4659
A192: 41 | B192: 43 | G192: 259 | H192: 63 | I192: 35 | J192: 3 | M192: 1656.536599 | N192: 6932.9145 | O192: 0.002023708698 | P192: 18.5603
A193: 41 | B193: 82 | G193: 258 | H193: 63 | I193: 33 | J193: 2 | M193: 1656.536599 | N193: 6953.7799 | O193: 0.002023708698 | P193: 20.8654
A194: 41 | B194: 88 | G194: 270 | H194: 64 | I194: 27 | J194: 6.08276253 | M194: 1656.536599 | N194: 6979.7595 | O194: 0.002023708698 | P194: 25.9796
A195: 42 | B195: 167 | G195: 257 | H195: 63 | I195: 26 | J195: =SQRT(((H194-H195)*(H194-H195))+((I194-I195)*(I194-I195))) -> 1.414213562 | M195: 1656.536599 | N195: 6998.6475 | O195: =((M195/$F$1)-1) -> 0.002023708698 | P195: 18.888
A196: 48 | B196: 10 | G196: 256 | H196: 63 | I196: 23 | J196: 3 | M196: 1656.536599 | N196: 7019.1509 | O196: 0.002023708698 | P196: =+N196-N195 -> 20.5034
A197: 48 | B197: 105 | G197: 269 | H197: 64 | I197: 21 | J197: 2.236067977 | M197: 1656.536599 | N197: 7040.8026 | O197: 0.002023708698 | P197: 21.6517
A198: 48 | B198: 106 | G198: 255 | H198: 63 | I198: 17 | J198: 4.123105626 | M198: 1656.536599 | N198: 7061.1174 | O198: 0.002023708698 | P198: 20.3148
A199: 48 | B199: 107 | G199: 283 | H199: 71 | I199: 25 | J199: 11.3137085 | M199: 1653.129644 | N199: 7132.7359 | O199: -3.712712544e-05 | P199: 71.6185
A200: 48 | B200: 108 | G200: 284 | H200: 71 | I200: 28 | J200: 3
... 183 more rows

Sheet defi131 (-0,14%)
A1: X réel | B1: Y réel | C1: X graphique | D1: Y graphique | E1: Bistance à battre : | F1: 567.2029 | G1: Ordre | H1: X réel | I1: Y réel | J1: Distance : | K1: 566.4212 | L1: Niv: 8 | M1: Historique | N1: Temps | O1: Ecart | P1: =MIN(M:M) -> 566.4212 | Q1: =((P1/$F$1)-1) -> -0.001378166401 | R1: http://www.math.uwaterloo.ca/tsp/vlsi/xqf131.tsp
A2: 0 | B2: 13 | G2: 0 | H2: 0 | I2: 13 | J2: Détail : | K2: =SUM(J:J) -> 566.4212 | L2: Durée : 1715,52734375 | M2: 586.317911 | N2: 0.5579 | O2: =((M2/$F$1)-1) -> 0.03370048179 | P2: =N2 -> 0.5579
A3: 0 | B3: 26 | G3: 5 | H3: 5 | I3: 13 | J3: =SQRT(((H2-H3)*(H2-H3))+((I2-I3)*(I2-I3))) -> 5 | K3: =(+K1/F1)-1 -> -0.001378166401 | L3: PasAnalyse = 2 | M3: 568.4808111 | N3: 2.4183 | O3: =((M3/$F$1)-1) -> 0.002253005265 | P3: =+N3-N2 -> 1.8604
A4: 0 | B4: 27 | G4: 11 | H4: 5 | I4: 8 | J4: 5 | L4: PourcentagePointsFixes = 0.2 | M4: 568.4808111 | N4: 4.0516 | O4: =((M4/$F$1)-1) -> 0.002253005265 | P4: =+N4-N3 -> 1.6333
A5: 0 | B5: 39 | G5: 4 | H5: 2 | I5: 0 | J5: 8.544003745 | L5: PourcentageDistanceVoisin = 0.5 | M5: 568.4808111 | N5: 5.8022 | O5: 0.002253005265 | P5: 1.7506
A6: 2 | B6: 0 | G6: 12 | H6: 8 | I6: 0 | J6: 6 | L6: AvanceAléatoire = True | M6: 568.3840474 | N6: 7.4571 | O6: 0.002082407203 | P6: 1.6549
A7: 5 | B7: 13 | G7: 17 | H7: 12 | I7: 5 | J7: 6.403124237 | L7: Version 10 | M7: 568.3840474 | N7: 9.1489 | O7: 0.002082407203 | P7: 1.6918
A8: 5 | B8: 19 | G8: 13 | H8: 9 | I8: 10 | J8: 5.830951895 | M8: 568.3840474 | N8: 11.1759 | O8: 0.002082407203 | P8: 2.027
A9: 5 | B9: 25 | G9: 14 | H9: 10 | I9: 10 | J9: 1 | L9: Version 10 / 10 traitements | M9: 568.229174 | N9: 13.0332 | O9: 0.001809359499 | P9: 1.8573
A10: 5 | B10: 31 | G10: 15 | H10: 11 | I10: 10 | J10: 1 | M10: 568.229174 | N10: 14.6762 | O10: 0.001809359499 | P10: 1.643
A11: 5 | B11: 37 | G11: 16 | H11: 12 | I11: 10 | J11: 1 | L11: Niv: 7 / Tracé Num: 6 | M11: 568.229174 | N11: 16.6354 | O11: 0.001809359499 | P11: 1.9592
A12: 5 | B12: 43 | G12: 24 | H12: 15 | I12: 8 | J12: 3.605551275 | L12: Distance : 12,254 | M12: 568.229174 | N12: 18.4405 | O12: 0.001809359499 | P12: 1.8051
A13: 5 | B13: 8 | G13: 18 | H13: 15 | I13: 13 | J13: 5 | L13: PasAnalyse = 2 | M13: 568.229174 | N13: 20.0922 | O13: 0.001809359499 | P13: 1.6517
A14: 8 | B14: 0 | G14: 26 | H14: 18 | I14: 13 | J14: 3 | L14: PourcentagePointsFixes = 0.2 | M14: 568.229174 | N14: 21.682 | O14: 0.001809359499 | P14: 1.5898
A15: 9 | B15: 10 | G15: 25 | H15: 18 | I15: 11 | J15: 2 | L15: PourcentageDistanceVoisin = 0.05 | M15: 568.229174 | N15: 23.4292 | O15: 0.001809359499 | P15: 1.7472
A16: 10 | B16: 10 | G16: 44 | H16: 25 | I16: 11 | J16: 7 | L16: AvanceAléatoire = False | M16: 568.229174 | N16: 25.5702 | O16: 0.001809359499 | P16: 2.141
A17: 11 | B17: 10 | G17: 52 | H17: 25 | I17: 9 | J17: 2 | M17: 568.229174 | N17: 27.4166 | O17: 0.001809359499 | P17: 1.8464
A18: 12 | B18: 10 | G18: 73 | H18: 34 | I18: 5 | J18: 9.848857802 | L18: Niv: 7 / Tracé Num: 10 | M18: 568.229174 | N18: 29.3804 | O18: 0.001809359499 | P18: 1.9638
A19: 12 | B19: 5 | G19: 63 | H19: 33 | I19: 15 | J19: 10.04987562 | L19: Distance : 12,206 | M19: 568.229174 | N19: 31.188 | O19: 0.001809359499 | P19: 1.8076
A20: 15 | B20: 13 | G20: 67 | H20: 34 | I20: 15 | J20: 1 | L20: PasAnalyse = 2 | M20: 568.229174 | N20: 32.9258 | O20: 0.001809359499 | P20: 1.7378
A21: 15 | B21: 19 | G21: 74 | H21: 35 | I21: 17 | J21: 2.236067977 | L21: PourcentagePointsFixes = 0.30 | M21: 568.229174 | N21: 34.8271 | O21: 0.001809359499 | P21: 1.9013
A22: 15 | B22: 25 | G22: 76 | H22: 38 | I22: 16 | J22: 3.16227766 | L22: PourcentageDistanceVoisin = 0.10 | M22: 568.229174 | N22: 36.6385 | O22: 0.001809359499 | P22: 1.8114
A23: 15 | B23: 31 | G23: 77 | H23: 38 | I23: 20 | J23: 4 | L23: AvanceAléatoire = False | M23: 568.229174 | N23: 38.5192 | O23: 0.001809359499 | P23: 1.8807
A24: 15 | B24: 37 | G24: 80 | H24: 40 | I24: 22 | J24: 2.828427125 | M24: 568.229174 | N24: 40.4143 | O24: 0.001809359499 | P24: 1.8951
A25: 15 | B25: 43 | G25: 81 | H25: 41 | I25: 23 | J25: 1.414213562 | M25: 567.2918326 | N25: 42.1729 | O25: 0.0001567915425 | P25: 1.7586
A26: 15 | B26: 8 | G26: 86 | H26: 48 | I26: 22 | J26: 7.071067812 | L26: Niv: 8 / Tracé Num: 8 | M26: 567.2918326 | N26: 44.0518 | O26: 0.0001567915425 | P26: 1.8789
A27: 18 | B27: 11 | G27: 87 | H27: 48 | I27: 27 | J27: 5 | L27: Distance : 12,257 | M27: 567.2918326 | N27: 45.8422 | O27: 0.0001567915425 | P27: 1.7904
A28: 18 | B28: 13 | G28: 91 | H28: 56 | I28: 25 | J28: 8.246211251 | L28: PasAnalyse = 2 | M28: 567.2918326 | N28: 47.6723 | O28: 0.0001567915425 | P28: 1.8301
A29: 18 | B29: 15 | G29: 93 | H29: 57 | I29: 25 | J29: 1 | L29: PourcentagePointsFixes = 0.20 | M29: 567.2918326 | N29: 49.3133 | O29: 0.0001567915425 | P29: 1.641
A30: 18 | B30: 17 | G30: 98 | H30: 64 | I30: 22 | J30: 7.615773106 | L30: PourcentageDistanceVoisin = 0.05 | M30: 567.2918326 | N30: 51.3502 | O30: 0.0001567915425 | P30: 2.0369
A31: 18 | B31: 19 | G31: 92 | H31: 57 | I31: 12 | J31: 12.20655562 | L31: AvanceAléatoire = False | M31: 567.2918326 | N31: 53.6466 | O31: 0.0001567915425 | P31: 2.2964
A32: 18 | B32: 21 | G32: 88 | H32: 48 | I32: 6 | J32: 10.81665383 | M32: 567.2918326 | N32: 55.4854 | O32: 0.0001567915425 | P32: 1.8388
A33: 18 | B33: 23 | G33: 97 | H33: 63 | I33: 6 | J33: 15 | L33: Niv: 8 / Tracé Num: 10 | M33: 567.2918326 | N33: 57.1152 | O33: 0.0001567915425 | P33: 1.6298
A34: 18 | B34: 25 | G34: 111 | H34: 74 | I34: 6 | J34: 11 | L34: Distance : 12,206 | M34: 567.2918326 | N34: 58.9889 | O34: 0.0001567915425 | P34: 1.8737
A35: 18 | B35: 27 | G35: 122 | H35: 80 | I35: 5 | J35: 6.08276253 | L35: PasAnalyse = 2 | M35: 567.2918326 | N35: 60.8597 | O35: 0.0001567915425 | P35: 1.8708
A36: 18 | B36: 29 | G36: 129 | H36: 84 | I36: 6 | J36: 4.123105626 | L36: PourcentagePointsFixes = 0.30 | M36: 567.2918326 | N36: 62.5353 | O36: 0.0001567915425 | P36: 1.6756
A37: 18 | B37: 31 | G37: 120 | H37: 80 | I37: 10 | J37: 5.656854249 | L37: PourcentageDistanceVoisin = 0.10 | M37: 567.2918326 | N37: 64.5113 | O37: 0.0001567915425 | P37: 1.976
A38: 18 | B38: 33 | G38: 117 | H38: 79 | I38: 10 | J38: 1 | L38: AvanceAléatoire = False | M38: 567.2918326 | N38: 66.2844 | O38: 0.0001567915425 | P38: 1.7731
A39: 18 | B39: 35 | G39: 113 | H39: 78 | I39: 10 | J39: 1 | M39: 567.2918326 | N39: 68.0523 | O39: 0.0001567915425 | P39: 1.7679
A40: 18 | B40: 37 | G40: 104 | H40: 74 | I40: 12 | J40: 4.472135955 | L40: VERSION 13 | M40: 567.2918326 | N40: 69.9242 | O40: 0.0001567915425 | P40: 1.8719
A41: 18 | B41: 39 | G41: 99 | H41: 71 | I41: 11 | J41: 3.16227766 | M41: 567.2918326 | N41: 71.6896 | O41: 0.0001567915425 | P41: 1.7654
A42: 18 | B42: 41 | G42: 100 | H42: 71 | I42: 13 | J42: 2 | L42: Niv: 8 / Tracé Num: 6 + | M42: 566.4212 | N42: 73.5056 | O42: -0.001378166401 | P42: 1.816
A43: 18 | B43: 42 | G43: 101 | H43: 71 | I43: 16 | J43: 3 | L43: Distance : 12,1713 | M43: 566.4212 | N43: 75.2755 | O43: -0.001378166401 | P43: 1.7699
A44: 18 | B44: 44 | G44: 105 | H44: 74 | I44: 16 | J44: 3 | L44: PasAnalyse = 2 | M44: 566.4212 | N44: 76.652 | O44: -0.001378166401 | P44: 1.3765
A45: 18 | B45: 45 | G45: 106 | H45: 74 | I45: 20 | J45: 4 | L45: PourcentagePointsFixes = 0.20 | M45: 566.4212 | N45: 78.2411 | O45: -0.001378166401 | P45: 1.5891
A46: 25 | B46: 11 | G46: 107 | H46: 74 | I46: 24 | J46: 4 | L46: PourcentageDistanceVoisin = 0.10 | M46: 566.4212 | N46: 79.8714 | O46: -0.001378166401 | P46: 1.6303
A47: 25 | B47: 15 | G47: 112 | H47: 77 | I47: 21 | J47: 4.242640687 | L47: AvanceAléatoire = False | M47: 566.4212 | N47: 81.309 | O47: -0.001378166401 | P47: 1.4376
A48: 25 | B48: 22 | G48: 123 | H48: 81 | I48: 17 | J48: 5.656854249 | M48: 566.4212 | N48: 83.1765 | O48: -0.001378166401 | P48: 1.8675
A49: 25 | B49: 23 | G49: 124 | H49: 84 | I49: 20 | J49: 4.242640687 | L49: Niv: 8 / Tracé Num: 13 + | M49: 566.4212 | N49: 84.7805 | O49: -0.001378166401 | P49: 1.604
A50: 25 | B50: 24 | G50: 125 | H50: 84 | I50: 24 | J50: 4 | L50: Distance : 12,1006 | M50: 566.4212 | N50: 86.6846 | O50: -0.001378166401 | P50: 1.9041
A51: 25 | B51: 26 | G51: 130 | H51: 107 | I51: 27 | J51: 23.19482701 | L51: PasAnalyse = 2 | M51: 566.4212 | N51: 88.3118 | O51: -0.001378166401 | P51: 1.6272
A52: 25 | B52: 28 | G52: 126 | H52: 84 | I52: 29 | J52: 23.08679276 | L52: PourcentagePointsFixes = 0.20 | M52: 566.4212 | N52: 89.9153 | O52: -0.001378166401 | P52: 1.6035
A53: 25 | B53: 29 | G53: 127 | H53: 84 | I53: 34 | J53: 5 | L53: PourcentageDistanceVoisin = 0.20 | M53: 566.4212 | N53: 91.9822 | O53: -0.001378166401 | P53: 2.0669
A54: 25 | B54: 9 | G54: 128 | H54: 84 | I54: 38 | J54: 4 | L54: AvanceAléatoire = False | M54: 566.4212 | N54: 93.8447 | O54: -0.001378166401 | P54: 1.8625
A55: 28 | B55: 16 | G55: 121 | H55: 80 | I55: 41 | J55: 5 | M55: 566.4212 | N55: 95.5496 | O55: -0.001378166401 | P55: 1.7049
A56: 28 | B56: 20 | G56: 116 | H56: 78 | I56: 39 | J56: 2.828427125 | L56: VERSION 14 | M56: 566.4212 | N56: 97.0535 | O56: -0.001378166401 | P56: 1.5039
A57: 28 | B57: 28 | G57: 119 | H57: 79 | I57: 37 | J57: 2.236067977 | M57: 566.4212 | N57: 98.7854 | O57: -0.001378166401 | P57: 1.7319
A58: 28 | B58: 30 | G58: 115 | H58: 78 | I58: 35 | J58: 2.236067977 | L58: Niv: 8 / Tracé Num: 11 + | M58: 566.4212 | N58: 100.4235 | O58: -0.001378166401 | P58: 1.6381
A59: 28 | B59: 34 | G59: 118 | H59: 79 | I59: 33 | J59: 2.236067977 | L59: 12.0626 | M59: 566.4212 | N59: 102.386 | O59: -0.001378166401 | P59: 1.9625
A60: 28 | B60: 40 | G60: 114 | H60: 78 | I60: 32 | J60: 1.414213562 | L60: PasAnalyse = 2 | M60: 566.4212 | N60: 104.1316 | O60: -0.001378166401 | P60: 1.7456
A61: 28 | B61: 43 | G61: 108 | H61: 74 | I61: 29 | J61: 5 | L61: PourcentagePointsFixes = 0.25 | M61: 566.4212 | N61: 105.8012 | O61: -0.001378166401 | P61: 1.6696
A62: 28 | B62: 47 | G62: 109 | H62: 74 | I62: 35 | J62: 6 | L62: PourcentageDistanceVoisin = 0.10 | M62: 566.4212 | N62: 107.8881 | O62: -0.001378166401 | P62: 2.0869
A63: 32 | B63: 26 | G63: 110 | H63: 74 | I63: 39 | J63: 4 | L63: AvanceAléatoire = False | M63: 566.4212 | N63: 109.7726 | O63: -0.001378166401 | P63: 1.8845
A64: 32 | B64: 31 | G64: 102 | H64: 71 | I64: 45 | J64: 6.708203932 | L64: NombreDeTraitments = 11 | M64: 566.4212 | N64: 111.5967 | O64: -0.001378166401 | P64: 1.8241
A65: 33 | B65: 15 | G65: 103 | H65: 71 | I65: 47 | J65: 2 | M65: 566.4212 | N65: 113.2461 | O65: -0.001378166401 | P65: 1.6494
A66: 33 | B66: 26 | G66: 96 | H66: 61 | I66: 47 | J66: 10 | L66: VERSION 16 | M66: 566.4212 | N66: 114.9834 | O66: -0.001378166401 | P66: 1.7373
A67: 33 | B67: 29 | G67: 95 | H67: 61 | I67: 45 | J67: =SQRT(((H66-H67)*(H66-H67))+((I66-I67)*(I66-I67))) -> 2 | M67: 566.4212 | N67: 116.7658 | O67: -0.001378166401 | P67: 1.7824
A68: 33 | B68: 31 | G68: 94 | H68: 57 | I68: 44 | J68: 4.123105626 | L68: Niv: 8 / Tracé Num: | M68: 566.4212 | N68: 118.4163 | O68: =((M68/$F$1)-1) -> -0.001378166401 | P68: =+N68-N67 -> 1.6505
A69: 34 | B69: 15 | G69: 90 | H69: 51 | I69: 47 | J69: 6.708203932 | L69: 12.0876 | M69: 566.4212 | N69: 119.9506 | O69: -0.001378166401 | P69: 1.5343
A70: 34 | B70: 26 | G70: 89 | H70: 51 | I70: 45 | J70: 2 | L70: PasAnalyse = 2 | M70: 566.4212 | N70: 121.3396 | O70: -0.001378166401 | P70: 1.389
A71: 34 | B71: 29 | G71: 85 | H71: 41 | I71: 36 | J71: 13.45362405 | L71: PourcentagePointsFixes = 0.25 | M71: 566.4212 | N71: 123.1444 | O71: -0.001378166401 | P71: 1.8048
A72: 34 | B72: 31 | G72: 84 | H72: 41 | I72: 35 | J72: 1 | L72: PourcentageDistanceVoisin = 0.25 | M72: 566.4212 | N72: 124.9426 | O72: -0.001378166401 | P72: 1.7982
A73: 34 | B73: 38 | G73: 83 | H73: 41 | I73: 34 | J73: 1 | L73: NombreDePreTraitments = 11 | M73: 566.4212 | N73: 126.7531 | O73: -0.001378166401 | P73: 1.8105
A74: 34 | B74: 41 | G74: 82 | H74: 41 | I74: 32 | J74: 2 | L74: NombreDeTraitments = 31 | M74: 566.4212 | N74: 128.5693 | O74: -0.001378166401 | P74: 1.8162
A75: 34 | B75: 5 | G75: 78 | H75: 38 | I75: 30 | J75: 3.605551275 | M75: 566.4212 | N75: 130.5018 | O75: -0.001378166401 | P75: 1.9325
A76: 35 | B76: 17 | G76: 79 | H76: 38 | I76: 34 | J76: 4 | L76: Niv: 8 / Tracé Num: 16+ | M76: 566.4212 | N76: 132.4312 | O76: -0.001378166401 | P76: 1.9294
A77: 35 | B77: 31 | G77: 71 | H77: 34 | I77: 38 | J77: 5.656854249 | L77: 12.0646 | M77: 566.4212 | N77: 134.4027 | O77: -0.001378166401 | P77: 1.9715
A78: 38 | B78: 16 | G78: 72 | H78: 34 | I78: 41 | J78: 3 | L78: PasAnalyse = 2 | M78: 566.4212 | N78: 136.1778 | O78: -0.001378166401 | P78: 1.7751
A79: 38 | B79: 20 | G79: 60 | H79: 28 | I79: 47 | J79: 8.485281374 | L79: PourcentagePointsFixes = 0.20 | M79: 566.4212 | N79: 138.0107 | O79: -0.001378166401 | P79: 1.8329
A80: 38 | B80: 30 | G80: 59 | H80: 28 | I80: 43 | J80: 4 | L80: PourcentageDistanceVoisin = 0.25 | M80: 566.4212 | N80: 139.9109 | O80: -0.001378166401 | P80: 1.9002
A81: 38 | B81: 34 | G81: 58 | H81: 28 | I81: 40 | J81: 3 | L81: NombreDePreTraitments = 11 | M81: 566.4212 | N81: 141.6888 | O81: -0.001378166401 | P81: 1.7779
A82: 40 | B82: 22 | G82: 57 | H82: 28 | I82: 34 | J82: 6 | L82: NombreDeTraitments = 31 | M82: 566.4212 | N82: 143.6366 | O82: -0.001378166401 | P82: 1.9478
A83: 41 | B83: 23 | G83: 62 | H83: 32 | I83: 31 | J83: 5 | M83: 566.4212 | N83: 145.7059 | O83: -0.001378166401 | P83: 2.0693
A84: 41 | B84: 32 | G84: 66 | H84: 33 | I84: 31 | J84: 1 | L84: Niv: 7 / Tracé Num: 25+ | M84: 566.4212 | N84: 147.5828 | O84: -0.001378166401 | P84: 1.8769
A85: 41 | B85: 34 | G85: 70 | H85: 34 | I85: 31 | J85: 1 | L85: 12.0377 | M85: 566.4212 | N85: 149.4141 | O85: -0.001378166401 | P85: 1.8313
A86: 41 | B86: 35 | G86: 75 | H86: 35 | I86: 31 | J86: 1 | L86: PasAnalyse = 2 | M86: 566.4212 | N86: 151.2126 | O86: -0.001378166401 | P86: 1.7985
A87: 41 | B87: 36 | G87: 69 | H87: 34 | I87: 29 | J87: 2.236067977 | L87: PourcentagePointsFixes = 0.30 | M87: 566.4212 | N87: 153.1202 | O87: -0.001378166401 | P87: 1.9076
A88: 48 | B88: 22 | G88: 65 | H88: 33 | I88: 29 | J88: 1 | L88: PourcentageDistanceVoisin = 0.10 | M88: 566.4212 | N88: 154.8105 | O88: -0.001378166401 | P88: 1.6903
A89: 48 | B89: 27 | G89: 68 | H89: 34 | I89: 26 | J89: 3.16227766 | L89: NombreDePreTraitments = 11 | M89: 566.4212 | N89: 156.5521 | O89: -0.001378166401 | P89: 1.7416
A90: 48 | B90: 6 | G90: 64 | H90: 33 | I90: 26 | J90: 1 | L90: NombreDeTraitments = 31 | M90: 566.4212 | N90: 158.1022 | O90: -0.001378166401 | P90: 1.5501
A91: 51 | B91: 45 | G91: 61 | H91: 32 | I91: 26 | J91: 1 | L91: idem pour le niveau 8 | M91: 566.4212 | N91: 159.6675 | O91: -0.001378166401 | P91: 1.5653
A92: 51 | B92: 47 | G92: 55 | H92: 28 | I92: 28 | J92: 4.472135955 | M92: 566.4212 | N92: 161.3752 | O92: -0.001378166401 | P92: 1.7077
A93: 56 | B93: 25 | G93: 56 | H93: 28 | I93: 30 | J93: 2 | M93: 570.0978191 | N93: 162.8013 | O93: 0.005103851035 | P93: 1.4261
A94: 57 | B94: 12 | G94: 51 | H94: 25 | I94: 29 | J94: 3.16227766 | M94: 568.4808111 | N94: 164.3355 | O94: 0.002253005265 | P94: 1.5342
A95: 57 | B95: 25 | G95: 50 | H95: 25 | I95: 28 | J95: 1 | M95: 568.4808111 | N95: 166.3403 | O95: 0.002253005265 | P95: 2.0048
A96: 57 | B96: 44 | G96: 49 | H96: 25 | I96: 26 | J96: 2 | M96: 567.2918326 | N96: 168.1959 | O96: 0.0001567915425 | P96: 1.8556
A97: 61 | B97: 45 | G97: 48 | H97: 25 | I97: 24 | J97: 2 | M97: 567.2918326 | N97: 169.9506 | O97: 0.0001567915425 | P97: 1.7547
A98: 61 | B98: 47 | G98: 47 | H98: 25 | I98: 23 | J98: 1 | M98: 567.2918326 | N98: 171.8712 | O98: 0.0001567915425 | P98: 1.9206
A99: 63 | B99: 6 | G99: 46 | H99: 25 | I99: 22 | J99: 1 | M99: 567.2918326 | N99: 173.6863 | O99: 0.0001567915425 | P99: 1.8151
A100: 64 | B100: 22 | G100: 54 | H100: 28 | I100: 20 | J100: 3.605551275 | M100: 567.2918326 | N100: 175.3065 | O100: 0.0001567915425 | P100: 1.6202
A101: 71 | B101: 11 | G101: 53 | H101: 28 | I101: 16 | J101: 4 | M101: 567.2918326 | N101: 176.9287 | O101: 0.0001567915425 | P101: 1.6222
A102: 71 | B102: 13 | G102: 45 | H102: 25 | I102: 15 | J102: 3.16227766 | M102: 567.2918326 | N102: 178.7074 | O102: 0.0001567915425 | P102: 1.7787
A103: 71 | B103: 16 | G103: 27 | H103: 18 | I103: 15 | J103: 7 | M103: 566.4212 | N103: 180.3247 | O103: -0.001378166401 | P103: 1.6173
A104: 71 | B104: 45 | G104: 28 | H104: 18 | I104: 17 | J104: 2 | M104: 566.4212 | N104: 182.0713 | O104: -0.001378166401 | P104: 1.7466
A105: 71 | B105: 47 | G105: 19 | H105: 15 | I105: 19 | J105: 3.605551275 | M105: 566.4212 | N105: 183.7782 | O105: -0.001378166401 | P105: 1.7069
A106: 74 | B106: 12 | G106: 29 | H106: 18 | I106: 19 | J106: 3 | M106: 566.4212 | N106: 185.639 | O106: -0.001378166401 | P106: 1.8608
A107: 74 | B107: 16 | G107: 30 | H107: 18 | I107: 21 | J107: 2 | M107: 566.4212 | N107: 187.8542 | O107: -0.001378166401 | P107: 2.2152
A108: 74 | B108: 20 | G108: 31 | H108: 18 | I108: 23 | J108: 2 | M108: 566.4212 | N108: 189.7596 | O108: -0.001378166401 | P108: 1.9054
A109: 74 | B109: 24 | G109: 20 | H109: 15 | I109: 25 | J109: 3.605551275 | M109: 566.4212 | N109: 191.5247 | O109: -0.001378166401 | P109: 1.7651
A110: 74 | B110: 29 | G110: 32 | H110: 18 | I110: 25 | J110: 3 | M110: 566.4212 | N110: 192.978 | O110: -0.001378166401 | P110: 1.4533
A111: 74 | B111: 35 | G111: 33 | H111: 18 | I111: 27 | J111: 2 | M111: 566.4212 | N111: 194.475 | O111: -0.001378166401 | P111: 1.497
A112: 74 | B112: 39 | G112: 34 | H112: 18 | I112: 29 | J112: 2 | M112: 566.4212 | N112: 196.1942 | O112: -0.001378166401 | P112: 1.7192
A113: 74 | B113: 6 | G113: 21 | H113: 15 | I113: 31 | J113: 3.605551275 | M113: 566.4212 | N113: 197.5715 | O113: -0.001378166401 | P113: 1.3773
A114: 77 | B114: 21 | G114: 35 | H114: 18 | I114: 31 | J114: 3 | M114: 566.4212 | N114: 199.4113 | O114: -0.001378166401 | P114: 1.8398
A115: 78 | B115: 10 | G115: 36 | H115: 18 | I115: 33 | J115: 2 | M115: 566.4212 | N115: 200.9072 | O115: -0.001378166401 | P115: 1.4959
A116: 78 | B116: 32 | G116: 37 | H116: 18 | I116: 35 | J116: 2 | M116: 566.4212 | N116: 202.7371 | O116: -0.001378166401 | P116: 1.8299
A117: 78 | B117: 35 | G117: 22 | H117: 15 | I117: 37 | J117: 3.605551275 | M117: 566.4212 | N117: 204.4534 | O117: -0.001378166401 | P117: 1.7163
A118: 78 | B118: 39 | G118: 38 | H118: 18 | I118: 37 | J118: 3 | M118: 566.4212 | N118: 205.9544 | O118: -0.001378166401 | P118: 1.501
A119: 79 | B119: 10 | G119: 39 | H119: 18 | I119: 39 | J119: 2 | M119: 566.4212 | N119: 207.5255 | O119: -0.001378166401 | P119: 1.5711
A120: 79 | B120: 33 | G120: 40 | H120: 18 | I120: 41 | J120: 2 | M120: 566.4212 | N120: 209.0875 | O120: -0.001378166401 | P120: 1.562
A121: 79 | B121: 37 | G121: 41 | H121: 18 | I121: 42 | J121: 1 | M121: 566.4212 | N121: 210.8269 | O121: -0.001378166401 | P121: 1.7394
A122: 80 | B122: 10 | G122: 42 | H122: 18 | I122: 44 | J122: 2 | M122: 566.4212 | N122: 212.329 | O122: -0.001378166401 | P122: 1.5021
A123: 80 | B123: 41 | G123: 43 | H123: 18 | I123: 45 | J123: 1 | M123: 566.4212 | N123: 213.9591 | O123: -0.001378166401 | P123: 1.6301
A124: 80 | B124: 5 | G124: 23 | H124: 15 | I124: 43 | J124: 3.605551275 | M124: 566.4212 | N124: 215.5517 | O124: -0.001378166401 | P124: 1.5926
A125: 81 | B125: 17 | G125: 10 | H125: 5 | I125: 43 | J125: 10 | M125: 566.4212 | N125: 217.1416 | O125: -0.001378166401 | P125: 1.5899
A126: 84 | B126: 20 | G126: 3 | H126: 0 | I126: 39 | J126: 6.403124237 | M126: 566.4212 | N126: 218.9984 | O126: -0.001378166401 | P126: 1.8568
A127: 84 | B127: 24 | G127: 9 | H127: 5 | I127: 37 | J127: 5.385164807 | M127: 566.4212 | N127: 220.7477 | O127: -0.001378166401 | P127: 1.7493
A128: 84 | B128: 29 | G128: 8 | H128: 5 | I128: 31 | J128: 6 | M128: 566.4212 | N128: 222.4693 | O128: -0.001378166401 | P128: 1.7216
A129: 84 | B129: 34 | G129: 2 | H129: 0 | I129: 27 | J129: 6.403124237
A130: 84 | B130: 38 | G130: 1 | H130: 0 | I130: 26 | J130: 1
A131: 84 | B131: 6 | G131: 7 | H131: 5 | I131: 25 | J131: =SQRT(((H130-H131)*(H130-H131))+((I130-I131)*(I130-I131))) -> 5.099019514
A132: 107 | B132: 27 | G132: 6 | H132: 5 | I132: 19 | J132: =SQRT(((H131-H132)*(H131-H132))+((I131-I132)*(I131-I132))) -> 6
J133: =SQRT(((H132-H2)*(H132-H2))+((I132-I2)*(I132-I2))) -> 7.810249676
C146: 13
C147: 26
C148: 27
C149: 39
C150: 0
C151: 13
C152: 19
C153: 25
C154: 31
C155: 37
C156: 43
C157: 8
C158: 0
C159: 10
C160: 10
C161: 10
C162: 10
C163: 5
C164: 13
C165: 19
C166: 25
C167: 31
C168: 37
C169: 43
C170: 8
C171: 11
C172: 13
C173: 15
C174: 17
C175: 19
C176: 21
C177: 23
C178: 25
C179: 27
C180: 29
C181: 31
C182: 33
C183: 35
C184: 37
C185: 39
C186: 41
C187: 42
C188: 44
C189: 45
C190: 11
C191: 15
C192: 22
C193: 23
C194: 24
C195: 26
C196: 28
C197: 29
C198: 9
C199: 16
C200: 20
C201: 28
C202: 30
C203: 34
C204: 40
C205: 43
C206: 47
C207: 26
C208: 31
C209: 15
C210: 26
C211: 29
C212: 31
... 64 more rows

Sheet Defi194 (0%)
A1: X réel | B1: Y réel | C1: X graphique | D1: Y graphique | E1: A battre : | F1: 9353.517539 | G1: Ordre | H1: X réel | I1: Y réel | J1: Distance : | K1: 9353.517539 | L1: Niv: 6 | M1: Historique | N1: Temps | O1: Ecart | P1: =MIN(M:M) -> 9353.517539 | Q1: =((P1/$F$1)-1) -> 4.440892099e-16
A2: 24748.3333 | B2: 50840 | C2: =INT(10+(A2-$A$197)*Coef) -> 10 | D2: =INT(50+(B2-$B$197)*Coef) -> 86 | G2: 0 | H2: 24748.3333 | I2: 50840 | J2: Détail : | K2: =SUM(J:J) -> 9353.517539 | L2: Durée : 500,9609375 | M2: 9867.956441 | N2: 0.8194 | O2: =((M2/$F$1)-1) -> 0.05499951222
A3: 24758.8889 | B3: 51211.9444 | C3: 15 | D3: 272 | G3: 5 | H3: 25010 | I3: 51039.4444 | J3: =SQRT(((H2-H3)*(H2-H3))+((I2-I3)*(I2-I3))) -> 329.0099247 | K3: =(+K1/F1)-1 -> 0 | L3: PasAnalyse = 2 | M3: 9577.217733 | N3: 8.5553 | O3: =((M3/$F$1)-1) -> 0.02391615707
A4: 24827.2222 | B4: 51394.7222 | C4: 49 | D4: 364 | G4: 7 | H4: 25067.7778 | I4: 51077.5 | J4: =SQRT(((H3-H4)*(H3-H4))+((I3-I4)*(I3-I4))) -> 69.18455654 | L4: PourcentagePointsFixes = 0.20 | M4: 9546.572825 | N4: 15.5183 | O4: 0.0206398594
A5: 24904.4444 | B5: 51175 | C5: 88 | D5: 254 | G5: 15 | H5: 25168.8889 | I5: 51086.3889 | J5: 101.5010694 | L5: PourcentageDistanceVoisin = 0.5 | M5: 9546.572825 | N5: 22.2124 | O5: 0.0206398594
A6: 24996.1111 | B6: 51548.8889 | C6: 133 | D6: 441 | G6: 12 | H6: 25158.3333 | I6: 51163.6111 | J6: 77.94029038 | L6: Version 10 | M6: 9479.597709 | N6: 28.8816 | O6: 0.01347943913
A7: 25010 | B7: 51039.4444 | C7: 140 | D7: 186 | G7: 22 | H7: 25224.1667 | I7: 51174.4444 | J7: 66.71879004 | M7: 9479.597709 | N7: 35.1927 | O7: 0.01347943913
A8: 25030.8333 | B8: 51275.2778 | C8: 151 | D8: 304 | G8: 24 | H8: 25234.1667 | I8: 51203.0556 | J8: 30.3084273 | L8: VERSION 16 | M8: 9479.597709 | N8: 41.7932 | O8: 0.01347943913
A9: 25067.7778 | B9: 51077.5 | C9: 169 | D9: 205 | G9: 13 | H9: 25162.2222 | I9: 51220.8333 | J9: 74.10841853 | M9: 9470.031093 | N9: 48.4937 | O9: 0.01245665641
A10: 25100 | B10: 51516.6667 | C10: 185 | D10: 425 | G10: 10 | H10: 25121.9444 | I10: 51218.3333 | J10: 40.35531158 | L10: Niv: 7 / Tracé Num: 21+ | M10: 9452.576725 | N10: 54.9953 | O10: 0.01059058118 | R10: 9424,9304 :
A11: 25103.3333 | B11: 51521.6667 | C11: 187 | D11: 427 | G11: 6 | H11: 25030.8333 | I11: 51275.2778 | J11: 107.4425829 | L11: 9593.7486 | M11: 9452.576725 | N11: 61.3256 | O11: 0.01059058118
A12: 25121.9444 | B12: 51218.3333 | C12: 196 | D12: 275 | G12: 16 | H12: 25173.8889 | I12: 51269.4444 | J12: 143.1744853 | L12: PasAnalyse = 2 | M12: 9443.020789 | N12: 67.949 | O12: 0.009568940235
A13: 25150.8333 | B13: 51537.7778 | C13: 211 | D13: 435 | G13: 25 | H13: 25235.5556 | I13: 51330 | J13: 86.42778824 | L13: PourcentagePointsFixes = 0.25 | M13: 9443.020789 | N13: 74.4439 | O13: 0.009568940235
A14: 25158.3333 | B14: 51163.6111 | C14: 215 | D14: 248 | G14: 23 | H14: 25233.3333 | I14: 51333.3333 | J14: 4.006183493 | L14: PourcentageDistanceVoisin = 0.10 | M14: 9434.801562 | N14: 81.505 | O14: 0.008690209092
A15: 25162.2222 | B15: 51220.8333 | C15: 216 | D15: 277 | G15: 20 | H15: 25214.4444 | I15: 51378.8889 | J15: 49.31635869 | L15: NombreDePreTraitments = 3 | M15: 9434.801562 | N15: 88.3984 | O15: 0.008690209092
A16: 25167.7778 | B16: 51606.9444 | C16: 219 | D16: 470 | G16: 17 | H16: 25210.8333 | I16: 51394.1667 | J16: 15.69876479 | L16: NombreDeTraitments = 31 | M16: 9434.801562 | N16: 94.4988 | O16: 0.008690209092
A17: 25168.8889 | B17: 51086.3889 | C17: 220 | D17: 209 | G17: 32 | H17: 25256.9444 | I17: 51398.8889 | J17: 46.35226765 | M17: 9434.801562 | N17: 100.9385 | O17: 0.008690209092
A18: 25173.8889 | B18: 51269.4444 | C18: 222 | D18: 301 | G18: 27 | H18: 25242.7778 | I18: 51428.8889 | J18: 33.17668693 | L18: VERSION 17 | M18: 9434.801562 | N18: 106.799 | O18: 0.008690209092
A19: 25210.8333 | B19: 51394.1667 | C19: 241 | D19: 363 | G19: 28 | H19: 25243.0556 | I19: 51452.5 | J19: 23.61273419 | M19: 9434.801562 | N19: 113.636 | O19: 0.008690209092
A20: 25211.3889 | B20: 51619.1667 | C20: 241 | D20: 476 | G20: 21 | H20: 25223.3333 | I20: 51451.6667 | J20: 19.73989631 | L20: Niv: 7 / Tracé Num: 12+ | M20: 9434.801562 | N20: 119.9242 | O20: 0.008690209092
A21: 25214.1667 | B21: 50807.2222 | C21: 242 | D21: 70 | G21: 26 | H21: 25235.5556 | I21: 51495.5556 | J21: 45.55897453 | L21: 9594.8406 | M21: 9434.801562 | N21: 127.0257 | O21: 0.008690209092
A22: 25214.4444 | B22: 51378.8889 | C22: 243 | D22: 356 | G22: 36 | H22: 25266.6667 | I22: 51483.3333 | J22: 33.42581578 | L22: PasAnalyse = 10 | M22: 9434.801562 | N22: 133.5932 | O22: 0.008690209092
A23: 25223.3333 | B23: 51451.6667 | C23: 247 | D23: 392 | G23: 44 | H23: 25279.1667 | I23: 51445.5556 | J23: 39.792017 | L23: PourcentagePointsFixes = 0.25 | M23: 9434.801562 | N23: 139.7082 | O23: 0.008690209092
A24: 25224.1667 | B24: 51174.4444 | C24: 247 | D24: 253 | G24: 56 | H24: 25291.9444 | I24: 51424.4444 | J24: 24.67696057 | L24: PourcentageDistanceVoisin = 0.10 | M24: 9434.801562 | N24: 145.9154 | O24: 0.008690209092
A25: 25233.3333 | B25: 51333.3333 | C25: 252 | D25: 333 | G25: 59 | H25: 25300.8333 | I25: 51394.4444 | J25: 31.28917614 | L25: NombreDePreTraitments = 11 | M25: 9450.013249 | N25: 157.8354 | O25: 0.01031651565
A26: 25234.1667 | B26: 51203.0556 | C26: 252 | D26: 268 | G26: 68 | H26: 25326.6667 | I26: 51350.2778 | J26: 51.16691422 | L26: NombreDeTraitments = 21 | M26: 9440.780733 | N26: 164.1648 | O26: 0.009329452118
A27: 25235.5556 | B27: 51330 | C27: 253 | D27: 331 | G27: 73 | H27: 25358.8889 | I27: 51333.6111 | J27: 36.2773905 | M27: 9416.837894 | N27: 172.049 | O27: 0.006769683743
A28: 25235.5556 | B28: 51495.5556 | C28: 253 | D28: 414 | G28: 71 | H28: 25340.5556 | I28: 51293.6111 | J28: 44.00124872 | M28: 9440.780733 | N28: 176.4842 | O28: 0.009329452118
A29: 25242.7778 | B29: 51428.8889 | C29: 257 | D29: 381 | G29: 77 | H29: 25377.7778 | I29: 51294.7222 | J29: 37.23877973 | M29: 9429.369443 | N29: 181.7292 | O29: 0.008109452282
A30: 25243.0556 | B30: 51452.5 | C30: 257 | D30: 392 | G30: 74 | H30: 25363.6111 | I30: 51281.1111 | J30: 19.64579935 | M30: 9441.621059 | N30: 186.1071 | O30: 0.009419292812
A31: 25252.5 | B31: 51559.1667 | C31: 262 | D31: 446 | G31: 75 | H31: 25368.6111 | I31: 51226.3889 | J31: 54.95015171 | M31: 9441.621059 | N31: 187.9755 | O31: 0.009419292812
A32: 25253.8889 | B32: 51535.2778 | C32: 262 | D32: 434 | G32: 86 | H32: 25433.3333 | I32: 51220 | J32: 65.03676819 | M32: 9441.621059 | N32: 189.6523 | O32: 0.009419292812
A33: 25253.8889 | B33: 51549.7222 | C33: 262 | D33: 441 | G33: 79 | H33: 25400 | I33: 51183.3333 | J33: 49.55356473 | M33: 9428.768671 | N33: 194.407 | O33: 0.008045222737
A34: 25256.9444 | B34: 51398.8889 | C34: =INT(10+(A34-$A$197)*Coef) -> 264 | D34: =INT(50+(B34-$B$197)*Coef) -> 366 | G34: 70 | H34: 25339.1667 | I34: 51173.3333 | J34: 61.64973957 | M34: 9428.768671 | N34: 197.2249 | O34: 0.008045222737
A35: 25263.6111 | B35: 51516.3889 | C35: 267 | D35: 424 | G35: 81 | H35: 25404.7222 | I35: 51073.0556 | J35: 119.8045938 | M35: 9428.768671 | N35: 203.8653 | O35: 0.008045222737
A36: 25265.8333 | B36: 51545.2778 | C36: 268 | D36: 439 | G36: 61 | H36: 25311.9444 | I36: 51003.0556 | J36: 116.222718 | M36: 9428.768671 | N36: 206.2122 | O36: 0.008045222737
A37: 25266.6667 | B37: 50969.1667 | C37: 269 | D37: 151 | G37: 58 | H37: 25298.6111 | I37: 51001.6667 | J37: 13.40544412 | M37: 9510.068758 | N37: 209.8391 | O37: 0.01673714931
A38: 25266.6667 | B38: 51483.3333 | C38: 269 | D38: 408 | G38: 35 | H38: 25266.6667 | I38: 50969.1667 | J38: 45.57076575 | M38: 9434.801562 | N38: 216.1568 | O38: 0.008690209092
A39: 25270.5556 | B39: 51532.7778 | C39: 271 | D39: 433 | G39: 62 | H39: 25313.8889 | I39: 50883.3333 | J39: 97.96585491 | M39: 9434.801562 | N39: 222.648 | O39: 0.008690209092
A40: 25270.8333 | B40: 51505.8333 | C40: 271 | D40: 419 | G40: 19 | H40: 25214.1667 | I40: 50807.2222 | J40: 125.448861 | M40: 9434.801562 | N40: 229.344 | O40: 0.008690209092
A41: 25270.8333 | B41: 51523.0556 | C41: 271 | D41: 428 | G41: 64 | H41: 25316.6667 | I41: 50766.6667 | J41: 110.231568 | M41: 9434.801562 | N41: 236.308 | O41: 0.008690209092
A42: 25275.8333 | B42: 51533.6111 | C42: 273 | D42: 433 | G42: 84 | H42: 25419.4444 | I42: 50793.6111 | J42: 106.250912 | M42: 9434.801562 | N42: 243.1992 | O42: 0.008690209092
A43: 25277.2222 | B43: 51547.7778 | C43: 274 | D43: 440 | G43: 85 | H43: 25429.7222 | I43: 50785.8333 | J43: 12.88903975 | M43: 9434.801562 | N43: 249.2463 | O43: 0.008690209092
A44: 25278.3333 | B44: 51525.5556 | C44: 275 | D44: 429 | G44: 97 | H44: 25495 | I44: 50846.6667 | J44: 89.22944429 | M44: 9434.801562 | N44: 255.3272 | O44: 0.008690209092
A45: 25278.3333 | B45: 51541.3889 | C45: 275 | D45: 437 | G45: 89 | H45: 25451.3889 | I45: 50925 | J45: 89.65508314 | M45: 9434.801562 | N45: 261.482 | O45: 0.008690209092
A46: 25279.1667 | B46: 51445.5556 | C46: 275 | D46: 389 | G46: 88 | H46: 25444.4444 | I46: 50958.3333 | J46: 34.04900834 | M46: 9434.801562 | N46: 267.6794 | O46: 0.008690209092
A47: 25281.1111 | B47: 51535 | C47: 276 | D47: 434 | G47: 93 | H47: 25480.5556 | I47: 50938.8889 | J47: 41.01345458 | M47: 9434.801562 | N47: 274.506 | O47: 0.008690209092
A48: 25281.3889 | B48: 51512.5 | C48: 276 | D48: 422 | G48: 98 | H48: 25495 | I48: 50965.2778 | J48: 30.08346281 | M48: 9434.801562 | N48: 280.5204 | O48: 0.008690209092
A49: 25283.3333 | B49: 51533.3333 | C49: 277 | D49: 433 | G49: 100 | H49: 25500.8333 | I49: 50980.5556 | J49: 16.3535489 | M49: 9440.165906 | N49: 285.0185 | O49: 0.009263719959
A50: 25283.6111 | B50: 51546.6667 | C50: 277 | D50: 440 | G50: 103 | H50: 25533.3333 | I50: 50977.2222 | J50: 32.67049978 | M50: 9416.745678 | N50: 289.5416 | O50: 0.006759824805
A51: 25284.7222 | B51: 51555.2778 | C51: 278 | D51: 444 | G51: 110 | H51: 25567.5 | I51: 50958.8889 | J51: 38.77464736 | M51: 9402.299 | N51: 296.2502 | O51: 0.005215306544
A52: 25286.1111 | B52: 51504.1667 | C52: 278 | D52: 418 | G52: 129 | H52: 25751.9444 | I52: 50920.8333 | J52: 188.3294066 | M52: 9422.602568 | N52: 297.7658 | O52: 0.007385994537
A53: 25286.1111 | B53: 51534.1667 | C53: 278 | D53: 433 | G53: 126 | H53: 25723.0556 | I53: 51004.1667 | J53: 88.19874331 | M53: 9422.602568 | N53: 299.3873 | O53: 0.007385994537
A54: 25286.6667 | B54: 51533.3333 | C54: 279 | D54: 433 | G54: 124 | H54: 25716.6667 | I54: 51050 | J54: 46.27644576 | M54: 9416.837894 | N54: 305.1503 | O54: 0.006769683743
A55: 25287.5 | B55: 51537.7778 | C55: 279 | D55: 435 | G55: 125 | H55: 25717.5 | I55: 51057.7778 | J55: 7.822311789 | M55: 9416.837894 | N55: 310.3741 | O55: 0.006769683743
A56: 25288.0556 | B56: 51546.6667 | C56: 279 | D56: 440 | G56: 131 | H56: 25765.2778 | I56: 51019.7222 | J56: 61.08147726 | M56: 9416.837894 | N56: 311.8928 | O56: 0.006769683743
A57: 25290.8333 | B57: 51528.3333 | C57: 281 | D57: 430 | G57: 133 | H57: 25775.8333 | I57: 51023.0556 | J57: 11.06933312 | M57: 9416.837894 | N57: 319.2102 | O57: 0.006769683743
A58: 25291.9444 | B58: 51424.4444 | C58: 281 | D58: 378 | G58: 136 | H58: 25808.3333 | I58: 51060.5556 | J58: 49.6235831 | M58: 9416.837894 | N58: 320.393 | O58: 0.006769683743
A59: 25292.5 | B59: 51520.8333 | C59: 282 | D59: 427 | G59: 139 | H59: 25826.6667 | I59: 51043.8889 | J59: 24.776853 | M59: 9416.837894 | N59: 326.14 | O59: 0.006769683743
A60: 25298.6111 | B60: 51001.6667 | C60: 285 | D60: 167 | G60: 144 | H60: 25850 | I60: 51033.3333 | J60: 25.60983366 | M60: 9450.73683 | N60: 327.8488 | O60: 0.01039387491
A61: 25300.8333 | B61: 51394.4444 | C61: 286 | D61: 363 | G61: 155 | H61: 25900 | I61: 51000 | J61: 60.09250277 | M61: 9471.306644 | N61: 330.4062 | O61: 0.01259302769
A62: 25306.9444 | B62: 51507.7778 | C62: 289 | D62: 420 | G62: 148 | H62: 25866.6667 | I62: 51066.6667 | J62: 74.53561416 | M62: 9434.801562 | N62: 336.9127 | O62: 0.008690209092
A63: 25311.9444 | B63: 51003.0556 | C63: 291 | D63: 168 | G63: 145 | H63: 25856.6667 | I63: 51083.3333 | J63: 19.43644915 | M63: 9434.801562 | N63: 344.1748 | O63: 0.008690209092
A64: 25313.8889 | B64: 50883.3333 | C64: 292 | D64: 108 | G64: 141 | H64: 25833.3333 | I64: 51072.2222 | J64: 25.84384064 | M64: 9434.801562 | N64: 350.2884 | O64: 0.008690209092
A65: 25315.2778 | B65: 51438.6111 | C65: 293 | D65: 385 | G65: 137 | H65: 25816.6667 | I65: 51133.3333 | J65: 63.34305091 | M65: 9434.801562 | N65: 356.5638 | O65: 0.008690209092
A66: 25316.6667 | B66: 50766.6667 | C66: =INT(10+(A66-$A$197)*Coef) -> 294 | D66: =INT(50+(B66-$B$197)*Coef) -> 50 | G66: 138 | H66: 25823.6111 | I66: 51152.5 | J66: 20.38595301 | M66: 9434.801562 | N66: 363.0207 | O66: 0.008690209092
A67: 25320.5556 | B67: 51495.5556 | C67: 296 | D67: 414 | G67: 153 | H67: 25883.0556 | I67: 51185.2778 | J67: 67.88249224 | M67: 9434.801562 | N67: 369.3603 | O67: =((M67/$F$1)-1) -> 0.008690209092
A68: 25322.5 | B68: 51507.7778 | C68: 297 | D68: 420 | G68: 156 | H68: 25904.1667 | I68: 51201.6667 | J68: =SQRT(((H67-H68)*(H67-H68))+((I67-I68)*(I67-I68))) -> 26.72591601 | M68: 9434.801562 | N68: 375.9022 | O68: 0.008690209092
A69: 25325.2778 | B69: 51470 | C69: 298 | D69: 401 | G69: 152 | H69: 25880.8333 | I69: 51221.3889 | J69: 30.55180401 | M69: 9434.801562 | N69: 382.2506 | O69: 0.008690209092
A70: 25326.6667 | B70: 51350.2778 | C70: 299 | D70: 341 | G70: 149 | H70: 25867.7778 | I70: 51205.5556 | J70: 20.5216829 | M70: 9369.625299 | N70: 388.4781 | O70: 0.001722107311
A71: 25337.5 | B71: 51425 | C71: 304 | D71: 379 | G71: 143 | H71: 25847.7778 | I71: 51205.8333 | J71: 20.00192784 | M71: 9369.625299 | N71: 394.8426 | O71: 0.001722107311
A72: 25339.1667 | B72: 51173.3333 | C72: 305 | D72: 253 | G72: 140 | H72: 25829.7222 | I72: 51245.2778 | J72: 43.38056329 | M72: 9369.625299 | N72: 401.1438 | O72: 0.001722107311
A73: 25340.5556 | B73: 51293.6111 | C73: 306 | D73: 313 | G73: 151 | H73: 25872.5 | I73: 51258.3333 | J73: 44.72567778 | M73: 9369.625299 | N73: 407.685 | O73: 0.001722107311
A74: 25341.9444 | B74: 51507.5 | C74: 306 | D74: 420 | G74: 146 | H74: 25857.5 | I74: 51298.8889 | J74: 43.24068329 | M74: 9369.625299 | N74: 414.5301 | O74: 0.001722107311
A75: 25358.8889 | B75: 51333.6111 | C75: 315 | D75: 333 | G75: 150 | H75: 25871.9444 | I75: 51354.7222 | J75: 57.67146678 | M75: 9369.625299 | N75: 420.871 | O75: 0.001722107311
A76: 25363.6111 | B76: 51281.1111 | C76: 317 | D76: 307 | G76: 154 | H76: 25888.0556 | I76: 51386.3889 | J76: 35.52957436 | M76: 9369.625299 | N76: 427.333 | O76: 0.001722107311
A77: 25368.6111 | B77: 51226.3889 | C77: 320 | D77: 279 | G77: 161 | H77: 25951.6667 | I77: 51349.7222 | J77: 73.42219645 | M77: 9369.625299 | N77: 433.4187 | O77: 0.001722107311
A78: 25374.4444 | B78: 51436.6667 | C78: 323 | D78: 385 | G78: 157 | H78: 25928.3333 | I78: 51337.5 | J78: 26.34064784 | M78: 9369.625299 | N78: 439.7315 | O78: 0.001722107311
A79: 25377.7778 | B79: 51294.7222 | C79: 324 | D79: 314 | G79: 158 | H79: 25937.5 | I79: 51313.3333 | J79: 25.84681369 | M79: 9369.625299 | N79: 446.3297 | O79: 0.001722107311
A80: 25396.9444 | B80: 51422.5 | C80: 334 | D80: 377 | G80: 164 | H80: 25966.6667 | I80: 51283.3333 | J80: 41.84132394 | M80: 9369.625299 | N80: 452.5897 | O80: 0.001722107311
A81: 25400 | B81: 51183.3333 | C81: 335 | D81: 258 | G81: 167 | H81: 26000.2778 | I81: 51294.4444 | J81: 35.40003653 | M81: 9356.739026 | N81: 462.4586 | O81: 0.0003444145866
A82: 25400 | B82: 51425 | C82: 335 | D82: 379 | G82: 166 | H82: 25983.6111 | I82: 51328.0556 | J82: 37.51655174 | M82: 9356.739026 | N82: 465.7079 | O82: 0.0003444145866
A83: 25404.7222 | B83: 51073.0556 | C83: 338 | D83: 203 | G83: 169 | H83: 26016.6667 | I83: 51333.3333 | J83: 33.47427085 | M83: 9380.636067 | N83: 469.371 | O83: 0.002899286675
A84: 25416.9444 | B84: 51403.8889 | C84: 344 | D84: 368 | G84: 179 | H84: 26055 | I84: 51316.1111 | J84: 42.02435082 | M84: 9380.636067 | N84: 472.8007 | O84: 0.002899286675
A85: 25416.9444 | B85: 51457.7778 | C85: 344 | D85: 395 | G85: 177 | H85: 26050.2778 | I85: 51297.5 | J85: 19.20083894 | M85: 9380.636067 | N85: 477.9565 | O85: 0.002899286675
A86: 25419.4444 | B86: 50793.6111 | C86: 345 | D86: 63 | G86: 180 | H86: 26067.2222 | I86: 51258.6111 | J86: 42.42003341 | M86: 9383.717558 | N86: 487.1323 | O86: 0.003228733894
A87: 25429.7222 | B87: 50785.8333 | C87: 350 | D87: 59 | G87: 176 | H87: 26050 | I87: 51250 | J87: 19.25500496 | M87: 9396.557274 | N87: 494.5223 | O87: 0.00460144918
A88: 25433.3333 | B88: 51220 | C88: 352 | D88: 276 | G88: 183 | H88: 26077.2222 | I88: 51222.2222 | J88: 38.89285726 | M88: 9385.917743 | N88: 497.1867 | O88: 0.003463959372
A89: 25440.8333 | B89: 51378.0556 | C89: 356 | D89: 355 | G89: 174 | H89: 26033.6111 | I89: 51200.2778 | J89: 48.82094565 | M89: 9363.145835 | N89: 500.8998 | O89: 0.001029377043
A90: 25444.4444 | B90: 50958.3333 | C90: 358 | D90: 145 | G90: 172 | H90: 26033.3333 | I90: 51166.6667 | J90: 33.61224801 | M90: 9385.056206 | N90: 506.1758 | O90: 0.00337185097
A91: 25451.3889 | B91: 50925 | C91: 361 | D91: 129 | G91: 173 | H91: 26033.6111 | I91: 51163.8889 | J91: 2.79165644 | M91: 9383.763365 | N91: 511.7811 | O91: 0.003233631208
A92: 25459.1667 | B92: 51316.6667 | C92: 365 | D92: 325 | G92: 178 | H92: 26050.5556 | I92: 51135.8333 | J92: 32.77549041 | M92: 9369.625299 | N92: 518.4328 | O92: 0.001722107311
A93: 25469.7222 | B93: 51397.5 | C93: 370 | D93: 365 | G93: 171 | H93: 26033.3333 | I93: 51116.6667 | J93: 25.76754107 | M93: 9369.625299 | N93: 524.7009 | O93: 0.001722107311
A94: 25478.0556 | B94: 51362.5 | C94: 374 | D94: 347 | G94: 163 | H94: 25958.3333 | I94: 51099.4444 | J94: 76.95198254 | M94: 9369.625299 | N94: 531.1954 | O94: 0.001722107311
A95: 25480.5556 | B95: 50938.8889 | C95: 376 | D95: 136 | G95: 162 | H95: 25957.7778 | I95: 51075.2778 | J95: 24.17298359 | M95: 9369.625299 | N95: 537.1676 | O95: 0.001722107311
A96: 25483.3333 | B96: 51383.3333 | C96: 377 | D96: 358 | G96: 160 | H96: 25950 | I96: 51066.6667 | J96: 11.60367252 | M96: 9369.625299 | N96: 543.776 | O96: 0.001722107311
A97: 25490.5556 | B97: 51373.6111 | C97: 381 | D97: 353 | G97: 168 | H97: 26008.6111 | I97: 51083.6111 | J97: 61.01125908 | M97: 9369.625299 | N97: 549.9386 | O97: 0.001722107311
A98: 25492.2222 | B98: 51400.2778 | C98: =INT(10+(A98-$A$197)*Coef) -> 381 | D98: =INT(50+(B98-$B$197)*Coef) -> 366 | G98: 175 | H98: 26048.8889 | I98: 51056.9444 | J98: 48.30542477 | M98: 9369.625299 | N98: 555.8866 | O98: 0.001722107311
A99: 25495 | B99: 50846.6667 | C99: 383 | D99: 90 | G99: 181 | H99: 26074.7222 | I99: 51083.6111 | J99: 37.1277831 | M99: 9369.625299 | N99: 562.4907 | O99: 0.001722107311
A100: 25495 | B100: 50965.2778 | C100: 383 | D100: 149 | G100: 193 | H100: 26150.2778 | I100: 51108.0556 | J100: 79.41147443 | M100: 9369.625299 | N100: 568.6909 | O100: 0.001722107311
A101: 25497.5 | B101: 51485.2778 | C101: 384 | D101: 409 | G101: 185 | H101: 26083.6111 | I101: 51147.2222 | J101: 77.32057582 | M101: 9369.625299 | N101: 575.2572 | O101: 0.001722107311
A102: 25500.8333 | B102: 50980.5556 | C102: 386 | D102: 156 | G102: 182 | H102: 26076.6667 | I102: 51166.9444 | J102: 20.90908569 | M102: 9369.625299 | N102: 581.4474 | O102: 0.001722107311
A103: 25510.5556 | B103: 51242.2222 | C103: 391 | D103: 287 | G103: 186 | H103: 26099.7222 | I103: 51161.1111 | J103: 23.78199885 | M103: 9355.423739 | N103: 590.501 | O103: 0.0002037950393
A104: 25531.9444 | B104: 51304.4444 | C104: 401 | D104: 318 | G104: 189 | H104: 26123.6111 | I104: 51169.1667 | J104: 25.210558 | M104: 9355.423739 | N104: 593.8698 | O104: 0.0002037950393
A105: 25533.3333 | B105: 50977.2222 | C105: 402 | D105: 155 | G105: 191 | H105: 26133.3333 | I105: 51216.6667 | J105: 48.48475196 | M105: 9355.423739 | N105: 601.2253 | O105: 0.0002037950393
A106: 25538.8889 | B106: 51408.3333 | C106: 405 | D106: 370 | G106: 190 | H106: 26123.6111 | I106: 51222.7778 | J106: 11.48332339 | M106: 9355.423739 | N106: 605.5864 | O106: 0.0002037950393
A107: 25545.8333 | B107: 51387.5 | C107: 408 | D107: 360 | G107: 188 | H107: 26116.6667 | I107: 51216.6667 | J107: 9.250418075 | M107: 9353.609754 | N107: 613.422 | O107: 9.858938312e-06
A108: 25549.7222 | B108: 51431.9444 | C108: 410 | D108: 382 | G108: 187 | H108: 26108.0556 | I108: 51244.7222 | J108: 29.34726773 | M108: 9356.404804 | N108: 620.2167 | O108: 0.0003086823185
A109: 25550 | B109: 51433.3333 | C109: 410 | D109: 383 | G109: 192 | H109: 26133.3333 | I109: 51300 | J109: 60.78319908 | M109: 9356.404804 | N109: 626.1022 | O109: 0.0003086823185
A110: 25560.2778 | B110: 51158.6111 | C110: 415 | D110: 245 | G110: 184 | H110: 26078.0556 | I110: 51361.6667 | J110: 82.81549376 | M110: 9353.609754 | N110: 628.3013 | O110: 9.858938312e-06
A111: 25566.9444 | B111: 51484.7222 | C111: 419 | D111: 409 | G111: 170 | H111: 26021.6667 | I111: 51366.9444 | J111: 56.63534374 | M111: 9353.517539 | N111: 632.2945 | O111: 4.440892099e-16
A112: 25567.5 | B112: 50958.8889 | C112: 419 | D112: 146 | G112: 165 | H112: 25983.3333 | I112: 51400 | J112: 50.61741051 | O112: -1
A113: 25574.7222 | B113: 51486.3889 | C113: 423 | D113: 409 | G113: 159 | H113: 25944.7222 | I113: 51456.3889 | J113: 68.34124001 | O113: -1
A114: 25585.5556 | B114: 51151.3889 | C114: 428 | D114: 242 | G114: 147 | H114: 25857.5 | I114: 51441.3889 | J114: 88.50261111 | O114: -1
A115: 25609.4444 | B115: 51092.2222 | C115: 440 | D115: 212 | G115: 142 | H115: 25839.1667 | I115: 51465.2778 | J115: 30.11294459 | O115: -1
A116: 25610.2778 | B116: 51475.2778 | C116: 440 | D116: 404 | G116: 135 | H116: 25793.3333 | I116: 51409.4444 | J116: 72.2362036 | O116: -1
A117: 25622.5 | B117: 51454.4444 | C117: 447 | D117: 393 | G117: 130 | H117: 25758.3333 | I117: 51395.8333 | J117: 37.55345581 | O117: -1
A118: 25645.8333 | B118: 51450 | C118: 458 | D118: 391 | G118: 128 | H118: 25751.1111 | I118: 51449.1667 | J118: 53.82017956 | O118: -1
A119: 25650 | B119: 51372.2222 | C119: 460 | D119: 352 | G119: 134 | H119: 25779.1667 | I119: 51449.7222 | J119: 28.0610989 | O119: -1
A120: 25666.9444 | B120: 51174.4444 | C120: 469 | D120: 253 | G120: 132 | H120: 25772.2222 | I120: 51483.3333 | J120: 34.32101577 | O120: -1
A121: 25683.8889 | B121: 51505.8333 | C121: 477 | D121: 419 | G121: 127 | H121: 25734.7222 | I121: 51547.5 | J121: 74.32102925 | O121: -1
A122: 25686.3889 | B122: 51468.8889 | C122: 479 | D122: 401 | G122: 123 | H122: 25708.3333 | I122: 51591.6667 | J122: 51.44969808 | O122: -1
A123: 25696.1111 | B123: 51260.8333 | C123: 483 | D123: 297 | G123: 122 | H123: 25700.8333 | I123: 51584.7222 | J123: 10.22135413 | O123: -1
A124: 25700.8333 | B124: 51584.7222 | C124: 486 | D124: 459 | G124: 119 | H124: 25683.8889 | I124: 51505.8333 | J124: 80.68811086 | O124: -1
A125: 25708.3333 | B125: 51591.6667 | C125: 490 | D125: 462 | G125: 120 | H125: 25686.3889 | I125: 51468.8889 | J125: 37.02888996 | O125: -1
A126: 25716.6667 | B126: 51050 | C126: 494 | D126: 191 | G126: 116 | H126: 25645.8333 | I126: 51450 | J126: 44.73865481 | O126: -1
A127: 25717.5 | B127: 51057.7778 | C127: 494 | D127: 195 | G127: 115 | H127: 25622.5 | I127: 51454.4444 | J127: 23.75280152 | O127: -1
A128: 25723.0556 | B128: 51004.1667 | C128: 497 | D128: 168 | G128: 114 | H128: 25610.2778 | I128: 51475.2778 | J128: 24.15393816 | O128: -1
A129: 25734.7222 | B129: 51547.5 | C129: 503 | D129: 440 | G129: 111 | H129: 25574.7222 | I129: 51486.3889 | J129: 37.25127158 | O129: -1
A130: 25751.1111 | B130: 51449.1667 | C130: =INT(10+(A130-$A$197)*Coef) -> 511 | D130: =INT(50+(B130-$B$197)*Coef) -> 391 | G130: 109 | H130: 25566.9444 | I130: 51484.7222 | J130: 7.954373748 | O130: -1
A131: 25751.9444 | B131: 50920.8333 | C131: 511 | D131: 127 | G131: 99 | H131: 25497.5 | I131: 51485.2778 | J131: 69.44662254 | O131: =((M131/$F$1)-1) -> -1
A132: 25758.3333 | B132: 51395.8333 | C132: 515 | D132: 364 | G132: 107 | H132: 25550 | I132: 51433.3333 | J132: =SQRT(((H131-H132)*(H131-H132))+((I131-I132)*(I131-I132))) -> 73.85445877 | O132: -1
A133: 25765.2778 | B133: 51019.7222 | C133: 518 | D133: 176 | G133: 106 | H133: 25549.7222 | I133: 51431.9444 | J133: 1.416409563 | O133: -1
A134: 25772.2222 | B134: 51483.3333 | C134: 521 | D134: 408 | G134: 104 | H134: 25538.8889 | I134: 51408.3333 | J134: 25.97776804 | O134: -1
A135: 25775.8333 | B135: 51023.0556 | C135: 523 | D135: 178 | G135: 105 | H135: 25545.8333 | I135: 51387.5 | J135: 21.96021585 | O135: -1
A136: 25779.1667 | B136: 51449.7222 | C136: 525 | D136: 391 | G136: 117 | H136: 25650 | I136: 51372.2222 | J136: 105.2811121 | O136: -1
A137: 25793.3333 | B137: 51409.4444 | C137: 532 | D137: 371 | G137: 121 | H137: 25696.1111 | I137: 51260.8333 | J137: 120.5558816 | O137: -1
A138: 25808.3333 | B138: 51060.5556 | C138: 540 | D138: 196 | G138: 118 | H138: 25666.9444 | I138: 51174.4444 | J138: 91.17970406 | O138: -1
A139: 25816.6667 | B139: 51133.3333 | C139: 544 | D139: 233 | G139: 113 | H139: 25609.4444 | I139: 51092.2222 | J139: 100.3331459 | O139: -1
A140: 25823.6111 | B140: 51152.5 | C140: 547 | D140: 242 | G140: 112 | H140: 25585.5556 | I140: 51151.3889 | J140: 63.8073127 | O140: -1
A141: 25826.6667 | B141: 51043.8889 | C141: 549 | D141: 188 | G141: 108 | H141: 25560.2778 | I141: 51158.6111 | J141: 26.28930097 | O141: -1
A142: 25829.7222 | B142: 51245.2778 | C142: 550 | D142: 289 | G142: 101 | H142: 25510.5556 | I142: 51242.2222 | J142: 97.2785342 | O142: -1
A143: 25833.3333 | B143: 51072.2222 | C143: 552 | D143: 202 | G143: 102 | H143: 25531.9444 | I143: 51304.4444 | J143: 65.79576687 | O143: -1
A144: 25839.1667 | B144: 51465.2778 | C144: 555 | D144: 399 | G144: 90 | H144: 25459.1667 | I144: 51316.6667 | J144: 73.79687144 | O144: -1
A145: 25847.7778 | B145: 51205.8333 | C145: 559 | D145: 269 | G145: 92 | H145: 25478.0556 | I145: 51362.5 | J145: 49.572996 | O145: -1
A146: 25850 | B146: 51033.3333 | C146: 560 | D146: 183 | G146: 95 | H146: 25490.5556 | I146: 51373.6111 | J146: 16.72442953 | O146: -1
A147: 25856.6667 | B147: 51083.3333 | C147: 564 | D147: 208 | G147: 94 | H147: 25483.3333 | I147: 51383.3333 | J147: 12.11126707 | O147: -1
A148: 25857.5 | B148: 51298.8889 | C148: 564 | D148: 316 | G148: 96 | H148: 25492.2222 | I148: 51400.2778 | J148: 19.1344878 | O148: -1
A149: 25857.5 | B149: 51441.3889 | C149: 564 | D149: 387 | G149: 91 | H149: 25469.7222 | I149: 51397.5 | J149: 22.67082206 | O149: -1
A150: 25866.6667 | B150: 51066.6667 | C150: 569 | D150: 200 | G150: 87 | H150: 25440.8333 | I150: 51378.0556 | J150: 34.82317094 | O150: -1
A151: 25867.7778 | B151: 51205.5556 | C151: 569 | D151: 269 | G151: 82 | H151: 25416.9444 | I151: 51403.8889 | J151: 35.18577741 | O151: -1
A152: 25871.9444 | B152: 51354.7222 | C152: 571 | D152: 344 | G152: 78 | H152: 25396.9444 | I152: 51422.5 | J152: 27.31982876 | O152: -1
A153: 25872.5 | B153: 51258.3333 | C153: 572 | D153: 295 | G153: 80 | H153: 25400 | I153: 51425 | J153: 3.947998399 | O153: -1
A154: 25880.8333 | B154: 51221.3889 | C154: 576 | D154: 277 | G154: 83 | H154: 25416.9444 | I154: 51457.7778 | J154: 36.89846696 | O154: -1
A155: 25883.0556 | B155: 51185.2778 | C155: 577 | D155: 259 | G155: 76 | H155: 25374.4444 | I155: 51436.6667 | J155: 47.45448918 | O155: -1
A156: 25888.0556 | B156: 51386.3889 | C156: 579 | D156: 359 | G156: 69 | H156: 25337.5 | I156: 51425 | J156: 38.74274874 | O156: -1
A157: 25900 | B157: 51000 | C157: 585 | D157: 166 | G157: 63 | H157: 25315.2778 | I157: 51438.6111 | J157: 26.0593211 | O157: -1
A158: 25904.1667 | B158: 51201.6667 | C158: 587 | D158: 267 | G158: 67 | H158: 25325.2778 | I158: 51470 | J158: 32.94333078 | O158: -1
A159: 25928.3333 | B159: 51337.5 | C159: 600 | D159: 335 | G159: 65 | H159: 25320.5556 | I159: 51495.5556 | J159: 25.98822549 | O159: -1
A160: 25937.5 | B160: 51313.3333 | C160: 604 | D160: 323 | G160: 72 | H160: 25341.9444 | I160: 51507.5 | J160: 24.49794801 | O160: -1
A161: 25944.7222 | B161: 51456.3889 | C161: 608 | D161: 394 | G161: 66 | H161: 25322.5 | I161: 51507.7778 | J161: 19.44638435 | O161: -1
A162: 25950 | B162: 51066.6667 | C162: =INT(10+(A162-$A$197)*Coef) -> 610 | D162: =INT(50+(B162-$B$197)*Coef) -> 200 | G162: 60 | H162: 25306.9444 | I162: 51507.7778 | J162: 15.5556 | O162: -1
A163: 25951.6667 | B163: 51349.7222 | C163: 611 | D163: 341 | G163: 50 | H163: 25286.1111 | I163: 51504.1667 | J163: 21.14394552 | O163: -1
A164: 25957.7778 | B164: 51075.2778 | C164: 614 | D164: 204 | G164: 46 | H164: 25281.3889 | I164: 51512.5 | J164: 9.578259849 | O164: -1
A165: 25958.3333 | B165: 51099.4444 | C165: 615 | D165: 216 | G165: 38 | H165: 25270.8333 | I165: 51505.8333 | J165: 12.48461374 | O165: -1
A166: 25966.6667 | B166: 51283.3333 | C166: 619 | D166: 308 | G166: 33 | H166: 25263.6111 | I166: 51516.3889 | J166: 12.7898735 | O166: -1
A167: 25983.3333 | B167: 51400 | C167: 627 | D167: 366 | G167: 39 | H167: 25270.8333 | I167: 51523.0556 | J167: 9.828787399 | O167: -1
A168: 25983.6111 | B168: 51328.0556 | C168: 627 | D168: 330 | G168: 42 | H168: 25278.3333 | I168: 51525.5556 | J168: 7.90569415 | O168: -1
A169: 26000.2778 | B169: 51294.4444 | C169: 635 | D169: 313 | G169: 57 | H169: 25292.5 | I169: 51520.8333 | J169: 14.93303406 | O169: -1
A170: 26008.6111 | B170: 51083.6111 | C170: 640 | D170: 208 | G170: 55 | H170: 25290.8333 | I170: 51528.3333 | J170: 7.682960945 | O170: -1
A171: 26016.6667 | B171: 51333.3333 | C171: 644 | D171: 333 | G171: 52 | H171: 25286.6667 | I171: 51533.3333 | J171: 6.508498718 | O171: -1
A172: 26021.6667 | B172: 51366.9444 | C172: 646 | D172: 350 | G172: 51 | H172: 25286.1111 | I172: 51534.1667 | J172: 1.001622144 | O172: -1
A173: 26033.3333 | B173: 51116.6667 | C173: 652 | D173: 225 | G173: 53 | H173: 25287.5 | I173: 51537.7778 | J173: 3.868990362 | O173: -1
A174: 26033.3333 | B174: 51166.6667 | C174: 652 | D174: 250 | G174: 47 | H174: 25283.3333 | I174: 51533.3333 | J174: 6.092205606 | O174: -1
A175: 26033.6111 | B175: 51163.8889 | C175: 652 | D175: 248 | G175: 45 | H175: 25281.1111 | I175: 51535 | J175: 2.77778 | O175: -1
A176: 26033.6111 | B176: 51200.2778 | C176: 652 | D176: 266 | G176: 40 | H176: 25275.8333 | I176: 51533.6111 | J176: 5.457491736 | O176: -1
A177: 26048.8889 | B177: 51056.9444 | C177: 660 | D177: 195 | G177: 37 | H177: 25270.5556 | I177: 51532.7778 | J177: 5.343080215 | O177: -1
A178: 26050 | B178: 51250 | C178: 660 | D178: 291 | G178: 43 | H178: 25278.3333 | I178: 51541.3889 | J178: 11.6036055 | O178: -1
A179: 26050.2778 | B179: 51297.5 | C179: 660 | D179: 315 | G179: 48 | H179: 25283.6111 | I179: 51546.6667 | J179: 7.463936339 | O179: -1
A180: 26050.5556 | B180: 51135.8333 | C180: 661 | D180: 234 | G180: 54 | H180: 25288.0556 | I180: 51546.6667 | J180: 4.4445 | O180: -1
A181: 26055 | B181: 51316.1111 | C181: 663 | D181: 324 | G181: 49 | H181: 25284.7222 | I181: 51555.2778 | J181: 9.233774893 | O181: -1
A182: 26067.2222 | B182: 51258.6111 | C182: 669 | D182: 295 | G182: 41 | H182: 25277.2222 | I182: 51547.7778 | J182: 10.60660172 | O182: -1
A183: 26074.7222 | B183: 51083.6111 | C183: 673 | D183: 208 | G183: 34 | H183: 25265.8333 | I183: 51545.2778 | J183: 11.66006189 | O183: -1
A184: 26076.6667 | B184: 51166.9444 | C184: 674 | D184: 250 | G184: 30 | H184: 25253.8889 | I184: 51535.2778 | J184: 15.57782691 | O184: -1
A185: 26077.2222 | B185: 51222.2222 | C185: 674 | D185: 277 | G185: 31 | H185: 25253.8889 | I185: 51549.7222 | J185: 14.4444 | O185: -1
A186: 26078.0556 | B186: 51361.6667 | C186: 674 | D186: 347 | G186: 29 | H186: 25252.5 | I186: 51559.1667 | J186: 9.546078957 | O186: -1
A187: 26083.6111 | B187: 51147.2222 | C187: 677 | D187: 240 | G187: 18 | H187: 25211.3889 | I187: 51619.1667 | J187: 72.7332286 | O187: -1
A188: 26099.7222 | B188: 51161.1111 | C188: 685 | D188: 247 | G188: 14 | H188: 25167.7778 | I188: 51606.9444 | J188: 45.29141928 | O188: -1
A189: 26108.0556 | B189: 51244.7222 | C189: 689 | D189: 289 | G189: 11 | H189: 25150.8333 | I189: 51537.7778 | J189: 71.21189954 | O189: -1
A190: 26116.6667 | B190: 51216.6667 | C190: 694 | D190: 275 | G190: 9 | H190: 25103.3333 | I190: 51521.6667 | J190: 50.15792603 | O190: -1
A191: 26123.6111 | B191: 51169.1667 | C191: 697 | D191: 251 | G191: 8 | H191: 25100 | I191: 51516.6667 | J191: 6.009233636 | O191: -1
A192: 26123.6111 | B192: 51222.7778 | C192: 697 | D192: 278 | G192: 4 | H192: 24996.1111 | I192: 51548.8889 | J192: 108.7711989 | O192: -1
A193: 26133.3333 | B193: 51216.6667 | C193: 702 | D193: 275 | G193: 2 | H193: 24827.2222 | I193: 51394.7222 | J193: 228.6718871 | O193: -1
A194: 26133.3333 | B194: 51300 | C194: 702 | D194: 316 | G194: 1 | H194: 24758.8889 | I194: 51211.9444 | J194: 195.1337082 | O194: -1
A195: 26150.2778 | B195: 51108.0556 | C195: 710 | D195: 220 | G195: 3 | H195: 24904.4444 | I195: 51175 | J195: 150.1708769 | O195: =((M195/$F$1)-1) -> -1
J196: =SQRT(((H195-H2)*(H195-H2))+((I195-I2)*(I195-I2))) -> 369.5885219 | O196: =((M196/$F$1)-1) -> -1
A197: =MIN(A1:A195) -> 24748.3333 | B197: =MIN(B1:B195) -> 50766.6667 | C197: =MIN(C1:C195) -> 10 | D197: =MIN(D1:D195) -> 50
C198: =MAX(C1:C195) -> 710 | D198: =MAX(D1:D195) -> 476
B199: 0.5
O279: =((M279/$F$1)-1) -> -1
... 192 more rows

Sheet defi280 (0%)
A1: X réel | B1: Y réel | C1: X graphique | D1: Y graphique | E1: Bistance à battre : | F1: 2586.7696 | G1: Ordre | H1: X réel | I1: Y réel | J1: Distance : | K1: 2586.769648 | L1: Niv: 8 | M1: Historique | N1: Temps | O1: Ecart | P1: =MIN(M:M) -> 2586.769648 | Q1: =((P1/$F$1)-1) -> 1.83870883e-08 | R1: =AVERAGE(M:M) -> 2590.277387 | S1: =COUNT(M:M) -> 11 | T1: http://elib.zib.de/pub/mp-testdata/tsp/tsplib/tsp/
A2: 288 | B2: 149 | G2: 0 | H2: 288 | I2: 149 | J2: Détail : | K2: =SUM(J:J) -> 2586.769648 | L2: Durée : 1715,52734375 | M2: 2590.751772 | N2: 1.2281 | O2: =((M2/$F$1)-1) -> 0.001539438385 | P2: =N2 -> 1.2281
A3: 288 | B3: 129 | G3: 279 | H3: 280 | I3: 133 | J3: =SQRT(((H2-H3)*(H2-H3))+((I2-I3)*(I2-I3))) -> 17.88854382 | K3: =(+K1/F1)-1 -> 1.838708807e-08 | L3: PasAnalyse = 2 | M3: 2586.769648 | N3: 71.8339 | O3: =((M3/$F$1)-1) -> 1.83870883e-08 | P3: =+N3-N2 -> 70.6058
A4: 270 | B4: 133 | G4: 2 | H4: 270 | I4: 133 | J4: 10 | L4: PourcentagePointsFixes = 0.2 | M4: 2592.515519 | N4: 116.2029 | O4: =((M4/$F$1)-1) -> 0.002221271925 | P4: =+N4-N3 -> 44.369
A5: 256 | B5: 141 | G5: 278 | H5: 260 | I5: 129 | J5: 10.77032961 | L5: PourcentageDistanceVoisin = 0.5 | M5: 2586.769648 | N5: 159.0357 | O5: =((M5/$F$1)-1) -> 1.83870883e-08 | P5: =+N5-N4 -> 42.8328
A6: 256 | B6: 157 | G6: 277 | H6: 252 | I6: 125 | J6: 8.94427191 | L6: AvanceAléatoire = True | M6: 2586.769648 | N6: 185.0827 | O6: 1.83870883e-08 | P6: 26.047
A7: 246 | B7: 157 | G7: 247 | H7: 260 | I7: 109 | J7: 17.88854382 | L7: Version 10 | M7: 2586.769648 | N7: 248.7115 | O7: 1.83870883e-08 | P7: 63.6288
A8: 236 | B8: 169 | G8: 248 | H8: 252 | I8: 101 | J8: 11.3137085 | M8: 2590.751772 | N8: 299.7983 | O8: 0.001539438385 | P8: 51.0868
A9: 228 | B9: 169 | G9: 255 | H9: 236 | I9: 101 | J9: 16 | L9: Version 10 / 10 traitements | M9: 2593.397065 | N9: 326.9706 | O9: 0.00256206218 | P9: 27.1723
A10: 228 | B10: 161 | G10: 254 | H10: 236 | I10: 93 | J10: 8 | M10: 2597.379189 | N10: 384.9599 | O10: 0.004101482178 | P10: 57.9893
A11: 220 | B11: 169 | G11: 251 | H11: 236 | I11: 85 | J11: 8 | L11: Niv: 7 / Tracé Num: 6 | M11: 2586.769648 | N11: 437.06 | O11: 1.83870883e-08 | P11: 52.1001
A12: 212 | B12: 169 | G12: 252 | H12: 228 | I12: 85 | J12: 8 | L12: Distance : 12,254 | M12: 2594.407702 | N12: 460.7353 | O12: 0.002952757114 | P12: 23.6753
A13: 204 | B13: 169 | G13: 253 | H13: 228 | I13: 93 | J13: 8 | L13: PasAnalyse = 2 | O13: -1 | P13: -460.7353
A14: 196 | B14: 169 | G14: 256 | H14: 228 | I14: 101 | J14: 8 | L14: PourcentagePointsFixes = 0.2 | O14: -1 | P14: 0
A15: 188 | B15: 169 | G15: 257 | H15: 228 | I15: 109 | J15: 8 | L15: PourcentageDistanceVoisin = 0.05 | O15: -1 | P15: 0
A16: 196 | B16: 161 | G16: 258 | H16: 228 | I16: 117 | J16: 8 | L16: AvanceAléatoire = False | O16: -1 | P16: 0
A17: 188 | B17: 145 | G17: 259 | H17: 228 | I17: 125 | J17: 8 | O17: -1 | P17: 0
A18: 172 | B18: 145 | G18: 260 | H18: 220 | I18: 125 | J18: 8 | L18: Niv: 7 / Tracé Num: 10 | O18: -1 | P18: 0
A19: 164 | B19: 145 | G19: 261 | H19: 212 | I19: 117 | J19: 11.3137085 | L19: Distance : 12,206 | O19: -1 | P19: 0
A20: 156 | B20: 145 | G20: 262 | H20: 204 | I20: 109 | J20: 11.3137085 | L20: PasAnalyse = 2 | O20: -1 | P20: 0
A21: 148 | B21: 145 | G21: 263 | H21: 196 | I21: 101 | J21: 11.3137085 | L21: PourcentagePointsFixes = 0.30 | O21: -1 | P21: 0
A22: 140 | B22: 145 | G22: 264 | H22: 188 | I22: 93 | J22: 11.3137085 | L22: PourcentageDistanceVoisin = 0.10 | O22: -1 | P22: 0
A23: 148 | B23: 169 | G23: 265 | H23: 180 | I23: 93 | J23: 8 | L23: AvanceAléatoire = False | O23: -1 | P23: 0
A24: 164 | B24: 169 | G24: 139 | H24: 180 | I24: 85 | J24: 8 | O24: -1 | P24: 0
A25: 172 | B25: 169 | G25: 140 | H25: 180 | I25: 77 | J25: 8 | O25: -1 | P25: 0
A26: 156 | B26: 169 | G26: 141 | H26: 180 | I26: 69 | J26: 8 | L26: Niv: 8 / Tracé Num: 8 | O26: -1 | P26: 0
A27: 140 | B27: 169 | G27: 142 | H27: 180 | I27: 61 | J27: 8 | L27: Distance : 12,257 | O27: -1 | P27: 0
A28: 132 | B28: 169 | G28: 143 | H28: 180 | I28: 53 | J28: 8 | L28: PasAnalyse = 2 | O28: -1 | P28: 0
A29: 124 | B29: 169 | G29: 144 | H29: 172 | I29: 53 | J29: 8 | L29: PourcentagePointsFixes = 0.20 | O29: -1 | P29: 0
A30: 116 | B30: 161 | G30: 145 | H30: 172 | I30: 61 | J30: 8 | L30: PourcentageDistanceVoisin = 0.05 | O30: -1 | P30: 0
A31: 104 | B31: 153 | G31: 146 | H31: 172 | I31: 69 | J31: 8 | L31: AvanceAléatoire = False | O31: -1 | P31: 0
A32: 104 | B32: 161 | G32: 147 | H32: 172 | I32: 77 | J32: 8 | O32: -1 | P32: 0
A33: 104 | B33: 169 | G33: 148 | H33: 164 | I33: 81 | J33: 8.94427191 | L33: Niv: 8 / Tracé Num: 10 | O33: -1 | P33: 0
A34: 90 | B34: 165 | G34: 138 | H34: 172 | I34: 85 | J34: 8.94427191 | L34: Distance : 12,206 | O34: -1 | P34: 0
A35: 80 | B35: 157 | G35: 137 | H35: 172 | I35: 93 | J35: 8 | L35: PasAnalyse = 2 | O35: -1 | P35: 0
A36: 64 | B36: 157 | G36: 136 | H36: 172 | I36: 101 | J36: 8 | L36: PourcentagePointsFixes = 0.30 | O36: -1 | P36: 0
A37: 64 | B37: 165 | G37: 266 | H37: 180 | I37: 101 | J37: 8 | L37: PourcentageDistanceVoisin = 0.10 | O37: -1 | P37: 0
A38: 56 | B38: 169 | G38: 267 | H38: 180 | I38: 109 | J38: 8 | L38: AvanceAléatoire = False | O38: -1 | P38: 0
A39: 56 | B39: 161 | G39: 135 | H39: 172 | I39: 109 | J39: 8 | O39: -1 | P39: 0
A40: 56 | B40: 153 | G40: 134 | H40: 172 | I40: 117 | J40: 8 | L40: VERSION 13 | O40: -1 | P40: 0
A41: 56 | B41: 145 | G41: 268 | H41: 180 | I41: 117 | J41: 8 | O41: -1 | P41: 0
A42: 56 | B42: 137 | G42: 269 | H42: 180 | I42: 125 | J42: 8 | L42: Niv: 8 / Tracé Num: 6 + | O42: -1 | P42: 0
A43: 56 | B43: 129 | G43: 133 | H43: 172 | I43: 125 | J43: 8 | L43: Distance : 12,1713 | O43: -1 | P43: 0
A44: 56 | B44: 121 | G44: 132 | H44: 164 | I44: 137 | J44: 14.4222051 | L44: PasAnalyse = 2 | O44: -1 | P44: 0
A45: 40 | B45: 121 | G45: 17 | H45: 164 | I45: 145 | J45: 8 | L45: PourcentagePointsFixes = 0.20 | O45: -1 | P45: 0
A46: 40 | B46: 129 | G46: 16 | H46: 172 | I46: 145 | J46: 8 | L46: PourcentageDistanceVoisin = 0.10 | O46: -1 | P46: 0
A47: 40 | B47: 137 | G47: 15 | H47: 188 | I47: 145 | J47: 16 | L47: AvanceAléatoire = False | O47: -1 | P47: 0
A48: 40 | B48: 145 | G48: 270 | H48: 196 | I48: 145 | J48: 8 | O48: -1 | P48: 0
A49: 40 | B49: 153 | G49: 271 | H49: 204 | I49: 145 | J49: 8 | L49: Niv: 8 / Tracé Num: 13 + | O49: -1 | P49: 0
A50: 40 | B50: 161 | G50: 272 | H50: 212 | I50: 145 | J50: 8 | L50: Distance : 12,1006 | O50: -1 | P50: 0
A51: 40 | B51: 169 | G51: 273 | H51: 220 | I51: 145 | J51: 8 | L51: PasAnalyse = 2 | O51: -1 | P51: 0
A52: 32 | B52: 169 | G52: 274 | H52: 228 | I52: 145 | J52: 8 | L52: PourcentagePointsFixes = 0.20 | O52: -1 | P52: 0
A53: 32 | B53: 161 | G53: 275 | H53: 236 | I53: 145 | J53: 8 | L53: PourcentageDistanceVoisin = 0.20 | O53: -1 | P53: 0
A54: 32 | B54: 153 | G54: 276 | H54: 246 | I54: 141 | J54: 10.77032961 | L54: AvanceAléatoire = False | O54: -1 | P54: 0
A55: 32 | B55: 145 | G55: 3 | H55: 256 | I55: 141 | J55: 10 | O55: -1 | P55: 0
A56: 32 | B56: 137 | G56: 4 | H56: 256 | I56: 157 | J56: 16 | L56: VERSION 14 | O56: -1 | P56: 0
A57: 32 | B57: 129 | G57: 5 | H57: 246 | I57: 157 | J57: 10 | O57: -1 | P57: 0
A58: 32 | B58: 121 | G58: 6 | H58: 236 | I58: 169 | J58: 15.62049935 | L58: Niv: 8 / Tracé Num: 11 + | O58: -1 | P58: 0
A59: 32 | B59: 113 | G59: 7 | H59: 228 | I59: 169 | J59: 8 | L59: 12.0626 | O59: -1 | P59: 0
A60: 40 | B60: 113 | G60: 8 | H60: 228 | I60: 161 | J60: 8 | L60: PasAnalyse = 2 | O60: -1 | P60: 0
A61: 56 | B61: 113 | G61: 9 | H61: 220 | I61: 169 | J61: 11.3137085 | L61: PourcentagePointsFixes = 0.25 | O61: -1 | P61: 0
A62: 56 | B62: 105 | G62: 10 | H62: 212 | I62: 169 | J62: 8 | L62: PourcentageDistanceVoisin = 0.10 | O62: -1 | P62: 0
A63: 48 | B63: 99 | G63: 11 | H63: 204 | I63: 169 | J63: 8 | L63: AvanceAléatoire = False | O63: -1 | P63: 0
A64: 40 | B64: 99 | G64: 12 | H64: 196 | I64: 169 | J64: 8 | L64: NombreDeTraitments = 11 | O64: -1 | P64: 0
A65: 32 | B65: 97 | G65: 14 | H65: 196 | I65: 161 | J65: 8 | O65: -1 | P65: 0
A66: 32 | B66: 89 | G66: 13 | H66: 188 | I66: 169 | J66: 11.3137085 | L66: VERSION 16 | O66: -1 | P66: 0
A67: 24 | B67: 89 | G67: 23 | H67: 172 | I67: 169 | J67: =SQRT(((H66-H67)*(H66-H67))+((I66-I67)*(I66-I67))) -> 16 | O67: -1 | P67: 0
A68: 16 | B68: 97 | G68: 22 | H68: 164 | I68: 169 | J68: 8 | L68: Niv: 8 / Tracé Num: | O68: -1 | P68: 0
A69: 16 | B69: 109 | G69: 24 | H69: 156 | I69: 169 | J69: 8 | L69: 12.0876 | O69: =((M69/$F$1)-1) -> -1 | P69: =+N69-N68 -> 0
A70: 8 | B70: 109 | G70: 21 | H70: 148 | I70: 169 | J70: 8 | L70: PasAnalyse = 2 | O70: -1 | P70: 0
A71: 8 | B71: 97 | G71: 25 | H71: 140 | I71: 169 | J71: 8 | L71: PourcentagePointsFixes = 0.25 | O71: -1 | P71: 0
A72: 8 | B72: 89 | G72: 26 | H72: 132 | I72: 169 | J72: 8 | L72: PourcentageDistanceVoisin = 0.25 | O72: -1 | P72: 0
A73: 8 | B73: 81 | G73: 27 | H73: 124 | I73: 169 | J73: 8 | L73: NombreDePreTraitments = 11 | O73: -1 | P73: 0
A74: 8 | B74: 73 | G74: 28 | H74: 116 | I74: 161 | J74: 11.3137085 | L74: NombreDeTraitments = 31 | O74: -1 | P74: 0
A75: 8 | B75: 65 | G75: 30 | H75: 104 | I75: 161 | J75: 12 | O75: -1 | P75: 0
A76: 8 | B76: 57 | G76: 31 | H76: 104 | I76: 169 | J76: 8 | L76: Niv: 8 / Tracé Num: 16+ | O76: -1 | P76: 0
A77: 16 | B77: 57 | G77: 32 | H77: 90 | I77: 165 | J77: 14.56021978 | L77: 12.0646 | O77: -1 | P77: 0
A78: 8 | B78: 49 | G78: 33 | H78: 80 | I78: 157 | J78: 12.80624847 | L78: PasAnalyse = 2 | O78: -1 | P78: 0
A79: 8 | B79: 41 | G79: 34 | H79: 64 | I79: 157 | J79: 16 | L79: PourcentagePointsFixes = 0.20 | O79: -1 | P79: 0
A80: 24 | B80: 45 | G80: 35 | H80: 64 | I80: 165 | J80: 8 | L80: PourcentageDistanceVoisin = 0.25 | O80: -1 | P80: 0
A81: 32 | B81: 41 | G81: 36 | H81: 56 | I81: 169 | J81: 8.94427191 | L81: NombreDePreTraitments = 11 | O81: -1 | P81: 0
A82: 32 | B82: 49 | G82: 37 | H82: 56 | I82: 161 | J82: 8 | L82: NombreDeTraitments = 31 | O82: -1 | P82: 0
A83: 32 | B83: 57 | G83: 38 | H83: 56 | I83: 153 | J83: 8 | O83: -1 | P83: 0
A84: 32 | B84: 65 | G84: 39 | H84: 56 | I84: 145 | J84: 8 | L84: Niv: 7 / Tracé Num: 25+ | O84: -1 | P84: 0
A85: 32 | B85: 73 | G85: 40 | H85: 56 | I85: 137 | J85: 8 | L85: 12.0377 | O85: -1 | P85: 0
A86: 32 | B86: 81 | G86: 41 | H86: 56 | I86: 129 | J86: 8 | L86: PasAnalyse = 2 | O86: -1 | P86: 0
A87: 40 | B87: 83 | G87: 42 | H87: 56 | I87: 121 | J87: 8 | L87: PourcentagePointsFixes = 0.30 | O87: -1 | P87: 0
A88: 40 | B88: 73 | G88: 59 | H88: 56 | I88: 113 | J88: 8 | L88: PourcentageDistanceVoisin = 0.10 | O88: -1 | P88: 0
A89: 40 | B89: 63 | G89: 60 | H89: 56 | I89: 105 | J89: 8 | L89: NombreDePreTraitments = 11 | O89: -1 | P89: 0
A90: 40 | B90: 51 | G90: 117 | H90: 56 | I90: 97 | J90: 8 | L90: NombreDeTraitments = 31 | O90: -1 | P90: 0
A91: 44 | B91: 43 | G91: 61 | H91: 48 | I91: 99 | J91: 8.246211251 | L91: idem pour le niveau 8 | O91: -1 | P91: 0
A92: 44 | B92: 35 | G92: 62 | H92: 40 | I92: 99 | J92: 8 | O92: -1 | P92: 0
A93: 44 | B93: 27 | G93: 58 | H93: 40 | I93: 113 | J93: 14 | O93: -1 | P93: 0
A94: 32 | B94: 25 | G94: 43 | H94: 40 | I94: 121 | J94: 8 | O94: -1 | P94: 0
A95: 24 | B95: 25 | G95: 44 | H95: 40 | I95: 129 | J95: 8 | O95: -1 | P95: 0
A96: 16 | B96: 25 | G96: 45 | H96: 40 | I96: 137 | J96: 8 | O96: -1 | P96: 0
A97: 16 | B97: 17 | G97: 46 | H97: 40 | I97: 145 | J97: 8 | O97: -1 | P97: 0
A98: 24 | B98: 17 | G98: 47 | H98: 40 | I98: 153 | J98: 8 | O98: -1 | P98: 0
A99: 32 | B99: 17 | G99: 48 | H99: 40 | I99: 161 | J99: 8 | O99: -1 | P99: 0
A100: 44 | B100: 11 | G100: 49 | H100: 40 | I100: 169 | J100: 8 | O100: -1 | P100: 0
A101: 56 | B101: 9 | G101: 50 | H101: 32 | I101: 169 | J101: 8 | O101: -1 | P101: 0
A102: 56 | B102: 17 | G102: 51 | H102: 32 | I102: 161 | J102: 8 | O102: -1 | P102: 0
A103: 56 | B103: 25 | G103: 52 | H103: 32 | I103: 153 | J103: 8 | O103: -1 | P103: 0
A104: 56 | B104: 33 | G104: 53 | H104: 32 | I104: 145 | J104: 8 | O104: -1 | P104: 0
A105: 56 | B105: 41 | G105: 54 | H105: 32 | I105: 137 | J105: 8 | O105: -1 | P105: 0
A106: 64 | B106: 41 | G106: 55 | H106: 32 | I106: 129 | J106: 8 | O106: -1 | P106: 0
A107: 72 | B107: 41 | G107: 56 | H107: 32 | I107: 121 | J107: 8 | O107: -1 | P107: 0
A108: 72 | B108: 49 | G108: 57 | H108: 32 | I108: 113 | J108: 8 | O108: -1 | P108: 0
A109: 56 | B109: 49 | G109: 63 | H109: 32 | I109: 97 | J109: 16 | O109: -1 | P109: 0
A110: 48 | B110: 51 | G110: 64 | H110: 32 | I110: 89 | J110: 8 | O110: -1 | P110: 0
A111: 56 | B111: 57 | G111: 65 | H111: 24 | I111: 89 | J111: 8 | O111: -1 | P111: 0
A112: 56 | B112: 65 | G112: 66 | H112: 16 | I112: 97 | J112: 11.3137085 | O112: -1 | P112: 0
A113: 48 | B113: 63 | G113: 67 | H113: 16 | I113: 109 | J113: 12 | O113: -1 | P113: 0
A114: 48 | B114: 73 | G114: 68 | H114: 8 | I114: 109 | J114: 8 | O114: -1 | P114: 0
A115: 56 | B115: 73 | G115: 69 | H115: 8 | I115: 97 | J115: 12 | O115: -1 | P115: 0
A116: 56 | B116: 81 | G116: 70 | H116: 8 | I116: 89 | J116: 8 | O116: -1 | P116: 0
A117: 48 | B117: 83 | G117: 71 | H117: 8 | I117: 81 | J117: 8 | O117: -1 | P117: 0
A118: 56 | B118: 89 | G118: 72 | H118: 8 | I118: 73 | J118: 8 | O118: -1 | P118: 0
A119: 56 | B119: 97 | G119: 73 | H119: 8 | I119: 65 | J119: 8 | O119: -1 | P119: 0
A120: 104 | B120: 97 | G120: 74 | H120: 8 | I120: 57 | J120: 8 | O120: -1 | P120: 0
A121: 104 | B121: 105 | G121: 75 | H121: 16 | I121: 57 | J121: 8 | O121: -1 | P121: 0
A122: 104 | B122: 113 | G122: 76 | H122: 8 | I122: 49 | J122: 11.3137085 | O122: -1 | P122: 0
A123: 104 | B123: 121 | G123: 77 | H123: 8 | I123: 41 | J123: 8 | O123: -1 | P123: 0
A124: 104 | B124: 129 | G124: 78 | H124: 24 | I124: 45 | J124: 16.4924225 | O124: -1 | P124: 0
A125: 104 | B125: 137 | G125: 79 | H125: 32 | I125: 41 | J125: 8.94427191 | O125: -1 | P125: 0
A126: 104 | B126: 145 | G126: 80 | H126: 32 | I126: 49 | J126: 8 | O126: -1 | P126: 0
A127: 116 | B127: 145 | G127: 81 | H127: 32 | I127: 57 | J127: 8 | O127: -1 | P127: 0
A128: 124 | B128: 145 | G128: 82 | H128: 32 | I128: 65 | J128: 8 | O128: -1 | P128: 0
A129: 132 | B129: 145 | G129: 83 | H129: 32 | I129: 73 | J129: 8 | O129: -1 | P129: 0
A130: 132 | B130: 137 | G130: 84 | H130: 32 | I130: 81 | J130: 8 | O130: -1 | P130: 0
A131: 140 | B131: 137 | G131: 85 | H131: 40 | I131: 83 | J131: =SQRT(((H130-H131)*(H130-H131))+((I130-I131)*(I130-I131))) -> 8.246211251 | O131: -1 | P131: 0
A132: 148 | B132: 137 | G132: 115 | H132: 48 | I132: 83 | J132: 8 | O132: -1 | P132: 0
A133: 156 | B133: 137 | G133: 116 | H133: 56 | I133: 89 | J133: 10 | O133: =((M133/$F$1)-1) -> -1 | P133: =+N133-N132 -> 0
A134: 164 | B134: 137 | G134: 114 | H134: 56 | I134: 81 | J134: 8 | O134: -1 | P134: 0
A135: 172 | B135: 125 | G135: 113 | H135: 56 | I135: 73 | J135: 8 | O135: -1 | P135: 0
A136: 172 | B136: 117 | G136: 112 | H136: 48 | I136: 73 | J136: 8 | O136: -1 | P136: 0
A137: 172 | B137: 109 | G137: 86 | H137: 40 | I137: 73 | J137: 8 | O137: -1 | P137: 0
A138: 172 | B138: 101 | G138: 87 | H138: 40 | I138: 63 | J138: 10 | O138: -1 | P138: 0
A139: 172 | B139: 93 | G139: 111 | H139: 48 | I139: 63 | J139: 8 | O139: -1 | P139: 0
A140: 172 | B140: 85 | G140: 110 | H140: 56 | I140: 65 | J140: 8.246211251 | O140: -1 | P140: 0
A141: 180 | B141: 85 | G141: 109 | H141: 56 | I141: 57 | J141: 8 | O141: -1 | P141: 0
A142: 180 | B142: 77 | G142: 107 | H142: 56 | I142: 49 | J142: 8 | O142: -1 | P142: 0
A143: 180 | B143: 69 | G143: 108 | H143: 48 | I143: 51 | J143: 8.246211251 | O143: -1 | P143: 0
A144: 180 | B144: 61 | G144: 88 | H144: 40 | I144: 51 | J144: 8 | O144: -1 | P144: 0
A145: 180 | B145: 53 | G145: 89 | H145: 44 | I145: 43 | J145: 8.94427191 | O145: -1 | P145: 0
A146: 172 | B146: 53 | G146: 90 | H146: 44 | I146: 35 | J146: 8 | O146: -1 | P146: 0
A147: 172 | B147: 61 | G147: 91 | H147: 44 | I147: 27 | J147: 8 | O147: -1 | P147: 0
A148: 172 | B148: 69 | G148: 92 | H148: 32 | I148: 25 | J148: 12.16552506 | O148: -1 | P148: 0
A149: 172 | B149: 77 | G149: 93 | H149: 24 | I149: 25 | J149: 8 | O149: -1 | P149: 0
A150: 164 | B150: 81 | G150: 94 | H150: 16 | I150: 25 | J150: 8 | O150: -1 | P150: 0
A151: 148 | B151: 85 | G151: 95 | H151: 16 | I151: 17 | J151: 8 | O151: -1 | P151: 0
A152: 124 | B152: 85 | G152: 96 | H152: 24 | I152: 17 | J152: 8 | O152: -1 | P152: 0
A153: 124 | B153: 93 | G153: 97 | H153: 32 | I153: 17 | J153: 8 | O153: -1 | P153: 0
A154: 124 | B154: 109 | G154: 98 | H154: 44 | I154: 11 | J154: 13.41640786 | O154: -1 | P154: 0
A155: 124 | B155: 125 | G155: 99 | H155: 56 | I155: 9 | J155: 12.16552506 | O155: -1 | P155: 0
A156: 124 | B156: 117 | G156: 100 | H156: 56 | I156: 17 | J156: 8 | O156: -1 | P156: 0
A157: 124 | B157: 101 | G157: 101 | H157: 56 | I157: 25 | J157: 8 | O157: -1 | P157: 0
A158: 104 | B158: 89 | G158: 102 | H158: 56 | I158: 33 | J158: 8 | O158: -1 | P158: 0
A159: 104 | B159: 81 | G159: 103 | H159: 56 | I159: 41 | J159: 8 | O159: -1 | P159: 0
A160: 104 | B160: 73 | G160: 104 | H160: 64 | I160: 41 | J160: 8 | O160: -1 | P160: 0
A161: 104 | B161: 65 | G161: 105 | H161: 72 | I161: 41 | J161: 8 | O161: -1 | P161: 0
A162: 104 | B162: 49 | G162: 106 | H162: 72 | I162: 49 | J162: 8 | O162: -1 | P162: 0
A163: 104 | B163: 41 | G163: 173 | H163: 88 | I163: 49 | J163: 16 | O163: -1 | P163: 0
A164: 104 | B164: 33 | G164: 172 | H164: 80 | I164: 41 | J164: 11.3137085 | O164: -1 | P164: 0
A165: 104 | B165: 25 | G165: 170 | H165: 80 | I165: 25 | J165: 16 | O165: -1 | P165: 0
A166: 104 | B166: 17 | G166: 171 | H166: 80 | I166: 25 | J166: 0 | O166: -1 | P166: 0
A167: 92 | B167: 9 | G167: 169 | H167: 72 | I167: 25 | J167: 8 | O167: -1 | P167: 0
A168: 80 | B168: 9 | G168: 168 | H168: 64 | I168: 21 | J168: 8.94427191 | O168: -1 | P168: 0
A169: 72 | B169: 9 | G169: 167 | H169: 72 | I169: 9 | J169: 14.4222051 | O169: -1 | P169: 0
A170: 64 | B170: 21 | G170: 166 | H170: 80 | I170: 9 | J170: 8 | O170: -1 | P170: 0
A171: 72 | B171: 25 | G171: 165 | H171: 92 | I171: 9 | J171: 12 | O171: -1 | P171: 0
A172: 80 | B172: 25 | G172: 164 | H172: 104 | I172: 17 | J172: 14.4222051 | O172: -1 | P172: 0
A173: 80 | B173: 25 | G173: 163 | H173: 104 | I173: 25 | J173: 8 | O173: -1 | P173: 0
A174: 80 | B174: 41 | G174: 162 | H174: 104 | I174: 33 | J174: 8 | O174: -1 | P174: 0
A175: 88 | B175: 49 | G175: 161 | H175: 104 | I175: 41 | J175: 8 | O175: -1 | P175: 0
A176: 104 | B176: 57 | G176: 160 | H176: 104 | I176: 49 | J176: 8 | O176: -1 | P176: 0
A177: 124 | B177: 69 | G177: 174 | H177: 104 | I177: 57 | J177: 8 | O177: -1 | P177: 0
A178: 124 | B178: 77 | G178: 159 | H178: 104 | I178: 65 | J178: 8 | O178: -1 | P178: 0
A179: 132 | B179: 81 | G179: 158 | H179: 104 | I179: 73 | J179: 8 | O179: -1 | P179: 0
A180: 140 | B180: 65 | G180: 157 | H180: 104 | I180: 81 | J180: 8 | O180: -1 | P180: 0
A181: 132 | B181: 61 | G181: 156 | H181: 104 | I181: 89 | J181: 8 | O181: -1 | P181: 0
A182: 124 | B182: 61 | G182: 118 | H182: 104 | I182: 97 | J182: 8 | O182: -1 | P182: 0
A183: 124 | B183: 53 | G183: 119 | H183: 104 | I183: 105 | J183: 8 | O183: -1 | P183: 0
A184: 124 | B184: 45 | G184: 120 | H184: 104 | I184: 113 | J184: 8 | O184: -1 | P184: 0
A185: 124 | B185: 37 | G185: 121 | H185: 104 | I185: 121 | J185: 8 | O185: -1 | P185: 0
A186: 124 | B186: 29 | G186: 122 | H186: 104 | I186: 129 | J186: 8 | O186: -1 | P186: 0
A187: 132 | B187: 21 | G187: 123 | H187: 104 | I187: 137 | J187: 8 | O187: -1 | P187: 0
A188: 124 | B188: 21 | G188: 124 | H188: 104 | I188: 145 | J188: 8 | O188: -1 | P188: 0
A189: 120 | B189: 9 | G189: 29 | H189: 104 | I189: 153 | J189: 8 | O189: -1 | P189: 0
A190: 128 | B190: 9 | G190: 125 | H190: 116 | I190: 145 | J190: 14.4222051 | O190: -1 | P190: 0
A191: 136 | B191: 9 | G191: 126 | H191: 124 | I191: 145 | J191: 8 | O191: -1 | P191: 0
A192: 148 | B192: 9 | G192: 127 | H192: 132 | I192: 145 | J192: 8 | O192: -1 | P192: 0
A193: 162 | B193: 9 | G193: 20 | H193: 140 | I193: 145 | J193: 8 | O193: -1 | P193: 0
A194: 156 | B194: 25 | G194: 19 | H194: 148 | I194: 145 | J194: 8 | O194: -1 | P194: 0
A195: 172 | B195: 21 | G195: 18 | H195: 156 | I195: 145 | J195: =SQRT(((H194-H195)*(H194-H195))+((I194-I195)*(I194-I195))) -> 8 | O195: -1 | P195: 0
A196: 180 | B196: 21 | G196: 131 | H196: 156 | I196: 137 | J196: 8 | O196: -1 | P196: 0
A197: 180 | B197: 29 | G197: 130 | H197: 148 | I197: 137 | J197: 8 | O197: =((M197/$F$1)-1) -> -1 | P197: =+N197-N196 -> 0
A198: 172 | B198: 29 | G198: 129 | H198: 140 | I198: 137 | J198: 8 | O198: -1 | P198: 0
A199: 172 | B199: 37 | G199: 128 | H199: 132 | I199: 137 | J199: 8 | O199: -1 | P199: 0
A200: 172 | B200: 45 | G200: 153 | H200: 124 | I200: 125 | J200: 14.4222051 | O200: -1 | P200: 0
... 82 more rows

Sheet defi343 (0%)
A1: X réel | B1: Y réel | C1: X graphique | D1: Y graphique | E1: Bistance à battre : | F1: 1387.697164 | G1: Ordre | H1: X réel | I1: Y réel | J1: Distance : | K1: 1387.707697 | L1: Niv: 8 | M1: Historique | N1: Temps | O1: Ecart | P1: =MIN(M:M) -> 0 | Q1: =((P1/$F$1)-1) -> -1 | R1: =AVERAGE(M:M) ->  | S1: =COUNT(M:M) -> 0 | T1: http://www.math.uwaterloo.ca/tsp/vlsi/pma343.tsp
A2: 0 | B2: 13 | G2: 0 | H2: 0 | I2: 13 | J2: Détail : | K2: =SUM(J:J) -> 1387.707697 | L2: Durée : 1715,52734375 | O2: =((M2/$F$1)-1) -> -1 | P2: =N2 -> 0
A3: 0 | B3: 16 | G3: 14 | H3: 2 | I3: 14 | J3: =SQRT(((H2-H3)*(H2-H3))+((I2-I3)*(I2-I3))) -> 2.236067977 | K3: =(+K1/F1)-1 -> 7.590120122e-06 | L3: PasAnalyse = 2 | O3: =((M3/$F$1)-1) -> -1 | P3: =+N3-N2 -> 0
A4: 0 | B4: 19 | G4: 15 | H4: 2 | I4: 16 | J4: 2 | L4: PourcentagePointsFixes = 0.2 | O4: -1 | P4: =+N4-N3 -> 0
A5: 0 | B5: 22 | G5: 1 | H5: 0 | I5: 16 | J5: 2 | L5: PourcentageDistanceVoisin = 0.5 | O5: -1 | P5: 0
A6: 0 | B6: 25 | G6: 2 | H6: 0 | I6: 19 | J6: 3 | L6: AvanceAléatoire = True | O6: -1 | P6: 0
A7: 0 | B7: 28 | G7: 3 | H7: 0 | I7: 22 | J7: 3 | L7: Version 10 | O7: -1 | P7: 0
A8: 0 | B8: 31 | G8: 16 | H8: 2 | I8: 21 | J8: 2.236067977 | O8: -1 | P8: 0
A9: 0 | B9: 34 | G9: 17 | H9: 2 | I9: 23 | J9: 2 | L9: Version 10 / 10 traitements | O9: -1 | P9: 0
A10: 0 | B10: 37 | G10: 4 | H10: 0 | I10: 25 | J10: 2.828427125 | O10: -1 | P10: 0
A11: 0 | B11: 4 | G11: 18 | H11: 2 | I11: 25 | J11: 2 | L11: Niv: 7 / Tracé Num: 6 | O11: -1 | P11: 0
A12: 0 | B12: 40 | G12: 19 | H12: 2 | I12: 27 | J12: 2 | L12: Distance : 12,254 | O12: -1 | P12: 0
A13: 0 | B13: 7 | G13: 5 | H13: 0 | I13: 28 | J13: 2.236067977 | L13: PasAnalyse = 2 | O13: -1 | P13: 0
A14: 2 | B14: 10 | G14: 6 | H14: 0 | I14: 31 | J14: 3 | L14: PourcentagePointsFixes = 0.2 | O14: -1 | P14: 0
A15: 2 | B15: 12 | G15: 7 | H15: 0 | I15: 34 | J15: 3 | L15: PourcentageDistanceVoisin = 0.05 | O15: -1 | P15: 0
A16: 2 | B16: 14 | G16: 20 | H16: 2 | I16: 34 | J16: 2 | L16: AvanceAléatoire = False | O16: -1 | P16: 0
A17: 2 | B17: 16 | G17: 8 | H17: 0 | I17: 37 | J17: 3.605551275 | O17: -1 | P17: 0
A18: 2 | B18: 21 | G18: 10 | H18: 0 | I18: 40 | J18: 3 | L18: Niv: 7 / Tracé Num: 10 | O18: -1 | P18: 0
A19: 2 | B19: 23 | G19: 23 | H19: 6 | I19: 42 | J19: 6.32455532 | L19: Distance : 12,206 | O19: -1 | P19: 0
A20: 2 | B20: 25 | G20: 35 | H20: 18 | I20: 34 | J20: 14.4222051 | L20: PasAnalyse = 2 | O20: -1 | P20: 0
A21: 2 | B21: 27 | G21: 33 | H21: 15 | I21: 28 | J21: 6.708203932 | L21: PourcentagePointsFixes = 0.30 | O21: -1 | P21: 0
A22: 2 | B22: 34 | G22: 30 | H22: 12 | I22: 28 | J22: 3 | L22: PourcentageDistanceVoisin = 0.10 | O22: -1 | P22: 0
A23: 5 | B23: 20 | G23: 25 | H23: 8 | I23: 28 | J23: 4 | L23: AvanceAléatoire = False | O23: -1 | P23: 0
A24: 5 | B24: 8 | G24: 27 | H24: 9 | I24: 21 | J24: 7.071067812 | O24: -1 | P24: 0
A25: 6 | B25: 42 | G25: 21 | H25: 5 | I25: 20 | J25: 4.123105626 | O25: -1 | P25: 0
A26: 8 | B26: 17 | G26: 24 | H26: 8 | I26: 17 | J26: 4.242640687 | L26: Niv: 8 / Tracé Num: 8 | O26: -1 | P26: 0
A27: 8 | B27: 28 | G27: 28 | H27: 11 | I27: 18 | J27: 3.16227766 | L27: Distance : 12,257 | O27: -1 | P27: 0
A28: 9 | B28: 10 | G28: 29 | H28: 12 | I28: 17 | J28: 1.414213562 | L28: PasAnalyse = 2 | O28: -1 | P28: 0
A29: 9 | B29: 21 | G29: 32 | H29: 15 | I29: 17 | J29: 3 | L29: PourcentagePointsFixes = 0.20 | O29: -1 | P29: 0
A30: 11 | B30: 18 | G30: 40 | H30: 25 | I30: 25 | J30: 12.80624847 | L30: PourcentageDistanceVoisin = 0.05 | O30: -1 | P30: 0
A31: 12 | B31: 17 | G31: 41 | H31: 25 | I31: 27 | J31: 2 | L31: AvanceAléatoire = False | O31: -1 | P31: 0
A32: 12 | B32: 28 | G32: 42 | H32: 25 | I32: 29 | J32: 2 | O32: -1 | P32: 0
A33: 12 | B33: 5 | G33: 43 | H33: 25 | I33: 31 | J33: 2 | L33: Niv: 8 / Tracé Num: 10 | O33: -1 | P33: 0
A34: 15 | B34: 17 | G34: 47 | H34: 28 | I34: 34 | J34: 4.242640687 | L34: Distance : 12,206 | O34: -1 | P34: 0
A35: 15 | B35: 28 | G35: 49 | H35: 31 | I35: 32 | J35: 3.605551275 | L35: PasAnalyse = 2 | O35: -1 | P35: 0
A36: 15 | B36: 8 | G36: 53 | H36: 34 | I36: 33 | J36: 3.16227766 | L36: PourcentagePointsFixes = 0.30 | O36: -1 | P36: 0
A37: 18 | B37: 34 | G37: 55 | H37: 35 | I37: 32 | J37: 1.414213562 | L37: PourcentageDistanceVoisin = 0.10 | O37: -1 | P37: 0
A38: 25 | B38: 10 | G38: 59 | H38: 38 | I38: 32 | J38: 3 | L38: AvanceAléatoire = False | O38: -1 | P38: 0
A39: 25 | B39: 12 | G39: 60 | H39: 38 | I39: 34 | J39: 2 | O39: -1 | P39: 0
A40: 25 | B40: 14 | G40: 71 | H40: 48 | I40: 35 | J40: 10.04987562 | L40: VERSION 13 | O40: -1 | P40: 0
A41: 25 | B41: 16 | G41: 70 | H41: 48 | I41: 28 | J41: 7 | O41: -1 | P41: 0
A42: 25 | B42: 25 | G42: 69 | H42: 48 | I42: 25 | J42: 3 | L42: Niv: 8 / Tracé Num: 6 + | O42: -1 | P42: 0
A43: 25 | B43: 27 | G43: 68 | H43: 48 | I43: 24 | J43: 1 | L43: Distance : 12,1713 | O43: -1 | P43: 0
A44: 25 | B44: 29 | G44: 67 | H44: 48 | I44: 23 | J44: 1 | L44: PasAnalyse = 2 | O44: -1 | P44: 0
A45: 25 | B45: 31 | G45: 66 | H45: 48 | I45: 21 | J45: 2 | L45: PourcentagePointsFixes = 0.20 | O45: -1 | P45: 0
A46: 25 | B46: 6 | G46: 72 | H46: 51 | I46: 18 | J46: 4.242640687 | L46: PourcentageDistanceVoisin = 0.10 | O46: -1 | P46: 0
A47: 28 | B47: 19 | G47: 75 | H47: 55 | I47: 23 | J47: 6.403124237 | L47: AvanceAléatoire = False | O47: -1 | P47: 0
A48: 28 | B48: 21 | G48: 78 | H48: 57 | I48: 22 | J48: 2.236067977 | O48: -1 | P48: 0
A49: 28 | B49: 34 | G49: 81 | H49: 61 | I49: 25 | J49: 5 | L49: Niv: 8 / Tracé Num: 13 + | O49: -1 | P49: 0
A50: 31 | B50: 17 | G50: 83 | H50: 63 | I50: 28 | J50: 3.605551275 | L50: Distance : 12,1006 | O50: -1 | P50: 0
A51: 31 | B51: 32 | G51: 84 | H51: 64 | I51: 35 | J51: 7.071067812 | L51: PasAnalyse = 2 | O51: -1 | P51: 0
A52: 32 | B52: 10 | G52: 94 | H52: 71 | I52: 36 | J52: 7.071067812 | L52: PourcentagePointsFixes = 0.20 | O52: -1 | P52: 0
A53: 32 | B53: 25 | G53: 93 | H53: 71 | I53: 34 | J53: 2 | L53: PourcentageDistanceVoisin = 0.20 | O53: -1 | P53: 0
A54: 34 | B54: 18 | G54: 96 | H54: 74 | I54: 29 | J54: 5.830951895 | L54: AvanceAléatoire = False | O54: -1 | P54: 0
A55: 34 | B55: 33 | G55: 104 | H55: 80 | I55: 30 | J55: 6.08276253 | O55: -1 | P55: 0
A56: 35 | B56: 17 | G56: 103 | H56: 80 | I56: 27 | J56: 3 | L56: VERSION 14 | O56: -1 | P56: 0
A57: 35 | B57: 32 | G57: 102 | H57: 80 | I57: 23 | J57: 4 | O57: -1 | P57: 0
A58: 38 | B58: 17 | G58: 100 | H58: 78 | I58: 21 | J58: 2.828427125 | L58: Niv: 8 / Tracé Num: 11 + | O58: -1 | P58: 0
A59: 38 | B59: 19 | G59: 99 | H59: 78 | I59: 17 | J59: 4 | L59: 12.0626 | O59: -1 | P59: 0
A60: 38 | B60: 21 | G60: 101 | H60: 80 | I60: 16 | J60: 2.236067977 | L60: PasAnalyse = 2 | O60: -1 | P60: 0
A61: 38 | B61: 32 | G61: 108 | H61: 84 | I61: 19 | J61: 5 | L61: PourcentagePointsFixes = 0.25 | O61: -1 | P61: 0
A62: 38 | B62: 34 | G62: 117 | H62: 94 | I62: 23 | J62: 10.77032961 | L62: PourcentageDistanceVoisin = 0.10 | O62: -1 | P62: 0
A63: 40 | B63: 6 | G63: 118 | H63: 94 | I63: 25 | J63: 2 | L63: AvanceAléatoire = False | O63: -1 | P63: 0
A64: 48 | B64: 10 | G64: 119 | H64: 94 | I64: 27 | J64: 2 | L64: NombreDeTraitments = 11 | O64: -1 | P64: 0
A65: 48 | B65: 12 | G65: 120 | H65: 94 | I65: 29 | J65: 2 | O65: -1 | P65: 0
A66: 48 | B66: 13 | G66: 121 | H66: 94 | I66: 31 | J66: 2 | L66: VERSION 16 | O66: -1 | P66: 0
A67: 48 | B67: 14 | G67: 122 | H67: 97 | I67: 34 | J67: =SQRT(((H66-H67)*(H66-H67))+((I66-I67)*(I66-I67))) -> 4.242640687 | O67: =((M67/$F$1)-1) -> -1 | P67: 0
A68: 48 | B68: 21 | G68: 123 | H68: 97 | I68: 36 | J68: 2 | L68: Niv: 8 / Tracé Num: | O68: -1 | P68: =+N68-N67 -> 0
A69: 48 | B69: 23 | G69: 125 | H69: 100 | I69: 32 | J69: 5 | L69: 12.0876 | O69: -1 | P69: 0
A70: 48 | B70: 24 | G70: 128 | H70: 103 | I70: 33 | J70: 3.16227766 | L70: PasAnalyse = 2 | O70: -1 | P70: 0
A71: 48 | B71: 25 | G71: 130 | H71: 104 | I71: 32 | J71: 1.414213562 | L71: PourcentagePointsFixes = 0.25 | O71: -1 | P71: 0
A72: 48 | B72: 28 | G72: 132 | H72: 107 | I72: 32 | J72: 3 | L72: PourcentageDistanceVoisin = 0.25 | O72: -1 | P72: 0
A73: 48 | B73: 35 | G73: 133 | H73: 107 | I73: 34 | J73: 2 | L73: NombreDePreTraitments = 11 | O73: -1 | P73: 0
A74: 51 | B74: 18 | G74: 134 | H74: 107 | I74: 36 | J74: 2 | L74: NombreDeTraitments = 31 | O74: -1 | P74: 0
A75: 51 | B75: 8 | G75: 142 | H75: 117 | I75: 35 | J75: 10.04987562 | O75: -1 | P75: 0
A76: 55 | B76: 12 | G76: 141 | H76: 117 | I76: 33 | J76: 2 | L76: Niv: 8 / Tracé Num: 16+ | O76: -1 | P76: 0
A77: 55 | B77: 23 | G77: 145 | H77: 120 | I77: 27 | J77: 6.708203932 | L77: 12.0646 | O77: -1 | P77: 0
A78: 57 | B78: 11 | G78: 144 | H78: 120 | I78: 23 | J78: 4 | L78: PasAnalyse = 2 | O78: -1 | P78: 0
A79: 57 | B79: 16 | G79: 143 | H79: 120 | I79: 19 | J79: 4 | L79: PourcentagePointsFixes = 0.20 | O79: -1 | P79: 0
A80: 57 | B80: 22 | G80: 148 | H80: 124 | I80: 20 | J80: 4.123105626 | L80: PourcentageDistanceVoisin = 0.25 | O80: -1 | P80: 0
A81: 58 | B81: 5 | G81: 151 | H81: 125 | I81: 21 | J81: 1.414213562 | L81: NombreDePreTraitments = 11 | O81: -1 | P81: 0
A82: 61 | B82: 14 | G82: 149 | H82: 124 | I82: 23 | J82: 2.236067977 | L82: NombreDeTraitments = 31 | O82: -1 | P82: 0
A83: 61 | B83: 25 | G83: 152 | H83: 125 | I83: 25 | J83: 2.236067977 | O83: -1 | P83: 0
A84: 61 | B84: 8 | G84: 150 | H84: 124 | I84: 27 | J84: 2.236067977 | L84: Niv: 7 / Tracé Num: 25+ | O84: -1 | P84: 0
A85: 63 | B85: 28 | G85: 154 | H85: 126 | I85: 29 | J85: 2.828427125 | L85: 12.0377 | O85: -1 | P85: 0
A86: 64 | B86: 35 | G86: 160 | H86: 130 | I86: 26 | J86: 5 | L86: PasAnalyse = 2 | O86: -1 | P86: 0
A87: 71 | B87: 15 | G87: 159 | H87: 130 | I87: 22 | J87: 4 | L87: PourcentagePointsFixes = 0.30 | O87: -1 | P87: 0
A88: 71 | B88: 17 | G88: 158 | H88: 130 | I88: 19 | J88: 3 | L88: PourcentageDistanceVoisin = 0.10 | O88: -1 | P88: 0
A89: 71 | B89: 18 | G89: 156 | H89: 127 | I89: 16 | J89: 4.242640687 | L89: NombreDePreTraitments = 11 | O89: -1 | P89: 0
A90: 71 | B90: 19 | G90: 147 | H90: 124 | I90: 12 | J90: 5 | L90: NombreDeTraitments = 31 | O90: -1 | P90: 0
A91: 71 | B91: 21 | G91: 153 | H91: 126 | I91: 11 | J91: 2.236067977 | L91: idem pour le niveau 8 | O91: -1 | P91: 0
A92: 71 | B92: 23 | G92: 157 | H92: 130 | I92: 14 | J92: 5 | O92: -1 | P92: 0
A93: 71 | B93: 24 | G93: 170 | H93: 143 | I93: 17 | J93: 13.34166406 | O93: -1 | P93: 0
A94: 71 | B94: 25 | G94: 171 | H94: 143 | I94: 21 | J94: 4 | O94: -1 | P94: 0
A95: 71 | B95: 34 | G95: 162 | H95: 140 | I95: 20 | J95: 3.16227766 | O95: -1 | P95: 0
A96: 71 | B96: 36 | G96: 163 | H96: 140 | I96: 22 | J96: 2 | O96: -1 | P96: 0
A97: 74 | B97: 11 | G97: 164 | H97: 140 | I97: 24 | J97: 2 | O97: -1 | P97: 0
A98: 74 | B98: 29 | G98: 165 | H98: 140 | I98: 26 | J98: 2 | O98: -1 | P98: 0
A99: 74 | B99: 6 | G99: 166 | H99: 140 | I99: 28 | J99: 2 | O99: -1 | P99: 0
A100: 74 | B100: 9 | G100: 172 | H100: 143 | I100: 31 | J100: 4.242640687 | O100: -1 | P100: 0
A101: 78 | B101: 17 | G101: 173 | H101: 143 | I101: 34 | J101: 3 | O101: -1 | P101: 0
A102: 78 | B102: 21 | G102: 174 | H102: 143 | I102: 36 | J102: 2 | O102: -1 | P102: 0
A103: 80 | B103: 16 | G103: 182 | H103: 149 | I103: 42 | J103: 8.485281374 | O103: -1 | P103: 0
A104: 80 | B104: 23 | G104: 189 | H104: 153 | I104: 36 | J104: 7.211102551 | O104: -1 | P104: 0
A105: 80 | B105: 27 | G105: 188 | H105: 153 | I105: 34 | J105: 2 | O105: -1 | P105: 0
A106: 80 | B106: 30 | G106: 187 | H106: 153 | I106: 31 | J106: 3 | O106: -1 | P106: 0
A107: 80 | B107: 5 | G107: 186 | H107: 153 | I107: 29 | J107: 2 | O107: -1 | P107: 0
A108: 80 | B108: 8 | G108: 184 | H108: 150 | I108: 29 | J108: 3 | O108: -1 | P108: 0
A109: 84 | B109: 11 | G109: 180 | H109: 149 | I109: 30 | J109: 1.414213562 | O109: -1 | P109: 0
A110: 84 | B110: 19 | G110: 181 | H110: 149 | I110: 33 | J110: 3 | O110: -1 | P110: 0
A111: 84 | B111: 6 | G111: 175 | H111: 146 | I111: 29 | J111: 5 | O111: -1 | P111: 0
A112: 84 | B112: 9 | G112: 176 | H112: 147 | I112: 22 | J112: 7.071067812 | O112: -1 | P112: 0
A113: 93 | B113: 0 | G113: 177 | H113: 148 | I113: 20 | J113: 2.236067977 | O113: -1 | P113: 0
A114: 94 | B114: 10 | G114: 179 | H114: 149 | I114: 20 | J114: 1 | O114: -1 | P114: 0
A115: 94 | B115: 14 | G115: 185 | H115: 153 | I115: 21 | J115: 4.123105626 | O115: -1 | P115: 0
A116: 94 | B116: 16 | G116: 196 | H116: 163 | I116: 20 | J116: 10.04987562 | O116: -1 | P116: 0
A117: 94 | B117: 18 | G117: 197 | H117: 163 | I117: 22 | J117: 2 | O117: -1 | P117: 0
A118: 94 | B118: 20 | G118: 198 | H118: 163 | I118: 24 | J118: 2 | O118: -1 | P118: 0
A119: 94 | B119: 23 | G119: 199 | H119: 166 | I119: 28 | J119: 5 | O119: -1 | P119: 0
A120: 94 | B120: 25 | G120: 200 | H120: 166 | I120: 31 | J120: 3 | O120: -1 | P120: 0
A121: 94 | B121: 27 | G121: 201 | H121: 166 | I121: 35 | J121: 4 | O121: -1 | P121: 0
A122: 94 | B122: 29 | G122: 208 | H122: 172 | I122: 29 | J122: 8.485281374 | O122: -1 | P122: 0
A123: 94 | B123: 31 | G123: 204 | H123: 169 | I123: 25 | J123: 5 | O123: -1 | P123: 0
A124: 97 | B124: 34 | G124: 207 | H124: 172 | I124: 26 | J124: 3.16227766 | O124: -1 | P124: 0
A125: 97 | B125: 36 | G125: 210 | H125: 173 | I125: 25 | J125: 1.414213562 | O125: -1 | P125: 0
A126: 100 | B126: 21 | G126: 213 | H126: 176 | I126: 25 | J126: 3 | O126: -1 | P126: 0
A127: 100 | B127: 32 | G127: 220 | H127: 186 | I127: 26 | J127: 10.04987562 | O127: -1 | P127: 0
A128: 101 | B128: 14 | G128: 225 | H128: 195 | I128: 32 | J128: 10.81665383 | O128: -1 | P128: 0
A129: 101 | B129: 25 | G129: 228 | H129: 201 | I129: 26 | J129: 8.485281374 | O129: -1 | P129: 0
A130: 103 | B130: 33 | G130: 239 | H130: 209 | I130: 27 | J130: 8.062257748 | O130: -1 | P130: 0
A131: 104 | B131: 21 | G131: 238 | H131: 209 | I131: 25 | J131: =SQRT(((H130-H131)*(H130-H131))+((I130-I131)*(I130-I131))) -> 2 | O131: =((M131/$F$1)-1) -> -1 | P131: 0
A132: 104 | B132: 32 | G132: 237 | H132: 209 | I132: 23 | J132: 2 | O132: -1 | P132: =+N132-N131 -> 0
A133: 107 | B133: 21 | G133: 236 | H133: 209 | I133: 21 | J133: 2 | O133: -1 | P133: 0
A134: 107 | B134: 32 | G134: 235 | H134: 209 | I134: 19 | J134: 2 | O134: -1 | P134: 0
A135: 107 | B135: 34 | G135: 234 | H135: 209 | I135: 17 | J135: 2 | O135: -1 | P135: 0
A136: 107 | B136: 36 | G136: 233 | H136: 209 | I136: 15 | J136: 2 | O136: -1 | P136: 0
A137: 109 | B137: 23 | G137: 244 | H137: 212 | I137: 16 | J137: 3.16227766 | O137: -1 | P137: 0
A138: 110 | B138: 10 | G138: 245 | H138: 212 | I138: 20 | J138: 4 | O138: -1 | P138: 0
A139: 117 | B139: 10 | G139: 246 | H139: 212 | I139: 24 | J139: 4 | O139: -1 | P139: 0
A140: 117 | B140: 12 | G140: 247 | H140: 212 | I140: 28 | J140: 4 | O140: -1 | P140: 0
A141: 117 | B141: 13 | G141: 240 | H141: 209 | I141: 29 | J141: 3.16227766 | O141: -1 | P141: 0
A142: 117 | B142: 14 | G142: 241 | H142: 209 | I142: 32 | J142: 3 | O142: -1 | P142: 0
A143: 117 | B143: 33 | G143: 242 | H143: 209 | I143: 34 | J143: 2 | O143: -1 | P143: 0
A144: 117 | B144: 35 | G144: 243 | H144: 209 | I144: 37 | J144: 3 | O144: -1 | P144: 0
A145: 120 | B145: 19 | G145: 249 | H145: 212 | I145: 37 | J145: 3 | O145: -1 | P145: 0
A146: 120 | B146: 23 | G146: 248 | H146: 212 | I146: 33 | J146: 4 | O146: -1 | P146: 0
A147: 120 | B147: 27 | G147: 252 | H147: 216 | I147: 31 | J147: 4.472135955 | O147: -1 | P147: 0
A148: 120 | B148: 6 | G148: 254 | H148: 217 | I148: 31 | J148: 1 | O148: -1 | P148: 0
A149: 124 | B149: 12 | G149: 256 | H149: 218 | I149: 31 | J149: 1 | O149: -1 | P149: 0
A150: 124 | B150: 20 | G150: 267 | H150: 232 | I150: 31 | J150: 14 | O150: -1 | P150: 0
A151: 124 | B151: 23 | G151: 266 | H151: 232 | I151: 29 | J151: 2 | O151: -1 | P151: 0
A152: 124 | B152: 27 | G152: 265 | H152: 232 | I152: 27 | J152: 2 | O152: -1 | P152: 0
A153: 125 | B153: 21 | G153: 264 | H153: 232 | I153: 25 | J153: 2 | O153: -1 | P153: 0
A154: 125 | B154: 25 | G154: 263 | H154: 232 | I154: 23 | J154: 2 | O154: -1 | P154: 0
A155: 126 | B155: 11 | G155: 262 | H155: 232 | I155: 21 | J155: 2 | O155: -1 | P155: 0
A156: 126 | B156: 29 | G156: 270 | H156: 235 | I156: 22 | J156: 3.16227766 | O156: -1 | P156: 0
A157: 126 | B157: 5 | G157: 271 | H157: 235 | I157: 26 | J157: 4 | O157: -1 | P157: 0
A158: 127 | B158: 16 | G158: 272 | H158: 235 | I158: 30 | J158: 4 | O158: -1 | P158: 0
A159: 130 | B159: 14 | G159: 273 | H159: 235 | I159: 34 | J159: 4 | O159: -1 | P159: 0
A160: 130 | B160: 19 | G160: 274 | H160: 235 | I160: 36 | J160: 2 | O160: -1 | P160: 0
A161: 130 | B161: 22 | G161: 279 | H161: 241 | I161: 33 | J161: 6.708203932 | O161: -1 | P161: 0
A162: 130 | B162: 26 | G162: 280 | H162: 245 | I162: 34 | J162: 4.123105626 | O162: -1 | P162: 0
A163: 130 | B163: 6 | G163: 281 | H163: 245 | I163: 36 | J163: 2 | O163: -1 | P163: 0
A164: 140 | B164: 20 | G164: 291 | H164: 255 | I164: 36 | J164: 10 | O164: -1 | P164: 0
A165: 140 | B165: 22 | G165: 290 | H165: 255 | I165: 34 | J165: 2 | O165: -1 | P165: 0
A166: 140 | B166: 24 | G166: 289 | H166: 255 | I166: 32 | J166: 2 | O166: -1 | P166: 0
A167: 140 | B167: 26 | G167: 288 | H167: 255 | I167: 31 | J167: 1 | O167: -1 | P167: 0
A168: 140 | B168: 28 | G168: 297 | H168: 258 | I168: 28 | J168: 4.242640687 | O168: -1 | P168: 0
A169: 140 | B169: 6 | G169: 296 | H169: 258 | I169: 24 | J169: 4 | O169: -1 | P169: 0
A170: 143 | B170: 10 | G170: 295 | H170: 258 | I170: 20 | J170: 4 | O170: -1 | P170: 0
A171: 143 | B171: 13 | G171: 300 | H171: 262 | I171: 21 | J171: 4.123105626 | O171: -1 | P171: 0
A172: 143 | B172: 17 | G172: 306 | H172: 263 | I172: 22 | J172: 1.414213562 | O172: -1 | P172: 0
A173: 143 | B173: 21 | G173: 301 | H173: 262 | I173: 24 | J173: 2.236067977 | O173: -1 | P173: 0
A174: 143 | B174: 31 | G174: 307 | H174: 263 | I174: 26 | J174: 2.236067977 | O174: -1 | P174: 0
A175: 143 | B175: 34 | G175: 302 | H175: 262 | I175: 28 | J175: 2.236067977 | O175: -1 | P175: 0
A176: 143 | B176: 36 | G176: 311 | H176: 264 | I176: 30 | J176: 2.828427125 | O176: -1 | P176: 0
A177: 146 | B177: 29 | G177: 318 | H177: 268 | I177: 27 | J177: 5 | O177: -1 | P177: 0
A178: 147 | B178: 22 | G178: 324 | H178: 278 | I178: 35 | J178: 12.80624847 | O178: -1 | P178: 0
A179: 148 | B179: 20 | G179: 335 | H179: 287 | I179: 25 | J179: 13.45362405 | O179: -1 | P179: 0
A180: 149 | B180: 11 | G180: 340 | H180: 294 | I180: 35 | J180: 12.20655562 | O180: -1 | P180: 0
A181: 149 | B181: 20 | G181: 342 | H181: 299 | I181: 21 | J181: 14.86606875 | O181: -1 | P181: 0
A182: 149 | B182: 30 | G182: 341 | H182: 299 | I182: 16 | J182: 5 | O182: -1 | P182: 0
A183: 149 | B183: 33 | G183: 339 | H183: 293 | I183: 19 | J183: 6.708203932 | O183: -1 | P183: 0
A184: 149 | B184: 42 | G184: 338 | H184: 291 | I184: 16 | J184: 3.605551275 | O184: -1 | P184: 0
A185: 149 | B185: 8 | G185: 337 | H185: 291 | I185: 14 | J185: 2 | O185: -1 | P185: 0
A186: 150 | B186: 29 | G186: 334 | H186: 287 | I186: 15 | J186: 4.123105626 | O186: -1 | P186: 0
A187: 153 | B187: 21 | G187: 333 | H187: 287 | I187: 13 | J187: 2 | O187: -1 | P187: 0
A188: 153 | B188: 29 | G188: 331 | H188: 286 | I188: 13 | J188: 1 | O188: -1 | P188: 0
A189: 153 | B189: 31 | G189: 329 | H189: 285 | I189: 10 | J189: 3.16227766 | O189: -1 | P189: 0
A190: 153 | B190: 34 | G190: 330 | H190: 286 | I190: 10 | J190: 1 | O190: -1 | P190: 0
A191: 153 | B191: 36 | G191: 332 | H191: 287 | I191: 10 | J191: 1 | O191: -1 | P191: 0
A192: 155 | B192: 6 | G192: 336 | H192: 287 | I192: 5 | J192: 5 | O192: -1 | P192: 0
A193: 163 | B193: 10 | G193: 328 | H193: 281 | I193: 7 | J193: 6.32455532 | O193: -1 | P193: 0
A194: 163 | B194: 12 | G194: 320 | H194: 278 | I194: 10 | J194: 4.242640687 | O194: -1 | P194: 0
A195: 163 | B195: 14 | G195: 321 | H195: 278 | I195: 12 | J195: =SQRT(((H194-H195)*(H194-H195))+((I194-I195)*(I194-I195))) -> 2 | O195: =((M195/$F$1)-1) -> -1 | P195: 0
A196: 163 | B196: 16 | G196: 322 | H196: 278 | I196: 13 | J196: 1 | O196: -1 | P196: =+N196-N195 -> 0
A197: 163 | B197: 18 | G197: 325 | H197: 281 | I197: 12 | J197: 3.16227766 | O197: -1 | P197: 0
A198: 163 | B198: 20 | G198: 326 | H198: 281 | I198: 14 | J198: 2 | O198: -1 | P198: 0
A199: 163 | B199: 22 | G199: 327 | H199: 281 | I199: 16 | J199: 2 | O199: -1 | P199: 0
A200: 163 | B200: 24 | G200: 323 | H200: 278 | I200: 19 | J200: 4.242640687 | O200: -1 | P200: 0
... 146 more rows

Sheet Spirale (0%)
A1: X réel | B1: Y réel | C1: X graphique | D1: Y graphique | E1: A battre : | F1: 5807.441042 | G1: Ordre | H1: X réel | I1: Y réel | J1: Distance : | K1: 5807.441042 | L1: Niv: 7 | M1: Historique | N1: Temps | O1: Ecart | P1: =MIN(M:M) -> 5807.441042 | Q1: =((P1/$F$1)-1) -> -3.330669074e-16
A2: 325 | B2: 3 | C2: 325 | D2: 3 | E2: Détail : | F2: =SUM(E:E) -> 5807.441042 | G2: 0 | H2: 325 | I2: 3 | J2: Détail : | K2: =SUM(J:J) -> 5807.441042 | L2: Durée : 1102,3515625 | M2: 6116.816226 | N2: 0.9449 | O2: =((M2/$F$1)-1) -> 0.05327220393
A3: 443 | B3: 16 | C3: 443 | D3: 16 | E3: =SQRT(((C2-C3)*(C2-C3))+((D2-D3)*(D2-D3))) -> 118.7139419 | G3: 192 | H3: 313 | I3: 33 | J3: =SQRT(((H2-H3)*(H2-H3))+((I2-I3)*(I2-I3))) -> 32.31098884 | K3: =(+K1/F1)-1 -> 0 | M3: 6013.217264 | N3: 7.7707 | O3: =((M3/$F$1)-1) -> 0.03543320028
A4: 425 | B4: 34 | C4: 425 | D4: 34 | E4: =SQRT(((C3-C4)*(C3-C4))+((D3-D4)*(D3-D4))) -> 25.45584412 | G4: 191 | H4: 303 | I4: 61 | J4: =SQRT(((H3-H4)*(H3-H4))+((I3-I4)*(I3-I4))) -> 29.73213749 | L4: VERSION 16 | M4: 5847.521392 | N4: 14.753 | O4: 0.006901550845
A5: 406 | B5: 55 | C5: 406 | D5: 55 | E5: 28.31960452 | G5: 190 | H5: 299 | I5: 89 | J5: 28.28427125 | M5: 5828.340699 | N5: 22.1499 | O5: 0.003598772112
A6: 386 | B6: 81 | C6: 386 | D6: 81 | E6: 32.80243893 | G6: 189 | H6: 291 | I6: 114 | J6: 26.2488095 | L6: Niv: 7 / Tracé Num: 20+ | M6: 5828.340699 | N6: 28.5878 | O6: 0.003598772112
A7: 373 | B7: 105 | C7: 373 | D7: 105 | E7: 27.29468813 | G7: 188 | H7: 290 | I7: 142 | J7: 28.01785145 | L7: 6242.5503 | M7: 5828.340699 | N7: 35.7914 | O7: 0.003598772112
A8: 359 | B8: 123 | C8: 359 | D8: 123 | E8: 22.8035085 | G8: 187 | H8: 293 | I8: 171 | J8: 29.15475947 | L8: PasAnalyse = 2 | M8: 5824.276376 | N8: 41.4825 | O8: 0.002898924689
A9: 350 | B9: 157 | C9: 350 | D9: 157 | E9: 35.17101079 | G9: 186 | H9: 299 | I9: 200 | J9: 29.61418579 | L9: PourcentagePointsFixes = 0.10 | M9: 5824.276376 | N9: 47.5719 | O9: 0.002898924689
A10: 343 | B10: 182 | C10: 343 | D10: 182 | E10: 25.96150997 | G10: 185 | H10: 306 | I10: 226 | J10: 26.92582404 | L10: PourcentageDistanceVoisin = 0.10 | M10: 5824.276376 | N10: 54.6641 | O10: 0.002898924689
A11: 341 | B11: 203 | C11: 341 | D11: 203 | E11: 21.09502311 | G11: 184 | H11: 319 | I11: 247 | J11: 24.69817807 | L11: NombreDePreTraitments = 21 | M11: 5824.276376 | N11: 60.6511 | O11: 0.002898924689
A12: 339 | B12: 230 | C12: 339 | D12: 230 | E12: 27.07397274 | G12: 183 | H12: 301 | I12: 269 | J12: 28.42534081 | L12: NombreDeTraitments = 21 | M12: 5824.276376 | N12: 67.1037 | O12: 0.002898924689
A13: 367 | B13: 226 | C13: 367 | D13: 226 | E13: 28.28427125 | G13: 182 | H13: 280 | I13: 249 | J13: 29 | M13: 5824.276376 | N13: 73.74 | O13: 0.002898924689
A14: 381 | B14: 206 | C14: 381 | D14: 206 | E14: 24.41311123 | G14: 181 | H14: 264 | I14: 232 | J14: 23.34523506 | M14: 5824.276376 | N14: 80.1016 | O14: 0.002898924689
A15: 395 | B15: 185 | C15: 395 | D15: 185 | E15: 25.23885893 | G15: 180 | H15: 250 | I15: 207 | J15: 28.65309756 | M15: 5824.276376 | N15: 86.2313 | O15: 0.002898924689
A16: 413 | B16: 159 | C16: 413 | D16: 159 | E16: 31.6227766 | G16: 179 | H16: 237 | I16: 182 | J16: 28.17800561 | M16: 5824.276376 | N16: 92.7147 | O16: 0.002898924689
A17: 429 | B17: 140 | C17: 429 | D17: 140 | E17: 24.8394847 | G17: 178 | H17: 226 | I17: 160 | J17: 24.59674775 | M17: 5824.276376 | N17: 99.8746 | O17: 0.002898924689
A18: 449 | B18: 121 | C18: 449 | D18: 121 | E18: 27.58622845 | G18: 177 | H18: 218 | I18: 130 | J18: 31.04834939 | M18: 5824.276376 | N18: 106.671 | O18: 0.002898924689
A19: 475 | B19: 106 | C19: 475 | D19: 106 | E19: 30.01666204 | G19: 176 | H19: 215 | I19: 102 | J19: 28.16025568 | M19: 5824.276376 | N19: 113.5423 | O19: 0.002898924689
A20: 500 | B20: 88 | C20: 500 | D20: 88 | E20: 30.8058436 | G20: 175 | H20: 215 | I20: 70 | J20: 32 | M20: 5824.276376 | N20: 119.7576 | O20: 0.002898924689
A21: 529 | B21: 81 | C21: 529 | D21: 81 | E21: 29.83286778 | G21: 174 | H21: 214 | I21: 48 | J21: 22.02271555 | M21: 5824.276376 | N21: 126.6491 | O21: 0.002898924689
A22: 556 | B22: 70 | C22: 556 | D22: 70 | E22: 29.15475947 | G22: 173 | H22: 119 | I22: 92 | J22: 104.6947945 | M22: 5824.276376 | N22: 133.8579 | O22: 0.002898924689
A23: 634 | B23: 166 | C23: 634 | D23: 166 | E23: 123.6931688 | G23: 172 | H23: 129 | I23: 123 | J23: 32.57299495 | M23: 5824.276376 | N23: 139.9366 | O23: 0.002898924689
A24: 607 | B24: 159 | C24: 607 | D24: 159 | E24: 27.89265136 | G24: 171 | H24: 135 | I24: 155 | J24: 32.55764119 | M24: 5824.276376 | N24: 145.936 | O24: 0.002898924689
A25: 574 | B25: 159 | C25: 574 | D25: 159 | E25: 33 | G25: 170 | H25: 152 | I25: 178 | J25: 28.60069929 | M25: 5824.276376 | N25: 159.162 | O25: 0.002898924689
A26: 545 | B26: 164 | C26: 545 | D26: 164 | E26: 29.42787794 | G26: 169 | H26: 164 | I26: 196 | J26: 21.63330765 | M26: 5824.276376 | N26: 165.5188 | O26: 0.002898924689
A27: 516 | B27: 170 | C27: 516 | D27: 170 | E27: 29.61418579 | G27: 168 | H27: 178 | I27: 221 | J27: 28.65309756 | M27: 5824.276376 | N27: 172.1551 | O27: 0.002898924689
A28: 487 | B28: 180 | C28: 487 | D28: 180 | E28: 30.6757233 | G28: 167 | H28: 199 | I28: 243 | J28: 30.41381265 | M28: 5824.276376 | N28: 178.5147 | O28: 0.002898924689
A29: 464 | B29: 189 | C29: 464 | D29: 189 | E29: 24.69817807 | G29: 166 | H29: 223 | I29: 261 | J29: 30 | M29: 5819.204262 | N29: 185.2782 | O29: 0.0020255427
A30: 440 | B30: 202 | C30: 440 | D30: 202 | E30: 27.29468813 | G30: 165 | H30: 247 | I30: 277 | J30: 28.8444102 | M30: 5819.204262 | N30: 191.977 | O30: 0.0020255427
A31: 421 | B31: 219 | C31: 421 | D31: 219 | E31: 25.49509757 | G31: 164 | H31: 272 | I31: 285 | J31: 26.2488095 | M31: 5815.421923 | N31: 198.5716 | O31: 0.001374250903
A32: 401 | B32: 236 | C32: 401 | D32: 236 | E32: 26.2488095 | G32: 163 | H32: 292 | I32: 296 | J32: 22.82542442 | M32: 5815.421923 | N32: 204.592 | O32: 0.001374250903
A33: 428 | B33: 258 | C33: 428 | D33: 258 | E33: 34.82814953 | G33: 162 | H33: 293 | I33: 319 | J33: 23.02172887 | M33: 5815.421923 | N33: 211.0822 | O33: 0.001374250903
A34: 450 | B34: 249 | C34: 450 | D34: 249 | E34: 23.76972865 | G34: 161 | H34: 274 | I34: 319 | J34: 19 | M34: 5815.421923 | N34: 217.7594 | O34: 0.001374250903
A35: 476 | B35: 239 | C35: 476 | D35: 239 | E35: 27.85677655 | G35: 160 | H35: 243 | I35: 320 | J35: 31.01612484 | M35: 5815.421923 | N35: 224.2659 | O35: 0.001374250903
A36: 505 | B36: 237 | C36: 505 | D36: 237 | E36: 29.06888371 | G36: 159 | H36: 219 | I36: 314 | J36: 24.73863375 | M36: 5815.139939 | N36: 230.4542 | O36: 0.001325695277
A37: 531 | B37: 237 | C37: 531 | D37: 237 | E37: 26 | G37: 158 | H37: 191 | I37: 310 | J37: 28.28427125 | M37: 5815.139939 | N37: 237.2479 | O37: 0.001325695277
A38: 560 | B38: 239 | C38: 560 | D38: 239 | E38: 29.06888371 | G38: 157 | H38: 169 | I38: 296 | J38: 26.07680962 | M38: 5815.139939 | N38: 243.781 | O38: 0.001325695277
A39: 588 | B39: 246 | C39: 588 | D39: 246 | E39: 28.86173938 | G39: 156 | H39: 140 | I39: 282 | J39: 32.20248438 | M39: 5815.139939 | N39: 251.9595 | O39: 0.001325695277
A40: 610 | B40: 257 | C40: 610 | D40: 257 | E40: 24.59674775 | G40: 155 | H40: 119 | I40: 266 | J40: 26.40075756 | M40: 5815.139939 | N40: 257.3322 | O40: 0.001325695277
A41: 643 | B41: 267 | C41: 643 | D41: 267 | E41: 34.4818793 | G41: 154 | H41: 97 | I41: 246 | J41: 29.73213749 | M41: 5815.139939 | N41: 264.9479 | O41: 0.001325695277
A42: 671 | B42: 285 | C42: 671 | D42: 285 | E42: 33.28663395 | G42: 153 | H42: 73 | I42: 226 | J42: 31.2409987 | M42: 5815.139939 | N42: 271.3506 | O42: 0.001325695277
A43: 655 | B43: 410 | C43: 655 | D43: 410 | E43: 126.0198397 | G43: 152 | H43: 54 | I43: 204 | J43: 29.06888371 | M43: 5815.139939 | N43: 279.3581 | O43: 0.001325695277
A44: 640 | B44: 384 | C44: 640 | D44: 384 | E44: 30.01666204 | G44: 151 | H44: 44 | I44: 326 | J44: 122.40915 | M44: 5815.139939 | N44: 286.1345 | O44: 0.001325695277
A45: 619 | B45: 361 | C45: 619 | D45: 361 | E45: 31.144823 | G45: 150 | H45: 70 | I45: 340 | J45: 29.52964612 | M45: 5815.139939 | N45: 292.796 | O45: 0.001325695277
A46: 599 | B46: 343 | C46: 599 | D46: 343 | E46: 26.90724809 | G46: 149 | H46: 95 | I46: 351 | J46: 27.31300057 | M46: 5815.139939 | N46: 299.0926 | O46: 0.001325695277
A47: 575 | B47: 323 | C47: 575 | D47: 323 | E47: 31.2409987 | G47: 148 | H47: 127 | I47: 365 | J47: 34.92849839 | M47: 5815.139939 | N47: 305.6098 | O47: 0.001325695277
A48: 547 | B48: 315 | C48: 547 | D48: 315 | E48: 29.12043956 | G48: 147 | H48: 156 | I48: 369 | J48: 29.27456234 | M48: 5815.139939 | N48: 312.6109 | O48: 0.001325695277
A49: 521 | B49: 304 | C49: 521 | D49: 304 | E49: 28.23118843 | G49: 146 | H49: 178 | I49: 370 | J49: 22.02271555 | M49: 5815.139939 | N49: 319.1264 | O49: 0.001325695277
A50: 494 | B50: 292 | C50: 494 | D50: 292 | E50: 29.54657341 | G50: 145 | H50: 214 | I50: 372 | J50: 36.05551275 | M50: 5815.139939 | N50: 325.4901 | O50: 0.001325695277
A51: 474 | B51: 290 | C51: 474 | D51: 290 | E51: 20.09975124 | G51: 144 | H51: 238 | I51: 367 | J51: 24.51530134 | M51: 5815.139939 | N51: 331.5098 | O51: 0.001325695277
A52: 448 | B52: 286 | C52: 448 | D52: 286 | E52: 26.30589288 | G52: 143 | H52: 262 | I52: 362 | J52: 24.51530134 | M52: 5815.139939 | N52: 337.3774 | O52: 0.001325695277
A53: 449 | B53: 323 | C53: 449 | D53: 323 | E53: 37.01351105 | G53: 142 | H53: 290 | I53: 351 | J53: 30.08321791 | M53: 5815.139939 | N53: 343.2085 | O53: 0.001325695277
A54: 471 | B54: 336 | C54: 471 | D54: 336 | E54: 25.55386468 | G54: 141 | H54: 313 | I54: 344 | J54: 24.04163056 | M54: 5815.139939 | N54: 348.7719 | O54: 0.001325695277
A55: 491 | B55: 347 | C55: 491 | D55: 347 | E55: 22.82542442 | G55: 140 | H55: 328 | I55: 352 | J55: 17 | M55: 5815.139939 | N55: 355.5501 | O55: 0.001325695277
A56: 511 | B56: 367 | C56: 511 | D56: 367 | E56: 28.28427125 | G56: 139 | H56: 312 | I56: 374 | J56: 27.20294102 | M56: 5815.139939 | N56: 362.0999 | O56: 0.001325695277
A57: 531 | B57: 391 | C57: 531 | D57: 391 | E57: 31.2409987 | G57: 138 | H57: 292 | I57: 390 | J57: 25.61249695 | M57: 5815.139939 | N57: 368.456 | O57: 0.001325695277
A58: 548 | B58: 411 | C58: 548 | D58: 411 | E58: 26.2488095 | G58: 137 | H58: 270 | I58: 407 | J58: 27.80287755 | M58: 5815.092346 | N58: 374.9282 | O58: 0.001317500046
A59: 564 | B59: 432 | C59: 564 | D59: 432 | E59: 26.40075756 | G59: 136 | H59: 249 | I59: 419 | J59: 24.18677324 | M59: 5815.092346 | N59: 381.1563 | O59: 0.001317500046
A60: 580 | B60: 464 | C60: 580 | D60: 464 | E60: 35.77708764 | G60: 135 | H60: 221 | I60: 433 | J60: 31.30495168 | M60: 5815.092346 | N60: 387.1711 | O60: 0.001317500046
A61: 588 | B61: 491 | C61: 588 | D61: 491 | E61: 28.16025568 | G61: 134 | H61: 194 | I61: 438 | J61: 27.45906044 | M61: 5814.6301 | N61: 393.8299 | O61: 0.001237904626
A62: 595 | B62: 521 | C62: 595 | D62: 521 | E62: 30.8058436 | G62: 133 | H62: 167 | I62: 445 | J62: 27.89265136 | M62: 5814.6301 | N62: 400.2934 | O62: 0.001237904626
A63: 502 | B63: 566 | C63: 502 | D63: 566 | E63: 103.3150521 | G63: 132 | H63: 136 | I63: 449 | J63: 31.25699922 | M63: 5814.6301 | N63: 406.8599 | O63: 0.001237904626
A64: 501 | B64: 535 | C64: 501 | D64: 535 | E64: 31.01612484 | G64: 131 | H64: 108 | I64: 447 | J64: 28.0713377 | M64: 5814.6301 | N64: 413.1366 | O64: 0.001237904626
A65: 501 | B65: 509 | C65: 501 | D65: 509 | E65: 26 | G65: 130 | H65: 80 | I65: 446 | J65: 28.01785145 | M65: 5814.6301 | N65: 419.8249 | O65: 0.001237904626
A66: 497 | B66: 481 | C66: 497 | D66: 481 | E66: 28.28427125 | G66: 129 | H66: 160 | I66: 542 | J66: 124.9639948 | M66: 5814.6301 | N66: 426.003 | O66: 0.001237904626
A67: 490 | B67: 454 | C67: 490 | D67: 454 | E67: 27.89265136 | G67: 128 | H67: 185 | I67: 533 | J67: 26.57066051 | M67: 5814.6301 | N67: 432.3658 | O67: =((M67/$F$1)-1) -> 0.001237904626
A68: 478 | B68: 424 | C68: 478 | D68: 424 | E68: =SQRT(((C67-C68)*(C67-C68))+((D67-D68)*(D67-D68))) -> 32.31098884 | G68: 127 | H68: 214 | I68: 518 | J68: =SQRT(((H67-H68)*(H67-H68))+((I67-I68)*(I67-I68))) -> 32.64965543 | M68: 5814.348116 | N68: 439.7976 | O68: 0.001189349001
A69: 467 | B69: 401 | C69: 467 | D69: 401 | E69: 25.49509757 | G69: 126 | H69: 239 | I69: 502 | J69: 29.68164416 | M69: 5814.348116 | N69: 446.8473 | O69: 0.001189349001
A70: 451 | B70: 380 | C70: 451 | D70: 380 | E70: 26.40075756 | G70: 125 | H70: 263 | I70: 488 | J70: 27.78488798 | M70: 5814.348116 | N70: 453.3926 | O70: 0.001189349001
A71: 434 | B71: 357 | C71: 434 | D71: 357 | E71: 28.60069929 | G71: 124 | H71: 286 | I71: 471 | J71: 28.60069929 | M71: 5814.348116 | N71: 460.135 | O71: 0.001189349001
A72: 414 | B72: 337 | C72: 414 | D72: 337 | E72: 28.28427125 | G72: 123 | H72: 303 | I72: 451 | J72: 26.2488095 | M72: 5814.348116 | N72: 466.437 | O72: 0.001189349001
A73: 419 | B73: 316 | C73: 419 | D73: 316 | E73: 21.58703314 | G73: 122 | H73: 321 | I73: 429 | J73: 28.42534081 | M73: 5814.348116 | N73: 472.6692 | O73: 0.001189349001
A74: 417 | B74: 290 | C74: 417 | D74: 290 | E74: 26.07680962 | G74: 121 | H74: 335 | I74: 405 | J74: 27.78488798 | M74: 5814.348116 | N74: 479.4633 | O74: 0.001189349001
A75: 405 | B75: 273 | C75: 405 | D75: 273 | E75: 20.80865205 | G75: 120 | H75: 344 | I75: 380 | J75: 26.57066051 | M75: 5814.348116 | N75: 486.6213 | O75: 0.001189349001
A76: 387 | B76: 260 | C76: 387 | D76: 260 | E76: 22.20360331 | G76: 119 | H76: 350 | I76: 355 | J76: 25.70992026 | M76: 5814.348116 | N76: 493.2208 | O76: 0.001189349001
A77: 361 | B77: 250 | C77: 361 | D77: 250 | E77: 27.85677655 | G77: 118 | H77: 373 | I77: 353 | J77: 23.08679276 | M77: 5814.348116 | N77: 499.7269 | O77: 0.001189349001
A78: 340 | B78: 257 | C78: 340 | D78: 257 | E78: 22.13594362 | G78: 117 | H78: 373 | I78: 376 | J78: 23 | M78: 5814.348116 | N78: 506.1827 | O78: 0.001189349001
A79: 328 | B79: 273 | C79: 328 | D79: 273 | E79: 20 | G79: 116 | H79: 373 | I79: 401 | J79: 25 | M79: 5814.348116 | N79: 513.0917 | O79: 0.001189349001
A80: 321 | B80: 288 | C80: 321 | D80: 288 | E80: 16.55294536 | G80: 115 | H80: 373 | I80: 429 | J80: 28 | M80: 5814.348116 | N80: 519.472 | O80: 0.001189349001
A81: 318 | B81: 306 | C81: 318 | D81: 306 | E81: 18.24828759 | G81: 114 | H81: 365 | I81: 454 | J81: 26.2488095 | M81: 5814.348116 | N81: 525.6437 | O81: 0.001189349001
A82: 325 | B82: 318 | C82: 325 | D82: 318 | E82: 13.89244399 | G82: 113 | H82: 357 | I82: 482 | J82: 29.12043956 | M82: 5814.348116 | N82: 531.8831 | O82: 0.001189349001
A83: 333 | B83: 326 | C83: 333 | D83: 326 | E83: 11.3137085 | G83: 112 | H83: 341 | I83: 508 | J83: 30.52867504 | M83: 5814.348116 | N83: 538.3292 | O83: 0.001189349001
A84: 343 | B84: 331 | C84: 343 | D84: 331 | E84: 11.18033989 | G84: 111 | H84: 328 | I84: 534 | J84: 29.06888371 | M84: 5814.348116 | N84: 545.0101 | O84: 0.001189349001
A85: 353 | B85: 331 | C85: 353 | D85: 331 | E85: 10 | G85: 110 | H85: 308 | I85: 556 | J85: 29.73213749 | M85: 5814.348116 | N85: 551.6231 | O85: 0.001189349001
A86: 368 | B86: 325 | C86: 368 | D86: 325 | E86: 16.15549442 | G86: 109 | H86: 291 | I86: 576 | J86: 26.2488095 | M86: 5814.348116 | N86: 559.7743 | O86: 0.001189349001
A87: 372 | B87: 315 | C87: 372 | D87: 315 | E87: 10.77032961 | G87: 108 | H87: 265 | I87: 599 | J87: 34.71310992 | M87: 5814.348116 | N87: 565.9433 | O87: 0.001189349001
A88: 371 | B88: 305 | C88: 371 | D88: 305 | E88: 10.04987562 | G88: 107 | H88: 387 | I88: 606 | J88: 122.2006547 | M88: 5814.348116 | N88: 573.0713 | O88: 0.001189349001
A89: 363 | B89: 301 | C89: 363 | D89: 301 | E89: 8.94427191 | G89: 106 | H89: 403 | I89: 576 | J89: 34 | M89: 5814.348116 | N89: 579.963 | O89: 0.001189349001
A90: 351 | B90: 305 | C90: 351 | D90: 305 | E90: 12.64911064 | G90: 105 | H90: 414 | I90: 548 | J90: 30.08321791 | M90: 5814.348116 | N90: 586.4779 | O90: 0.001189349001
A91: 341 | B91: 300 | C91: 341 | D91: 300 | E91: 11.18033989 | G91: 104 | H91: 419 | I91: 525 | J91: 23.53720459 | M91: 5814.348116 | N91: 593.5085 | O91: 0.001189349001
A92: 344 | B92: 287 | C92: 344 | D92: 287 | E92: 13.34166406 | G92: 103 | H92: 422 | I92: 494 | J92: 31.144823 | M92: 5814.348116 | N92: 599.5027 | O92: 0.001189349001
A93: 349 | B93: 281 | C93: 349 | D93: 281 | E93: 7.810249676 | G93: 102 | H93: 423 | I93: 464 | J93: 30.01666204 | M93: 5814.348116 | N93: 606.1035 | O93: 0.001189349001
A94: 364 | B94: 280 | C94: 364 | D94: 280 | E94: 15.03329638 | G94: 101 | H94: 421 | I94: 437 | J94: 27.07397274 | M94: 5814.348116 | N94: 612.3783 | O94: 0.001189349001
A95: 382 | B95: 281 | C95: 382 | D95: 281 | E95: 18.02775638 | G95: 100 | H95: 418 | I95: 415 | J95: 22.20360331 | M95: 5814.348116 | N95: 618.2643 | O95: 0.001189349001
A96: 392 | B96: 297 | C96: 392 | D96: 297 | E96: 18.86796226 | G96: 99 | H96: 407 | I96: 388 | J96: 29.15475947 | M96: 5814.348116 | N96: 624.96 | O96: 0.001189349001
A97: 397 | B97: 310 | C97: 397 | D97: 310 | E97: 13.92838828 | G97: 98 | H97: 400 | I97: 362 | J97: 26.92582404 | M97: 5814.348116 | N97: 640.3458 | O97: 0.001189349001
A98: 395 | B98: 327 | C98: 395 | D98: 327 | E98: 17.11724277 | G98: 97 | H98: 386 | I98: 338 | J98: 27.78488798 | M98: 5814.348116 | N98: 647.3448 | O98: 0.001189349001
A99: 386 | B99: 338 | C99: 386 | D99: 338 | E99: 14.2126704 | G99: 96 | H99: 395 | I99: 327 | J99: 14.2126704 | M99: 5814.348116 | N99: 654.0269 | O99: 0.001189349001
A100: 400 | B100: 362 | C100: 400 | D100: 362 | E100: 27.78488798 | G100: 95 | H100: 397 | I100: 310 | J100: 17.11724277 | M100: 5814.348116 | N100: 660.8323 | O100: 0.001189349001
A101: 407 | B101: 388 | C101: 407 | D101: 388 | E101: 26.92582404 | G101: 94 | H101: 392 | I101: 297 | J101: 13.92838828 | M101: 5814.348116 | N101: 667.3824 | O101: 0.001189349001
A102: 418 | B102: 415 | C102: 418 | D102: 415 | E102: 29.15475947 | G102: 93 | H102: 382 | I102: 281 | J102: 18.86796226 | M102: 5814.348116 | N102: 674.1492 | O102: 0.001189349001
A103: 421 | B103: 437 | C103: 421 | D103: 437 | E103: 22.20360331 | G103: 92 | H103: 364 | I103: 280 | J103: 18.02775638 | M103: 5814.348116 | N103: 680.9152 | O103: 0.001189349001
A104: 423 | B104: 464 | C104: 423 | D104: 464 | E104: 27.07397274 | G104: 91 | H104: 349 | I104: 281 | J104: 15.03329638 | M104: 5814.348116 | N104: 686.9081 | O104: 0.001189349001
A105: 422 | B105: 494 | C105: 422 | D105: 494 | E105: 30.01666204 | G105: 90 | H105: 344 | I105: 287 | J105: 7.810249676 | M105: 5814.348116 | N105: 694.3206 | O105: 0.001189349001
A106: 419 | B106: 525 | C106: 419 | D106: 525 | E106: 31.144823 | G106: 89 | H106: 341 | I106: 300 | J106: 13.34166406 | M106: 5814.348116 | N106: 701.7825 | O106: 0.001189349001
A107: 414 | B107: 548 | C107: 414 | D107: 548 | E107: 23.53720459 | G107: 88 | H107: 351 | I107: 305 | J107: 11.18033989 | M107: 5814.348116 | N107: 708.3233 | O107: 0.001189349001
A108: 403 | B108: 576 | C108: 403 | D108: 576 | E108: 30.08321791 | G108: 87 | H108: 363 | I108: 301 | J108: 12.64911064 | M108: 5814.348116 | N108: 715.0664 | O108: 0.001189349001
A109: 387 | B109: 606 | C109: 387 | D109: 606 | E109: 34 | G109: 86 | H109: 371 | I109: 305 | J109: 8.94427191 | M109: 5814.348116 | N109: 721.7583 | O109: 0.001189349001
A110: 265 | B110: 599 | C110: 265 | D110: 599 | E110: 122.2006547 | G110: 85 | H110: 372 | I110: 315 | J110: 10.04987562 | M110: 5814.348116 | N110: 727.8995 | O110: 0.001189349001
A111: 291 | B111: 576 | C111: 291 | D111: 576 | E111: 34.71310992 | G111: 84 | H111: 368 | I111: 325 | J111: 10.77032961 | M111: 5814.348116 | N111: 734.8015 | O111: 0.001189349001
A112: 308 | B112: 556 | C112: 308 | D112: 556 | E112: 26.2488095 | G112: 83 | H112: 353 | I112: 331 | J112: 16.15549442 | M112: 5814.348116 | N112: 741.9614 | O112: 0.001189349001
A113: 328 | B113: 534 | C113: 328 | D113: 534 | E113: 29.73213749 | G113: 82 | H113: 343 | I113: 331 | J113: 10 | M113: 5814.348116 | N113: 749.0471 | O113: 0.001189349001
A114: 341 | B114: 508 | C114: 341 | D114: 508 | E114: 29.06888371 | G114: 81 | H114: 333 | I114: 326 | J114: 11.18033989 | M114: 5814.348116 | N114: 755.0256 | O114: 0.001189349001
A115: 357 | B115: 482 | C115: 357 | D115: 482 | E115: 30.52867504 | G115: 80 | H115: 325 | I115: 318 | J115: 11.3137085 | M115: 5814.348116 | N115: 761.5932 | O115: 0.001189349001
A116: 365 | B116: 454 | C116: 365 | D116: 454 | E116: 29.12043956 | G116: 79 | H116: 318 | I116: 306 | J116: 13.89244399 | M116: 5814.348116 | N116: 768.4817 | O116: 0.001189349001
A117: 373 | B117: 429 | C117: 373 | D117: 429 | E117: 26.2488095 | G117: 78 | H117: 321 | I117: 288 | J117: 18.24828759 | M117: 5814.348116 | N117: 774.7472 | O117: 0.001189349001
A118: 373 | B118: 401 | C118: 373 | D118: 401 | E118: 28 | G118: 77 | H118: 328 | I118: 273 | J118: 16.55294536 | M118: 5814.348116 | N118: 781.4976 | O118: 0.001189349001
A119: 373 | B119: 376 | C119: 373 | D119: 376 | E119: 25 | G119: 76 | H119: 340 | I119: 257 | J119: 20 | M119: 5844.176368 | N119: 789.5071 | O119: 0.00632556152
A120: 373 | B120: 353 | C120: 373 | D120: 353 | E120: 23 | G120: 75 | H120: 361 | I120: 250 | J120: 22.13594362 | M120: 5844.176368 | N120: 796.9341 | O120: 0.00632556152
A121: 350 | B121: 355 | C121: 350 | D121: 355 | E121: 23.08679276 | G121: 74 | H121: 387 | I121: 260 | J121: 27.85677655 | M121: 5844.176368 | N121: 804.0298 | O121: 0.00632556152
A122: 344 | B122: 380 | C122: 344 | D122: 380 | E122: 25.70992026 | G122: 73 | H122: 405 | I122: 273 | J122: 22.20360331 | M122: 5844.176368 | N122: 809.6096 | O122: 0.00632556152
A123: 335 | B123: 405 | C123: 335 | D123: 405 | E123: 26.57066051 | G123: 72 | H123: 417 | I123: 290 | J123: 20.80865205 | M123: 5838.159652 | N123: 815.6939 | O123: 0.005289525949
A124: 321 | B124: 429 | C124: 321 | D124: 429 | E124: 27.78488798 | G124: 71 | H124: 419 | I124: 316 | J124: 26.07680962 | M124: 5824.486321 | N124: 822.1413 | O124: 0.002935075567
A125: 303 | B125: 451 | C125: 303 | D125: 451 | E125: 28.42534081 | G125: 70 | H125: 414 | I125: 337 | J125: 21.58703314 | M125: 5824.486321 | N125: 828.3202 | O125: 0.002935075567
A126: 286 | B126: 471 | C126: 286 | D126: 471 | E126: 26.2488095 | G126: 69 | H126: 434 | I126: 357 | J126: 28.28427125 | M126: 5824.486321 | N126: 834.011 | O126: 0.002935075567
A127: 263 | B127: 488 | C127: 263 | D127: 488 | E127: 28.60069929 | G127: 68 | H127: 451 | I127: 380 | J127: 28.60069929 | M127: 5824.486321 | N127: 841.0334 | O127: 0.002935075567
A128: 239 | B128: 502 | C128: 239 | D128: 502 | E128: 27.78488798 | G128: 67 | H128: 467 | I128: 401 | J128: 26.40075756 | M128: 5824.486321 | N128: 847.5578 | O128: 0.002935075567
A129: 214 | B129: 518 | C129: 214 | D129: 518 | E129: 29.68164416 | G129: 66 | H129: 478 | I129: 424 | J129: 25.49509757 | M129: 5824.276376 | N129: 854.4402 | O129: 0.002898924689
A130: 185 | B130: 533 | C130: 185 | D130: 533 | E130: 32.64965543 | G130: 65 | H130: 490 | I130: 454 | J130: 32.31098884 | M130: 5824.276376 | N130: 860.7632 | O130: 0.002898924689
A131: 160 | B131: 542 | C131: 160 | D131: 542 | E131: 26.57066051 | G131: 64 | H131: 497 | I131: 481 | J131: 27.89265136 | M131: 5824.276376 | N131: 867.2524 | O131: =((M131/$F$1)-1) -> 0.002898924689
A132: 80 | B132: 446 | C132: 80 | D132: 446 | E132: =SQRT(((C131-C132)*(C131-C132))+((D131-D132)*(D131-D132))) -> 124.9639948 | G132: 63 | H132: 501 | I132: 509 | J132: =SQRT(((H131-H132)*(H131-H132))+((I131-I132)*(I131-I132))) -> 28.28427125 | M132: 5824.276376 | N132: 874.0486 | O132: 0.002898924689
A133: 108 | B133: 447 | C133: 108 | D133: 447 | E133: 28.01785145 | G133: 62 | H133: 501 | I133: 535 | J133: 26 | M133: 5824.276376 | N133: 879.9874 | O133: 0.002898924689
A134: 136 | B134: 449 | C134: 136 | D134: 449 | E134: 28.0713377 | G134: 61 | H134: 502 | I134: 566 | J134: 31.01612484 | M134: 5824.276376 | N134: 886.4217 | O134: 0.002898924689
A135: 167 | B135: 445 | C135: 167 | D135: 445 | E135: 31.25699922 | G135: 60 | H135: 595 | I135: 521 | J135: 103.3150521 | M135: 5824.276376 | N135: 893.5163 | O135: 0.002898924689
A136: 194 | B136: 438 | C136: 194 | D136: 438 | E136: 27.89265136 | G136: 59 | H136: 588 | I136: 491 | J136: 30.8058436 | M136: 5824.276376 | N136: 899.8058 | O136: 0.002898924689
A137: 221 | B137: 433 | C137: 221 | D137: 433 | E137: 27.45906044 | G137: 58 | H137: 580 | I137: 464 | J137: 28.16025568 | M137: 5824.276376 | N137: 906.2126 | O137: 0.002898924689
A138: 249 | B138: 419 | C138: 249 | D138: 419 | E138: 31.30495168 | G138: 57 | H138: 564 | I138: 432 | J138: 35.77708764 | M138: 5824.276376 | N138: 912.7111 | O138: 0.002898924689
A139: 270 | B139: 407 | C139: 270 | D139: 407 | E139: 24.18677324 | G139: 56 | H139: 548 | I139: 411 | J139: 26.40075756 | M139: 5824.276376 | N139: 919.4729 | O139: 0.002898924689
A140: 292 | B140: 390 | C140: 292 | D140: 390 | E140: 27.80287755 | G140: 55 | H140: 531 | I140: 391 | J140: 26.2488095 | M140: 5824.276376 | N140: 925.7812 | O140: 0.002898924689
A141: 312 | B141: 374 | C141: 312 | D141: 374 | E141: 25.61249695 | G141: 54 | H141: 511 | I141: 367 | J141: 31.2409987 | M141: 5824.276376 | N141: 932.3142 | O141: 0.002898924689
A142: 328 | B142: 352 | C142: 328 | D142: 352 | E142: 27.20294102 | G142: 53 | H142: 491 | I142: 347 | J142: 28.28427125 | M142: 5824.276376 | N142: 939.7217 | O142: 0.002898924689
A143: 313 | B143: 344 | C143: 313 | D143: 344 | E143: 17 | G143: 52 | H143: 471 | I143: 336 | J143: 22.82542442 | M143: 5824.276376 | N143: 947.0056 | O143: 0.002898924689
A144: 290 | B144: 351 | C144: 290 | D144: 351 | E144: 24.04163056 | G144: 51 | H144: 449 | I144: 323 | J144: 25.55386468 | M144: 5824.276376 | N144: 953.6122 | O144: 0.002898924689
A145: 262 | B145: 362 | C145: 262 | D145: 362 | E145: 30.08321791 | G145: 50 | H145: 448 | I145: 286 | J145: 37.01351105 | M145: 5824.276376 | N145: 959.7766 | O145: 0.002898924689
A146: 238 | B146: 367 | C146: 238 | D146: 367 | E146: 24.51530134 | G146: 49 | H146: 474 | I146: 290 | J146: 26.30589288 | M146: 5819.993326 | N146: 965.7792 | O146: 0.002161413952
A147: 214 | B147: 372 | C147: 214 | D147: 372 | E147: 24.51530134 | G147: 48 | H147: 494 | I147: 292 | J147: 20.09975124 | M147: 5819.993326 | N147: 972.896 | O147: 0.002161413952
A148: 178 | B148: 370 | C148: 178 | D148: 370 | E148: 36.05551275 | G148: 47 | H148: 521 | I148: 304 | J148: 29.54657341 | M148: 5819.993326 | N148: 978.6789 | O148: 0.002161413952
A149: 156 | B149: 369 | C149: 156 | D149: 369 | E149: 22.02271555 | G149: 46 | H149: 547 | I149: 315 | J149: 28.23118843 | M149: 5819.993326 | N149: 985.9736 | O149: 0.002161413952
A150: 127 | B150: 365 | C150: 127 | D150: 365 | E150: 29.27456234 | G150: 45 | H150: 575 | I150: 323 | J150: 29.12043956 | M150: 5819.993326 | N150: 992.2039 | O150: 0.002161413952
A151: 95 | B151: 351 | C151: 95 | D151: 351 | E151: 34.92849839 | G151: 44 | H151: 599 | I151: 343 | J151: 31.2409987 | M151: 5819.993326 | N151: 998.3184 | O151: 0.002161413952
A152: 70 | B152: 340 | C152: 70 | D152: 340 | E152: 27.31300057 | G152: 43 | H152: 619 | I152: 361 | J152: 26.90724809 | M152: 5819.993326 | N152: 1005.2747 | O152: 0.002161413952
A153: 44 | B153: 326 | C153: 44 | D153: 326 | E153: 29.52964612 | G153: 42 | H153: 640 | I153: 384 | J153: 31.144823 | M153: 5819.993326 | N153: 1011.9367 | O153: 0.002161413952
A154: 54 | B154: 204 | C154: 54 | D154: 204 | E154: 122.40915 | G154: 41 | H154: 655 | I154: 410 | J154: 30.01666204 | M154: 5819.993326 | N154: 1018.1129 | O154: 0.002161413952
A155: 73 | B155: 226 | C155: 73 | D155: 226 | E155: 29.06888371 | G155: 40 | H155: 671 | I155: 285 | J155: 126.0198397 | M155: 5819.993326 | N155: 1023.984 | O155: 0.002161413952
A156: 97 | B156: 246 | C156: 97 | D156: 246 | E156: 31.2409987 | G156: 39 | H156: 643 | I156: 267 | J156: 33.28663395 | M156: 5819.993326 | N156: 1030.2276 | O156: 0.002161413952
A157: 119 | B157: 266 | C157: 119 | D157: 266 | E157: 29.73213749 | G157: 38 | H157: 610 | I157: 257 | J157: 34.4818793 | M157: 5819.993326 | N157: 1037.016 | O157: 0.002161413952
A158: 140 | B158: 282 | C158: 140 | D158: 282 | E158: 26.40075756 | G158: 37 | H158: 588 | I158: 246 | J158: 24.59674775 | M158: 5819.993326 | N158: 1043.3148 | O158: 0.002161413952
A159: 169 | B159: 296 | C159: 169 | D159: 296 | E159: 32.20248438 | G159: 36 | H159: 560 | I159: 239 | J159: 28.86173938 | M159: 5819.993326 | N159: 1050.4663 | O159: 0.002161413952
A160: 191 | B160: 310 | C160: 191 | D160: 310 | E160: 26.07680962 | G160: 35 | H160: 531 | I160: 237 | J160: 29.06888371 | M160: 5819.993326 | N160: 1056.7952 | O160: 0.002161413952
A161: 219 | B161: 314 | C161: 219 | D161: 314 | E161: 28.28427125 | G161: 34 | H161: 505 | I161: 237 | J161: 26 | M161: 5819.993326 | N161: 1063.2719 | O161: 0.002161413952
A162: 243 | B162: 320 | C162: 243 | D162: 320 | E162: 24.73863375 | G162: 33 | H162: 476 | I162: 239 | J162: 29.06888371 | M162: 5819.993326 | N162: 1069.0577 | O162: 0.002161413952
A163: 274 | B163: 319 | C163: 274 | D163: 319 | E163: 31.01612484 | G163: 32 | H163: 450 | I163: 249 | J163: 27.85677655 | M163: 5819.993326 | N163: 1075.9547 | O163: 0.002161413952
A164: 293 | B164: 319 | C164: 293 | D164: 319 | E164: 19 | G164: 31 | H164: 428 | I164: 258 | J164: 23.76972865 | M164: 5819.993326 | N164: 1082.3883 | O164: 0.002161413952
A165: 292 | B165: 296 | C165: 292 | D165: 296 | E165: 23.02172887 | G165: 30 | H165: 401 | I165: 236 | J165: 34.82814953 | M165: 5819.993326 | N165: 1088.9882 | O165: 0.002161413952
A166: 272 | B166: 285 | C166: 272 | D166: 285 | E166: 22.82542442 | G166: 29 | H166: 421 | I166: 219 | J166: 26.2488095 | M166: 5819.993326 | N166: 1095.9021 | O166: 0.002161413952
A167: 247 | B167: 277 | C167: 247 | D167: 277 | E167: 26.2488095 | G167: 28 | H167: 440 | I167: 202 | J167: 25.49509757 | M167: 5819.993326 | N167: 1102.6032 | O167: 0.002161413952
A168: 223 | B168: 261 | C168: 223 | D168: 261 | E168: 28.8444102 | G168: 27 | H168: 464 | I168: 189 | J168: 27.29468813 | M168: 5819.993326 | N168: 1109.1282 | O168: 0.002161413952
A169: 199 | B169: 243 | C169: 199 | D169: 243 | E169: 30 | G169: 26 | H169: 487 | I169: 180 | J169: 24.69817807 | M169: 5819.993326 | N169: 1115.9928 | O169: 0.002161413952
A170: 178 | B170: 221 | C170: 178 | D170: 221 | E170: 30.41381265 | G170: 25 | H170: 516 | I170: 170 | J170: 30.6757233 | M170: 5819.993326 | N170: 1123.4224 | O170: 0.002161413952
A171: 164 | B171: 196 | C171: 164 | D171: 196 | E171: 28.65309756 | G171: 24 | H171: 545 | I171: 164 | J171: 29.61418579 | M171: 5819.993326 | N171: 1129.9779 | O171: 0.002161413952
A172: 152 | B172: 178 | C172: 152 | D172: 178 | E172: 21.63330765 | G172: 23 | H172: 574 | I172: 159 | J172: 29.42787794 | M172: 5819.993326 | N172: 1136.8827 | O172: 0.002161413952
A173: 135 | B173: 155 | C173: 135 | D173: 155 | E173: 28.60069929 | G173: 22 | H173: 607 | I173: 159 | J173: 33 | M173: 5819.993326 | N173: 1143.2231 | O173: 0.002161413952
A174: 129 | B174: 123 | C174: 129 | D174: 123 | E174: 32.55764119 | G174: 21 | H174: 634 | I174: 166 | J174: 27.89265136 | M174: 5819.993326 | N174: 1150.2576 | O174: 0.002161413952
A175: 119 | B175: 92 | C175: 119 | D175: 92 | E175: 32.57299495 | G175: 20 | H175: 556 | I175: 70 | J175: 123.6931688 | M175: 5819.993326 | N175: 1157.3279 | O175: 0.002161413952
A176: 214 | B176: 48 | C176: 214 | D176: 48 | E176: 104.6947945 | G176: 19 | H176: 529 | I176: 81 | J176: 29.15475947 | M176: 5819.993326 | N176: 1163.2569 | O176: 0.002161413952
A177: 215 | B177: 70 | C177: 215 | D177: 70 | E177: 22.02271555 | G177: 18 | H177: 500 | I177: 88 | J177: 29.83286778 | M177: 5819.993326 | N177: 1170.607 | O177: 0.002161413952
A178: 215 | B178: 102 | C178: 215 | D178: 102 | E178: 32 | G178: 17 | H178: 475 | I178: 106 | J178: 30.8058436 | M178: 5819.993326 | N178: 1177.6586 | O178: 0.002161413952
A179: 218 | B179: 130 | C179: 218 | D179: 130 | E179: 28.16025568 | G179: 16 | H179: 449 | I179: 121 | J179: 30.01666204 | M179: 5819.993326 | N179: 1184.9647 | O179: 0.002161413952
A180: 226 | B180: 160 | C180: 226 | D180: 160 | E180: 31.04834939 | G180: 15 | H180: 429 | I180: 140 | J180: 27.58622845 | M180: 5819.993326 | N180: 1191.6216 | O180: 0.002161413952
A181: 237 | B181: 182 | C181: 237 | D181: 182 | E181: 24.59674775 | G181: 14 | H181: 413 | I181: 159 | J181: 24.8394847 | M181: 5819.993326 | N181: 1197.9351 | O181: 0.002161413952
A182: 250 | B182: 207 | C182: 250 | D182: 207 | E182: 28.17800561 | G182: 13 | H182: 395 | I182: 185 | J182: 31.6227766 | M182: 5819.993326 | N182: 1204.9563 | O182: 0.002161413952
A183: 264 | B183: 232 | C183: 264 | D183: 232 | E183: 28.65309756 | G183: 12 | H183: 381 | I183: 206 | J183: 25.23885893 | M183: 5819.993326 | N183: 1211.4997 | O183: 0.002161413952
A184: 280 | B184: 249 | C184: 280 | D184: 249 | E184: 23.34523506 | G184: 11 | H184: 367 | I184: 226 | J184: 24.41311123 | M184: 5819.993326 | N184: 1217.8207 | O184: 0.002161413952
A185: 301 | B185: 269 | C185: 301 | D185: 269 | E185: 29 | G185: 10 | H185: 339 | I185: 230 | J185: 28.28427125 | M185: 5819.993326 | N185: 1224.4268 | O185: 0.002161413952
A186: 319 | B186: 247 | C186: 319 | D186: 247 | E186: 28.42534081 | G186: 9 | H186: 341 | I186: 203 | J186: 27.07397274 | M186: 5819.993326 | N186: 1231.6282 | O186: 0.002161413952
A187: 306 | B187: 226 | C187: 306 | D187: 226 | E187: 24.69817807 | G187: 8 | H187: 343 | I187: 182 | J187: 21.09502311 | M187: 5819.993326 | N187: 1237.9928 | O187: 0.002161413952
A188: 299 | B188: 200 | C188: 299 | D188: 200 | E188: 26.92582404 | G188: 7 | H188: 350 | I188: 157 | J188: 25.96150997 | M188: 5819.993326 | N188: 1244.2054 | O188: 0.002161413952
A189: 293 | B189: 171 | C189: 293 | D189: 171 | E189: 29.61418579 | G189: 6 | H189: 359 | I189: 123 | J189: 35.17101079 | M189: 5819.993326 | N189: 1250.6488 | O189: 0.002161413952
A190: 290 | B190: 142 | C190: 290 | D190: 142 | E190: 29.15475947 | G190: 5 | H190: 373 | I190: 105 | J190: 22.8035085 | M190: 5819.993326 | N190: 1256.4799 | O190: 0.002161413952
A191: 291 | B191: 114 | C191: 291 | D191: 114 | E191: 28.01785145 | G191: 4 | H191: 386 | I191: 81 | J191: 27.29468813 | M191: 5819.993326 | N191: 1262.3008 | O191: 0.002161413952
A192: 299 | B192: 89 | C192: 299 | D192: 89 | E192: 26.2488095 | G192: 3 | H192: 406 | I192: 55 | J192: 32.80243893 | M192: 5819.993326 | N192: 1268.6729 | O192: 0.002161413952
A193: 303 | B193: 61 | C193: 303 | D193: 61 | E193: 28.28427125 | G193: 2 | H193: 425 | I193: 34 | J193: 28.31960452 | M193: 5819.993326 | N193: 1275.7054 | O193: 0.002161413952
A194: 313 | B194: 33 | C194: 313 | D194: 33 | E194: 29.73213749 | G194: 1 | H194: 443 | I194: 16 | J194: 25.45584412 | M194: 5819.993326 | N194: 1282.2072 | O194: 0.002161413952
E195: 32.31098884 | J195: =SQRT(((H194-H2)*(H194-H2))+((I194-I2)*(I194-I2))) -> 118.7139419 | M195: 5819.993326 | N195: 1288.489 | O195: =((M195/$F$1)-1) -> 0.002161413952
M196: 5819.993326 | N196: 1294.9827 | O196: 0.002161413952
M197: 5878.920062 | N197: 1302.1823 | O197: 0.01230817835
M198: 5841.283937 | N198: 1309.0867 | O198: 0.00582750558
M199: 5812.727937 | N199: 1315.7007 | O199: 0.0009103656658
M200: 5812.727937 | N200: 1323.5076 | O200: 0.0009103656658
... 632 more rows

Sheet Quatar (-0,09%)
A1: X réel | B1: Y réel | C1: w | D1: w | E1: w | F1: 9362 | G1: Ordre | H1: X réel | I1: Y réel | J1: Distance : | K1: 9353.517539 | L1: w | M1: Historique | N1: Temps | O1: Ecart | P1: =MIN(M:M) -> 0 | Q1: =((P1/$F$1)-1) -> -1 | R1: =AVERAGE(M:M) ->  | S1: =COUNT(M:M) -> 0 | T1: http://www.math.uwaterloo.ca/tsp/world/countries.html
A2: 24748.3333 | B2: 50840 | G2: 0 | H2: 24748.3333 | I2: 50840 | J2: Détail : | K2: =SUM(J:J) -> 9353.517539 | O2: =((M2/$F$1)-1) -> -1 | P2: =N2 -> 0
A3: 24758.8889 | B3: 51211.9444 | G3: 3 | H3: 24904.4444 | I3: 51175 | J3: =SQRT(((H2-H3)*(H2-H3))+((I2-I3)*(I2-I3))) -> 369.5885219 | K3: =(+K1/F1)-1 -> -0.000906052282 | O3: =((M3/$F$1)-1) -> -1 | P3: =+N3-N2 -> 0
A4: 24827.2222 | B4: 51394.7222 | G4: 1 | H4: 24758.8889 | I4: 51211.9444 | J4: 150.1708769 | O4: -1 | P4: =+N4-N3 -> 0
A5: 24904.4444 | B5: 51175 | G5: 2 | H5: 24827.2222 | I5: 51394.7222 | J5: 195.1337082 | O5: -1 | P5: 0
A6: 24996.1111 | B6: 51548.8889 | G6: 4 | H6: 24996.1111 | I6: 51548.8889 | J6: 228.6718871 | O6: -1 | P6: 0
A7: 25010 | B7: 51039.4444 | G7: 8 | H7: 25100 | I7: 51516.6667 | J7: 108.7711989 | O7: -1 | P7: 0
A8: 25030.8333 | B8: 51275.2778 | G8: 9 | H8: 25103.3333 | I8: 51521.6667 | J8: 6.009233636 | O8: -1 | P8: 0
A9: 25067.7778 | B9: 51077.5 | G9: 11 | H9: 25150.8333 | I9: 51537.7778 | J9: 50.15792603 | O9: -1 | P9: 0
A10: 25100 | B10: 51516.6667 | G10: 14 | H10: 25167.7778 | I10: 51606.9444 | J10: 71.21189954 | O10: -1 | P10: 0
A11: 25103.3333 | B11: 51521.6667 | G11: 18 | H11: 25211.3889 | I11: 51619.1667 | J11: 45.29141928 | O11: -1 | P11: 0
A12: 25121.9444 | B12: 51218.3333 | G12: 29 | H12: 25252.5 | I12: 51559.1667 | J12: 72.7332286 | O12: -1 | P12: 0
A13: 25150.8333 | B13: 51537.7778 | G13: 31 | H13: 25253.8889 | I13: 51549.7222 | J13: 9.546078957 | O13: -1 | P13: 0
A14: 25158.3333 | B14: 51163.6111 | G14: 30 | H14: 25253.8889 | I14: 51535.2778 | J14: 14.4444 | O14: -1 | P14: 0
A15: 25162.2222 | B15: 51220.8333 | G15: 34 | H15: 25265.8333 | I15: 51545.2778 | J15: 15.57782691 | O15: -1 | P15: 0
A16: 25167.7778 | B16: 51606.9444 | G16: 41 | H16: 25277.2222 | I16: 51547.7778 | J16: 11.66006189 | O16: -1 | P16: 0
A17: 25168.8889 | B17: 51086.3889 | G17: 49 | H17: 25284.7222 | I17: 51555.2778 | J17: 10.60660172 | O17: -1 | P17: 0
A18: 25173.8889 | B18: 51269.4444 | G18: 54 | H18: 25288.0556 | I18: 51546.6667 | J18: 9.233774893 | O18: -1 | P18: 0
A19: 25210.8333 | B19: 51394.1667 | G19: 48 | H19: 25283.6111 | I19: 51546.6667 | J19: 4.4445 | O19: -1 | P19: 0
A20: 25211.3889 | B20: 51619.1667 | G20: 43 | H20: 25278.3333 | I20: 51541.3889 | J20: 7.463936339 | O20: -1 | P20: 0
A21: 25214.1667 | B21: 50807.2222 | G21: 37 | H21: 25270.5556 | I21: 51532.7778 | J21: 11.6036055 | O21: -1 | P21: 0
A22: 25214.4444 | B22: 51378.8889 | G22: 40 | H22: 25275.8333 | I22: 51533.6111 | J22: 5.343080215 | O22: -1 | P22: 0
A23: 25223.3333 | B23: 51451.6667 | G23: 45 | H23: 25281.1111 | I23: 51535 | J23: 5.457491736 | O23: -1 | P23: 0
A24: 25224.1667 | B24: 51174.4444 | G24: 47 | H24: 25283.3333 | I24: 51533.3333 | J24: 2.77778 | O24: -1 | P24: 0
A25: 25233.3333 | B25: 51333.3333 | G25: 53 | H25: 25287.5 | I25: 51537.7778 | J25: 6.092205606 | O25: -1 | P25: 0
A26: 25234.1667 | B26: 51203.0556 | G26: 51 | H26: 25286.1111 | I26: 51534.1667 | J26: 3.868990362 | O26: -1 | P26: 0
A27: 25235.5556 | B27: 51330 | G27: 52 | H27: 25286.6667 | I27: 51533.3333 | J27: 1.001622144 | O27: -1 | P27: 0
A28: 25235.5556 | B28: 51495.5556 | G28: 55 | H28: 25290.8333 | I28: 51528.3333 | J28: 6.508498718 | O28: -1 | P28: 0
A29: 25242.7778 | B29: 51428.8889 | G29: 57 | H29: 25292.5 | I29: 51520.8333 | J29: 7.682960945 | O29: -1 | P29: 0
A30: 25243.0556 | B30: 51452.5 | G30: 42 | H30: 25278.3333 | I30: 51525.5556 | J30: 14.93303406 | O30: -1 | P30: 0
A31: 25252.5 | B31: 51559.1667 | G31: 39 | H31: 25270.8333 | I31: 51523.0556 | J31: 7.90569415 | O31: -1 | P31: 0
A32: 25253.8889 | B32: 51535.2778 | G32: 33 | H32: 25263.6111 | I32: 51516.3889 | J32: 9.828787399 | O32: -1 | P32: 0
A33: 25253.8889 | B33: 51549.7222 | G33: 38 | H33: 25270.8333 | I33: 51505.8333 | J33: 12.7898735 | O33: -1 | P33: 0
A34: 25256.9444 | B34: 51398.8889 | G34: 46 | H34: 25281.3889 | I34: 51512.5 | J34: 12.48461374 | O34: -1 | P34: 0
A35: 25263.6111 | B35: 51516.3889 | G35: 50 | H35: 25286.1111 | I35: 51504.1667 | J35: 9.578259849 | O35: -1 | P35: 0
A36: 25265.8333 | B36: 51545.2778 | G36: 60 | H36: 25306.9444 | I36: 51507.7778 | J36: 21.14394552 | O36: -1 | P36: 0
A37: 25266.6667 | B37: 50969.1667 | G37: 66 | H37: 25322.5 | I37: 51507.7778 | J37: 15.5556 | O37: -1 | P37: 0
A38: 25266.6667 | B38: 51483.3333 | G38: 72 | H38: 25341.9444 | I38: 51507.5 | J38: 19.44638435 | O38: -1 | P38: 0
A39: 25270.5556 | B39: 51532.7778 | G39: 65 | H39: 25320.5556 | I39: 51495.5556 | J39: 24.49794801 | O39: -1 | P39: 0
A40: 25270.8333 | B40: 51505.8333 | G40: 67 | H40: 25325.2778 | I40: 51470 | J40: 25.98822549 | O40: -1 | P40: 0
A41: 25270.8333 | B41: 51523.0556 | G41: 63 | H41: 25315.2778 | I41: 51438.6111 | J41: 32.94333078 | O41: -1 | P41: 0
A42: 25275.8333 | B42: 51533.6111 | G42: 69 | H42: 25337.5 | I42: 51425 | J42: 26.0593211 | O42: -1 | P42: 0
A43: 25277.2222 | B43: 51547.7778 | G43: 76 | H43: 25374.4444 | I43: 51436.6667 | J43: 38.74274874 | O43: -1 | P43: 0
A44: 25278.3333 | B44: 51525.5556 | G44: 83 | H44: 25416.9444 | I44: 51457.7778 | J44: 47.45448918 | O44: -1 | P44: 0
A45: 25278.3333 | B45: 51541.3889 | G45: 80 | H45: 25400 | I45: 51425 | J45: 36.89846696 | O45: -1 | P45: 0
A46: 25279.1667 | B46: 51445.5556 | G46: 78 | H46: 25396.9444 | I46: 51422.5 | J46: 3.947998399 | O46: -1 | P46: 0
A47: 25281.1111 | B47: 51535 | G47: 82 | H47: 25416.9444 | I47: 51403.8889 | J47: 27.31982876 | O47: -1 | P47: 0
A48: 25281.3889 | B48: 51512.5 | G48: 87 | H48: 25440.8333 | I48: 51378.0556 | J48: 35.18577741 | O48: -1 | P48: 0
A49: 25283.3333 | B49: 51533.3333 | G49: 91 | H49: 25469.7222 | I49: 51397.5 | J49: 34.82317094 | O49: -1 | P49: 0
A50: 25283.6111 | B50: 51546.6667 | G50: 96 | H50: 25492.2222 | I50: 51400.2778 | J50: 22.67082206 | O50: -1 | P50: 0
A51: 25284.7222 | B51: 51555.2778 | G51: 94 | H51: 25483.3333 | I51: 51383.3333 | J51: 19.1344878 | O51: -1 | P51: 0
A52: 25286.1111 | B52: 51504.1667 | G52: 95 | H52: 25490.5556 | I52: 51373.6111 | J52: 12.11126707 | O52: -1 | P52: 0
A53: 25286.1111 | B53: 51534.1667 | G53: 92 | H53: 25478.0556 | I53: 51362.5 | J53: 16.72442953 | O53: -1 | P53: 0
A54: 25286.6667 | B54: 51533.3333 | G54: 90 | H54: 25459.1667 | I54: 51316.6667 | J54: 49.572996 | O54: -1 | P54: 0
A55: 25287.5 | B55: 51537.7778 | G55: 102 | H55: 25531.9444 | I55: 51304.4444 | J55: 73.79687144 | O55: -1 | P55: 0
A56: 25288.0556 | B56: 51546.6667 | G56: 101 | H56: 25510.5556 | I56: 51242.2222 | J56: 65.79576687 | O56: -1 | P56: 0
A57: 25290.8333 | B57: 51528.3333 | G57: 108 | H57: 25560.2778 | I57: 51158.6111 | J57: 97.2785342 | O57: -1 | P57: 0
A58: 25291.9444 | B58: 51424.4444 | G58: 112 | H58: 25585.5556 | I58: 51151.3889 | J58: 26.28930097 | O58: -1 | P58: 0
A59: 25292.5 | B59: 51520.8333 | G59: 113 | H59: 25609.4444 | I59: 51092.2222 | J59: 63.8073127 | O59: -1 | P59: 0
A60: 25298.6111 | B60: 51001.6667 | G60: 118 | H60: 25666.9444 | I60: 51174.4444 | J60: 100.3331459 | O60: -1 | P60: 0
A61: 25300.8333 | B61: 51394.4444 | G61: 121 | H61: 25696.1111 | I61: 51260.8333 | J61: 91.17970406 | O61: -1 | P61: 0
A62: 25306.9444 | B62: 51507.7778 | G62: 117 | H62: 25650 | I62: 51372.2222 | J62: 120.5558816 | O62: -1 | P62: 0
A63: 25311.9444 | B63: 51003.0556 | G63: 105 | H63: 25545.8333 | I63: 51387.5 | J63: 105.2811121 | O63: -1 | P63: 0
A64: 25313.8889 | B64: 50883.3333 | G64: 104 | H64: 25538.8889 | I64: 51408.3333 | J64: 21.96021585 | O64: -1 | P64: 0
A65: 25315.2778 | B65: 51438.6111 | G65: 106 | H65: 25549.7222 | I65: 51431.9444 | J65: 25.97776804 | O65: -1 | P65: 0
A66: 25316.6667 | B66: 50766.6667 | G66: 107 | H66: 25550 | I66: 51433.3333 | J66: 1.416409563 | O66: -1 | P66: 0
A67: 25320.5556 | B67: 51495.5556 | G67: 99 | H67: 25497.5 | I67: 51485.2778 | J67: =SQRT(((H66-H67)*(H66-H67))+((I66-I67)*(I66-I67))) -> 73.85445877 | O67: =((M67/$F$1)-1) -> -1 | P67: 0
A68: 25322.5 | B68: 51507.7778 | G68: 109 | H68: 25566.9444 | I68: 51484.7222 | J68: 69.44662254 | O68: -1 | P68: =+N68-N67 -> 0
A69: 25325.2778 | B69: 51470 | G69: 111 | H69: 25574.7222 | I69: 51486.3889 | J69: 7.954373748 | O69: -1 | P69: 0
A70: 25326.6667 | B70: 51350.2778 | G70: 114 | H70: 25610.2778 | I70: 51475.2778 | J70: 37.25127158 | O70: -1 | P70: 0
A71: 25337.5 | B71: 51425 | G71: 115 | H71: 25622.5 | I71: 51454.4444 | J71: 24.15393816 | O71: -1 | P71: 0
A72: 25339.1667 | B72: 51173.3333 | G72: 116 | H72: 25645.8333 | I72: 51450 | J72: 23.75280152 | O72: -1 | P72: 0
A73: 25340.5556 | B73: 51293.6111 | G73: 120 | H73: 25686.3889 | I73: 51468.8889 | J73: 44.73865481 | O73: -1 | P73: 0
A74: 25341.9444 | B74: 51507.5 | G74: 119 | H74: 25683.8889 | I74: 51505.8333 | J74: 37.02888996 | O74: -1 | P74: 0
A75: 25358.8889 | B75: 51333.6111 | G75: 122 | H75: 25700.8333 | I75: 51584.7222 | J75: 80.68811086 | O75: -1 | P75: 0
A76: 25363.6111 | B76: 51281.1111 | G76: 123 | H76: 25708.3333 | I76: 51591.6667 | J76: 10.22135413 | O76: -1 | P76: 0
A77: 25368.6111 | B77: 51226.3889 | G77: 127 | H77: 25734.7222 | I77: 51547.5 | J77: 51.44969808 | O77: -1 | P77: 0
A78: 25374.4444 | B78: 51436.6667 | G78: 132 | H78: 25772.2222 | I78: 51483.3333 | J78: 74.32102925 | O78: -1 | P78: 0
A79: 25377.7778 | B79: 51294.7222 | G79: 134 | H79: 25779.1667 | I79: 51449.7222 | J79: 34.32101577 | O79: -1 | P79: 0
A80: 25396.9444 | B80: 51422.5 | G80: 128 | H80: 25751.1111 | I80: 51449.1667 | J80: 28.0610989 | O80: -1 | P80: 0
A81: 25400 | B81: 51183.3333 | G81: 130 | H81: 25758.3333 | I81: 51395.8333 | J81: 53.82017956 | O81: -1 | P81: 0
A82: 25400 | B82: 51425 | G82: 135 | H82: 25793.3333 | I82: 51409.4444 | J82: 37.55345581 | O82: -1 | P82: 0
A83: 25404.7222 | B83: 51073.0556 | G83: 142 | H83: 25839.1667 | I83: 51465.2778 | J83: 72.2362036 | O83: -1 | P83: 0
A84: 25416.9444 | B84: 51403.8889 | G84: 147 | H84: 25857.5 | I84: 51441.3889 | J84: 30.11294459 | O84: -1 | P84: 0
A85: 25416.9444 | B85: 51457.7778 | G85: 159 | H85: 25944.7222 | I85: 51456.3889 | J85: 88.50261111 | O85: -1 | P85: 0
A86: 25419.4444 | B86: 50793.6111 | G86: 165 | H86: 25983.3333 | I86: 51400 | J86: 68.34124001 | O86: -1 | P86: 0
A87: 25429.7222 | B87: 50785.8333 | G87: 170 | H87: 26021.6667 | I87: 51366.9444 | J87: 50.61741051 | O87: -1 | P87: 0 | Q87: =N87/60 -> 0
